{"text_format":"1","workbook":"xlsx","n_sheets":4,"sheets":["START","Main Dashboard","Cijfers","Blanco"],"not_rendered":{"charts":16,"images":9,"macros":1,"external_links":0,"defined_names":901,"comments":1,"pivot_tables":0},"unopened":[],"bounds":{"document_bytes":16777216,"sheet_cells":100000,"rows_first":2000,"rows_last":500,"rows_between":2000,"halvings":0,"cell_chars":16384,"cell_head_chars":4096},"cells_cut":0,"cells_raw":0,"read":"whole","date_system":"1900"}

{"sheet":"START","index":0,"n_rows":32,"n_cols":11,"rows_kept":32,"cut":false,"hidden":false,"merged":[[13,5,13,8],[11,10,11,12],[13,10,13,11],[24,4,24,12],[1,2,2,12],[3,5,3,13],[11,5,11,8],[15,5,15,8],[7,3,9,4],[17,5,17,8],[19,5,19,8],[5,6,9,12],[3,1,4,4]]}
[]
[null," ","CO2-REDUCTIETOOL ZORG"]
[]
[null,"      MAIN DASHBOARD",null,null,null,"Zet stappen naar klimaatneutraal vastgoed"]
[]
[null,null,"Versie:","2.0  (maart 2025)"]
[null,null,"Voor: ","Care-organisaties"]
[null,null,"Auteurs:","Judith de Bree\nAdriaan van Engelen \nMarjon Olijdam"]
[]
[]
[]
[null,null,null,null,"Zorgorganisatie:","[Naam instelling]",null,null,null,null,"www.milieuplatformzorg.nl"]
[]
[null,null,null,null,"KVK-nummer: ","[0000 0000]",null,null,null,null,"www.stimular.nl"]
[]
[null,null,null,null,"Beheerder: ","[Achternaam, voorletters]"]
[]
[null,null,null,null,"E-mailadres: ","[E-mailadres]"]
[]
[null,null,null,null,"Telefoonnummer: ","[Telefoonnummer]"]
[]
[]
[]
[]
[null,null,null,null,"Copyright © 2023. De CO2-reductietool is gemaakt in opdracht van het Expertisecentrum Verduurzaming Zorg (EVZ) en eigendom van Vereniging Milieuplatform Zorgsector (MPZ) en Stichting Stimular."]
[]
[]
[]
[]
[]
[]
[null,null,null,null,null,null,null,null,"  "]

{"sheet":"Main Dashboard","index":1,"n_rows":47,"n_cols":37,"rows_kept":47,"cut":false,"hidden":false,"merged":[[1,3,2,5],[1,6,2,12],[3,1,3,3],[29,13,29,16],[1,25,2,28],[1,18,2,24],[46,26,46,27],[46,29,46,33],[42,22,44,33],[42,6,42,8],[30,22,30,25]]}
[]
[null,null,null,"    SAMENVATTING VAN:",null,null,{"$f":"START!F12","v":"[Naam instelling]"},null,null,null,null,null,null,null,null,null,null,null,"Toon absoluut of per m2 gebruiksoppervlakte",null,null,null,null,null,null,"Versie 2.0 (maart 2025)"]
[]
[]
[]
[]
[]
[null,null,null,null,null,null,null,null,null,null,null,null,null,null,null,null,null,null,null,null,null,null,null,null,null,null,null,null,null,null,null,null,null,null,null,null," "]
[]
[]
[]
[]
[]
[]
[]
[]
[]
[]
[]
[]
[]
[]
[]
[]
[]
[]
[]
[]
[]
[null,null,null,null,null,null,null,null,null,null,null,null,null,"CO2-emissie in kg per m3:",null,null,null,2.09,null,null,null,null,"CO2-emissie in kg per kWh:",0.52300000000000002,null,null,null,null,null,null,"CO2-emissie in kg per GJ:",26.8]
[null,null,null,null,null,null,null,null,null,null,null,null,null,null,null,null,null,null,null,null,null,null,null,null,null,null,null,"Bron: CO2-emissiefactoren.nl (2023)"]
[]
[]
[null,null,null,2023,{"$f":"Cijfers!K46","v":0}]
[null,null,null,2024,{"$f":"Cijfers!L46","v":0}]
[null,null,null,2025,{"$f":"Cijfers!M46","v":0}]
[null,null,null,2026,{"$f":"Cijfers!N46","v":0}]
[null,null,null,2027,{"$f":"Cijfers!O46","v":0}]
[null,null,null,2028,{"$f":"Cijfers!P46","v":0}]
[null,null,null,2029,{"$f":"Cijfers!Q46","v":0}]
[null,null,null,2030,{"$f":"Cijfers!R46","v":0},null,null,null,null,null,null,null,"Directe CO2-emissie:",null,null,null,{"$f":"Cijfers!R54","v":{"$error":"#DIV/0!"}},"in 2030",null,{"$f":"Cijfers!AL54","v":{"$error":"#DIV/0!"}},"in 2050"]
[null,null,null,"2031-2035",{"$f":"SUM(Cijfers!S46:W46)","v":0}]
[null,null,null,"2036-2040",{"$f":"SUM(Cijfers!X46:AB46)","v":0},"Totaal",{"$f":"Cijfers!K45","v":0},null,null,{"$f":"Cijfers!R45","v":0},{"$f":"Cijfers!AL45","v":0},null,null,"Aardgas"]
[null,null,null,"2041-2045",{"$f":"SUM(Cijfers!AC46:AG46)","v":0},null,null,null,null,null,null,null,null,"Elektriciteit"]
[null,null,null,"2046-2050",{"$f":"SUM(Cijfers!AH46:AL46)","v":0},null,null,null,null,null,null,null,null,"Warmte"]
[null,null,null,"Totaal",{"$f":"SUM(E34:E45)","v":0}]
[null,null,null,null,null,null,null,null,null,null,null,null,null,null,null,null,null,null,null,null,null,null,null,null,null,null,"[1-1-2023]",null,null,"[Naam van bestuurder/gemachtigde]"]

{"sheet":"Cijfers","index":2,"n_rows":411,"n_cols":41,"rows_kept":411,"cut":false,"hidden":false,"merged":[[12,4,14,7],[9,4,10,7],[15,4,17,7],[375,0,375,1],[340,0,340,1],[60,0,60,1],[95,0,95,1],[130,0,130,1],[165,0,165,1],[200,0,200,1],[235,0,235,1],[269,0,269,1],[270,0,270,1],[304,0,304,1],[305,0,305,1],[1,13,2,15],[5,9,6,13],[7,10,7,12],[8,10,8,12],[1,2,2,4],[1,5,2,12],[6,3,8,7],[14,10,14,12],[15,10,15,12],[16,10,16,12],[5,32,6,37],[7,22,16,37],[5,22,6,30],[9,10,9,12],[10,10,10,12],[11,10,11,12],[12,10,12,12],[13,10,13,12]]}
[" "]
[null,null,"   SAMENVATTING VAN:",null,null,{"$f":"START!F12","v":"[Naam instelling]"},null,null,null,null,null,null,null,"Versie 2.0 (maart 2025)",null,null,null,null,null,null,null,null,null,null,null,null,null,null,null,null,null,null,null,null,null,null,null,null,null,null,"wijzig niets"]
[null,null,null,null,null,null,null,null,null,null,null,null,null,null,null,null,null,null,null,null,null,null,null,null,null,null,null,null,null,null,null,null,null,null,null,null,null,null,null,null,"aan deze"]
[null,null,null,null,null,null,null,null,null,null,null,null,null,null,null,null,null,null,null,null,null,null,null,null,null,null,null,null,null,null,null,null,null,null,null,null,null,null,null,null,"kolom."]
[null,null,null,null,null,{"$f":"CELL(\"filename\")","v":"https://stimular.sharepoint.com/Gedeelde documenten/Projecten Stimular/Lopende projecten/813 EVZ-2/4 (eind)producten/Routekaart CO2 Reductie/5. Tool/Main Dashboard/[Main Dashboard 2.0.xlsm]Cijfers"}]
[null,null,null,null,null,null,null,null,null,"Excelbestanden"]
[null,null,null,"Dit is het overkoepelende dashboard bij de CO2 Reductietool Zorg versie 2.0 (maart 2025). Hiermee koppel je tot 10 toolbestanden aan elkaar voor een totaaloverzicht. \n\n"]
[null,null,null,null,null,null,null,null,null,"Excel 1",null,null,null,{"$f":"IF(K8=\"\",0,CONCATENATE(\"=\",\"'\",SUBSTITUTE($F$5,\"Main Dashboard 2.0.xlsm]Cijfers\",K8),\".xlsm]Cijfers\",\"'\",\"!H23\"))","v":0}]
[null,null,null,null,null,null,null,null,null,"Excel 2",null,null,null,{"$f":"IF(K9=\"\",0,CONCATENATE(\"=\",\"'\",SUBSTITUTE($F$5,\"Main Dashboard 2.0.xlsm]Cijfers\",K9),\".xlsm]Cijfers\",\"'\",\"!H23\"))","v":0}]
[null,null,null,"1.","Sla dit Excelbestand op in de map samen met alle Excel toolbestanden die je wilt samenvoegen, onder de exacte naam \"Main Dashboard 2.0\".",null,null,null,null,"Excel 3",null,null,null,0]
[null,null,null,null,null,null,null,null,null,"Excel 4",null,null,null,0]
[null,null,null,null,null,null,null,null,null,"Excel 5",null,null,null,0]
[null,null,null,"2.","Vul de namen van de samen te voegen Excelbestanden hiernaast in. → \n(let op: moet exact overeenkomen en werkt alleen met versie 2.0 of nieuwer).",null,null,null,null,"Excel 6",null,null,null,0]
[null,null,null,null,null,null,null,null,null,"Excel 7",null,null,null,0]
[null,null,null,null,null,null,null,null,null,"Excel 8",null,null,null,0]
[null,null,null,"3.","Klik op de knop 'Voeg samen'. Wijzig je iets in gekoppelde toolbestanden? Klik dan opnieuw op deze knop om het overzicht te verversen.",null,null,null,null,"Excel 9",null,null,null,0]
[null,null,null,null,null,null,null,null,null,"Excel 10",null,null,null,0]
[]
[]
[]
[]
[null,null,null,null,null,2018,2019,2020,2021,2022,2023,2024,2025,2026,2027,2028,2029,2030,2031,2032,2033,2034,2035,2036,2037,2038,2039,2040,2041,2042,2043,2044,2045,2046,2047,2048,2049,2050]
[null,null,null,null,"GO - Gebruiksoppervlakte (m2)",{"$f":"SUM(F24:F28)","v":0},{"$f":"SUM(G24:G28)","v":0},0,0,0,0,0,0,0,0,0,0,0,0,0,0,0,0,0,0,0,0,0,0,0,0,0,0,0,0,0,0,0]
[null,null,null,null,"<1965",{"$f":"SUM(F64,F99,F134,F169,F204,F239,F274,F309,F344,F379)","v":0},{"$f":"SUM(G64,G99,G134,G169,G204,G239,G274,G309,G344,G379)","v":0},{"$f":"SUM(H64,H99,H134,H169,H204,H239,H274,H309,H344,H379)","v":0},0,0,0,0,0,0,0,0,0,0,0,0,0,0,0,0,0,0,0,0,0,0,0,0,0,0,0,0,0,0]
[null,null,null,null,"1965 - 1975",{"$f":"SUM(F65,F100,F135,F170,F205,F240,F275,F310,F345,F380)","v":0},0,0,0,0,0,0,0,0,0,0,0,0,0,0,0,0,0,0,0,0,0,0,0,0,0,0,0,0,0,0,0,0]
[null,null,null,null,"1975 - 1992",{"$f":"SUM(F66,F101,F136,F171,F206,F241,F276,F311,F346,F381)","v":0},0,0,0,0,0,0,0,0,0,0,0,0,0,0,0,0,0,0,0,0,0,0,0,0,0,0,0,0,0,0,0,0]
[null,null,null,null,"1992 - 2021",{"$f":"SUM(F67,F102,F137,F172,F207,F242,F277,F312,F347,F382)","v":0},0,0,0,0,0,0,0,0,0,0,0,0,0,0,0,0,0,0,0,0,0,0,0,0,0,0,0,0,0,0,0,0]
[null,null,null,null,"Nieuwbouw",{"$f":"SUM(F68,F103,F138,F173,F208,F243,F278,F313,F348,F383)","v":0},0,0,0,0,0,0,0,0,0,0,0,0,0,0,0,0,0,0,0,0,0,0,0,0,0,0,0,0,0,0,0,0]
[null,null,null,null,"Elektriciteit inkoop (kWh)",0,{"$f":"SUM(G69,G104,G139,G174,G209,G244,G279,G314,G349,G384)","v":0},0,0,0,0,0,0,0,0,0,0,0,0,0,0,0,0,0,0,0,0,0,0,0,0,0,0,0,0,0,0,0]
[null,null,null,null,"Elektriciteit inkoop per m2 (kWh/m2)",{"$f":"F29/F$23","v":{"$error":"#DIV/0!"}},{"$f":"G29/G$23","v":{"$error":"#DIV/0!"}},{"$error":"#DIV/0!"},{"$error":"#DIV/0!"},{"$error":"#DIV/0!"},{"$error":"#DIV/0!"},{"$error":"#DIV/0!"},{"$error":"#DIV/0!"},{"$error":"#DIV/0!"},{"$error":"#DIV/0!"},{"$error":"#DIV/0!"},{"$error":"#DIV/0!"},{"$error":"#DIV/0!"},{"$error":"#DIV/0!"},{"$error":"#DIV/0!"},{"$error":"#DIV/0!"},{"$error":"#DIV/0!"},{"$error":"#DIV/0!"},{"$error":"#DIV/0!"},{"$error":"#DIV/0!"},{"$error":"#DIV/0!"},{"$error":"#DIV/0!"},{"$error":"#DIV/0!"},{"$error":"#DIV/0!"},{"$error":"#DIV/0!"},{"$error":"#DIV/0!"},{"$error":"#DIV/0!"},{"$error":"#DIV/0!"},{"$error":"#DIV/0!"},{"$error":"#DIV/0!"},{"$error":"#DIV/0!"},{"$error":"#DIV/0!"},{"$error":"#DIV/0!"}]
[null,null,null,null,"Aardgas inkoop (m3)",{"$f":"SUM(F71,F106,F141,F176,F211,F246,F281,F316,F351,F386)","v":0},0,0,0,0,0,0,0,0,0,0,0,0,0,0,0,0,0,0,0,0,0,0,0,0,0,0,0,0,0,0,0,0]
[null,null,null,null,"Aardgas inkoop per m2 (m3/m2)",{"$f":"F31/F$23","v":{"$error":"#DIV/0!"}},{"$f":"G31/G$23","v":{"$error":"#DIV/0!"}},{"$error":"#DIV/0!"},{"$error":"#DIV/0!"},{"$error":"#DIV/0!"},{"$error":"#DIV/0!"},{"$error":"#DIV/0!"},{"$error":"#DIV/0!"},{"$error":"#DIV/0!"},{"$error":"#DIV/0!"},{"$error":"#DIV/0!"},{"$error":"#DIV/0!"},{"$error":"#DIV/0!"},{"$error":"#DIV/0!"},{"$error":"#DIV/0!"},{"$error":"#DIV/0!"},{"$error":"#DIV/0!"},{"$error":"#DIV/0!"},{"$error":"#DIV/0!"},{"$error":"#DIV/0!"},{"$error":"#DIV/0!"},{"$error":"#DIV/0!"},{"$error":"#DIV/0!"},{"$error":"#DIV/0!"},{"$error":"#DIV/0!"},{"$error":"#DIV/0!"},{"$error":"#DIV/0!"},{"$error":"#DIV/0!"},{"$error":"#DIV/0!"},{"$error":"#DIV/0!"},{"$error":"#DIV/0!"},{"$error":"#DIV/0!"},{"$error":"#DIV/0!"}]
[null,null,null,null,"Warmte inkoop (GJ)",{"$f":"SUM(F73,F108,F143,F178,F213,F248,F283,F318,F353,F388)","v":0},0,0,0,0,0,0,0,0,0,0,0,0,0,0,0,0,0,0,0,0,0,0,0,0,0,0,0,0,0,0,0,0]
[null,null,null,null,"Warmte inkoop per m2 (GJ/m2)",{"$f":"F33/F$23","v":{"$error":"#DIV/0!"}},{"$f":"G33/G$23","v":{"$error":"#DIV/0!"}},{"$error":"#DIV/0!"},{"$error":"#DIV/0!"},{"$error":"#DIV/0!"},{"$error":"#DIV/0!"},{"$error":"#DIV/0!"},{"$error":"#DIV/0!"},{"$error":"#DIV/0!"},{"$error":"#DIV/0!"},{"$error":"#DIV/0!"},{"$error":"#DIV/0!"},{"$error":"#DIV/0!"},{"$error":"#DIV/0!"},{"$error":"#DIV/0!"},{"$error":"#DIV/0!"},{"$error":"#DIV/0!"},{"$error":"#DIV/0!"},{"$error":"#DIV/0!"},{"$error":"#DIV/0!"},{"$error":"#DIV/0!"},{"$error":"#DIV/0!"},{"$error":"#DIV/0!"},{"$error":"#DIV/0!"},{"$error":"#DIV/0!"},{"$error":"#DIV/0!"},{"$error":"#DIV/0!"},{"$error":"#DIV/0!"},{"$error":"#DIV/0!"},{"$error":"#DIV/0!"},{"$error":"#DIV/0!"},{"$error":"#DIV/0!"},{"$error":"#DIV/0!"}]
[null,null,null,null,"Totale inkoop (kWh)",{"$f":"SUM(F75,F110,F145,F180,F215,F250,F285,F320,F355,F390)","v":0},0,0,0,0,0,0,0,0,0,0,0,0,0,0,0,0,0,0,0,0,0,0,0,0,0,0,0,0,0,0,0,0]
[null,null,null,null,"Totale inkoop per m2 (kWh/m2)",{"$f":"F35/F$23","v":{"$error":"#DIV/0!"}},{"$f":"G35/G$23","v":{"$error":"#DIV/0!"}},{"$error":"#DIV/0!"},{"$error":"#DIV/0!"},{"$error":"#DIV/0!"},{"$error":"#DIV/0!"},{"$error":"#DIV/0!"},{"$error":"#DIV/0!"},{"$error":"#DIV/0!"},{"$error":"#DIV/0!"},{"$error":"#DIV/0!"},{"$error":"#DIV/0!"},{"$error":"#DIV/0!"},{"$error":"#DIV/0!"},{"$error":"#DIV/0!"},{"$error":"#DIV/0!"},{"$error":"#DIV/0!"},{"$error":"#DIV/0!"},{"$error":"#DIV/0!"},{"$error":"#DIV/0!"},{"$error":"#DIV/0!"},{"$error":"#DIV/0!"},{"$error":"#DIV/0!"},{"$error":"#DIV/0!"},{"$error":"#DIV/0!"},{"$error":"#DIV/0!"},{"$error":"#DIV/0!"},{"$error":"#DIV/0!"},{"$error":"#DIV/0!"},{"$error":"#DIV/0!"},{"$error":"#DIV/0!"},{"$error":"#DIV/0!"},{"$error":"#DIV/0!"}]
[null,null,null,null,"Opwek PV bestaande bouw (kWh)",{"$f":"SUM(F77,F112,F147,F182,F217,F252,F287,F322,F357,F392)","v":0},0,0,0,0,0,0,0,0,0,0,0,0,0,0,0,0,0,0,0,0,0,0,0,0,0,0,0,0,0,0,0,0]
[null,null,null,null,"Opwek PV nieuwbouw (kWh)",{"$f":"SUM(F78,F113,F148,F183,F218,F253,F288,F323,F358,F393)","v":0},0,0,0,0,0,0,0,0,0,0,0,0,0,0,0,0,0,0,0,0,0,0,0,0,0,0,0,0,0,0,0,0]
[null,null,null,null,"Opwek PV totaal (kWh)",{"$f":"SUM(F79,F114,F149,F184,F219,F254,F289,F324,F359,F394)","v":0},0,0,0,0,0,0,0,0,0,0,0,0,0,0,0,0,0,0,0,0,0,0,0,0,0,0,0,0,0,0,0,0]
[null,null,null,null,"Opwek PV totaal per m2 (kWh/m2)",{"$f":"F39/F$23","v":{"$error":"#DIV/0!"}},{"$f":"G39/G$23","v":{"$error":"#DIV/0!"}},{"$error":"#DIV/0!"},{"$error":"#DIV/0!"},{"$error":"#DIV/0!"},{"$error":"#DIV/0!"},{"$error":"#DIV/0!"},{"$error":"#DIV/0!"},{"$error":"#DIV/0!"},{"$error":"#DIV/0!"},{"$error":"#DIV/0!"},{"$error":"#DIV/0!"},{"$error":"#DIV/0!"},{"$error":"#DIV/0!"},{"$error":"#DIV/0!"},{"$error":"#DIV/0!"},{"$error":"#DIV/0!"},{"$error":"#DIV/0!"},{"$error":"#DIV/0!"},{"$error":"#DIV/0!"},{"$error":"#DIV/0!"},{"$error":"#DIV/0!"},{"$error":"#DIV/0!"},{"$error":"#DIV/0!"},{"$error":"#DIV/0!"},{"$error":"#DIV/0!"},{"$error":"#DIV/0!"},{"$error":"#DIV/0!"},{"$error":"#DIV/0!"},{"$error":"#DIV/0!"},{"$error":"#DIV/0!"},{"$error":"#DIV/0!"},{"$error":"#DIV/0!"}]
[null,null,null,null,"Duurzame warmte inkoop (GJ)",{"$f":"SUM(F81,F116,F151,F186,F221,F256,F291,F326,F361,F396)","v":0},0,0,0,0,0,0,0,0,0,0,0,0,0,0,0,0,0,0,0,0,0,0,0,0,0,0,0,0,0,0,0,0]
[null,null,null,null,"Duurzame warmte inkoop per m2 (GJ/m2)",{"$f":"F41/F$23","v":{"$error":"#DIV/0!"}},{"$f":"G41/G$23","v":{"$error":"#DIV/0!"}},{"$error":"#DIV/0!"},{"$error":"#DIV/0!"},{"$error":"#DIV/0!"},{"$error":"#DIV/0!"},{"$error":"#DIV/0!"},{"$error":"#DIV/0!"},{"$error":"#DIV/0!"},{"$error":"#DIV/0!"},{"$error":"#DIV/0!"},{"$error":"#DIV/0!"},{"$error":"#DIV/0!"},{"$error":"#DIV/0!"},{"$error":"#DIV/0!"},{"$error":"#DIV/0!"},{"$error":"#DIV/0!"},{"$error":"#DIV/0!"},{"$error":"#DIV/0!"},{"$error":"#DIV/0!"},{"$error":"#DIV/0!"},{"$error":"#DIV/0!"},{"$error":"#DIV/0!"},{"$error":"#DIV/0!"},{"$error":"#DIV/0!"},{"$error":"#DIV/0!"},{"$error":"#DIV/0!"},{"$error":"#DIV/0!"},{"$error":"#DIV/0!"},{"$error":"#DIV/0!"},{"$error":"#DIV/0!"},{"$error":"#DIV/0!"},{"$error":"#DIV/0!"}]
[null,null,null,null,"Totaalverbruik zonder aftrek pv (kWh)",{"$f":"SUM(F83,F118,F153,F188,F223,F258,F293,F328,F363,F398)","v":0},0,0,0,0,0,0,0,0,0,0,0,0,0,0,0,0,0,0,0,0,0,0,0,0,0,0,0,0,0,0,0,0]
[null,null,null,null,"Totaalverbruik per m2 z.a. pv (kWh/m2)",{"$f":"F43/F$23","v":{"$error":"#DIV/0!"}},{"$f":"G43/G$23","v":{"$error":"#DIV/0!"}},{"$error":"#DIV/0!"},{"$error":"#DIV/0!"},{"$error":"#DIV/0!"},{"$error":"#DIV/0!"},{"$error":"#DIV/0!"},{"$error":"#DIV/0!"},{"$error":"#DIV/0!"},{"$error":"#DIV/0!"},{"$error":"#DIV/0!"},{"$error":"#DIV/0!"},{"$error":"#DIV/0!"},{"$error":"#DIV/0!"},{"$error":"#DIV/0!"},{"$error":"#DIV/0!"},{"$error":"#DIV/0!"},{"$error":"#DIV/0!"},{"$error":"#DIV/0!"},{"$error":"#DIV/0!"},{"$error":"#DIV/0!"},{"$error":"#DIV/0!"},{"$error":"#DIV/0!"},{"$error":"#DIV/0!"},{"$error":"#DIV/0!"},{"$error":"#DIV/0!"},{"$error":"#DIV/0!"},{"$error":"#DIV/0!"},{"$error":"#DIV/0!"},{"$error":"#DIV/0!"},{"$error":"#DIV/0!"},{"$error":"#DIV/0!"},{"$error":"#DIV/0!"}]
[null,null,null,null,"Energiekosten per jaar (€)",{"$f":"SUM(F85,F120,F155,F190,F225,F260,F295,F330,F365,F400)","v":0},0,0,0,0,0,0,0,0,0,0,0,0,0,0,0,0,0,0,0,0,0,0,0,0,0,0,0,0,0,0,0,0]
[null,null,null,null,"Investeringen per jaar (€)",{"$f":"SUM(F86,F121,F156,F191,F226,F261,F296,F331,F366,F401)","v":0},0,0,0,0,0,0,0,0,0,0,0,0,0,0,0,0,0,0,0,0,0,0,0,0,0,0,0,0,0,0,0,0]
[null,null,null,null,"Cumulatieve investeringen (€)",{"$f":"SUM(F87,F122,F157,F192,F227,F262,F297,F332,F367,F402)","v":0},0,0,0,0,0,0,0,0,0,0,0,0,0,0,0,0,0,0,0,0,0,0,0,0,0,0,0,0,0,0,0,0]
[null,null,null,null,"Besparingen per jaar (€)",{"$f":"SUM(F88,F123,F158,F193,F228,F263,F298,F333,F368,F403)","v":0},0,0,0,0,0,0,0,0,0,0,0,0,0,0,0,0,0,0,0,0,0,0,0,0,0,0,0,0,0,0,0,0]
[null,null,null,null,"Cumulatieve besparingen (€)",{"$f":"SUM(F89,F124,F159,F194,F229,F264,F299,F334,F369,F404)","v":0},0,0,0,0,0,0,0,0,0,0,0,0,0,0,0,0,0,0,0,0,0,0,0,0,0,0,0,0,0,0,0,0]
[null,null,null,null,"Bespaard t.o.v. ref.jaar (€)",{"$f":"SUM(F90,F125,F160,F195,F230,F265,F300,F335,F370,F405)","v":0},0,0,0,0,0,0,0,0,0,0,0,0,0,0,0,0,0,0,0,0,0,0,0,0,0,0,0,0,0,0,0,0]
[null,null,null,null,"CO2-emissie energieverbruik (ton)",{"$f":"SUM(F91,F126,F161,F196,F231,F266,F301,F336,F371,F406)","v":0},{"$f":"SUM(G91,G126,G161,G196,G231,G266,G301,G336,G371,G406)","v":0},0,0,0,0,0,0,0,0,0,0,0,0,0,0,0,0,0,0,0,0,0,0,0,0,0,0,0,0,0,0,0]
[null,null,null,null,"CO2-emissie  bouw (ton)",{"$f":"SUM(F92,F127,F162,F197,F232,F267,F302,F337,F372,F407)","v":0},0,0,0,0,0,0,0,0,0,0,0,0,0,0,0,0,0,0,0,0,0,0,0,0,0,0,0,0,0,0,0,0]
[null,null,null,null,"CO2-reductie verbruik t.o.v. 2018 (%)",{"$f":"(F51/$F$51)-1","v":{"$error":"#DIV/0!"}},{"$f":"(G51/$F$51)-1","v":{"$error":"#DIV/0!"}},{"$f":"(H51/$F$51)-1","v":{"$error":"#DIV/0!"}},{"$error":"#DIV/0!"},{"$error":"#DIV/0!"},{"$error":"#DIV/0!"},{"$error":"#DIV/0!"},{"$error":"#DIV/0!"},{"$error":"#DIV/0!"},{"$error":"#DIV/0!"},{"$error":"#DIV/0!"},{"$error":"#DIV/0!"},{"$error":"#DIV/0!"},{"$error":"#DIV/0!"},{"$error":"#DIV/0!"},{"$error":"#DIV/0!"},{"$error":"#DIV/0!"},{"$error":"#DIV/0!"},{"$error":"#DIV/0!"},{"$error":"#DIV/0!"},{"$error":"#DIV/0!"},{"$error":"#DIV/0!"},{"$error":"#DIV/0!"},{"$error":"#DIV/0!"},{"$error":"#DIV/0!"},{"$error":"#DIV/0!"},{"$error":"#DIV/0!"},{"$error":"#DIV/0!"},{"$error":"#DIV/0!"},{"$error":"#DIV/0!"},{"$error":"#DIV/0!"},{"$error":"#DIV/0!"},{"$error":"#DIV/0!"}]
[null,null,null,null,"CO2-reductie directe emissie  t.o.v. 2018 (%)",{"$f":"(F31/$F$31)-1","v":{"$error":"#DIV/0!"}},{"$f":"(G31/$F$31)-1","v":{"$error":"#DIV/0!"}},{"$error":"#DIV/0!"},{"$error":"#DIV/0!"},{"$error":"#DIV/0!"},{"$error":"#DIV/0!"},{"$error":"#DIV/0!"},{"$error":"#DIV/0!"},{"$error":"#DIV/0!"},{"$error":"#DIV/0!"},{"$error":"#DIV/0!"},{"$error":"#DIV/0!"},{"$error":"#DIV/0!"},{"$error":"#DIV/0!"},{"$error":"#DIV/0!"},{"$error":"#DIV/0!"},{"$error":"#DIV/0!"},{"$error":"#DIV/0!"},{"$error":"#DIV/0!"},{"$error":"#DIV/0!"},{"$error":"#DIV/0!"},{"$error":"#DIV/0!"},{"$error":"#DIV/0!"},{"$error":"#DIV/0!"},{"$error":"#DIV/0!"},{"$error":"#DIV/0!"},{"$error":"#DIV/0!"},{"$error":"#DIV/0!"},{"$error":"#DIV/0!"},{"$error":"#DIV/0!"},{"$f":"(AJ31/$F$31)-1","v":{"$error":"#DIV/0!"}},{"$error":"#DIV/0!"},{"$error":"#DIV/0!"}]
[]
[]
[null,null,null,null,"CO2-emissies per energiebron t.b.v. ",null,null,null,null,null,{"$f":"K29*CO2factorElektriciteit","v":0},null,null,null,null,null,null,{"$f":"R29*CO2factorElektriciteit","v":0},null,null,null,null,null,null,null,null,null,null,null,null,null,null,null,null,null,null,null,{"$f":"AL29*CO2factorElektriciteit","v":0}]
[null,null,null,null,"      taartdiagram 2023, 2030 en 2050",null,null,null,null,null,{"$f":"K31*CO2factorAardgas","v":0},null,null,null,null,null,null,{"$f":"R31*CO2factorAardgas","v":0},null,null,null,null,null,null,null,null,null,null,null,null,null,null,null,null,null,null,null,{"$f":"AL31*CO2factorAardgas","v":0}]
[null,null,null,null,null,null,null,null,null,null,{"$f":"(K33-K41)*CO2factorWarmte","v":0},null,null,null,null,null,null,{"$f":"(R33-R41)*CO2factorWarmte","v":0},null,null,null,null,null,null,null,null,null,null,null,null,null,null,null,null,null,null,null,{"$f":"(AL33-AL41)*CO2factorWarmte","v":0}]
[]
[1,null,null,{"$f":"K8","v":0}]
[null,null,null,null,null,2018,2019,2020,2021,2022,2023,2024,2025,2026,2027,2028,2029,2030,2031,2032,2033,2034,2035,2036,2037,2038,2039,2040,2041,2042,2043,2044,2045,2046,2047,2048,2049,2050]
[null,null,null,null,"GO - Gebruiksoppervlakte (m2)",0,0,0,0,0,0,0,0,0,0,0,0,0,0,0,0,0,0,0,0,0,0,0,0,0,0,0,0,0,0,0,0,0]
[null,null,null,null,"<1965",0,0,0,0,0,0,0,0,0,0,0,0,0,0,0,0,0,0,0,0,0,0,0,0,0,0,0,0,0,0,0,0,0]
[null,null,null,null,"1965 - 1975",0,0,0,0,0,0,0,0,0,0,0,0,0,0,0,0,0,0,0,0,0,0,0,0,0,0,0,0,0,0,0,0,0]
[null,null,null,null,"1975 - 1992",0,0,0,0,0,0,0,0,0,0,0,0,0,0,0,0,0,0,0,0,0,0,0,0,0,0,0,0,0,0,0,0,0]
[null,null,null,null,"1992 - 2021",0,0,0,0,0,0,0,0,0,0,0,0,0,0,0,0,0,0,0,0,0,0,0,0,0,0,0,0,0,0,0,0,0]
[null,null,null,null,"Nieuwbouw",0,0,0,0,0,0,0,0,0,0,0,0,0,0,0,0,0,0,0,0,0,0,0,0,0,0,0,0,0,0,0,0,0]
[null,null,null,null,"Elektriciteit inkoop (kWh)",0,0,0,0,0,0,0,0,0,0,0,0,0,0,0,0,0,0,0,0,0,0,0,0,0,0,0,0,0,0,0,0,0]
[null,null,null,null,"Elektriciteit inkoop per m2 (kWh/m2)",0,0,0,0,0,0,0,0,0,0,0,0,0,0,0,0,0,0,0,0,0,0,0,0,0,0,0,0,0,0,0,0,0]
[null,null,null,null,"Aardgas inkoop (m3)",0,0,0,0,0,0,0,0,0,0,0,0,0,0,0,0,0,0,0,0,0,0,0,0,0,0,0,0,0,0,0,0,0]
[null,null,null,null,"Aardgas inkoop per m2 (m3/m2)",0,0,0,0,0,0,0,0,0,0,0,0,0,0,0,0,0,0,0,0,0,0,0,0,0,0,0,0,0,0,0,0,0]
[null,null,null,null,"Warmte inkoop (GJ)",0,0,0,0,0,0,0,0,0,0,0,0,0,0,0,0,0,0,0,0,0,0,0,0,0,0,0,0,0,0,0,0,0]
[null,null,null,null,"Warmte inkoop per m2 (GJ/m2)",0,0,0,0,0,0,0,0,0,0,0,0,0,0,0,0,0,0,0,0,0,0,0,0,0,0,0,0,0,0,0,0,0]
[null,null,null,null,"Totale inkoop (kWh)",0,0,0,0,0,0,0,0,0,0,0,0,0,0,0,0,0,0,0,0,0,0,0,0,0,0,0,0,0,0,0,0,0]
[null,null,null,null,"Totale inkoop per m2 (kWh/m2)",0,0,0,0,0,0,0,0,0,0,0,0,0,0,0,0,0,0,0,0,0,0,0,0,0,0,0,0,0,0,0,0,0]
[null,null,null,null,"Opwek PV bestaande bouw (kWh)",0,0,0,0,0,0,0,0,0,0,0,0,0,0,0,0,0,0,0,0,0,0,0,0,0,0,0,0,0,0,0,0,0]
[null,null,null,null,"Opwek PV nieuwbouw (kWh)",0,0,0,0,0,0,0,0,0,0,0,0,0,0,0,0,0,0,0,0,0,0,0,0,0,0,0,0,0,0,0,0,0]
[null,null,null,null,"Opwek PV totaal (kWh)",0,0,0,0,0,0,0,0,0,0,0,0,0,0,0,0,0,0,0,0,0,0,0,0,0,0,0,0,0,0,0,0,0]
[null,null,null,null,"Opwek PV totaal per m2 (kWh/m2)",0,0,0,0,0,0,0,0,0,0,0,0,0,0,0,0,0,0,0,0,0,0,0,0,0,0,0,0,0,0,0,0,0]
[null,null,null,null,"Duurzame warmte inkoop (GJ)",0,0,0,0,0,0,0,0,0,0,0,0,0,0,0,0,0,0,0,0,0,0,0,0,0,0,0,0,0,0,0,0,0]
[null,null,null,null,"Duurzame warmte inkoop per m2 (GJ/m2)",0,0,0,0,0,0,0,0,0,0,0,0,0,0,0,0,0,0,0,0,0,0,0,0,0,0,0,0,0,0,0,0,0]
[null,null,null,null,"Totaalverbruik zonder aftrek pv (kWh)",0,0,0,0,0,0,0,0,0,0,0,0,0,0,0,0,0,0,0,0,0,0,0,0,0,0,0,0,0,0,0,0,0]
[null,null,null,null,"Totaalverbruik per m2 z.a. pv (kWh/m2)",0,0,0,0,0,0,0,0,0,0,0,0,0,0,0,0,0,0,0,0,0,0,0,0,0,0,0,0,0,0,0,0,0]
[null,null,null,null,"Energiekosten per jaar (€)",0,0,0,0,0,0,0,0,0,0,0,0,0,0,0,0,0,0,0,0,0,0,0,0,0,0,0,0,0,0,0,0,0]
[null,null,null,null,"Investeringen per jaar (€)",0,0,0,0,0,0,0,0,0,0,0,0,0,0,0,0,0,0,0,0,0,0,0,0,0,0,0,0,0,0,0,0,0]
[null,null,null,null,"Cumulatieve investeringen (€)",0,0,0,0,0,0,0,0,0,0,0,0,0,0,0,0,0,0,0,0,0,0,0,0,0,0,0,0,0,0,0,0,0]
[null,null,null,null,"Besparingen per jaar (€)",0,0,0,0,0,0,0,0,0,0,0,0,0,0,0,0,0,0,0,0,0,0,0,0,0,0,0,0,0,0,0,0,0]
[null,null,null,null,"Cumulatieve besparingen (€)",0,0,0,0,0,0,0,0,0,0,0,0,0,0,0,0,0,0,0,0,0,0,0,0,0,0,0,0,0,0,0,0,0]
[null,null,null,null,"Bespaard t.o.v. ref.jaar (€)",0,0,0,0,0,0,0,0,0,0,0,0,0,0,0,0,0,0,0,0,0,0,0,0,0,0,0,0,0,0,0,0,0]
[null,null,null,null,"CO2-emissie energieverbruik (ton)",0,0,0,0,0,0,0,0,0,0,0,0,0,0,0,0,0,0,0,0,0,0,0,0,0,0,0,0,0,0,0,0,0]
[null,null,null,null,"CO2-emissie  bouw (ton)",0,0,0,0,0,0,0,0,0,0,0,0,0,0,0,0,0,0,0,0,0,0,0,0,0,0,0,0,0,0,0,0,0]
[null,null,null,null,"CO2-reductie verbruik t.o.v. 2018 (%)",0,0,0,0,0,0,0,0,0,0,0,0,0,0,0,0,0,0,0,0,0,0,0,0,0,0,0,0,0,0,0,0,0]
[null,null,null,null,"CO2-reductie directe emissie  t.o.v. 2018 (%)",0,0,0,0,0,0,0,0,0,0,0,0,0,0,0,0,0,0,0,0,0,0,0,0,0,0,0,0,0,0,0,0,0]
[]
[2,null,null,{"$f":"K9","v":0}]
[null,null,null,null,null,2018,2019,2020,2021,2022,2023,2024,2025,2026,2027,2028,2029,2030,2031,2032,2033,2034,2035,2036,2037,2038,2039,2040,2041,2042,2043,2044,2045,2046,2047,2048,2049,2050]
[null,null,null,null,"GO - Gebruiksoppervlakte (m2)",0,0,0,0,0,0,0,0,0,0,0,0,0,0,0,0,0,0,0,0,0,0,0,0,0,0,0,0,0,0,0,0,0]
[null,null,null,null,"<1965",0,0,0,0,0,0,0,0,0,0,0,0,0,0,0,0,0,0,0,0,0,0,0,0,0,0,0,0,0,0,0,0,0]
[null,null,null,null,"1965 - 1975",0,0,0,0,0,0,0,0,0,0,0,0,0,0,0,0,0,0,0,0,0,0,0,0,0,0,0,0,0,0,0,0,0]
[null,null,null,null,"1975 - 1992",0,0,0,0,0,0,0,0,0,0,0,0,0,0,0,0,0,0,0,0,0,0,0,0,0,0,0,0,0,0,0,0,0]
[null,null,null,null,"1992 - 2021",0,0,0,0,0,0,0,0,0,0,0,0,0,0,0,0,0,0,0,0,0,0,0,0,0,0,0,0,0,0,0,0,0]
[null,null,null,null,"Nieuwbouw",0,0,0,0,0,0,0,0,0,0,0,0,0,0,0,0,0,0,0,0,0,0,0,0,0,0,0,0,0,0,0,0,0]
[null,null,null,null,"Elektriciteit inkoop (kWh)",0,0,0,0,0,0,0,0,0,0,0,0,0,0,0,0,0,0,0,0,0,0,0,0,0,0,0,0,0,0,0,0,0]
[null,null,null,null,"Elektriciteit inkoop per m2 (kWh/m2)",0,0,0,0,0,0,0,0,0,0,0,0,0,0,0,0,0,0,0,0,0,0,0,0,0,0,0,0,0,0,0,0,0]
[null,null,null,null,"Aardgas inkoop (m3)",0,0,0,0,0,0,0,0,0,0,0,0,0,0,0,0,0,0,0,0,0,0,0,0,0,0,0,0,0,0,0,0,0]
[null,null,null,null,"Aardgas inkoop per m2 (m3/m2)",0,0,0,0,0,0,0,0,0,0,0,0,0,0,0,0,0,0,0,0,0,0,0,0,0,0,0,0,0,0,0,0,0]
[null,null,null,null,"Warmte inkoop (GJ)",0,0,0,0,0,0,0,0,0,0,0,0,0,0,0,0,0,0,0,0,0,0,0,0,0,0,0,0,0,0,0,0,0]
[null,null,null,null,"Warmte inkoop per m2 (GJ/m2)",0,0,0,0,0,0,0,0,0,0,0,0,0,0,0,0,0,0,0,0,0,0,0,0,0,0,0,0,0,0,0,0,0]
[null,null,null,null,"Totale inkoop (kWh)",0,0,0,0,0,0,0,0,0,0,0,0,0,0,0,0,0,0,0,0,0,0,0,0,0,0,0,0,0,0,0,0,0]
[null,null,null,null,"Totale inkoop per m2 (kWh/m2)",0,0,0,0,0,0,0,0,0,0,0,0,0,0,0,0,0,0,0,0,0,0,0,0,0,0,0,0,0,0,0,0,0]
[null,null,null,null,"Opwek PV bestaande bouw (kWh)",0,0,0,0,0,0,0,0,0,0,0,0,0,0,0,0,0,0,0,0,0,0,0,0,0,0,0,0,0,0,0,0,0]
[null,null,null,null,"Opwek PV nieuwbouw (kWh)",0,0,0,0,0,0,0,0,0,0,0,0,0,0,0,0,0,0,0,0,0,0,0,0,0,0,0,0,0,0,0,0,0]
[null,null,null,null,"Opwek PV totaal (kWh)",0,0,0,0,0,0,0,0,0,0,0,0,0,0,0,0,0,0,0,0,0,0,0,0,0,0,0,0,0,0,0,0,0]
[null,null,null,null,"Opwek PV totaal per m2 (kWh/m2)",0,0,0,0,0,0,0,0,0,0,0,0,0,0,0,0,0,0,0,0,0,0,0,0,0,0,0,0,0,0,0,0,0]
[null,null,null,null,"Duurzame warmte inkoop (GJ)",0,0,0,0,0,0,0,0,0,0,0,0,0,0,0,0,0,0,0,0,0,0,0,0,0,0,0,0,0,0,0,0,0]
[null,null,null,null,"Duurzame warmte inkoop per m2 (GJ/m2)",0,0,0,0,0,0,0,0,0,0,0,0,0,0,0,0,0,0,0,0,0,0,0,0,0,0,0,0,0,0,0,0,0]
[null,null,null,null,"Totaalverbruik zonder aftrek pv (kWh)",0,0,0,0,0,0,0,0,0,0,0,0,0,0,0,0,0,0,0,0,0,0,0,0,0,0,0,0,0,0,0,0,0]
[null,null,null,null,"Totaalverbruik per m2 z.a. pv (kWh/m2)",0,0,0,0,0,0,0,0,0,0,0,0,0,0,0,0,0,0,0,0,0,0,0,0,0,0,0,0,0,0,0,0,0]
[null,null,null,null,"Energiekosten per jaar (€)",0,0,0,0,0,0,0,0,0,0,0,0,0,0,0,0,0,0,0,0,0,0,0,0,0,0,0,0,0,0,0,0,0]
[null,null,null,null,"Investeringen per jaar (€)",0,0,0,0,0,0,0,0,0,0,0,0,0,0,0,0,0,0,0,0,0,0,0,0,0,0,0,0,0,0,0,0,0]
[null,null,null,null,"Cumulatieve investeringen (€)",0,0,0,0,0,0,0,0,0,0,0,0,0,0,0,0,0,0,0,0,0,0,0,0,0,0,0,0,0,0,0,0,0]
[null,null,null,null,"Besparingen per jaar (€)",0,0,0,0,0,0,0,0,0,0,0,0,0,0,0,0,0,0,0,0,0,0,0,0,0,0,0,0,0,0,0,0,0]
[null,null,null,null,"Cumulatieve besparingen (€)",0,0,0,0,0,0,0,0,0,0,0,0,0,0,0,0,0,0,0,0,0,0,0,0,0,0,0,0,0,0,0,0,0]
[null,null,null,null,"Bespaard t.o.v. ref.jaar (€)",0,0,0,0,0,0,0,0,0,0,0,0,0,0,0,0,0,0,0,0,0,0,0,0,0,0,0,0,0,0,0,0,0]
[null,null,null,null,"CO2-emissie energieverbruik (ton)",0,0,0,0,0,0,0,0,0,0,0,0,0,0,0,0,0,0,0,0,0,0,0,0,0,0,0,0,0,0,0,0,0]
[null,null,null,null,"CO2-emissie  bouw (ton)",0,0,0,0,0,0,0,0,0,0,0,0,0,0,0,0,0,0,0,0,0,0,0,0,0,0,0,0,0,0,0,0,0]
[null,null,null,null,"CO2-reductie verbruik t.o.v. 2018 (%)",0,0,0,0,0,0,0,0,0,0,0,0,0,0,0,0,0,0,0,0,0,0,0,0,0,0,0,0,0,0,0,0,0]
[null,null,null,null,"CO2-reductie directe emissie  t.o.v. 2018 (%)",0,0,0,0,0,0,0,0,0,0,0,0,0,0,0,0,0,0,0,0,0,0,0,0,0,0,0,0,0,0,0,0,0]
[]
[3,null,null,{"$f":"K10","v":0}]
[null,null,null,null,null,2018,2019,2020,2021,2022,2023,2024,2025,2026,2027,2028,2029,2030,2031,2032,2033,2034,2035,2036,2037,2038,2039,2040,2041,2042,2043,2044,2045,2046,2047,2048,2049,2050]
[null,null,null,null,"GO - Gebruiksoppervlakte (m2)",0,0,0,0,0,0,0,0,0,0,0,0,0,0,0,0,0,0,0,0,0,0,0,0,0,0,0,0,0,0,0,0,0]
[null,null,null,null,"<1965",0,0,0,0,0,0,0,0,0,0,0,0,0,0,0,0,0,0,0,0,0,0,0,0,0,0,0,0,0,0,0,0,0]
[null,null,null,null,"1965 - 1975",0,0,0,0,0,0,0,0,0,0,0,0,0,0,0,0,0,0,0,0,0,0,0,0,0,0,0,0,0,0,0,0,0]
[null,null,null,null,"1975 - 1992",0,0,0,0,0,0,0,0,0,0,0,0,0,0,0,0,0,0,0,0,0,0,0,0,0,0,0,0,0,0,0,0,0]
[null,null,null,null,"1992 - 2021",0,0,0,0,0,0,0,0,0,0,0,0,0,0,0,0,0,0,0,0,0,0,0,0,0,0,0,0,0,0,0,0,0]
[null,null,null,null,"Nieuwbouw",0,0,0,0,0,0,0,0,0,0,0,0,0,0,0,0,0,0,0,0,0,0,0,0,0,0,0,0,0,0,0,0,0]
[null,null,null,null,"Elektriciteit inkoop (kWh)",0,0,0,0,0,0,0,0,0,0,0,0,0,0,0,0,0,0,0,0,0,0,0,0,0,0,0,0,0,0,0,0,0]
[null,null,null,null,"Elektriciteit inkoop per m2 (kWh/m2)",0,0,0,0,0,0,0,0,0,0,0,0,0,0,0,0,0,0,0,0,0,0,0,0,0,0,0,0,0,0,0,0,0]
[null,null,null,null,"Aardgas inkoop (m3)",0,0,0,0,0,0,0,0,0,0,0,0,0,0,0,0,0,0,0,0,0,0,0,0,0,0,0,0,0,0,0,0,0]
[null,null,null,null,"Aardgas inkoop per m2 (m3/m2)",0,0,0,0,0,0,0,0,0,0,0,0,0,0,0,0,0,0,0,0,0,0,0,0,0,0,0,0,0,0,0,0,0]
[null,null,null,null,"Warmte inkoop (GJ)",0,0,0,0,0,0,0,0,0,0,0,0,0,0,0,0,0,0,0,0,0,0,0,0,0,0,0,0,0,0,0,0,0]
[null,null,null,null,"Warmte inkoop per m2 (GJ/m2)",0,0,0,0,0,0,0,0,0,0,0,0,0,0,0,0,0,0,0,0,0,0,0,0,0,0,0,0,0,0,0,0,0]
[null,null,null,null,"Totale inkoop (kWh)",0,0,0,0,0,0,0,0,0,0,0,0,0,0,0,0,0,0,0,0,0,0,0,0,0,0,0,0,0,0,0,0,0]
[null,null,null,null,"Totale inkoop per m2 (kWh/m2)",0,0,0,0,0,0,0,0,0,0,0,0,0,0,0,0,0,0,0,0,0,0,0,0,0,0,0,0,0,0,0,0,0]
[null,null,null,null,"Opwek PV bestaande bouw (kWh)",0,0,0,0,0,0,0,0,0,0,0,0,0,0,0,0,0,0,0,0,0,0,0,0,0,0,0,0,0,0,0,0,0]
[null,null,null,null,"Opwek PV nieuwbouw (kWh)",0,0,0,0,0,0,0,0,0,0,0,0,0,0,0,0,0,0,0,0,0,0,0,0,0,0,0,0,0,0,0,0,0]
[null,null,null,null,"Opwek PV totaal (kWh)",0,0,0,0,0,0,0,0,0,0,0,0,0,0,0,0,0,0,0,0,0,0,0,0,0,0,0,0,0,0,0,0,0]
[null,null,null,null,"Opwek PV totaal per m2 (kWh/m2)",0,0,0,0,0,0,0,0,0,0,0,0,0,0,0,0,0,0,0,0,0,0,0,0,0,0,0,0,0,0,0,0,0]
[null,null,null,null,"Duurzame warmte inkoop (GJ)",0,0,0,0,0,0,0,0,0,0,0,0,0,0,0,0,0,0,0,0,0,0,0,0,0,0,0,0,0,0,0,0,0]
[null,null,null,null,"Duurzame warmte inkoop per m2 (GJ/m2)",0,0,0,0,0,0,0,0,0,0,0,0,0,0,0,0,0,0,0,0,0,0,0,0,0,0,0,0,0,0,0,0,0]
[null,null,null,null,"Totaalverbruik zonder aftrek pv (kWh)",0,0,0,0,0,0,0,0,0,0,0,0,0,0,0,0,0,0,0,0,0,0,0,0,0,0,0,0,0,0,0,0,0]
[null,null,null,null,"Totaalverbruik per m2 z.a. pv (kWh/m2)",0,0,0,0,0,0,0,0,0,0,0,0,0,0,0,0,0,0,0,0,0,0,0,0,0,0,0,0,0,0,0,0,0]
[null,null,null,null,"Energiekosten per jaar (€)",0,0,0,0,0,0,0,0,0,0,0,0,0,0,0,0,0,0,0,0,0,0,0,0,0,0,0,0,0,0,0,0,0]
[null,null,null,null,"Investeringen per jaar (€)",0,0,0,0,0,0,0,0,0,0,0,0,0,0,0,0,0,0,0,0,0,0,0,0,0,0,0,0,0,0,0,0,0]
[null,null,null,null,"Cumulatieve investeringen (€)",0,0,0,0,0,0,0,0,0,0,0,0,0,0,0,0,0,0,0,0,0,0,0,0,0,0,0,0,0,0,0,0,0]
[null,null,null,null,"Besparingen per jaar (€)",0,0,0,0,0,0,0,0,0,0,0,0,0,0,0,0,0,0,0,0,0,0,0,0,0,0,0,0,0,0,0,0,0]
[null,null,null,null,"Cumulatieve besparingen (€)",0,0,0,0,0,0,0,0,0,0,0,0,0,0,0,0,0,0,0,0,0,0,0,0,0,0,0,0,0,0,0,0,0]
[null,null,null,null,"Bespaard t.o.v. ref.jaar (€)",0,0,0,0,0,0,0,0,0,0,0,0,0,0,0,0,0,0,0,0,0,0,0,0,0,0,0,0,0,0,0,0,0]
[null,null,null,null,"CO2-emissie energieverbruik (ton)",0,0,0,0,0,0,0,0,0,0,0,0,0,0,0,0,0,0,0,0,0,0,0,0,0,0,0,0,0,0,0,0,0]
[null,null,null,null,"CO2-emissie  bouw (ton)",0,0,0,0,0,0,0,0,0,0,0,0,0,0,0,0,0,0,0,0,0,0,0,0,0,0,0,0,0,0,0,0,0]
[null,null,null,null,"CO2-reductie verbruik t.o.v. 2018 (%)",0,0,0,0,0,0,0,0,0,0,0,0,0,0,0,0,0,0,0,0,0,0,0,0,0,0,0,0,0,0,0,0,0]
[null,null,null,null,"CO2-reductie directe emissie  t.o.v. 2018 (%)",0,0,0,0,0,0,0,0,0,0,0,0,0,0,0,0,0,0,0,0,0,0,0,0,0,0,0,0,0,0,0,0,0]
[]
[4,null,null,{"$f":"K11","v":0}]
[null,null,null,null,null,2018,2019,2020,2021,2022,2023,2024,2025,2026,2027,2028,2029,2030,2031,2032,2033,2034,2035,2036,2037,2038,2039,2040,2041,2042,2043,2044,2045,2046,2047,2048,2049,2050]
[null,null,null,null,"GO - Gebruiksoppervlakte (m2)",0,0,0,0,0,0,0,0,0,0,0,0,0,0,0,0,0,0,0,0,0,0,0,0,0,0,0,0,0,0,0,0,0]
[null,null,null,null,"<1965",0,0,0,0,0,0,0,0,0,0,0,0,0,0,0,0,0,0,0,0,0,0,0,0,0,0,0,0,0,0,0,0,0]
[null,null,null,null,"1965 - 1975",0,0,0,0,0,0,0,0,0,0,0,0,0,0,0,0,0,0,0,0,0,0,0,0,0,0,0,0,0,0,0,0,0]
[null,null,null,null,"1975 - 1992",0,0,0,0,0,0,0,0,0,0,0,0,0,0,0,0,0,0,0,0,0,0,0,0,0,0,0,0,0,0,0,0,0]
[null,null,null,null,"1992 - 2021",0,0,0,0,0,0,0,0,0,0,0,0,0,0,0,0,0,0,0,0,0,0,0,0,0,0,0,0,0,0,0,0,0]
[null,null,null,null,"Nieuwbouw",0,0,0,0,0,0,0,0,0,0,0,0,0,0,0,0,0,0,0,0,0,0,0,0,0,0,0,0,0,0,0,0,0]
[null,null,null,null,"Elektriciteit inkoop (kWh)",0,0,0,0,0,0,0,0,0,0,0,0,0,0,0,0,0,0,0,0,0,0,0,0,0,0,0,0,0,0,0,0,0]
[null,null,null,null,"Elektriciteit inkoop per m2 (kWh/m2)",0,0,0,0,0,0,0,0,0,0,0,0,0,0,0,0,0,0,0,0,0,0,0,0,0,0,0,0,0,0,0,0,0]
[null,null,null,null,"Aardgas inkoop (m3)",0,0,0,0,0,0,0,0,0,0,0,0,0,0,0,0,0,0,0,0,0,0,0,0,0,0,0,0,0,0,0,0,0]
[null,null,null,null,"Aardgas inkoop per m2 (m3/m2)",0,0,0,0,0,0,0,0,0,0,0,0,0,0,0,0,0,0,0,0,0,0,0,0,0,0,0,0,0,0,0,0,0]
[null,null,null,null,"Warmte inkoop (GJ)",0,0,0,0,0,0,0,0,0,0,0,0,0,0,0,0,0,0,0,0,0,0,0,0,0,0,0,0,0,0,0,0,0]
[null,null,null,null,"Warmte inkoop per m2 (GJ/m2)",0,0,0,0,0,0,0,0,0,0,0,0,0,0,0,0,0,0,0,0,0,0,0,0,0,0,0,0,0,0,0,0,0]
[null,null,null,null,"Totale inkoop (kWh)",0,0,0,0,0,0,0,0,0,0,0,0,0,0,0,0,0,0,0,0,0,0,0,0,0,0,0,0,0,0,0,0,0]
[null,null,null,null,"Totale inkoop per m2 (kWh/m2)",0,0,0,0,0,0,0,0,0,0,0,0,0,0,0,0,0,0,0,0,0,0,0,0,0,0,0,0,0,0,0,0,0]
[null,null,null,null,"Opwek PV bestaande bouw (kWh)",0,0,0,0,0,0,0,0,0,0,0,0,0,0,0,0,0,0,0,0,0,0,0,0,0,0,0,0,0,0,0,0,0]
[null,null,null,null,"Opwek PV nieuwbouw (kWh)",0,0,0,0,0,0,0,0,0,0,0,0,0,0,0,0,0,0,0,0,0,0,0,0,0,0,0,0,0,0,0,0,0]
[null,null,null,null,"Opwek PV totaal (kWh)",0,0,0,0,0,0,0,0,0,0,0,0,0,0,0,0,0,0,0,0,0,0,0,0,0,0,0,0,0,0,0,0,0]
[null,null,null,null,"Opwek PV totaal per m2 (kWh/m2)",0,0,0,0,0,0,0,0,0,0,0,0,0,0,0,0,0,0,0,0,0,0,0,0,0,0,0,0,0,0,0,0,0]
[null,null,null,null,"Duurzame warmte inkoop (GJ)",0,0,0,0,0,0,0,0,0,0,0,0,0,0,0,0,0,0,0,0,0,0,0,0,0,0,0,0,0,0,0,0,0]
[null,null,null,null,"Duurzame warmte inkoop per m2 (GJ/m2)",0,0,0,0,0,0,0,0,0,0,0,0,0,0,0,0,0,0,0,0,0,0,0,0,0,0,0,0,0,0,0,0,0]
[null,null,null,null,"Totaalverbruik zonder aftrek pv (kWh)",0,0,0,0,0,0,0,0,0,0,0,0,0,0,0,0,0,0,0,0,0,0,0,0,0,0,0,0,0,0,0,0,0]
[null,null,null,null,"Totaalverbruik per m2 z.a. pv (kWh/m2)",0,0,0,0,0,0,0,0,0,0,0,0,0,0,0,0,0,0,0,0,0,0,0,0,0,0,0,0,0,0,0,0,0]
[null,null,null,null,"Energiekosten per jaar (€)",0,0,0,0,0,0,0,0,0,0,0,0,0,0,0,0,0,0,0,0,0,0,0,0,0,0,0,0,0,0,0,0,0]
[null,null,null,null,"Investeringen per jaar (€)",0,0,0,0,0,0,0,0,0,0,0,0,0,0,0,0,0,0,0,0,0,0,0,0,0,0,0,0,0,0,0,0,0]
[null,null,null,null,"Cumulatieve investeringen (€)",0,0,0,0,0,0,0,0,0,0,0,0,0,0,0,0,0,0,0,0,0,0,0,0,0,0,0,0,0,0,0,0,0]
[null,null,null,null,"Besparingen per jaar (€)",0,0,0,0,0,0,0,0,0,0,0,0,0,0,0,0,0,0,0,0,0,0,0,0,0,0,0,0,0,0,0,0,0]
[null,null,null,null,"Cumulatieve besparingen (€)",0,0,0,0,0,0,0,0,0,0,0,0,0,0,0,0,0,0,0,0,0,0,0,0,0,0,0,0,0,0,0,0,0]
[null,null,null,null,"Bespaard t.o.v. ref.jaar (€)",0,0,0,0,0,0,0,0,0,0,0,0,0,0,0,0,0,0,0,0,0,0,0,0,0,0,0,0,0,0,0,0,0]
[null,null,null,null,"CO2-emissie energieverbruik (ton)",0,0,0,0,0,0,0,0,0,0,0,0,0,0,0,0,0,0,0,0,0,0,0,0,0,0,0,0,0,0,0,0,0]
[null,null,null,null,"CO2-emissie  bouw (ton)",0,0,0,0,0,0,0,0,0,0,0,0,0,0,0,0,0,0,0,0,0,0,0,0,0,0,0,0,0,0,0,0,0]
[null,null,null,null,"CO2-reductie verbruik t.o.v. 2018 (%)",0,0,0,0,0,0,0,0,0,0,0,0,0,0,0,0,0,0,0,0,0,0,0,0,0,0,0,0,0,0,0,0,0]
[null,null,null,null,"CO2-reductie directe emissie  t.o.v. 2018 (%)",0,0,0,0,0,0,0,0,0,0,0,0,0,0,0,0,0,0,0,0,0,0,0,0,0,0,0,0,0,0,0,0,0]
[]
[5,null,null,{"$f":"K12","v":0}]
[null,null,null,null,null,2018,2019,2020,2021,2022,2023,2024,2025,2026,2027,2028,2029,2030,2031,2032,2033,2034,2035,2036,2037,2038,2039,2040,2041,2042,2043,2044,2045,2046,2047,2048,2049,2050]
[null,null,null,null,"GO - Gebruiksoppervlakte (m2)",0,0,0,0,0,0,0,0,0,0,0,0,0,0,0,0,0,0,0,0,0,0,0,0,0,0,0,0,0,0,0,0,0]
[null,null,null,null,"<1965",0,0,0,0,0,0,0,0,0,0,0,0,0,0,0,0,0,0,0,0,0,0,0,0,0,0,0,0,0,0,0,0,0]
[null,null,null,null,"1965 - 1975",0,0,0,0,0,0,0,0,0,0,0,0,0,0,0,0,0,0,0,0,0,0,0,0,0,0,0,0,0,0,0,0,0]
[null,null,null,null,"1975 - 1992",0,0,0,0,0,0,0,0,0,0,0,0,0,0,0,0,0,0,0,0,0,0,0,0,0,0,0,0,0,0,0,0,0]
[null,null,null,null,"1992 - 2021",0,0,0,0,0,0,0,0,0,0,0,0,0,0,0,0,0,0,0,0,0,0,0,0,0,0,0,0,0,0,0,0,0]
[null,null,null,null,"Nieuwbouw",0,0,0,0,0,0,0,0,0,0,0,0,0,0,0,0,0,0,0,0,0,0,0,0,0,0,0,0,0,0,0,0,0]
[null,null,null,null,"Elektriciteit inkoop (kWh)",0,0,0,0,0,0,0,0,0,0,0,0,0,0,0,0,0,0,0,0,0,0,0,0,0,0,0,0,0,0,0,0,0]
[null,null,null,null,"Elektriciteit inkoop per m2 (kWh/m2)",0,0,0,0,0,0,0,0,0,0,0,0,0,0,0,0,0,0,0,0,0,0,0,0,0,0,0,0,0,0,0,0,0]
[null,null,null,null,"Aardgas inkoop (m3)",0,0,0,0,0,0,0,0,0,0,0,0,0,0,0,0,0,0,0,0,0,0,0,0,0,0,0,0,0,0,0,0,0]
[null,null,null,null,"Aardgas inkoop per m2 (m3/m2)",0,0,0,0,0,0,0,0,0,0,0,0,0,0,0,0,0,0,0,0,0,0,0,0,0,0,0,0,0,0,0,0,0]
[null,null,null,null,"Warmte inkoop (GJ)",0,0,0,0,0,0,0,0,0,0,0,0,0,0,0,0,0,0,0,0,0,0,0,0,0,0,0,0,0,0,0,0,0]
[null,null,null,null,"Warmte inkoop per m2 (GJ/m2)",0,0,0,0,0,0,0,0,0,0,0,0,0,0,0,0,0,0,0,0,0,0,0,0,0,0,0,0,0,0,0,0,0]
[null,null,null,null,"Totale inkoop (kWh)",0,0,0,0,0,0,0,0,0,0,0,0,0,0,0,0,0,0,0,0,0,0,0,0,0,0,0,0,0,0,0,0,0]
[null,null,null,null,"Totale inkoop per m2 (kWh/m2)",0,0,0,0,0,0,0,0,0,0,0,0,0,0,0,0,0,0,0,0,0,0,0,0,0,0,0,0,0,0,0,0,0]
[null,null,null,null,"Opwek PV bestaande bouw (kWh)",0,0,0,0,0,0,0,0,0,0,0,0,0,0,0,0,0,0,0,0,0,0,0,0,0,0,0,0,0,0,0,0,0]
[null,null,null,null,"Opwek PV nieuwbouw (kWh)",0,0,0,0,0,0,0,0,0,0,0,0,0,0,0,0,0,0,0,0,0,0,0,0,0,0,0,0,0,0,0,0,0]
[null,null,null,null,"Opwek PV totaal (kWh)",0,0,0,0,0,0,0,0,0,0,0,0,0,0,0,0,0,0,0,0,0,0,0,0,0,0,0,0,0,0,0,0,0]
[null,null,null,null,"Opwek PV totaal per m2 (kWh/m2)",0,0,0,0,0,0,0,0,0,0,0,0,0,0,0,0,0,0,0,0,0,0,0,0,0,0,0,0,0,0,0,0,0]
[null,null,null,null,"Duurzame warmte inkoop (GJ)",0,0,0,0,0,0,0,0,0,0,0,0,0,0,0,0,0,0,0,0,0,0,0,0,0,0,0,0,0,0,0,0,0]
[null,null,null,null,"Duurzame warmte inkoop per m2 (GJ/m2)",0,0,0,0,0,0,0,0,0,0,0,0,0,0,0,0,0,0,0,0,0,0,0,0,0,0,0,0,0,0,0,0,0]
[null,null,null,null,"Totaalverbruik zonder aftrek pv (kWh)",0,0,0,0,0,0,0,0,0,0,0,0,0,0,0,0,0,0,0,0,0,0,0,0,0,0,0,0,0,0,0,0,0]
[null,null,null,null,"Totaalverbruik per m2 z.a. pv (kWh/m2)",0,0,0,0,0,0,0,0,0,0,0,0,0,0,0,0,0,0,0,0,0,0,0,0,0,0,0,0,0,0,0,0,0]
[null,null,null,null,"Energiekosten per jaar (€)",0,0,0,0,0,0,0,0,0,0,0,0,0,0,0,0,0,0,0,0,0,0,0,0,0,0,0,0,0,0,0,0,0]
[null,null,null,null,"Investeringen per jaar (€)",0,0,0,0,0,0,0,0,0,0,0,0,0,0,0,0,0,0,0,0,0,0,0,0,0,0,0,0,0,0,0,0,0]
[null,null,null,null,"Cumulatieve investeringen (€)",0,0,0,0,0,0,0,0,0,0,0,0,0,0,0,0,0,0,0,0,0,0,0,0,0,0,0,0,0,0,0,0,0]
[null,null,null,null,"Besparingen per jaar (€)",0,0,0,0,0,0,0,0,0,0,0,0,0,0,0,0,0,0,0,0,0,0,0,0,0,0,0,0,0,0,0,0,0]
[null,null,null,null,"Cumulatieve besparingen (€)",0,0,0,0,0,0,0,0,0,0,0,0,0,0,0,0,0,0,0,0,0,0,0,0,0,0,0,0,0,0,0,0,0]
[null,null,null,null,"Bespaard t.o.v. ref.jaar (€)",0,0,0,0,0,0,0,0,0,0,0,0,0,0,0,0,0,0,0,0,0,0,0,0,0,0,0,0,0,0,0,0,0]
[null,null,null,null,"CO2-emissie energieverbruik (ton)",0,0,0,0,0,0,0,0,0,0,0,0,0,0,0,0,0,0,0,0,0,0,0,0,0,0,0,0,0,0,0,0,0]
[null,null,null,null,"CO2-emissie  bouw (ton)",0,0,0,0,0,0,0,0,0,0,0,0,0,0,0,0,0,0,0,0,0,0,0,0,0,0,0,0,0,0,0,0,0]
[null,null,null,null,"CO2-reductie verbruik t.o.v. 2018 (%)",0,0,0,0,0,0,0,0,0,0,0,0,0,0,0,0,0,0,0,0,0,0,0,0,0,0,0,0,0,0,0,0,0]
[null,null,null,null,"CO2-reductie directe emissie  t.o.v. 2018 (%)",0,0,0,0,0,0,0,0,0,0,0,0,0,0,0,0,0,0,0,0,0,0,0,0,0,0,0,0,0,0,0,0,0]
[]
[6,null,null,{"$f":"K13","v":0}]
[null,null,null,null,null,2018,2019,2020,2021,2022,2023,2024,2025,2026,2027,2028,2029,2030,2031,2032,2033,2034,2035,2036,2037,2038,2039,2040,2041,2042,2043,2044,2045,2046,2047,2048,2049,2050]
[null,null,null,null,"GO - Gebruiksoppervlakte (m2)",0,0,0,0,0,0,0,0,0,0,0,0,0,0,0,0,0,0,0,0,0,0,0,0,0,0,0,0,0,0,0,0,0]
[null,null,null,null,"<1965",0,0,0,0,0,0,0,0,0,0,0,0,0,0,0,0,0,0,0,0,0,0,0,0,0,0,0,0,0,0,0,0,0]
[null,null,null,null,"1965 - 1975",0,0,0,0,0,0,0,0,0,0,0,0,0,0,0,0,0,0,0,0,0,0,0,0,0,0,0,0,0,0,0,0,0]
[null,null,null,null,"1975 - 1992",0,0,0,0,0,0,0,0,0,0,0,0,0,0,0,0,0,0,0,0,0,0,0,0,0,0,0,0,0,0,0,0,0]
[null,null,null,null,"1992 - 2021",0,0,0,0,0,0,0,0,0,0,0,0,0,0,0,0,0,0,0,0,0,0,0,0,0,0,0,0,0,0,0,0,0]
[null,null,null,null,"Nieuwbouw",0,0,0,0,0,0,0,0,0,0,0,0,0,0,0,0,0,0,0,0,0,0,0,0,0,0,0,0,0,0,0,0,0]
[null,null,null,null,"Elektriciteit inkoop (kWh)",0,0,0,0,0,0,0,0,0,0,0,0,0,0,0,0,0,0,0,0,0,0,0,0,0,0,0,0,0,0,0,0,0]
[null,null,null,null,"Elektriciteit inkoop per m2 (kWh/m2)",0,0,0,0,0,0,0,0,0,0,0,0,0,0,0,0,0,0,0,0,0,0,0,0,0,0,0,0,0,0,0,0,0]
[null,null,null,null,"Aardgas inkoop (m3)",0,0,0,0,0,0,0,0,0,0,0,0,0,0,0,0,0,0,0,0,0,0,0,0,0,0,0,0,0,0,0,0,0]
[null,null,null,null,"Aardgas inkoop per m2 (m3/m2)",0,0,0,0,0,0,0,0,0,0,0,0,0,0,0,0,0,0,0,0,0,0,0,0,0,0,0,0,0,0,0,0,0]
[null,null,null,null,"Warmte inkoop (GJ)",0,0,0,0,0,0,0,0,0,0,0,0,0,0,0,0,0,0,0,0,0,0,0,0,0,0,0,0,0,0,0,0,0]
[null,null,null,null,"Warmte inkoop per m2 (GJ/m2)",0,0,0,0,0,0,0,0,0,0,0,0,0,0,0,0,0,0,0,0,0,0,0,0,0,0,0,0,0,0,0,0,0]
[null,null,null,null,"Totale inkoop (kWh)",0,0,0,0,0,0,0,0,0,0,0,0,0,0,0,0,0,0,0,0,0,0,0,0,0,0,0,0,0,0,0,0,0]
[null,null,null,null,"Totale inkoop per m2 (kWh/m2)",0,0,0,0,0,0,0,0,0,0,0,0,0,0,0,0,0,0,0,0,0,0,0,0,0,0,0,0,0,0,0,0,0]
[null,null,null,null,"Opwek PV bestaande bouw (kWh)",0,0,0,0,0,0,0,0,0,0,0,0,0,0,0,0,0,0,0,0,0,0,0,0,0,0,0,0,0,0,0,0,0]
[null,null,null,null,"Opwek PV nieuwbouw (kWh)",0,0,0,0,0,0,0,0,0,0,0,0,0,0,0,0,0,0,0,0,0,0,0,0,0,0,0,0,0,0,0,0,0]
[null,null,null,null,"Opwek PV totaal (kWh)",0,0,0,0,0,0,0,0,0,0,0,0,0,0,0,0,0,0,0,0,0,0,0,0,0,0,0,0,0,0,0,0,0]
[null,null,null,null,"Opwek PV totaal per m2 (kWh/m2)",0,0,0,0,0,0,0,0,0,0,0,0,0,0,0,0,0,0,0,0,0,0,0,0,0,0,0,0,0,0,0,0,0]
[null,null,null,null,"Duurzame warmte inkoop (GJ)",0,0,0,0,0,0,0,0,0,0,0,0,0,0,0,0,0,0,0,0,0,0,0,0,0,0,0,0,0,0,0,0,0]
[null,null,null,null,"Duurzame warmte inkoop per m2 (GJ/m2)",0,0,0,0,0,0,0,0,0,0,0,0,0,0,0,0,0,0,0,0,0,0,0,0,0,0,0,0,0,0,0,0,0]
[null,null,null,null,"Totaalverbruik zonder aftrek pv (kWh)",0,0,0,0,0,0,0,0,0,0,0,0,0,0,0,0,0,0,0,0,0,0,0,0,0,0,0,0,0,0,0,0,0]
[null,null,null,null,"Totaalverbruik per m2 z.a. pv (kWh/m2)",0,0,0,0,0,0,0,0,0,0,0,0,0,0,0,0,0,0,0,0,0,0,0,0,0,0,0,0,0,0,0,0,0]
[null,null,null,null,"Energiekosten per jaar (€)",0,0,0,0,0,0,0,0,0,0,0,0,0,0,0,0,0,0,0,0,0,0,0,0,0,0,0,0,0,0,0,0,0]
[null,null,null,null,"Investeringen per jaar (€)",0,0,0,0,0,0,0,0,0,0,0,0,0,0,0,0,0,0,0,0,0,0,0,0,0,0,0,0,0,0,0,0,0]
[null,null,null,null,"Cumulatieve investeringen (€)",0,0,0,0,0,0,0,0,0,0,0,0,0,0,0,0,0,0,0,0,0,0,0,0,0,0,0,0,0,0,0,0,0]
[null,null,null,null,"Besparingen per jaar (€)",0,0,0,0,0,0,0,0,0,0,0,0,0,0,0,0,0,0,0,0,0,0,0,0,0,0,0,0,0,0,0,0,0]
[null,null,null,null,"Cumulatieve besparingen (€)",0,0,0,0,0,0,0,0,0,0,0,0,0,0,0,0,0,0,0,0,0,0,0,0,0,0,0,0,0,0,0,0,0]
[null,null,null,null,"Bespaard t.o.v. ref.jaar (€)",0,0,0,0,0,0,0,0,0,0,0,0,0,0,0,0,0,0,0,0,0,0,0,0,0,0,0,0,0,0,0,0,0]
[null,null,null,null,"CO2-emissie energieverbruik (ton)",0,0,0,0,0,0,0,0,0,0,0,0,0,0,0,0,0,0,0,0,0,0,0,0,0,0,0,0,0,0,0,0,0]
[null,null,null,null,"CO2-emissie  bouw (ton)",0,0,0,0,0,0,0,0,0,0,0,0,0,0,0,0,0,0,0,0,0,0,0,0,0,0,0,0,0,0,0,0,0]
[null,null,null,null,"CO2-reductie verbruik t.o.v. 2018 (%)",0,0,0,0,0,0,0,0,0,0,0,0,0,0,0,0,0,0,0,0,0,0,0,0,0,0,0,0,0,0,0,0,0]
[null,null,null,null,"CO2-reductie directe emissie  t.o.v. 2018 (%)",0,0,0,0,0,0,0,0,0,0,0,0,0,0,0,0,0,0,0,0,0,0,0,0,0,0,0,0,0,0,0,0,0]
[]
[7,null,null,{"$f":"K14","v":0}]
[null,null,null,null,null,2018,2019,2020,2021,2022,2023,2024,2025,2026,2027,2028,2029,2030,2031,2032,2033,2034,2035,2036,2037,2038,2039,2040,2041,2042,2043,2044,2045,2046,2047,2048,2049,2050]
[null,null,null,null,"GO - Gebruiksoppervlakte (m2)",0,0,0,0,0,0,0,0,0,0,0,0,0,0,0,0,0,0,0,0,0,0,0,0,0,0,0,0,0,0,0,0,0]
[null,null,null,null,"<1965",0,0,0,0,0,0,0,0,0,0,0,0,0,0,0,0,0,0,0,0,0,0,0,0,0,0,0,0,0,0,0,0,0]
[null,null,null,null,"1965 - 1975",0,0,0,0,0,0,0,0,0,0,0,0,0,0,0,0,0,0,0,0,0,0,0,0,0,0,0,0,0,0,0,0,0]
[null,null,null,null,"1975 - 1992",0,0,0,0,0,0,0,0,0,0,0,0,0,0,0,0,0,0,0,0,0,0,0,0,0,0,0,0,0,0,0,0,0]
[null,null,null,null,"1992 - 2021",0,0,0,0,0,0,0,0,0,0,0,0,0,0,0,0,0,0,0,0,0,0,0,0,0,0,0,0,0,0,0,0,0]
[null,null,null,null,"Nieuwbouw",0,0,0,0,0,0,0,0,0,0,0,0,0,0,0,0,0,0,0,0,0,0,0,0,0,0,0,0,0,0,0,0,0]
[null,null,null,null,"Elektriciteit inkoop (kWh)",0,0,0,0,0,0,0,0,0,0,0,0,0,0,0,0,0,0,0,0,0,0,0,0,0,0,0,0,0,0,0,0,0]
[null,null,null,null,"Elektriciteit inkoop per m2 (kWh/m2)",0,0,0,0,0,0,0,0,0,0,0,0,0,0,0,0,0,0,0,0,0,0,0,0,0,0,0,0,0,0,0,0,0]
[null,null,null,null,"Aardgas inkoop (m3)",0,0,0,0,0,0,0,0,0,0,0,0,0,0,0,0,0,0,0,0,0,0,0,0,0,0,0,0,0,0,0,0,0]
[null,null,null,null,"Aardgas inkoop per m2 (m3/m2)",0,0,0,0,0,0,0,0,0,0,0,0,0,0,0,0,0,0,0,0,0,0,0,0,0,0,0,0,0,0,0,0,0]
[null,null,null,null,"Warmte inkoop (GJ)",0,0,0,0,0,0,0,0,0,0,0,0,0,0,0,0,0,0,0,0,0,0,0,0,0,0,0,0,0,0,0,0,0]
[null,null,null,null,"Warmte inkoop per m2 (GJ/m2)",0,0,0,0,0,0,0,0,0,0,0,0,0,0,0,0,0,0,0,0,0,0,0,0,0,0,0,0,0,0,0,0,0]
[null,null,null,null,"Totale inkoop (kWh)",0,0,0,0,0,0,0,0,0,0,0,0,0,0,0,0,0,0,0,0,0,0,0,0,0,0,0,0,0,0,0,0,0]
[null,null,null,null,"Totale inkoop per m2 (kWh/m2)",0,0,0,0,0,0,0,0,0,0,0,0,0,0,0,0,0,0,0,0,0,0,0,0,0,0,0,0,0,0,0,0,0]
[null,null,null,null,"Opwek PV bestaande bouw (kWh)",0,0,0,0,0,0,0,0,0,0,0,0,0,0,0,0,0,0,0,0,0,0,0,0,0,0,0,0,0,0,0,0,0]
[null,null,null,null,"Opwek PV nieuwbouw (kWh)",0,0,0,0,0,0,0,0,0,0,0,0,0,0,0,0,0,0,0,0,0,0,0,0,0,0,0,0,0,0,0,0,0]
[null,null,null,null,"Opwek PV totaal (kWh)",0,0,0,0,0,0,0,0,0,0,0,0,0,0,0,0,0,0,0,0,0,0,0,0,0,0,0,0,0,0,0,0,0]
[null,null,null,null,"Opwek PV totaal per m2 (kWh/m2)",0,0,0,0,0,0,0,0,0,0,0,0,0,0,0,0,0,0,0,0,0,0,0,0,0,0,0,0,0,0,0,0,0]
[null,null,null,null,"Duurzame warmte inkoop (GJ)",0,0,0,0,0,0,0,0,0,0,0,0,0,0,0,0,0,0,0,0,0,0,0,0,0,0,0,0,0,0,0,0,0]
[null,null,null,null,"Duurzame warmte inkoop per m2 (GJ/m2)",0,0,0,0,0,0,0,0,0,0,0,0,0,0,0,0,0,0,0,0,0,0,0,0,0,0,0,0,0,0,0,0,0]
[null,null,null,null,"Totaalverbruik zonder aftrek pv (kWh)",0,0,0,0,0,0,0,0,0,0,0,0,0,0,0,0,0,0,0,0,0,0,0,0,0,0,0,0,0,0,0,0,0]
[null,null,null,null,"Totaalverbruik per m2 z.a. pv (kWh/m2)",0,0,0,0,0,0,0,0,0,0,0,0,0,0,0,0,0,0,0,0,0,0,0,0,0,0,0,0,0,0,0,0,0]
[null,null,null,null,"Energiekosten per jaar (€)",0,0,0,0,0,0,0,0,0,0,0,0,0,0,0,0,0,0,0,0,0,0,0,0,0,0,0,0,0,0,0,0,0]
[null,null,null,null,"Investeringen per jaar (€)",0,0,0,0,0,0,0,0,0,0,0,0,0,0,0,0,0,0,0,0,0,0,0,0,0,0,0,0,0,0,0,0,0]
[null,null,null,null,"Cumulatieve investeringen (€)",0,0,0,0,0,0,0,0,0,0,0,0,0,0,0,0,0,0,0,0,0,0,0,0,0,0,0,0,0,0,0,0,0]
[null,null,null,null,"Besparingen per jaar (€)",0,0,0,0,0,0,0,0,0,0,0,0,0,0,0,0,0,0,0,0,0,0,0,0,0,0,0,0,0,0,0,0,0]
[null,null,null,null,"Cumulatieve besparingen (€)",0,0,0,0,0,0,0,0,0,0,0,0,0,0,0,0,0,0,0,0,0,0,0,0,0,0,0,0,0,0,0,0,0]
[null,null,null,null,"Bespaard t.o.v. ref.jaar (€)",0,0,0,0,0,0,0,0,0,0,0,0,0,0,0,0,0,0,0,0,0,0,0,0,0,0,0,0,0,0,0,0,0]
[null,null,null,null,"CO2-emissie energieverbruik (ton)",0,0,0,0,0,0,0,0,0,0,0,0,0,0,0,0,0,0,0,0,0,0,0,0,0,0,0,0,0,0,0,0,0]
[null,null,null,null,"CO2-emissie  bouw (ton)",0,0,0,0,0,0,0,0,0,0,0,0,0,0,0,0,0,0,0,0,0,0,0,0,0,0,0,0,0,0,0,0,0]
[null,null,null,null,"CO2-reductie verbruik t.o.v. 2018 (%)",0,0,0,0,0,0,0,0,0,0,0,0,0,0,0,0,0,0,0,0,0,0,0,0,0,0,0,0,0,0,0,0,0]
[null,null,null,null,"CO2-reductie directe emissie  t.o.v. 2018 (%)",0,0,0,0,0,0,0,0,0,0,0,0,0,0,0,0,0,0,0,0,0,0,0,0,0,0,0,0,0,0,0,0,0]
[]
[8,null,null,{"$f":"K15","v":0}]
[null,null,null,null,null,2018,2019,2020,2021,2022,2023,2024,2025,2026,2027,2028,2029,2030,2031,2032,2033,2034,2035,2036,2037,2038,2039,2040,2041,2042,2043,2044,2045,2046,2047,2048,2049,2050]
[null,null,null,null,"GO - Gebruiksoppervlakte (m2)",0,0,0,0,0,0,0,0,0,0,0,0,0,0,0,0,0,0,0,0,0,0,0,0,0,0,0,0,0,0,0,0,0]
[null,null,null,null,"<1965",0,0,0,0,0,0,0,0,0,0,0,0,0,0,0,0,0,0,0,0,0,0,0,0,0,0,0,0,0,0,0,0,0]
[null,null,null,null,"1965 - 1975",0,0,0,0,0,0,0,0,0,0,0,0,0,0,0,0,0,0,0,0,0,0,0,0,0,0,0,0,0,0,0,0,0]
[null,null,null,null,"1975 - 1992",0,0,0,0,0,0,0,0,0,0,0,0,0,0,0,0,0,0,0,0,0,0,0,0,0,0,0,0,0,0,0,0,0]
[null,null,null,null,"1992 - 2021",0,0,0,0,0,0,0,0,0,0,0,0,0,0,0,0,0,0,0,0,0,0,0,0,0,0,0,0,0,0,0,0,0]
[null,null,null,null,"Nieuwbouw",0,0,0,0,0,0,0,0,0,0,0,0,0,0,0,0,0,0,0,0,0,0,0,0,0,0,0,0,0,0,0,0,0]
[null,null,null,null,"Elektriciteit inkoop (kWh)",0,0,0,0,0,0,0,0,0,0,0,0,0,0,0,0,0,0,0,0,0,0,0,0,0,0,0,0,0,0,0,0,0]
[null,null,null,null,"Elektriciteit inkoop per m2 (kWh/m2)",0,0,0,0,0,0,0,0,0,0,0,0,0,0,0,0,0,0,0,0,0,0,0,0,0,0,0,0,0,0,0,0,0]
[null,null,null,null,"Aardgas inkoop (m3)",0,0,0,0,0,0,0,0,0,0,0,0,0,0,0,0,0,0,0,0,0,0,0,0,0,0,0,0,0,0,0,0,0]
[null,null,null,null,"Aardgas inkoop per m2 (m3/m2)",0,0,0,0,0,0,0,0,0,0,0,0,0,0,0,0,0,0,0,0,0,0,0,0,0,0,0,0,0,0,0,0,0]
[null,null,null,null,"Warmte inkoop (GJ)",0,0,0,0,0,0,0,0,0,0,0,0,0,0,0,0,0,0,0,0,0,0,0,0,0,0,0,0,0,0,0,0,0]
[null,null,null,null,"Warmte inkoop per m2 (GJ/m2)",0,0,0,0,0,0,0,0,0,0,0,0,0,0,0,0,0,0,0,0,0,0,0,0,0,0,0,0,0,0,0,0,0]
[null,null,null,null,"Totale inkoop (kWh)",0,0,0,0,0,0,0,0,0,0,0,0,0,0,0,0,0,0,0,0,0,0,0,0,0,0,0,0,0,0,0,0,0]
[null,null,null,null,"Totale inkoop per m2 (kWh/m2)",0,0,0,0,0,0,0,0,0,0,0,0,0,0,0,0,0,0,0,0,0,0,0,0,0,0,0,0,0,0,0,0,0]
[null,null,null,null,"Opwek PV bestaande bouw (kWh)",0,0,0,0,0,0,0,0,0,0,0,0,0,0,0,0,0,0,0,0,0,0,0,0,0,0,0,0,0,0,0,0,0]
[null,null,null,null,"Opwek PV nieuwbouw (kWh)",0,0,0,0,0,0,0,0,0,0,0,0,0,0,0,0,0,0,0,0,0,0,0,0,0,0,0,0,0,0,0,0,0]
[null,null,null,null,"Opwek PV totaal (kWh)",0,0,0,0,0,0,0,0,0,0,0,0,0,0,0,0,0,0,0,0,0,0,0,0,0,0,0,0,0,0,0,0,0]
[null,null,null,null,"Opwek PV totaal per m2 (kWh/m2)",0,0,0,0,0,0,0,0,0,0,0,0,0,0,0,0,0,0,0,0,0,0,0,0,0,0,0,0,0,0,0,0,0]
[null,null,null,null,"Duurzame warmte inkoop (GJ)",0,0,0,0,0,0,0,0,0,0,0,0,0,0,0,0,0,0,0,0,0,0,0,0,0,0,0,0,0,0,0,0,0]
[null,null,null,null,"Duurzame warmte inkoop per m2 (GJ/m2)",0,0,0,0,0,0,0,0,0,0,0,0,0,0,0,0,0,0,0,0,0,0,0,0,0,0,0,0,0,0,0,0,0]
[null,null,null,null,"Totaalverbruik zonder aftrek pv (kWh)",0,0,0,0,0,0,0,0,0,0,0,0,0,0,0,0,0,0,0,0,0,0,0,0,0,0,0,0,0,0,0,0,0]
[null,null,null,null,"Totaalverbruik per m2 z.a. pv (kWh/m2)",0,0,0,0,0,0,0,0,0,0,0,0,0,0,0,0,0,0,0,0,0,0,0,0,0,0,0,0,0,0,0,0,0]
[null,null,null,null,"Energiekosten per jaar (€)",0,0,0,0,0,0,0,0,0,0,0,0,0,0,0,0,0,0,0,0,0,0,0,0,0,0,0,0,0,0,0,0,0]
[null,null,null,null,"Investeringen per jaar (€)",0,0,0,0,0,0,0,0,0,0,0,0,0,0,0,0,0,0,0,0,0,0,0,0,0,0,0,0,0,0,0,0,0]
[null,null,null,null,"Cumulatieve investeringen (€)",0,0,0,0,0,0,0,0,0,0,0,0,0,0,0,0,0,0,0,0,0,0,0,0,0,0,0,0,0,0,0,0,0]
[null,null,null,null,"Besparingen per jaar (€)",0,0,0,0,0,0,0,0,0,0,0,0,0,0,0,0,0,0,0,0,0,0,0,0,0,0,0,0,0,0,0,0,0]
[null,null,null,null,"Cumulatieve besparingen (€)",0,0,0,0,0,0,0,0,0,0,0,0,0,0,0,0,0,0,0,0,0,0,0,0,0,0,0,0,0,0,0,0,0]
[null,null,null,null,"Bespaard t.o.v. ref.jaar (€)",0,0,0,0,0,0,0,0,0,0,0,0,0,0,0,0,0,0,0,0,0,0,0,0,0,0,0,0,0,0,0,0,0]
[null,null,null,null,"CO2-emissie energieverbruik (ton)",0,0,0,0,0,0,0,0,0,0,0,0,0,0,0,0,0,0,0,0,0,0,0,0,0,0,0,0,0,0,0,0,0]
[null,null,null,null,"CO2-emissie  bouw (ton)",0,0,0,0,0,0,0,0,0,0,0,0,0,0,0,0,0,0,0,0,0,0,0,0,0,0,0,0,0,0,0,0,0]
[null,null,null,null,"CO2-reductie verbruik t.o.v. 2018 (%)",0,0,0,0,0,0,0,0,0,0,0,0,0,0,0,0,0,0,0,0,0,0,0,0,0,0,0,0,0,0,0,0,0]
[null,null,null,null,"CO2-reductie directe emissie  t.o.v. 2018 (%)",0,0,0,0,0,0,0,0,0,0,0,0,0,0,0,0,0,0,0,0,0,0,0,0,0,0,0,0,0,0,0,0,0]
[]
[9,null,null,{"$f":"K16","v":0}]
[null,null,null,null,null,2018,2019,2020,2021,2022,2023,2024,2025,2026,2027,2028,2029,2030,2031,2032,2033,2034,2035,2036,2037,2038,2039,2040,2041,2042,2043,2044,2045,2046,2047,2048,2049,2050]
[null,null,null,null,"GO - Gebruiksoppervlakte (m2)",0,0,0,0,0,0,0,0,0,0,0,0,0,0,0,0,0,0,0,0,0,0,0,0,0,0,0,0,0,0,0,0,0]
[null,null,null,null,"<1965",0,0,0,0,0,0,0,0,0,0,0,0,0,0,0,0,0,0,0,0,0,0,0,0,0,0,0,0,0,0,0,0,0]
[null,null,null,null,"1965 - 1975",0,0,0,0,0,0,0,0,0,0,0,0,0,0,0,0,0,0,0,0,0,0,0,0,0,0,0,0,0,0,0,0,0]
[null,null,null,null,"1975 - 1992",0,0,0,0,0,0,0,0,0,0,0,0,0,0,0,0,0,0,0,0,0,0,0,0,0,0,0,0,0,0,0,0,0]
[null,null,null,null,"1992 - 2021",0,0,0,0,0,0,0,0,0,0,0,0,0,0,0,0,0,0,0,0,0,0,0,0,0,0,0,0,0,0,0,0,0]
[null,null,null,null,"Nieuwbouw",0,0,0,0,0,0,0,0,0,0,0,0,0,0,0,0,0,0,0,0,0,0,0,0,0,0,0,0,0,0,0,0,0]
[null,null,null,null,"Elektriciteit inkoop (kWh)",0,0,0,0,0,0,0,0,0,0,0,0,0,0,0,0,0,0,0,0,0,0,0,0,0,0,0,0,0,0,0,0,0]
[null,null,null,null,"Elektriciteit inkoop per m2 (kWh/m2)",0,0,0,0,0,0,0,0,0,0,0,0,0,0,0,0,0,0,0,0,0,0,0,0,0,0,0,0,0,0,0,0,0]
[null,null,null,null,"Aardgas inkoop (m3)",0,0,0,0,0,0,0,0,0,0,0,0,0,0,0,0,0,0,0,0,0,0,0,0,0,0,0,0,0,0,0,0,0]
[null,null,null,null,"Aardgas inkoop per m2 (m3/m2)",0,0,0,0,0,0,0,0,0,0,0,0,0,0,0,0,0,0,0,0,0,0,0,0,0,0,0,0,0,0,0,0,0]
[null,null,null,null,"Warmte inkoop (GJ)",0,0,0,0,0,0,0,0,0,0,0,0,0,0,0,0,0,0,0,0,0,0,0,0,0,0,0,0,0,0,0,0,0]
[null,null,null,null,"Warmte inkoop per m2 (GJ/m2)",0,0,0,0,0,0,0,0,0,0,0,0,0,0,0,0,0,0,0,0,0,0,0,0,0,0,0,0,0,0,0,0,0]
[null,null,null,null,"Totale inkoop (kWh)",0,0,0,0,0,0,0,0,0,0,0,0,0,0,0,0,0,0,0,0,0,0,0,0,0,0,0,0,0,0,0,0,0]
[null,null,null,null,"Totale inkoop per m2 (kWh/m2)",0,0,0,0,0,0,0,0,0,0,0,0,0,0,0,0,0,0,0,0,0,0,0,0,0,0,0,0,0,0,0,0,0]
[null,null,null,null,"Opwek PV bestaande bouw (kWh)",0,0,0,0,0,0,0,0,0,0,0,0,0,0,0,0,0,0,0,0,0,0,0,0,0,0,0,0,0,0,0,0,0]
[null,null,null,null,"Opwek PV nieuwbouw (kWh)",0,0,0,0,0,0,0,0,0,0,0,0,0,0,0,0,0,0,0,0,0,0,0,0,0,0,0,0,0,0,0,0,0]
[null,null,null,null,"Opwek PV totaal (kWh)",0,0,0,0,0,0,0,0,0,0,0,0,0,0,0,0,0,0,0,0,0,0,0,0,0,0,0,0,0,0,0,0,0]
[null,null,null,null,"Opwek PV totaal per m2 (kWh/m2)",0,0,0,0,0,0,0,0,0,0,0,0,0,0,0,0,0,0,0,0,0,0,0,0,0,0,0,0,0,0,0,0,0]
[null,null,null,null,"Duurzame warmte inkoop (GJ)",0,0,0,0,0,0,0,0,0,0,0,0,0,0,0,0,0,0,0,0,0,0,0,0,0,0,0,0,0,0,0,0,0]
[null,null,null,null,"Duurzame warmte inkoop per m2 (GJ/m2)",0,0,0,0,0,0,0,0,0,0,0,0,0,0,0,0,0,0,0,0,0,0,0,0,0,0,0,0,0,0,0,0,0]
[null,null,null,null,"Totaalverbruik zonder aftrek pv (kWh)",0,0,0,0,0,0,0,0,0,0,0,0,0,0,0,0,0,0,0,0,0,0,0,0,0,0,0,0,0,0,0,0,0]
[null,null,null,null,"Totaalverbruik per m2 z.a. pv (kWh/m2)",0,0,0,0,0,0,0,0,0,0,0,0,0,0,0,0,0,0,0,0,0,0,0,0,0,0,0,0,0,0,0,0,0]
[null,null,null,null,"Energiekosten per jaar (€)",0,0,0,0,0,0,0,0,0,0,0,0,0,0,0,0,0,0,0,0,0,0,0,0,0,0,0,0,0,0,0,0,0]
[null,null,null,null,"Investeringen per jaar (€)",0,0,0,0,0,0,0,0,0,0,0,0,0,0,0,0,0,0,0,0,0,0,0,0,0,0,0,0,0,0,0,0,0]
[null,null,null,null,"Cumulatieve investeringen (€)",0,0,0,0,0,0,0,0,0,0,0,0,0,0,0,0,0,0,0,0,0,0,0,0,0,0,0,0,0,0,0,0,0]
[null,null,null,null,"Besparingen per jaar (€)",0,0,0,0,0,0,0,0,0,0,0,0,0,0,0,0,0,0,0,0,0,0,0,0,0,0,0,0,0,0,0,0,0]
[null,null,null,null,"Cumulatieve besparingen (€)",0,0,0,0,0,0,0,0,0,0,0,0,0,0,0,0,0,0,0,0,0,0,0,0,0,0,0,0,0,0,0,0,0]
[null,null,null,null,"Bespaard t.o.v. ref.jaar (€)",0,0,0,0,0,0,0,0,0,0,0,0,0,0,0,0,0,0,0,0,0,0,0,0,0,0,0,0,0,0,0,0,0]
[null,null,null,null,"CO2-emissie energieverbruik (ton)",0,0,0,0,0,0,0,0,0,0,0,0,0,0,0,0,0,0,0,0,0,0,0,0,0,0,0,0,0,0,0,0,0]
[null,null,null,null,"CO2-emissie  bouw (ton)",0,0,0,0,0,0,0,0,0,0,0,0,0,0,0,0,0,0,0,0,0,0,0,0,0,0,0,0,0,0,0,0,0]
[null,null,null,null,"CO2-reductie verbruik t.o.v. 2018 (%)",0,0,0,0,0,0,0,0,0,0,0,0,0,0,0,0,0,0,0,0,0,0,0,0,0,0,0,0,0,0,0,0,0]
[null,null,null,null,"CO2-reductie directe emissie  t.o.v. 2018 (%)",0,0,0,0,0,0,0,0,0,0,0,0,0,0,0,0,0,0,0,0,0,0,0,0,0,0,0,0,0,0,0,0,0]
[]
[10,null,null,{"$f":"K17","v":0}]
[null,null,null,null,null,2018,2019,2020,2021,2022,2023,2024,2025,2026,2027,2028,2029,2030,2031,2032,2033,2034,2035,2036,2037,2038,2039,2040,2041,2042,2043,2044,2045,2046,2047,2048,2049,2050]
[null,null,null,null,"GO - Gebruiksoppervlakte (m2)",0,0,0,0,0,0,0,0,0,0,0,0,0,0,0,0,0,0,0,0,0,0,0,0,0,0,0,0,0,0,0,0,0]
[null,null,null,null,"<1965",0,0,0,0,0,0,0,0,0,0,0,0,0,0,0,0,0,0,0,0,0,0,0,0,0,0,0,0,0,0,0,0,0]
[null,null,null,null,"1965 - 1975",0,0,0,0,0,0,0,0,0,0,0,0,0,0,0,0,0,0,0,0,0,0,0,0,0,0,0,0,0,0,0,0,0]
[null,null,null,null,"1975 - 1992",0,0,0,0,0,0,0,0,0,0,0,0,0,0,0,0,0,0,0,0,0,0,0,0,0,0,0,0,0,0,0,0,0]
[null,null,null,null,"1992 - 2021",0,0,0,0,0,0,0,0,0,0,0,0,0,0,0,0,0,0,0,0,0,0,0,0,0,0,0,0,0,0,0,0,0]
[null,null,null,null,"Nieuwbouw",0,0,0,0,0,0,0,0,0,0,0,0,0,0,0,0,0,0,0,0,0,0,0,0,0,0,0,0,0,0,0,0,0]
[null,null,null,null,"Elektriciteit inkoop (kWh)",0,0,0,0,0,0,0,0,0,0,0,0,0,0,0,0,0,0,0,0,0,0,0,0,0,0,0,0,0,0,0,0,0]
[null,null,null,null,"Elektriciteit inkoop per m2 (kWh/m2)",0,0,0,0,0,0,0,0,0,0,0,0,0,0,0,0,0,0,0,0,0,0,0,0,0,0,0,0,0,0,0,0,0]
[null,null,null,null,"Aardgas inkoop (m3)",0,0,0,0,0,0,0,0,0,0,0,0,0,0,0,0,0,0,0,0,0,0,0,0,0,0,0,0,0,0,0,0,0]
[null,null,null,null,"Aardgas inkoop per m2 (m3/m2)",0,0,0,0,0,0,0,0,0,0,0,0,0,0,0,0,0,0,0,0,0,0,0,0,0,0,0,0,0,0,0,0,0]
[null,null,null,null,"Warmte inkoop (GJ)",0,0,0,0,0,0,0,0,0,0,0,0,0,0,0,0,0,0,0,0,0,0,0,0,0,0,0,0,0,0,0,0,0]
[null,null,null,null,"Warmte inkoop per m2 (GJ/m2)",0,0,0,0,0,0,0,0,0,0,0,0,0,0,0,0,0,0,0,0,0,0,0,0,0,0,0,0,0,0,0,0,0]
[null,null,null,null,"Totale inkoop (kWh)",0,0,0,0,0,0,0,0,0,0,0,0,0,0,0,0,0,0,0,0,0,0,0,0,0,0,0,0,0,0,0,0,0]
[null,null,null,null,"Totale inkoop per m2 (kWh/m2)",0,0,0,0,0,0,0,0,0,0,0,0,0,0,0,0,0,0,0,0,0,0,0,0,0,0,0,0,0,0,0,0,0]
[null,null,null,null,"Opwek PV bestaande bouw (kWh)",0,0,0,0,0,0,0,0,0,0,0,0,0,0,0,0,0,0,0,0,0,0,0,0,0,0,0,0,0,0,0,0,0]
[null,null,null,null,"Opwek PV nieuwbouw (kWh)",0,0,0,0,0,0,0,0,0,0,0,0,0,0,0,0,0,0,0,0,0,0,0,0,0,0,0,0,0,0,0,0,0]
[null,null,null,null,"Opwek PV totaal (kWh)",0,0,0,0,0,0,0,0,0,0,0,0,0,0,0,0,0,0,0,0,0,0,0,0,0,0,0,0,0,0,0,0,0]
[null,null,null,null,"Opwek PV totaal per m2 (kWh/m2)",0,0,0,0,0,0,0,0,0,0,0,0,0,0,0,0,0,0,0,0,0,0,0,0,0,0,0,0,0,0,0,0,0]
[null,null,null,null,"Duurzame warmte inkoop (GJ)",0,0,0,0,0,0,0,0,0,0,0,0,0,0,0,0,0,0,0,0,0,0,0,0,0,0,0,0,0,0,0,0,0]
[null,null,null,null,"Duurzame warmte inkoop per m2 (GJ/m2)",0,0,0,0,0,0,0,0,0,0,0,0,0,0,0,0,0,0,0,0,0,0,0,0,0,0,0,0,0,0,0,0,0]
[null,null,null,null,"Totaalverbruik zonder aftrek pv (kWh)",0,0,0,0,0,0,0,0,0,0,0,0,0,0,0,0,0,0,0,0,0,0,0,0,0,0,0,0,0,0,0,0,0]
[null,null,null,null,"Totaalverbruik per m2 z.a. pv (kWh/m2)",0,0,0,0,0,0,0,0,0,0,0,0,0,0,0,0,0,0,0,0,0,0,0,0,0,0,0,0,0,0,0,0,0]
[null,null,null,null,"Energiekosten per jaar (€)",0,0,0,0,0,0,0,0,0,0,0,0,0,0,0,0,0,0,0,0,0,0,0,0,0,0,0,0,0,0,0,0,0]
[null,null,null,null,"Investeringen per jaar (€)",0,0,0,0,0,0,0,0,0,0,0,0,0,0,0,0,0,0,0,0,0,0,0,0,0,0,0,0,0,0,0,0,0]
[null,null,null,null,"Cumulatieve investeringen (€)",0,0,0,0,0,0,0,0,0,0,0,0,0,0,0,0,0,0,0,0,0,0,0,0,0,0,0,0,0,0,0,0,0]
[null,null,null,null,"Besparingen per jaar (€)",0,0,0,0,0,0,0,0,0,0,0,0,0,0,0,0,0,0,0,0,0,0,0,0,0,0,0,0,0,0,0,0,0]
[null,null,null,null,"Cumulatieve besparingen (€)",0,0,0,0,0,0,0,0,0,0,0,0,0,0,0,0,0,0,0,0,0,0,0,0,0,0,0,0,0,0,0,0,0]
[null,null,null,null,"Bespaard t.o.v. ref.jaar (€)",0,0,0,0,0,0,0,0,0,0,0,0,0,0,0,0,0,0,0,0,0,0,0,0,0,0,0,0,0,0,0,0,0]
[null,null,null,null,"CO2-emissie energieverbruik (ton)",0,0,0,0,0,0,0,0,0,0,0,0,0,0,0,0,0,0,0,0,0,0,0,0,0,0,0,0,0,0,0,0,0]
[null,null,null,null,"CO2-emissie  bouw (ton)",0,0,0,0,0,0,0,0,0,0,0,0,0,0,0,0,0,0,0,0,0,0,0,0,0,0,0,0,0,0,0,0,0]
[null,null,null,null,"CO2-reductie verbruik t.o.v. 2018 (%)",0,0,0,0,0,0,0,0,0,0,0,0,0,0,0,0,0,0,0,0,0,0,0,0,0,0,0,0,0,0,0,0,0]
[null,null,null,null,"CO2-reductie directe emissie  t.o.v. 2018 (%)",0,0,0,0,0,0,0,0,0,0,0,0,0,0,0,0,0,0,0,0,0,0,0,0,0,0,0,0,0,0,0,0,0]
[]
[null,"Wijzig niets aan de (verborgen) rijen)"]

{"sheet":"Blanco","index":3,"n_rows":257,"n_cols":223,"rows_kept":257,"cut":false,"hidden":true,"merged":[[219,13,219,20],[255,2,256,11],[36,2,36,3],[37,2,37,3],[38,2,38,3],[41,4,41,5],[42,4,42,6],[224,2,230,11],[233,2,235,11],[239,2,241,11],[244,2,247,11],[250,2,252,11]]}
[null,null,null,null,{"$f":"IFERROR(AH1,\"Let op! De naam van dit tabblad komt niet overeen met een van de opgegeven locaties in het tabblad 'Cijfers'! Wijzig de naam van dit tabblad in de overzichtsbalk onderin het scherm.\")","v":"Let op! De naam van dit tabblad komt niet overeen met een van de opgegeven locaties in het tabblad 'Cijfers'! Wijzig de naam van dit tabblad in de overzichtsbalk onderin het scherm."},null,null,null,null,null,null,null,null,null,null,null,null,null,null,null,null,null,null,null,null,null,null,null,null,null,null,null,null,{"$f":"MATCH(E2,Cijfers!#REF!,0)","v":{"$error":"#REF!"}},null,null,null,null,null,"Versie 2.0",null,null,null,null,null,null,null,null,null,null,null,null,null,null,null,null,null,null,null,null,null,null,null,null,null,null,null,null,null,null,null,null,null,null,null,null,null,null,null,null,null,null,null,null,null,null,null,null,null,null,null,null,null,null,null,null,null,null,null,null,null,null,null,null,null,null,null,null,null,null,null,null,null,null,null,null,null,null,null,null,null,null,null,null,null,null,null,null,null,null,null,null,null,null,null,null,null,null,null,null,null,null,null,null,null,null,null,null,null,null,null,null,null,null,null,null,null,null,null,null,null,null,null,null,null,null,null,null,null,null,null,null,null,null,null,null,null,null,null,null,null,null,null,null,null,null,null,null,null,null,null,null,null,null,null,null,null,null,null,null,null,null,null,null,null,null,null,null,null,null,null,null,null,null,null,null,null,null,"Huurder","JA","NEE"]
[null,null,"Locatie:",null,{"$f":"MID(CELL(\"bestandsnaam\",D1),SEARCH(\"]\",CELL(\"bestandsnaam\",D1))+1,100)","v":"Blanco"},null,null,null,null,null,null,null,null,null,null,null,null,null,null,"Toon grafiekwaarden absoluut of per m2 gebruiksoppervlakte",null,null,null,null,null,null,null,null,null,null,null,null,null,null,null,null,null,null,null,null,null,null,null,null,null,null,null,null,null,null,null,null,null,null,null,null,null,null,null,null,null,null,null,null,null,null,null,null,null,null,null,null,null,null,null,null,null,null,null,null,null,null,null,null,null,null,null,"Versie 2.0",null,null,null,null,null,null,null,null,null,null,null,null,null,null,null,null,null,null,null,null,null,null,null,null,null,null,null,null,null,null,null,null,null,null,null,null,null,null,null,null,null,null,null,null,null,null,null,null,null,null,null,null,null,null,null,null,null,null,null,null,null,null,null,null,null,null,null,null,null,null,null,null,null,null,null,null,null,null,null,null,null,null,null,null,null,null,null,null,null,null,null,null,null,null,null,null,null,null,null,null,null,null,null,null,null,null,null,null,null,null,null,null,null,null,null,null,null,null,null,null,null,null,null,null,null,null,null,null,null,null,"Verhuurder",2018]
[null,null,null,null,null,null,null,null,null,null,null,null,null,null,null,null,null,null,null,null,null,null,null,null,null,null,null,null,null,null,null,null,null,null,null,null,null,null,null,null,null,null,null,null,null,null,null,null,null,null,null,null,null,null,null,null,null,null,null,null,null,null,null,null,null,null,null,null,null,null,null,null,null,null,null,null,null,null,null,null,null,null,null,null,null,null,null,null,null,null,null,null,null,null,null,null,null,null,null,null,null,null,null,null,null,null,null,null,null,null,null,null,null,null,null,null,null,null,null,null,null,null,null,null,null,null,null,null,null,null,null,null,null,null,null,null,null,null,null,null,null,null,null,null,null,null,null,null,null,null,null,null,null,null,null,null,null,null,null,null,null,null,null,null,null,null,null,null,null,null,null,null,null,null,null,null,null,null,null,null,null,null,null,null,null,null,null,null,null,null,null,null,null,null,null,null,null,null,null,null,null,null,null,null,null,null,null,null,null,null,null,null,null,null,null,null,null,null,"X",2019]
[null,null,null,"Bruto vloeroppervlak - BVO (m2)",null,null,null,null,null,null,null,null,null,null,null,null,null,null,null,null,null,null,null,null,null,null,null,null,null,null,null,null,null,null,null,null,null,null,null,null,null,null,null,null,null,null,null,null,null,null,null,null,null,null,null,null,null,null,null,null,null,null,null,null,null,null,null,null,null,null,null,null,null,null,null,null,null,null,null,null,null,null,null,null,null,null,null,null,null,null,null,null,null,null,null,null,null,null,null,null,null,null,null,null,null,null,null,null,null,null,null,null,null,null,null,null,null,null,null,null,null,null,null,null,null,null,null,null,null,null,null,null,null,null,null,null,null,null,null,null,null,null,null,null,null,null,null,null,null,null,null,null,null,null,null,null,null,null,null,null,null,null,null,null,null,null,null,null,null,null,null,null,null,null,null,null,null,null,null,null,null,null,null,null,null,null,null,null,null,null,null,null,null,null,null,null,null,null,null,null,null,null,null,null,null,null,null,null,null,null,null,null,null,null,null,null,null,null,"I",2020]
[null,null,{"$f":"IF(C4<3000,C4*0.84,C4*0.88)","v":0},"Gebruiksoppervlakte - GO (m2)",null,{"$f":"CELL(\"filename\")","v":"https://stimular.sharepoint.com/Gedeelde documenten/Projecten Stimular/Lopende projecten/813 EVZ-2/4 (eind)producten/Routekaart CO2 Reductie/5. Tool/Main Dashboard/[Main Dashboard 2.0.xlsm]Cijfers"},null,null,null,null,null,null,null,null,null,null,null,null,null,null,null,null,null,null,null,null,null,null,null,null,null,null,null,null,null,null,null,null,null,null,null,null,null,null,null,null,null,null,null,null,null,null,null,null,null,null,null,null,null,null,null,null,null,null,null,null,null,null,null,null,null,null,null,null,null,null,null,null,null,null,null,null,null,null,null,null,null,null,null,null,null,null,null,null,null,null,null,null,null,null,null,null,null,null,null,null,null,null,null,null,null,null,null,null,null,null,null,null,null,null,null,null,null,null,null,null,null,null,null,null,null,null,null,null,null,null,null,null,null,null,null,null,null,null,null,null,null,null,null,null,null,null,null,null,null,null,null,null,null,null,null,null,null,null,null,null,null,null,null,null,null,null,null,null,null,null,null,null,null,null,null,null,null,null,null,null,null,null,null,null,null,null,null,null,null,null,null,null,null,null,null,null,null,null,null,null,null,null,null,null,null,null,null,null,null,null,null,null,"V",2021]
[null,null,1,"Bouwlagen",null,null,null,null,null,null,null,null,null,null,null,null,null,null,null,null,null,null,null,null,null,null,null,null,null,null,null,null,null,null,null,null,null,null,null,null,null,null,null,null,null,null,null,null,null,null,null,null,null,null,null,null,null,null,null,null,null,null,null,null,null,null,null,null,null,null,null,null,null,null,null,null,null,null,null,null,null,null,null,null,null,null,null,null,null,null,null,null,null,null,null,null,null,null,null,null,null,null,null,null,null,null,null,null,null,null,null,null,null,null,null,null,null,null,null,null,null,null,null,null,null,null,null,null,null,null,null,null,null,null,null,null,null,null,null,null,null,null,null,null,null,null,null,null,null,null,null,null,null,null,null,null,null,null,null,null,null,null,null,null,null,null,null,null,null,null,null,null,null,null,null,null,null,null,null,null,null,null,null,null,null,null,null,null,null,null,null,null,null,null,null,null,null,null,null,null,null,null,null,null,null,null,null,null,null,null,null,null,null,null,null,null,null,null,"H",2022]
[null,null,1,"Aantal panden op de locatie",null,null,null,null,null,null,null,null,null,null,null,null,null,null,null,null,null,null,null,null,null,null,null,null,null,null,null,null,null,null,null,null,null,null,null,null,null,null,null,null,null,null,null,null,null,null,null,null,null,null,null,null,null,null,null,null,null,null,null,null,null,null,null,null,null,null,null,null,null,null,null,null,null,null,null,null,null,null,null,null,null,null,null,null,null,null,null,null,null,null,null,null,null,null,null,null,null,null,null,null,null,null,null,null,null,null,null,null,null,null,null,null,null,null,null,null,null,null,null,null,null,null,null,null,null,null,null,null,null,null,null,null,null,null,null,null,null,null,null,null,null,null,null,null,null,null,null,null,null,null,null,null,null,null,null,null,null,null,null,null,null,null,null,null,null,null,null,null,null,null,null,null,null,null,null,null,null,null,null,null,null,null,null,null,null,null,null,null,null,null,null,null,null,null,null,null,null,null,null,null,null,null,null,null,null,null,null,null,null,null,null,null,null,null,"ja",2023]
[null,null,null,null,null,null,null,null,null,null,null,null,null,null,null,null,null,null,null,null,null,null,null,null,null,null,null,null,null,null,null,null,null,null,null,null,null,null,null,null,null,null,null,null,null,null,null,null,null,null,null,null,null,null,null,null,null,null,null,null,null,null,null,null,null,null,null,null,null,null,null,null,null,null,null,null,null,null,null,null,null,null,null,null,null,null,null,null,null,null,null,null,null,null,null,null,null,null,null,null,null,null,null,null,null,null,null,null,null,null,null,null,null,null,null,null,null,null,null,null,null,null,null,null,null,null,null,null,null,null,null,null,null,null,null,null,null,null,null,null,null,null,null,null,null,null,null,null,null,null,null,null,null,null,null,null,null,null,null,null,null,null,null,null,null,null,null,null,null,null,null,null,null,null,null,null,null,null,null,null,null,null,null,null,null,null,null,null,null,null,null,null,null,null,null,null,null,null,null,null,null,null,null,null,null,null,null,null,null,null,null,null,null,null,null,null,null,null,"huur",2024]
[null,null,null,"Bouwjaar",null,null,null,null,null,null,null,null,null,null,null,null,null,null,null,null,null,null,null,null,null,null,null,null,null,null,null,null,null,null,null,null,null,null,null,null,null,null,null,null,null,null,null,null,null,null,null,null,null,null,null,null,null,null,null,null,null,null,null,null,null,null,null,null,null,null,null,null,null,null,null,null,null,null,null,null,null,null,null,null,null,null,null,null,null,null,null,null,null,null,null,null,null,null,null,null,null,null,null,null,null,null,null,null,null,null,null,null,null,null,null,null,null,null,null,null,null,null,null,null,null,null,null,null,null,null,null,null,null,null,null,null,null,null,null,null,null,null,null,null,null,null,null,null,null,null,null,null,null,null,null,null,null,null,null,null,null,null,null,null,null,null,null,null,null,null,null,null,null,null,null,null,null,null,null,null,null,null,null,null,null,null,null,null,null,null,null,null,null,null,null,null,null,null,null,null,null,null,null,null,null,null,null,null,null,null,null,null,null,null,null,null,null,null,"eigendom",2025]
[null,null,"Nee","Is locatie een monument?",null,null,null,null,null,null,null,null,null,null,null,null,null,null,null,null,null,null,null,null,null,null,null,null,null,null,null,null,null,null,null,null,null,null,null,null,null,null,null,null,null,null,null,null,null,null,null,null,null,null,null,null,null,null,null,null,null,null,null,null,null,null,null,null,null,null,null,null,null,null,null,null,null,null,null,null,null,null,null,null,null,null,null,null,null,null,null,null,null,null,null,null,null,null,null,null,null,null,null,null,null,null,null,null,null,null,null,null,null,null,null,null,null,null,null,null,null,null,null,null,null,null,null,null,null,null,null,null,null,null,null,null,null,null,null,null,null,null,null,null,null,null,null,null,null,null,null,null,null,null,null,null,null,null,null,null,null,null,null,null,null,null,null,null,null,null,null,null,null,null,null,null,null,null,null,null,null,null,null,null,null,null,null,null,null,null,null,null,null,null,null,null,null,null,null,null,null,null,null,null,null,null,null,null,null,null,null,null,null,null,null,null,null,null,"Brons",2026]
[null,null,null,"Jaar van ingebruikname na 2023 [optioneel]",null,null,null,null,null,null,null,null,null,null,null,null,null,null,null,null,null,null,null,null,null,null,null,null,null,null,null,null,null,null,null,null,null,null,null,null,null,null,null,null,null,null,null,null,null,null,null,null,null,null,null,null,null,null,null,null,null,null,null,null,null,null,null,null,null,null,null,null,null,null,null,null,null,null,null,null,null,null,null,null,null,null,null,null,null,null,null,null,null,null,null,null,null,null,null,null,null,null,null,null,null,null,null,null,null,null,null,null,null,null,null,null,null,null,null,null,null,null,null,null,null,null,null,null,null,null,null,null,null,null,null,null,null,null,null,null,null,null,null,null,null,null,null,null,null,null,null,null,null,null,null,null,null,null,null,null,null,null,null,null,null,null,null,null,null,null,null,null,null,null,null,null,null,null,null,null,null,null,null,null,null,null,null,null,null,null,null,null,null,null,null,null,null,null,null,null,null,null,null,null,null,null,null,null,null,null,null,null,null,null,null,null,null,null,"Zilver",2027]
[null,null,"2050 of later","Jaar van afstoot/sloop",null,null,null,null,null,null,null,null,null,null,null,null,null,null,null,null,null,null,null,null,null,null,null,null,null,null,null,null,null,null,null,null,null,null,null,null,null,null,null,null,null,null,null,null,null,null,null,null,null,null,null,null,null,null,null,null,null,null,null,null,null,null,null,null,null,null,null,null,null,null,null,null,null,null,null,null,null,null,null,null,null,null,null,null,null,null,null,null,null,null,null,null,null,null,null,null,null,null,null,null,null,null,null,null,null,null,null,null,null,null,null,null,null,null,null,null,null,null,null,null,null,null,null,null,null,null,null,null,null,null,null,null,null,null,null,null,null,null,null,null,null,null,null,null,null,null,null,null,null,null,null,null,null,null,null,null,null,null,null,null,null,null,null,null,null,null,null,null,null,null,null,null,null,null,null,null,null,null,null,null,null,null,null,null,null,null,null,null,null,null,null,null,null,null,null,null,null,null,null,null,null,null,null,null,null,null,null,null,null,null,null,null,null,null,"Goud",2028]
[null,null,null,null,null,null,null,null,null,null,null,null,null,null,null,null,null,null,null,null,null,null,null,null,null,null,null,null,null,null,null,null,null,null,null,null,null,null,null,null,null,null,null,null,null,null,null,null,null,null,null,null,null,null,null,null,null,null,null,null,null,null,null,null,null,null,null,null,null,null,null,null,null,null,null,null,null,null,null,null,null,null,null,null,null,null,null,null,null,null,null,null,null,null,null,null,null,null,null,null,null,null,null,null,null,null,null,null,null,null,null,null,null,null,null,null,null,null,null,null,null,null,null,null,null,null,null,null,null,null,null,null,null,null,null,null,null,null,null,null,null,null,null,null,null,null,null,null,null,null,null,null,null,null,null,null,null,null,null,null,null,null,null,null,null,null,null,null,null,null,null,null,null,null,null,null,null,null,null,null,null,null,null,null,null,null,null,null,null,null,null,null,null,null,null,null,null,null,null,null,null,null,null,null,null,null,null,null,null,null,null,null,null,null,null,null,null,null,null,2029]
[null,null,{"$f":"IF(OR((AN31+AN37)>50000,AN32>25000,AN33>781),\"Ja\",\"Nee\")","v":"Nee"},"Is de locatie informatieplichtig?",null,null,null,null,null,null,null,null,null,null,null,null,null,null,null,null,null,null,null,null,null,null,null,null,null,null,null,null,null,null,null,null,null,null,null,null,null,null,null,null,null,null,null,null,null,null,null,null,null,null,null,null,null,null,null,null,null,null,null,null,null,null,null,null,null,null,null,null,null,null,null,null,null,null,null,null,null,null,null,null,null,null,null,null,null,null,null,null,null,null,null,null,null,null,null,null,null,null,null,null,null,null,null,null,null,null,null,null,null,null,null,null,null,null,null,null,null,null,null,null,null,null,null,null,null,null,null,null,null,null,null,null,null,null,null,null,null,null,null,null,null,null,null,null,null,null,null,null,null,null,null,null,null,null,null,null,null,null,null,null,null,null,null,null,null,null,null,null,null,null,null,null,null,null,null,null,null,null,null,null,null,null,null,null,null,null,null,null,null,null,null,null,null,null,null,null,null,null,null,null,null,null,null,null,null,null,null,null,null,null,null,null,null,null,null,2030]
[null,null,"Eigendom","Huur/eigendom",null,null,null,null,null,null,null,null,null,null,null,null,null,null,null,null,null,null,null,null,null,null,null,null,null,null,null,null,null,null,null,null,null,null,null,null,null,null,null,null,null,null,null,null,null,null,null,null,null,null,null,null,null,null,null,null,null,null,null,null,null,null,null,null,null,null,null,null,null,null,null,null,null,null,null,null,null,null,null,null,null,null,null,null,null,null,null,null,null,null,null,null,null,null,null,null,null,null,null,null,null,null,null,null,null,null,null,null,null,null,null,null,null,null,null,null,null,null,null,null,null,null,null,null,null,null,null,null,null,null,null,null,null,null,null,null,null,null,null,null,null,null,null,null,null,null,null,null,null,null,null,null,null,null,null,null,null,null,null,null,null,null,null,null,null,null,null,null,null,null,null,null,null,null,null,null,null,null,null,null,null,null,null,null,null,null,null,null,null,null,null,null,null,null,null,null,null,null,null,null,null,null,null,null,null,null,null,null,null,null,null,null,null,null,null,2031]
[null,null,null,"Energielabel (G t/m A+++++)",null,null,null,null,null,null,null,null,null,null,null,null,null,null,null,null,null,null,null,null,null,null,null,null,null,null,null,null,null,null,null,null,null,null,null,null,null,null,null,null,null,null,null,null,null,null,null,null,null,null,null,null,null,null,null,null,null,null,null,null,null,null,null,null,null,null,null,null,null,null,null,null,null,null,null,null,null,null,null,null,null,null,null,null,null,null,null,null,null,null,null,null,null,null,null,null,null,null,null,null,null,null,null,null,null,null,null,null,null,null,null,null,null,null,null,null,null,null,null,null,null,null,null,null,null,null,null,null,null,null,null,null,null,null,null,null,null,null,null,null,null,null,null,null,null,null,null,null,null,null,null,null,null,null,null,null,null,null,null,null,null,null,null,null,null,null,null,null,null,null,null,null,null,null,null,null,null,null,null,null,null,null,null,null,null,null,null,null,null,null,null,null,null,null,null,null,null,null,null,null,null,null,null,null,null,null,null,null,null,null,null,null,null,null,null,2032]
[null,null,null,null,null,null,null,null,null,null,null,null,null,null,null,null,null,null,null,null,null,null,null,null,null,null,null,null,null,null,null,null,null,null,null,null,null,null,null,null,null,null,null,null,null,null,null,null,null,null,null,null,null,null,null,null,null,null,null,null,null,null,null,null,null,null,null,null,null,null,null,null,null,null,null,null,null,null,null,null,null,null,null,null,null,null,null,null,null,null,null,null,null,null,null,null,null,null,null,null,null,null,null,null,null,null,null,null,null,null,null,null,null,null,null,null,null,null,null,null,null,null,null,null,null,null,null,null,null,null,null,null,null,null,null,null,null,null,null,null,null,null,null,null,null,null,null,null,null,null,null,null,null,null,null,null,null,null,null,null,null,null,null,null,null,null,null,null,null,null,null,null,null,null,null,null,null,null,null,null,null,null,null,null,null,null,null,null,null,null,null,null,null,null,null,null,null,null,null,null,null,null,null,null,null,null,null,null,null,null,null,null,null,null,null,null,null,null,null,2033]
[null,null,{"$f":"Elektriciteitsprijs","v":0},"Prijs per ingekochte kWh",null,null,null,null,null,null,null,null,null,null,null,null,null,null,null,null,null,null,null,null,null,null,null,null,null,null,null,null,null,null,null,null,null,null,null,null,null,null,null,null,null,null,null,null,null,null,null,null,null,null,null,null,null,null,null,null,null,null,null,null,null,null,null,null,null,null,null,null,null,null,null,null,null,null,null,null,null,null,null,null,null,null,null,null,null,null,null,null,null,null,null,null,null,null,null,null,null,null,null,null,null,null,null,null,null,null,null,null,null,null,null,null,null,null,null,null,null,null,null,null,null,null,null,null,null,null,null,null,null,null,null,null,null,null,null,null,null,null,null,null,null,null,null,null,null,null,null,null,null,null,null,null,null,null,null,null,null,null,null,null,null,null,null,null,null,null,null,null,null,null,null,null,null,null,null,null,null,null,null,null,null,null,null,null,null,null,null,null,null,null,null,null,null,null,null,null,null,null,null,null,null,null,null,null,null,null,null,null,null,null,null,null,null,null,null,2034]
[null,null,{"$f":"Aardgasprijs","v":0},"Prijs per ingekochte m3 aardgas",null,null,null,null,null,null,null,null,null,null,null,null,null,null,null,null,null,null,null,null,null,null,null,null,null,null,null,null,null,null,null,null,null,null,null,null,null,null,null,null,null,null,null,null,null,null,null,null,null,null,null,null,null,null,null,null,null,null,null,null,null,null,null,null,null,null,null,null,null,null,null,null,null,null,null,null,null,null,null,null,null,null,null,null,null,null,null,null,null,null,null,null,null,null,null,null,null,null,null,null,null,null,null,null,null,null,null,null,null,null,null,null,null,null,null,null,null,null,null,null,null,null,null,null,null,null,null,null,null,null,null,null,null,null,null,null,null,null,null,null,null,null,null,null,null,null,null,null,null,null,null,null,null,null,null,null,null,null,null,null,null,null,null,null,null,null,null,null,null,null,null,null,null,null,null,null,null,null,null,null,null,null,null,null,null,null,null,null,null,null,null,null,null,null,null,null,null,null,null,null,null,null,null,null,null,null,null,null,null,null,null,null,null,null,null,2035]
[null,null,{"$f":"Warmteprijs","v":0},"Prijs per ingekochte GJ warmte",null,null,null,null,null,null,null,null,null,null,null,null,null,null,null,null,null,null,null,null,null,null,null,null,null,null,null,null,null,null,null,null,null,null,null,null,null,null,null,null,null,null,null,null,null,null,null,null,null,null,null,null,null,null,null,null,null,null,null,null,null,null,null,null,null,null,null,null,null,null,null,null,null,null,null,null,null,null,null,null,null,null,null,null,null,null,null,null,null,null,null,null,null,null,null,null,null,null,null,null,null,null,null,null,null,null,null,null,null,null,null,null,null,null,null,null,null,null,null,null,null,null,null,null,null,null,null,null,null,null,null,null,null,null,null,null,null,null,null,null,null,null,null,null,null,null,null,null,null,null,null,null,null,null,null,null,null,null,null,null,null,null,null,null,null,null,null,null,null,null,null,null,null,null,null,null,null,null,null,null,null,null,null,null,null,null,null,null,null,null,null,null,null,null,null,null,null,null,null,null,null,null,null,null,null,null,null,null,null,null,null,null,null,null,null,2036]
[null,null,null,null,null,null,null,null,null,null,null,null,null,null,null,null,null,null,null,null,null,null,null,null,null,null,null,null,null,null,null,null,null,null,null,null,null,null,null,null,null,null,null,null,null,null,null,null,null,null,null,null,null,null,null,null,null,null,null,null,null,null,null,null,null,null,null,null,null,null,null,null,null,null,null,null,null,null,null,null,null,null,null,null,null,null,null,null,null,null,null,null,null,null,null,null,null,null,null,null,null,null,null,null,null,null,null,null,null,null,null,null,null,null,null,null,null,null,null,null,null,null,null,null,null,null,null,null,null,null,null,null,null,null,null,null,null,null,null,null,null,null,null,null,null,null,null,null,null,null,null,null,null,null,null,null,null,null,null,null,null,null,null,null,null,null,null,null,null,null,null,null,null,null,null,null,null,null,null,null,null,null,null,null,null,null,null,null,null,null,null,null,null,null,null,null,null,null,null,null,null,null,null,null,null,null,null,null,null,null,null,null,null,null,null,null,null,null,null,2037]
[null,null,null,null,null,null,null,null,null,null,null,null,null,null,null,null,null,null,null,null,null,null,null,null,null,null,null,null,null,null,null,null,null,null,null,null,null,null,null,null,null,null,null,null,null,null,null,null,null,null,null,null,null,null,null,null,null,null,null,null,null,null,null,null,null,null,null,null,null,null,null,null,null,null,null,null,null,null,null,null,null,null,null,null,null,null,null,null,null,null,null,null,null,null,null,null,null,null,null,null,null,null,null,null,null,null,null,null,null,null,null,null,null,null,null,null,null,null,null,null,null,null,null,null,null,null,null,null,null,null,null,null,null,null,null,null,null,null,null,null,null,null,null,null,null,null,null,null,null,null,null,null,null,null,null,null,null,null,null,null,null,null,null,null,null,null,null,null,null,null,null,null,null,null,null,null,null,null,null,null,null,null,null,null,null,null,null,null,null,null,null,null,null,null,null,null,null,null,null,null,null,null,null,null,null,null,null,null,null,null,null,null,null,null,null,null,null,null,null,2038]
[null,null,null,null," ",null,null,null,null,null,null,null,null,null,null,null,null,null,null,null,null,null,null,null,null,null,null,null,null,null,null,null,null,null,null,null,null,null,null,null,null,null,null,null,null,null,null,null,null,null,null,null,null,null,null,null,null,null,null,null,null,null,null,null,null,null,null,null,null,null,null,null,null,null,null,null,null,null,null,null,null,null,null,null,null,null,null,null,null,null,null,null,null,null,null,null,null,null,null,null,null,null,null,null,null,null,null,null,null,null,null,null,null,null,null,null,null,null,null,null,null,null,null,null,null,null,null,null,null,null,null,null,null,null,null,null,null,null,null,null,null,null,null,null,null,null,null,null,null,null,null,null,null,null,null,null,null,null,null,null,null,null,null,null,null,null,null,null,null,null,null,null,null,null,null,null,null,null,null,null,null,null,null,null,null,null,null,null,null,null,null,null,null,null,null,null,null,null,null,null,null,null,null,null,null,null,null,null,null,null,null,null,null,null,null,null,null,null,null,2039]
[null,null,"Optioneel:",null,null,null,null,null,null,null,null,null,null,null,null,null,null,null,null,null,"Inkoop in 2050:",{"$f":"aardgasinkoop_2050","v":0},null,null,null,null,null,"m3/jaar",null,null,null,null,null,null,null,null,null,null,null,null,null,null,null,null,null,"Inkoop in 2050:",null,null,null,null,null,{"$f":"Elekverbruik_2050","v":0},null,null,null,null,null,"kWh/jaar",null,null,null,null,null,null,null,null,null,null,null,null,null,null,null,null,null,null,null,null,null,null,null,"Inkoop in 2050:",null,null,null,null,null,{"$f":"GZ235+Duurzamewarmte_2050","v":0},null,null,null,null,null,"Gj/jaar",null,null,null,null,null,null,null,null,null,null,null,null,null,null,null,null,null,null,null,null,null,null,null,null,null,null,null,null,null,null,null,null,null,null,null,null,null,null,null,null,null,null,null,null,null,null,null,null,null,null,null,null,null,null,null,null,null,null,null,null,null,null,null,null,null,null,null,null,null,null,null,null,null,null,null,null,null,null,null,null,null,null,null,null,null,null,null,null,null,null,null,null,null,null,null,null,null,null,null,null,null,null,null,null,null,null,null,null,null,null,null,null,null,null,null,null,null,null,null,null,null,null,null,null,null,2040]
[null,null,null,null,null,null,null,null,null,null,null,null,null,null,null,null,null,null,null,null,null,null,null,null,null,null,null,null,null,null,null,null,null,null,null,null,null,null,null,null,null,null,null,null,null,null,null,null,null,null,null,null,null,null,null,null,null,null,null,null,null,null,null,null,null,null,null,null,null,null,null,null,null,null,null,null,null,null,null,null,null,null,null,null,null,null,null,null,null,null,null,null,null,null,null,null,null,null,null,null,null,null,null,null,null,null,null,null,null,null,null,null,null,null,null,null,null,null,null,null,null,null,null,null,null,null,null,null,null,null,null,null,null,null,null,null,null,null,null,null,null,null,null,null,null,null,null,null,null,null,null,null,null,null,null,null,null,null,null,null,null,null,null,null,null,null,null,null,null,null,null,null,null,null,null,null,null,null,null,null,null,null,null,null,null,null,null,null,null,null,null,null,null,null,null,null,null,null,null,null,null,null,null,null,null,null,null,null,null,null,null,null,null,null,null,null,null,null,null,2041]
[null,null,null,null,null,null,null,null,null,null,null,null,null,null,null,null,null,null,null,null,null,null,null,null,null,null,null,null,null,null,null,null,null,null,null,null,null,null,null,null,null,null,null,null,null,null,null,null,null,null,null,null,null,null,null,null,null,null,null,null,null,null,null,null,null,null,null,null,null,null,null,null,null,null,null,null,null,null,null,null,null,null,null,null,null,null,null,null,null,null,null,null,null,null,null,null,null,null,null,null,null,null,null,null,null,null,null,null,null,null,null,null,null,null,null,null,null,null,null,null,null,null,null,null,null,null,null,null,null,null,null,null,null,null,null,null,null,null,null,null,null,null,null,null,null,null,null,null,null,null,null,null,null,null,null,null,null,null,null,null,null,null,null,null,null,null,null,null,null,null,null,null,null,null,null,null,null,null,null,null,null,null,null,null,null,null,null,null,null,null,null,null,null,null,null,null,null,null,null,null,null,null,null,null,null,null,null,null,null,null,null,null,null,null,null,null,null,null,null,2042]
[null,null,null,"Aantal bedden/bewoners",null,null,null,null,null,null,null,null,null,null,null,null,null,null,null,null,null,null,null,null,null,null,null,null,null,null,null,null,null,null,null,null,null,null,null,null,null,null,null,null,null,null,null,null,null,null,null,null,null,null,null,null,null,null,null,null,null,null,null,null,null,null,null,null,null,null,null,null,null,null,null,null,null,null,null,null,null,null,null,null,null,null,null,null,null,null,null,null,null,null,null,null,null,null,null,null,null,null,null,null,null,null,null,null,null,null,null,null,null,null,null,null,null,null,null,null,null,null,null,null,null,null,null,null,null,null,null,null,null,null,null,null,null,null,null,null,null,null,null,null,null,null,null,null,null,null,null,null,null,null,null,null,null,null,null,null,null,null,null,null,null,null,null,null,null,null,null,null,null,null,null,null,null,null,null,null,null,null,null,null,null,null,null,null,null,null,null,null,null,null,null,null,null,null,null,null,null,null,null,null,null,null,null,null,null,null,null,null,null,null,null,null,null,null,null,2043]
[null,null,"Nee","Milieuthermometer Zorg certificaat?",null,null,null,null,null,null,null,null,null,null,null,null,null,null,null,null,null,null,null,null,null,null,null,null,null,null,null,null,null,null,null,null,null,null,null,null,null,null,null,null,null,null,null,null,null,null,null,null,null,null,null,null,null,null,null,null,null,null,null,null,null,null,null,null,null,null,null,null,null,null,null,null,null,null,null,null,null,null,null,null,null,null,null,null,null,null,null,null,null,null,null,null,null,null,null,null,null,null,null,null,null,null,null,null,null,null,null,null,null,null,null,null,null,null,null,null,null,null,null,null,null,null,null,null,null,null,null,null,null,null,null,null,null,null,null,null,null,null,null,null,null,null,null,null,null,null,null,null,null,null,null,null,null,null,null,null,null,null,null,null,null,null,null,null,null,null,null,null,null,null,null,null,null,null,null,null,null,null,null,null,null,null,null,null,null,null,null,null,null,null,null,null,null,null,null,null,null,null,null,null,null,null,null,null,null,null,null,null,null,null,null,null,null,null,null,2044]
[null,null,"Brons","Niveau certificaat",null,null,null,null,null,null,null,null,null,null,null,null,null,null,null,null,null,null,null,null,null,null,null,null,null,null,null,null,null,null,null,null,null,null,null,null,null,null,null,null,null,null,null,null,null,null,null,null,null,null,null,null,null,null,null,null,null,null,null,null,null,null,null,null,null,null,null,null,null,null,null,null,null,null,null,null,null,null,null,null,null,null,null,null,null,null,null,null,null,null,null,null,null,null,null,null,null,null,null,null,null,null,null,null,null,null,null,null,null,null,null,null,null,null,null,null,null,null,null,null,null,null,null,null,null,null,null,null,null,null,null,null,null,null,null,null,null,null,null,null,null,null,null,null,null,null,null,null,null,null,null,null,null,null,null,null,null,null,null,null,null,null,null,null,null,null,null,null,null,null,null,null,null,null,null,null,null,null,null,null,null,null,null,null,null,null,null,null,null,null,null,null,null,null,null,null,null,null,null,null,null,null,null,null,null,null,null,null,null,null,null,null,null,null,null,2045]
[null,null,"Extra voor informatieplicht:",null," ",null,null,null,null,null,null,null,null,null,null,null,null,null,null,null,2018,2019,null,null,null,null,null,2020,null,null,null,null,null,2021,null,null,null,null,null,2022,null,null,null,null,null,2023,null,null,null,null,null,2024,null,null,null,null,null,2025,null,null,null,null,null,2026,null,null,null,null,null,2027,null,null,null,null,null,2028,null,null,null,null,null,2029,null,null,null,null,null,2030,null,null,null,null,null,null,null,null,null,null,null,null,null,null,null,null,null,null,null,null,null,null,null,null,null,null,null,null,null,null,null,null,null,null,null,null,null,null,null,null,null,null,null,null,null,null,null,null,null,null,null,null,null,null,null,null,null,null,null,null,null,null,null,null,null,null,null,null,null,null,null,null,null,null,null,null,null,null,null,null,null,null,null,null,null,null,null,null,null,null,null,null,null,null,null,null,null,null,null,null,null,null,null,null,null,null,null,null,null,null,null,null,null,null,null,null,null,null,null,null,null,null,null,null,null,null,null,null,null,null,null,2046]
[null,null,null,"Postcode",null,null,null,null,null,null,null,null,null,null,null,null,null,null,null,"Elek. inkoop (kWh)",null,null,null,null,null,null,null,null,null,null,null,null,null,null,null,null,null,null,null,null,null,null,null,null,null,null,null,null,null,null,null,null,null,null,null,null,null,null,null,null,null,null,null,null,null,null,null,null,null,null,null,null,null,null,null,null,null,null,null,null,null,null,null,null,null,null,null,null,null,null,null,null,null,null,null,null,null,null,null,null,null,null,null,null,null,null,null,null,null,null,null,null,null,null,null,null,null,null,null,null,null,null,null,null,null,null,null,null,null,null,null,null,null,null,null,null,null,null,null,null,null,null,null,null,null,null,null,null,null,null,null,null,null,null,null,null,null,null,null,null,null,null,null,null,null,null,null,null,null,null,null,null,null,null,null,null,null,null,null,null,null,null,null,null,null,null,null,null,null,null,null,null,null,null,null,null,null,null,null,null,null,null,null,null,null,null,null,null,null,null,null,null,null,null,null,null,null,null,null,2047]
[null,null,null,"Huisnummer(reeks)",null,null,null,null,null,null,null,null,null,null,null,null,null,null,null,"Aardgas inkoop (m3)",null,null,null,null,null,null,null,null,null,null,null,null,null,null,null,null,null,null,null,null,null,null,null,null,null,null,null,null,null,null,null,null,null,null,null,null,null,null,null,null,null,null,null,null,null,null,null,null,null,null,null,null,null,null,null,null,null,null,null,null,null,null,null,null,null,null,null,null,null,null,null,null,null,null,null,null,null,null,null,null,null,null,null,null,null,null,null,null,null,null,null,null,null,null,null,null,null,null,null,null,null,null,null,null,null,null,null,null,null,null,null,null,null,null,null,null,null,null,null,null,null,null,null,null,null,null,null,null,null,null,null,null,null,null,null,null,null,null,null,null,null,null,null,null,null,null,null,null,null,null,null,null,null,null,null,null,null,null,null,null,null,null,null,null,null,null,null,null,null,null,null,null,null,null,null,null,null,null,null,null,null,null,null,null,null,null,null,null,null,null,null,null,null,null,null,null,null,null,null,2048]
[null,null,null,"Plaats",null,null,null,null,null,null,null,null,null,null,null,null,null,null,null,"Warmte inkoop (GJ)",null,null,null,null,null,null,null,null,null,null,null,null,null,null,null,null,null,null,null,null,null,null,null,null,null,null,null,null,null,null,null,null,null,null,null,null,null,null,null,null,null,null,null,null,null,null,null,null,null,null,null,null,null,null,null,null,null,null,null,null,null,null,null,null,null,null,null,null,null,null,null,null,null,null,null,null,null,null,null,null,null,null,null,null,null,null,null,null,null,null,null,null,null,null,null,null,null,null,null,null,null,null,null,null,null,null,null,null,null,null,null,null,null,null,null,null,null,null,null,null,null,null,null,null,null,null,null,null,null,null,null,null,null,null,null,null,null,null,null,null,null,null,null,null,null,null,null,null,null,null,null,null,null,null,null,null,null,null,null,null,null,null,null,null,null,null,null,null,null,null,null,null,null,null,null,null,null,null,null,null,null,null,null,null,null,null,null,null,null,null,null,null,null,null,null,null,null,null,null,2049]
[null,null,"[0000 0000 0000]","KVK-vestigingsnummer",null,null,null,null,null,null,null,null,null,null,null,null,null,null,null,"Totale inkoop (kWh)",{"$f":"U31+(U32*9.786)+(U33*278)","v":0},{"$f":"V31+(V32*9.786)+(V33*278)","v":0},0,0,0,0,0,0,0,0,0,0,0,0,0,0,0,0,0,0,0,0,0,0,0,0,0,0,0,0,0,0,0,0,0,0,0,0,0,0,0,0,0,0,0,0,0,0,0,0,0,0,0,0,0,0,0,0,0,0,0,0,0,0,0,{"$f":"CH31+(CH32*9.786)+(CH33*278)","v":0},{"$f":"CI31+(CI32*9.786)+(CI33*278)","v":0},{"$f":"CJ31+(CJ32*9.786)+(CJ33*278)","v":0},null,null,null,null,null,null,null,null,null,null,null,null,null,null,null,null,null,null,null,null,null,null,null,null,null,null,null,null,null,null,null,null,null,null,null,null,null,null,null,null,null,null,null,null,null,null,null,null,null,null,null,null,null,null,null,null,null,null,null,null,null,null,null,null,null,null,null,null,null,null,null,null,null,null,null,null,null,null,null,null,null,null,null,null,null,null,null,null,null,null,null,null,null,null,null,null,null,null,null,null,null,null,null,null,null,null,null,null,null,null,null,null,null,null,null,null,null,null,null,null,null,null,null,null,null,null,null,null,null,null,null,"2050 of later"]
[null,null,{"$f":"START!F14","v":"[0000 0000]"},"KVK-nummer",null,null,null,null,null,null,null,null,null,null,null,null,null,null,null,"WEii (kWh/m2 GO)",{"$f":"IF(U222=0,0,U34/U222)","v":0},0,0,0,0,0,0,0,0,0,0,0,0,0,0,0,0,0,0,0,null,null,null,null,null,{"$f":"IF(AT222=0,0,AT34/AT222)","v":0},0,0,0,0,0,0,0,0,0,0,0,0,0,0,0,0,0,0,0,0,0,0,0,0,0,0,0,0,0,0,0,0,0,0,0,0,0,0,0,0,0,0]
[]
[null,null,{"$f":"START!F16","v":"[Achternaam, voorletters]"},null,"Naam contactpersoon van de locatie",null,null,null,null,null,null,null,null,null,null,null,null,null,null,"Opwek PV (kWh)"]
[null,null,{"$f":"START!F18","v":"[E-mailadres]"},null,"E-mailadres contactpersoon",null,null,null,null,null,null,null,null,null,null,null,null,null,null,"Totaalverbruik (kWh)",{"$f":"U31+(U32*9.786)+(U33*278)+U37","v":0},{"$f":"V31+(V32*9.786)+(V33*278)+V37","v":0},0,0,0,0,0,0,0,0,0,0,0,0,0,0,0,0,0,0,0,0,0,0,0,0,0,0,0,0,0,0,0,0,0,0,0,0,0,0,0,0,0,0,0,0,0,0,0,0,0,0,0,0,0,0,0,0,0,0,0,0,0,0,0,{"$f":"CH31+(CH32*9.786)+(CH33*278)+CH37","v":0},{"$f":"CI31+(CI32*9.786)+(CI33*278)+CI37","v":0},{"$f":"CJ31+(CJ32*9.786)+(CJ33*278)+CJ37","v":0}]
[null,null,{"$f":"START!F20","v":"[Telefoonnummer]"},null,"Telefoonnummer contactpersoon"]
[]
[null,null,null,null,null,null,null,null,null,null,null,null,null,null,null,null,"  ","  ",null,null,"  ",null,null,null,null,null,null,null,null,null,null,null,null,null,null,null,null,null,null,null,null,null,null,null,null,null,null,null,null,null,null,null,null,null,null,null,null,null,null,null,null,null,null,null,null,null,null,null,null,null,null,null,null,null,null,null,null,null,null,null,null,null,null,null,null,null,null,null,null,null,null,null,null,null,null,null,null,null,null,null,null,null,null,null,null,null,null,null,null,null,null,null,null,null,null,null,null,null,null,null,null,null,null,null,null,null,null,null,null,null,null,null,null,null,null,null,null,null,null,null,null,null,null,null,null,null,null,null,null,null,null,null,null,null,null,null,null,null,null,null,null,null,null,null,null,null,null,null,null,null,null,null,null,null,null,null,null,null,null,null,null,null,null,null,null,null,null,null,null,null,null,null,null,null,null,null,null,null,null,null,null,null,null,null,null,null,null,null,null,null,null,null,null,null,null,null,null,null,null,null,null,null," "]
[null,"ID","Categorie","EML","Omschrijving",null,null,"Van toepassing?","Maatregel voor:","Direct uitvoeren?","Procent al uitgevoerd?","Volledige investering \n(direct uitvoeren)","Alleen meerkosten\n(natuurlijk moment)","Besparing per jaar","Terugverdientijd","Reductie aardgas (m3)","Reductie elektra (kwh)","Reductie warmte (GJ)","PV Opwek","Uitvoer (realisatie+plan)","Geplande Investering",2019,"investering €","gas reductie","elektra reductie","warmte (GJ)","besparing € pj.",2020,"investering €","gas reductie","elektra reductie","warmte (GJ)","besparing € pj.",2021,"investering €","gas reductie","elektra reductie","warmte (GJ)","besparing € pj.",2022,"investering €","gas reductie","elektra reductie","warmte (GJ)","besparing € pj.",2023,"investering €","gas reductie","elektra reductie","warmte (GJ)","besparing € pj.",2024,"investering €","gas reductie","elektra reductie","warmte (GJ)","besparing € pj.",2025,"investering €","gas reductie","elektra reductie","warmte (GJ)","besparing € pj.",2026,"investering €","gas reductie","elektra reductie","warmte (GJ)","besparing € pj.",2027,"investering €","gas reductie","elektra reductie","warmte (GJ)","besparing € pj.",2028,"investering €","gas reductie","elektra reductie","warmte (GJ)","besparing € pj.",2029,"investering €","gas reductie","elektra reductie","warmte (GJ)","besparing € pj.",2030,"investering €","gas reductie","elektra reductie","warmte (GJ)","besparing € pj.","2031 - 2035","investering €","gas reductie","elektra reductie","warmte (GJ)","besparing € pj.",2032,null,null,null,null,null,2033,null,null,null,null,null,2034,null,null,null,null,null,2035,"investering €","gas reductie","elektra reductie","ton CO2 reductie","Besparing","2036 - 2040","investering €","gas reductie","elektra reductie","warmte (GJ)","besparing € pj.",2037,null,null,null,null,null,2038,null,null,null,null,null,2039,null,null,null,null,null,2040,null,null,null,null,null,"2041-2045","investering €","gas reductie","elektra reductie","warmte (GJ)","besparing € pj.",2042,null,null,null,null,null,2043,null,null,null,null,null,2044,null,null,null,null,null,2045,null,null,null,null,null,"2046 - 2050","investering €","gas reductie","elektra reductie","warmte (GJ)","besparing € pj.",2047,null,null,null,null,null,2048,null,null,null,null,null,2049,null,null,null,null,null,2050]
[]
[null,0,"Warmtenet","geen","Sluit aan op een duurzaam warmtenet",null,null,"i",{"$f":"IF(H44=\"X\",\"n.v.t.\",IF(H44=\"I\",\"ons\",IF(H44=\"V\",\"verhuurder\",IF(H44=\"H\",\"huurder\",\"\"))))","v":"ons"},null,0,null,{"$f":"IF($C$5<3000,(#REF!*$C$5)+#REF!,(#REF!*$C$5)+#REF!)","v":{"$error":"#REF!"}},null,{"$f":"IF(N44=0,\"\",(L44+M44)/N44)","v":""},null,null,null,null,{"$f":"K44+V44+AB44+AH44+AN44+AT44+AZ44+BF44+BL44+BR44+BX44+CD44+CJ44+CP44+CV44+DB44+DH44+DN44+DT44+DZ44+EF44+EL44+ER44+EX44+FD44+FJ44+FP44+FV44+GB44+GH44+GN44+GT44+GZ44","v":0},{"$f":"W44+AC44+AI44+AO44+AU44+BA44+BG44+BM44+BS44+BY44+CE44+CK44+CQ44+DU44+EY44+GC44","v":{"$error":"#REF!"}},null,{"$f":"+V44*($L44+$M44)","v":{"$error":"#REF!"}},{"$f":"$P44*V44","v":0},null,{"$f":"V44*((-$P44/32)-$R44)","v":0},null,null,{"$f":"+AB44*($L44+$M44)","v":{"$error":"#REF!"}},{"$f":"$P44*AB44","v":0},null,{"$f":"AB44*((-$P44/32)-$R44)","v":0},null,null,{"$f":"+AH44*($L44+$M44)","v":{"$error":"#REF!"}},{"$f":"$P44*AH44","v":0},null,{"$f":"AH44*((-$P44/32)-$R44)","v":0},null,null,{"$f":"+AN44*($L44+$M44)","v":{"$error":"#REF!"}},{"$f":"$P44*AN44","v":0},null,{"$f":"AN44*((-$P44/32)-$R44)","v":0},null,null,{"$f":"+AT44*($L44+$M44)","v":{"$error":"#REF!"}},{"$f":"$P44*AT44","v":0},null,{"$f":"AT44*((-$P44/32)-$R44)","v":0},null,null,{"$f":"+AZ44*($L44+$M44)","v":{"$error":"#REF!"}},{"$f":"$P44*AZ44","v":0},null,{"$f":"AZ44*((-$P44/32)-$R44)","v":0},null,null,{"$f":"+BF44*($L44+$M44)","v":{"$error":"#REF!"}},{"$f":"$P44*BF44","v":0},null,{"$f":"BF44*((-$P44/32)-$R44)","v":0},null,null,{"$f":"+BL44*($L44+$M44)","v":{"$error":"#REF!"}},{"$f":"$P44*BL44","v":0},null,{"$f":"BL44*((-$P44/32)-$R44)","v":0},null,null,{"$f":"+BR44*($L44+$M44)","v":{"$error":"#REF!"}},{"$f":"$P44*BR44","v":0},null,{"$f":"BR44*((-$P44/32)-$R44)","v":0},null,null,{"$f":"+BX44*($L44+$M44)","v":{"$error":"#REF!"}},{"$f":"$P44*BX44","v":0},null,{"$f":"BX44*((-$P44/32)-$R44)","v":0},null,null,{"$f":"+CD44*($L44+$M44)","v":{"$error":"#REF!"}},{"$f":"$P44*CD44","v":0},null,{"$f":"CD44*((-$P44/32)-$R44)","v":0},null,null,{"$f":"+CJ44*($L44+$M44)","v":{"$error":"#REF!"}},{"$f":"$P44*CJ44","v":0},null,{"$f":"CJ44*((-$P44/32)-$R44)","v":0},null,null,{"$f":"+CP44*($L44+$M44)","v":{"$error":"#REF!"}},{"$f":"$P44*CP44","v":0},null,{"$f":"CP44*((-$P44/32)-$R44)","v":0},null,null,null,null,null,null,null,null,null,null,null,null,null,null,null,null,null,null,null,null,{"$f":"+DN44*($L44+$M44)","v":{"$error":"#REF!"}},{"$f":"$P44*DN44","v":0},null,{"$f":"DN44*((-$P44/32)-$R44)","v":0},null,null,{"$f":"+DT44*($L44+$M44)","v":{"$error":"#REF!"}},{"$f":"$P44*DT44","v":0},null,{"$f":"DT44*((-$P44/32)-$R44)","v":0},null,null,null,null,null,null,null,null,null,null,null,null,null,null,null,null,null,null,null,null,{"$f":"+ER44*($L44+$M44)","v":{"$error":"#REF!"}},{"$f":"$P44*ER44","v":0},null,{"$f":"ER44*((-$P44/32)-$R44)","v":0},null,null,{"$f":"+EX44*($L44+$M44)","v":{"$error":"#REF!"}},{"$f":"$P44*EX44","v":0},null,{"$f":"EX44*((-$P44/32)-$R44)","v":0},null,null,null,null,null,null,null,null,null,null,null,null,null,null,null,null,null,null,null,null,{"$f":"+FV44*($L44+$M44)","v":{"$error":"#REF!"}},{"$f":"$P44*FV44","v":0},null,{"$f":"FV44*((-$P44/32)-$R44)","v":0},null,null,{"$f":"+GB44*($L44+$M44)","v":{"$error":"#REF!"}},{"$f":"$P44*GB44","v":0},null,{"$f":"GB44*((-$P44/32)-$R44)","v":0},null,null,null,null,null,null,null,null,null,null,null,null,null,null,null,null,null,null,null,null,{"$f":"+GZ44*($L44+$M44)","v":{"$error":"#REF!"}},{"$f":"$P44*GZ44","v":0},null,{"$f":"GZ44*((-$P44/32)-$R44)","v":0},null,null,null,null,{"$f":"IF(AND(T44=0,T44<>\"\"),1,0)","v":1}]
[null,1,"Perslucht","FA1","Vergroot de persluchtbuffer.",null,null,"i","ons","Ja",0,{"$f":"IF($C$5<3000,(#REF!*$C$5)+#REF!,(#REF!*$C$5)+#REF!)","v":{"$error":"#REF!"}},null,{"$f":"($C$19*P45)+($C$18*Q45)+($C$20*R45)","v":{"$error":"#REF!"}},{"$error":"#REF!"},{"$f":"IF($C$5<3000,$AN$32*#REF!,$AN$32*#REF!)","v":{"$error":"#REF!"}},{"$f":"IF($C$5<3000,$AN$31*#REF!,$AN$31*#REF!)","v":{"$error":"#REF!"}},{"$f":"IF($C$5<3000,$AN$33*#REF!,$AN$33*#REF!)","v":{"$error":"#REF!"}},null,0,{"$error":"#REF!"},null,{"$error":"#REF!"},{"$error":"#REF!"},{"$f":"$Q45*V45","v":{"$error":"#REF!"}},{"$f":"+V45*$R45","v":{"$error":"#REF!"}},{"$f":"V45*$N45","v":{"$error":"#REF!"}},null,{"$error":"#REF!"},{"$error":"#REF!"},{"$f":"$Q45*AB45","v":{"$error":"#REF!"}},{"$f":"+AB45*$R45","v":{"$error":"#REF!"}},{"$f":"AB45*$N45","v":{"$error":"#REF!"}},null,{"$error":"#REF!"},{"$error":"#REF!"},{"$f":"$Q45*AH45","v":{"$error":"#REF!"}},{"$f":"+AH45*$R45","v":{"$error":"#REF!"}},{"$f":"AH45*$N45","v":{"$error":"#REF!"}},null,{"$error":"#REF!"},{"$error":"#REF!"},{"$f":"$Q45*AN45","v":{"$error":"#REF!"}},{"$f":"+AN45*$R45","v":{"$error":"#REF!"}},{"$f":"AN45*$N45","v":{"$error":"#REF!"}},null,{"$error":"#REF!"},{"$error":"#REF!"},{"$f":"$Q45*AT45","v":{"$error":"#REF!"}},{"$f":"+AT45*$R45","v":{"$error":"#REF!"}},{"$f":"AT45*$N45","v":{"$error":"#REF!"}},null,{"$error":"#REF!"},{"$error":"#REF!"},{"$f":"$Q45*AZ45","v":{"$error":"#REF!"}},{"$f":"+AZ45*$R45","v":{"$error":"#REF!"}},{"$f":"AZ45*$N45","v":{"$error":"#REF!"}},null,{"$error":"#REF!"},{"$error":"#REF!"},{"$f":"$Q45*BF45","v":{"$error":"#REF!"}},{"$f":"+BF45*$R45","v":{"$error":"#REF!"}},{"$f":"BF45*$N45","v":{"$error":"#REF!"}},null,{"$error":"#REF!"},{"$error":"#REF!"},{"$f":"$Q45*BL45","v":{"$error":"#REF!"}},{"$f":"+BL45*$R45","v":{"$error":"#REF!"}},{"$f":"BL45*$N45","v":{"$error":"#REF!"}},null,{"$error":"#REF!"},{"$error":"#REF!"},{"$f":"$Q45*BR45","v":{"$error":"#REF!"}},{"$f":"+BR45*$R45","v":{"$error":"#REF!"}},{"$f":"BR45*$N45","v":{"$error":"#REF!"}},null,{"$error":"#REF!"},{"$error":"#REF!"},{"$f":"$Q45*BX45","v":{"$error":"#REF!"}},{"$f":"+BX45*$R45","v":{"$error":"#REF!"}},{"$f":"BX45*$N45","v":{"$error":"#REF!"}},null,{"$error":"#REF!"},{"$error":"#REF!"},{"$f":"$Q45*CD45","v":{"$error":"#REF!"}},{"$f":"+CD45*$R45","v":{"$error":"#REF!"}},{"$f":"CD45*$N45","v":{"$error":"#REF!"}},null,{"$error":"#REF!"},{"$error":"#REF!"},{"$f":"$Q45*CJ45","v":{"$error":"#REF!"}},{"$f":"+CJ45*$R45","v":{"$error":"#REF!"}},{"$f":"CJ45*$N45","v":{"$error":"#REF!"}},null,{"$error":"#REF!"},{"$error":"#REF!"},{"$f":"$Q45*CP45","v":{"$error":"#REF!"}},{"$f":"+CP45*$R45","v":{"$error":"#REF!"}},{"$f":"CP45*$N45","v":{"$error":"#REF!"}},null,null,null,null,null,null,null,null,null,null,null,null,null,null,null,null,null,null,null,null,null,null,null,null,null,{"$error":"#REF!"},{"$error":"#REF!"},{"$f":"$Q45*DT45","v":{"$error":"#REF!"}},{"$f":"+DT45*$R45","v":{"$error":"#REF!"}},{"$f":"DT45*$N45","v":{"$error":"#REF!"}},null,null,null,null,null,null,null,null,null,null,null,null,null,null,null,null,null,null,null,null,null,null,null,null,null,{"$error":"#REF!"},{"$error":"#REF!"},{"$f":"$Q45*EX45","v":{"$error":"#REF!"}},{"$f":"+EX45*$R45","v":{"$error":"#REF!"}},{"$f":"EX45*$N45","v":{"$error":"#REF!"}},null,null,null,null,null,null,null,null,null,null,null,null,null,null,null,null,null,null,null,null,null,null,null,null,null,{"$error":"#REF!"},{"$error":"#REF!"},{"$f":"$Q45*GB45","v":{"$error":"#REF!"}},{"$f":"+GB45*$R45","v":{"$error":"#REF!"}},{"$f":"GB45*$N45","v":{"$error":"#REF!"}},null,null,null,null,null,null,null,null,null,null,null,null,null,null,null,null,null,null,null,null,null,null,null,null,null,null,null,1]
[null,2,"Perslucht","FA2","Plaats een afsluiter met tijdschakelaar om verlies buiten bedrijfstijden te beperken.",null,null,"i","ons","Ja",0,{"$f":"IF($C$5<3000,(#REF!*$C$5)+#REF!,(#REF!*$C$5)+#REF!)","v":{"$error":"#REF!"}},null,{"$error":"#REF!"},{"$error":"#REF!"},{"$f":"IF($C$5<3000,$AN$32*#REF!,$AN$32*#REF!)","v":{"$error":"#REF!"}},{"$f":"IF($C$5<3000,$AN$31*#REF!,$AN$31*#REF!)","v":{"$error":"#REF!"}},{"$f":"IF($C$5<3000,$AN$33*#REF!,$AN$33*#REF!)","v":{"$error":"#REF!"}},null,0,{"$error":"#REF!"},null,{"$error":"#REF!"},{"$error":"#REF!"},{"$error":"#REF!"},{"$error":"#REF!"},{"$error":"#REF!"},null,{"$error":"#REF!"},{"$error":"#REF!"},{"$error":"#REF!"},{"$error":"#REF!"},{"$error":"#REF!"},null,{"$error":"#REF!"},{"$error":"#REF!"},{"$error":"#REF!"},{"$error":"#REF!"},{"$error":"#REF!"},null,{"$error":"#REF!"},{"$error":"#REF!"},{"$error":"#REF!"},{"$error":"#REF!"},{"$error":"#REF!"},null,{"$error":"#REF!"},{"$error":"#REF!"},{"$error":"#REF!"},{"$error":"#REF!"},{"$error":"#REF!"},null,{"$error":"#REF!"},{"$error":"#REF!"},{"$error":"#REF!"},{"$error":"#REF!"},{"$error":"#REF!"},null,{"$error":"#REF!"},{"$error":"#REF!"},{"$error":"#REF!"},{"$error":"#REF!"},{"$error":"#REF!"},null,{"$error":"#REF!"},{"$error":"#REF!"},{"$error":"#REF!"},{"$error":"#REF!"},{"$error":"#REF!"},null,{"$error":"#REF!"},{"$error":"#REF!"},{"$error":"#REF!"},{"$error":"#REF!"},{"$error":"#REF!"},null,{"$error":"#REF!"},{"$error":"#REF!"},{"$error":"#REF!"},{"$error":"#REF!"},{"$error":"#REF!"},null,{"$error":"#REF!"},{"$error":"#REF!"},{"$error":"#REF!"},{"$error":"#REF!"},{"$error":"#REF!"},null,{"$error":"#REF!"},{"$error":"#REF!"},{"$error":"#REF!"},{"$error":"#REF!"},{"$error":"#REF!"},null,{"$error":"#REF!"},{"$error":"#REF!"},{"$error":"#REF!"},{"$error":"#REF!"},{"$error":"#REF!"},null,null,null,null,null,null,null,null,null,null,null,null,null,null,null,null,null,null,null,null,null,null,null,null,null,{"$error":"#REF!"},{"$error":"#REF!"},{"$error":"#REF!"},{"$error":"#REF!"},{"$error":"#REF!"},null,null,null,null,null,null,null,null,null,null,null,null,null,null,null,null,null,null,null,null,null,null,null,null,null,{"$error":"#REF!"},{"$error":"#REF!"},{"$error":"#REF!"},{"$error":"#REF!"},{"$error":"#REF!"},null,null,null,null,null,null,null,null,null,null,null,null,null,null,null,null,null,null,null,null,null,null,null,null,null,{"$error":"#REF!"},{"$error":"#REF!"},{"$error":"#REF!"},{"$error":"#REF!"},{"$error":"#REF!"},null,null,null,null,null,null,null,null,null,null,null,null,null,null,null,null,null,null,null,null,null,null,null,null,null,null,null,1]
[null,3,"Perslucht","FA3","Pas een flow-drukregelaar toe in het persluchtnet.",null,null,"i","ons","Ja",0,{"$f":"IF($C$5<3000,(#REF!*$C$5)+#REF!,(#REF!*$C$5)+#REF!)","v":{"$error":"#REF!"}},null,{"$error":"#REF!"},{"$error":"#REF!"},{"$f":"IF($C$5<3000,$AN$32*#REF!,$AN$32*#REF!)","v":{"$error":"#REF!"}},{"$f":"IF($C$5<3000,$AN$31*#REF!,$AN$31*#REF!)","v":{"$error":"#REF!"}},{"$f":"IF($C$5<3000,$AN$33*#REF!,$AN$33*#REF!)","v":{"$error":"#REF!"}},null,0,{"$error":"#REF!"},null,{"$error":"#REF!"},{"$error":"#REF!"},{"$error":"#REF!"},{"$error":"#REF!"},{"$error":"#REF!"},null,{"$error":"#REF!"},{"$error":"#REF!"},{"$error":"#REF!"},{"$error":"#REF!"},{"$error":"#REF!"},null,{"$error":"#REF!"},{"$error":"#REF!"},{"$error":"#REF!"},{"$error":"#REF!"},{"$error":"#REF!"},null,{"$error":"#REF!"},{"$error":"#REF!"},{"$error":"#REF!"},{"$error":"#REF!"},{"$error":"#REF!"},null,{"$error":"#REF!"},{"$error":"#REF!"},{"$error":"#REF!"},{"$error":"#REF!"},{"$error":"#REF!"},null,{"$error":"#REF!"},{"$error":"#REF!"},{"$error":"#REF!"},{"$error":"#REF!"},{"$error":"#REF!"},null,{"$error":"#REF!"},{"$error":"#REF!"},{"$error":"#REF!"},{"$error":"#REF!"},{"$error":"#REF!"},null,{"$error":"#REF!"},{"$error":"#REF!"},{"$error":"#REF!"},{"$error":"#REF!"},{"$error":"#REF!"},null,{"$error":"#REF!"},{"$error":"#REF!"},{"$error":"#REF!"},{"$error":"#REF!"},{"$error":"#REF!"},null,{"$error":"#REF!"},{"$error":"#REF!"},{"$error":"#REF!"},{"$error":"#REF!"},{"$error":"#REF!"},null,{"$error":"#REF!"},{"$error":"#REF!"},{"$error":"#REF!"},{"$error":"#REF!"},{"$error":"#REF!"},null,{"$error":"#REF!"},{"$error":"#REF!"},{"$error":"#REF!"},{"$error":"#REF!"},{"$error":"#REF!"},null,{"$error":"#REF!"},{"$error":"#REF!"},{"$error":"#REF!"},{"$error":"#REF!"},{"$error":"#REF!"},null,null,null,null,null,null,null,null,null,null,null,null,null,null,null,null,null,null,null,null,null,null,null,null,null,{"$error":"#REF!"},{"$error":"#REF!"},{"$error":"#REF!"},{"$error":"#REF!"},{"$error":"#REF!"},null,null,null,null,null,null,null,null,null,null,null,null,null,null,null,null,null,null,null,null,null,null,null,null,null,{"$error":"#REF!"},{"$error":"#REF!"},{"$error":"#REF!"},{"$error":"#REF!"},{"$error":"#REF!"},null,null,null,null,null,null,null,null,null,null,null,null,null,null,null,null,null,null,null,null,null,null,null,null,null,{"$error":"#REF!"},{"$error":"#REF!"},{"$error":"#REF!"},{"$error":"#REF!"},{"$error":"#REF!"},null,null,null,null,null,null,null,null,null,null,null,null,null,null,null,null,null,null,null,null,null,null,null,null,null,null,null,1]
[null,4,"Perslucht","FA4","Plaats een luchtkanaal zodat de persluchtcompressor (koude) buitenlucht aanzuigt.",null,null,"i","ons","Ja",0,{"$f":"IF($C$5<3000,(#REF!*$C$5)+#REF!,(#REF!*$C$5)+#REF!)","v":{"$error":"#REF!"}},null,{"$error":"#REF!"},{"$error":"#REF!"},{"$f":"IF($C$5<3000,$AN$32*#REF!,$AN$32*#REF!)","v":{"$error":"#REF!"}},{"$f":"IF($C$5<3000,$AN$31*#REF!,$AN$31*#REF!)","v":{"$error":"#REF!"}},{"$f":"IF($C$5<3000,$AN$33*#REF!,$AN$33*#REF!)","v":{"$error":"#REF!"}},null,0,{"$error":"#REF!"},null,{"$error":"#REF!"},{"$error":"#REF!"},{"$error":"#REF!"},{"$error":"#REF!"},{"$error":"#REF!"},null,{"$error":"#REF!"},{"$error":"#REF!"},{"$error":"#REF!"},{"$error":"#REF!"},{"$error":"#REF!"},null,{"$error":"#REF!"},{"$error":"#REF!"},{"$error":"#REF!"},{"$error":"#REF!"},{"$error":"#REF!"},null,{"$error":"#REF!"},{"$error":"#REF!"},{"$error":"#REF!"},{"$error":"#REF!"},{"$error":"#REF!"},null,{"$error":"#REF!"},{"$error":"#REF!"},{"$error":"#REF!"},{"$error":"#REF!"},{"$error":"#REF!"},null,{"$error":"#REF!"},{"$error":"#REF!"},{"$error":"#REF!"},{"$error":"#REF!"},{"$error":"#REF!"},null,{"$error":"#REF!"},{"$error":"#REF!"},{"$error":"#REF!"},{"$error":"#REF!"},{"$error":"#REF!"},null,{"$error":"#REF!"},{"$error":"#REF!"},{"$error":"#REF!"},{"$error":"#REF!"},{"$error":"#REF!"},null,{"$error":"#REF!"},{"$error":"#REF!"},{"$error":"#REF!"},{"$error":"#REF!"},{"$error":"#REF!"},null,{"$error":"#REF!"},{"$error":"#REF!"},{"$error":"#REF!"},{"$error":"#REF!"},{"$error":"#REF!"},null,{"$error":"#REF!"},{"$error":"#REF!"},{"$error":"#REF!"},{"$error":"#REF!"},{"$error":"#REF!"},null,{"$error":"#REF!"},{"$error":"#REF!"},{"$error":"#REF!"},{"$error":"#REF!"},{"$error":"#REF!"},null,{"$error":"#REF!"},{"$error":"#REF!"},{"$error":"#REF!"},{"$error":"#REF!"},{"$error":"#REF!"},null,null,null,null,null,null,null,null,null,null,null,null,null,null,null,null,null,null,null,null,null,null,null,null,null,{"$error":"#REF!"},{"$error":"#REF!"},{"$error":"#REF!"},{"$error":"#REF!"},{"$error":"#REF!"},null,null,null,null,null,null,null,null,null,null,null,null,null,null,null,null,null,null,null,null,null,null,null,null,null,{"$error":"#REF!"},{"$error":"#REF!"},{"$error":"#REF!"},{"$error":"#REF!"},{"$error":"#REF!"},null,null,null,null,null,null,null,null,null,null,null,null,null,null,null,null,null,null,null,null,null,null,null,null,null,{"$error":"#REF!"},{"$error":"#REF!"},{"$error":"#REF!"},{"$error":"#REF!"},{"$error":"#REF!"},null,null,null,null,null,null,null,null,null,null,null,null,null,null,null,null,null,null,null,null,null,null,null,null,null,null,null,1]
[null,5,"Perslucht","FA5","Gebruik zuinige persluchtgereedschappen.",null,null,"i","ons","Ja",0,{"$f":"IF($C$5<3000,(#REF!*$C$5)+#REF!,(#REF!*$C$5)+#REF!)","v":{"$error":"#REF!"}},null,{"$error":"#REF!"},{"$error":"#REF!"},{"$f":"IF($C$5<3000,$AN$32*#REF!,$AN$32*#REF!)","v":{"$error":"#REF!"}},{"$f":"IF($C$5<3000,$AN$31*#REF!,$AN$31*#REF!)","v":{"$error":"#REF!"}},{"$f":"IF($C$5<3000,$AN$33*#REF!,$AN$33*#REF!)","v":{"$error":"#REF!"}},null,0,{"$error":"#REF!"},null,{"$error":"#REF!"},{"$error":"#REF!"},{"$error":"#REF!"},{"$error":"#REF!"},{"$error":"#REF!"},null,{"$error":"#REF!"},{"$error":"#REF!"},{"$error":"#REF!"},{"$error":"#REF!"},{"$error":"#REF!"},null,{"$error":"#REF!"},{"$error":"#REF!"},{"$error":"#REF!"},{"$error":"#REF!"},{"$error":"#REF!"},null,{"$error":"#REF!"},{"$error":"#REF!"},{"$error":"#REF!"},{"$error":"#REF!"},{"$error":"#REF!"},null,{"$error":"#REF!"},{"$error":"#REF!"},{"$error":"#REF!"},{"$error":"#REF!"},{"$error":"#REF!"},null,{"$error":"#REF!"},{"$error":"#REF!"},{"$error":"#REF!"},{"$error":"#REF!"},{"$error":"#REF!"},null,{"$error":"#REF!"},{"$error":"#REF!"},{"$error":"#REF!"},{"$error":"#REF!"},{"$error":"#REF!"},null,{"$error":"#REF!"},{"$error":"#REF!"},{"$error":"#REF!"},{"$error":"#REF!"},{"$error":"#REF!"},null,{"$error":"#REF!"},{"$error":"#REF!"},{"$error":"#REF!"},{"$error":"#REF!"},{"$error":"#REF!"},null,{"$error":"#REF!"},{"$error":"#REF!"},{"$error":"#REF!"},{"$error":"#REF!"},{"$error":"#REF!"},null,{"$error":"#REF!"},{"$error":"#REF!"},{"$error":"#REF!"},{"$error":"#REF!"},{"$error":"#REF!"},null,{"$error":"#REF!"},{"$error":"#REF!"},{"$error":"#REF!"},{"$error":"#REF!"},{"$error":"#REF!"},null,{"$error":"#REF!"},{"$error":"#REF!"},{"$error":"#REF!"},{"$error":"#REF!"},{"$error":"#REF!"},null,null,null,null,null,null,null,null,null,null,null,null,null,null,null,null,null,null,null,null,null,null,null,null,null,{"$error":"#REF!"},{"$error":"#REF!"},{"$error":"#REF!"},{"$error":"#REF!"},{"$error":"#REF!"},null,null,null,null,null,null,null,null,null,null,null,null,null,null,null,null,null,null,null,null,null,null,null,null,null,{"$error":"#REF!"},{"$error":"#REF!"},{"$error":"#REF!"},{"$error":"#REF!"},{"$error":"#REF!"},null,null,null,null,null,null,null,null,null,null,null,null,null,null,null,null,null,null,null,null,null,null,null,null,null,{"$error":"#REF!"},{"$error":"#REF!"},{"$error":"#REF!"},{"$error":"#REF!"},{"$error":"#REF!"},null,null,null,null,null,null,null,null,null,null,null,null,null,null,null,null,null,null,null,null,null,null,null,null,null,null,null,1]
[null,6,"Perslucht","FA6","Gebruik elektrisch handgereedschap als vervanging voor pneumatisch gereedschap.",null,null,"i","ons","Ja",0,{"$f":"IF($C$5<3000,(#REF!*$C$5)+#REF!,(#REF!*$C$5)+#REF!)","v":{"$error":"#REF!"}},null,{"$error":"#REF!"},{"$error":"#REF!"},{"$f":"IF($C$5<3000,$AN$32*#REF!,$AN$32*#REF!)","v":{"$error":"#REF!"}},{"$f":"IF($C$5<3000,$AN$31*#REF!,$AN$31*#REF!)","v":{"$error":"#REF!"}},{"$f":"IF($C$5<3000,$AN$33*#REF!,$AN$33*#REF!)","v":{"$error":"#REF!"}},null,0,{"$error":"#REF!"},null,{"$error":"#REF!"},{"$error":"#REF!"},{"$error":"#REF!"},{"$error":"#REF!"},{"$error":"#REF!"},null,{"$error":"#REF!"},{"$error":"#REF!"},{"$error":"#REF!"},{"$error":"#REF!"},{"$error":"#REF!"},null,{"$error":"#REF!"},{"$error":"#REF!"},{"$error":"#REF!"},{"$error":"#REF!"},{"$error":"#REF!"},null,{"$error":"#REF!"},{"$error":"#REF!"},{"$error":"#REF!"},{"$error":"#REF!"},{"$error":"#REF!"},null,{"$error":"#REF!"},{"$error":"#REF!"},{"$error":"#REF!"},{"$error":"#REF!"},{"$error":"#REF!"},null,{"$error":"#REF!"},{"$error":"#REF!"},{"$error":"#REF!"},{"$error":"#REF!"},{"$error":"#REF!"},null,{"$error":"#REF!"},{"$error":"#REF!"},{"$error":"#REF!"},{"$error":"#REF!"},{"$error":"#REF!"},null,{"$error":"#REF!"},{"$error":"#REF!"},{"$error":"#REF!"},{"$error":"#REF!"},{"$error":"#REF!"},null,{"$error":"#REF!"},{"$error":"#REF!"},{"$error":"#REF!"},{"$error":"#REF!"},{"$error":"#REF!"},null,{"$error":"#REF!"},{"$error":"#REF!"},{"$error":"#REF!"},{"$error":"#REF!"},{"$error":"#REF!"},null,{"$error":"#REF!"},{"$error":"#REF!"},{"$error":"#REF!"},{"$error":"#REF!"},{"$error":"#REF!"},null,{"$error":"#REF!"},{"$error":"#REF!"},{"$error":"#REF!"},{"$error":"#REF!"},{"$error":"#REF!"},null,{"$error":"#REF!"},{"$error":"#REF!"},{"$error":"#REF!"},{"$error":"#REF!"},{"$error":"#REF!"},null,null,null,null,null,null,null,null,null,null,null,null,null,null,null,null,null,null,null,null,null,null,null,null,null,{"$error":"#REF!"},{"$error":"#REF!"},{"$error":"#REF!"},{"$error":"#REF!"},{"$error":"#REF!"},null,null,null,null,null,null,null,null,null,null,null,null,null,null,null,null,null,null,null,null,null,null,null,null,null,{"$error":"#REF!"},{"$error":"#REF!"},{"$error":"#REF!"},{"$error":"#REF!"},{"$error":"#REF!"},null,null,null,null,null,null,null,null,null,null,null,null,null,null,null,null,null,null,null,null,null,null,null,null,null,{"$error":"#REF!"},{"$error":"#REF!"},{"$error":"#REF!"},{"$error":"#REF!"},{"$error":"#REF!"},null,null,null,null,null,null,null,null,null,null,null,null,null,null,null,null,null,null,null,null,null,null,null,null,null,null,null,1]
[null,7,"Perslucht","FA7","Gebruik een blower voor het schoonblazen in plaats van een persluchtcompressor",null,null,"i","ons","Ja",0,{"$f":"IF($C$5<3000,(#REF!*$C$5)+#REF!,(#REF!*$C$5)+#REF!)","v":{"$error":"#REF!"}},null,{"$error":"#REF!"},{"$error":"#REF!"},{"$f":"IF($C$5<3000,$AN$32*#REF!,$AN$32*#REF!)","v":{"$error":"#REF!"}},{"$f":"IF($C$5<3000,$AN$31*#REF!,$AN$31*#REF!)","v":{"$error":"#REF!"}},{"$f":"IF($C$5<3000,$AN$33*#REF!,$AN$33*#REF!)","v":{"$error":"#REF!"}},null,0,{"$error":"#REF!"},null,{"$error":"#REF!"},{"$error":"#REF!"},{"$error":"#REF!"},{"$error":"#REF!"},{"$error":"#REF!"},null,{"$error":"#REF!"},{"$error":"#REF!"},{"$error":"#REF!"},{"$error":"#REF!"},{"$error":"#REF!"},null,{"$error":"#REF!"},{"$error":"#REF!"},{"$error":"#REF!"},{"$error":"#REF!"},{"$error":"#REF!"},null,{"$error":"#REF!"},{"$error":"#REF!"},{"$error":"#REF!"},{"$error":"#REF!"},{"$error":"#REF!"},null,{"$error":"#REF!"},{"$error":"#REF!"},{"$error":"#REF!"},{"$error":"#REF!"},{"$error":"#REF!"},null,{"$error":"#REF!"},{"$error":"#REF!"},{"$error":"#REF!"},{"$error":"#REF!"},{"$error":"#REF!"},null,{"$error":"#REF!"},{"$error":"#REF!"},{"$error":"#REF!"},{"$error":"#REF!"},{"$error":"#REF!"},null,{"$error":"#REF!"},{"$error":"#REF!"},{"$error":"#REF!"},{"$error":"#REF!"},{"$error":"#REF!"},null,{"$error":"#REF!"},{"$error":"#REF!"},{"$error":"#REF!"},{"$error":"#REF!"},{"$error":"#REF!"},null,{"$error":"#REF!"},{"$error":"#REF!"},{"$error":"#REF!"},{"$error":"#REF!"},{"$error":"#REF!"},null,{"$error":"#REF!"},{"$error":"#REF!"},{"$error":"#REF!"},{"$error":"#REF!"},{"$error":"#REF!"},null,{"$error":"#REF!"},{"$error":"#REF!"},{"$error":"#REF!"},{"$error":"#REF!"},{"$error":"#REF!"},null,{"$error":"#REF!"},{"$error":"#REF!"},{"$error":"#REF!"},{"$error":"#REF!"},{"$error":"#REF!"},null,null,null,null,null,null,null,null,null,null,null,null,null,null,null,null,null,null,null,null,null,null,null,null,null,{"$error":"#REF!"},{"$error":"#REF!"},{"$error":"#REF!"},{"$error":"#REF!"},{"$error":"#REF!"},null,null,null,null,null,null,null,null,null,null,null,null,null,null,null,null,null,null,null,null,null,null,null,null,null,{"$error":"#REF!"},{"$error":"#REF!"},{"$error":"#REF!"},{"$error":"#REF!"},{"$error":"#REF!"},null,null,null,null,null,null,null,null,null,null,null,null,null,null,null,null,null,null,null,null,null,null,null,null,null,{"$error":"#REF!"},{"$error":"#REF!"},{"$error":"#REF!"},{"$error":"#REF!"},{"$error":"#REF!"},null,null,null,null,null,null,null,null,null,null,null,null,null,null,null,null,null,null,null,null,null,null,null,null,null,null,null,1]
[null,8,"Perslucht","FA8","Vervang de regelklepbediening obv perslucht door elektrische aandrijvingen.",null,null,"i","ons",null,0,null,{"$f":"IF($C$5<3000,(#REF!*$C$5)+#REF!,(#REF!*$C$5)+#REF!)","v":{"$error":"#REF!"}},{"$error":"#REF!"},{"$error":"#REF!"},{"$f":"IF($C$5<3000,$AN$32*#REF!,$AN$32*#REF!)","v":{"$error":"#REF!"}},{"$f":"IF($C$5<3000,$AN$31*#REF!,$AN$31*#REF!)","v":{"$error":"#REF!"}},{"$f":"IF($C$5<3000,$AN$33*#REF!,$AN$33*#REF!)","v":{"$error":"#REF!"}},null,0,{"$error":"#REF!"},null,{"$error":"#REF!"},{"$error":"#REF!"},{"$error":"#REF!"},{"$error":"#REF!"},{"$error":"#REF!"},null,{"$error":"#REF!"},{"$error":"#REF!"},{"$error":"#REF!"},{"$error":"#REF!"},{"$error":"#REF!"},null,{"$error":"#REF!"},{"$error":"#REF!"},{"$error":"#REF!"},{"$error":"#REF!"},{"$error":"#REF!"},null,{"$error":"#REF!"},{"$error":"#REF!"},{"$error":"#REF!"},{"$error":"#REF!"},{"$error":"#REF!"},null,{"$error":"#REF!"},{"$error":"#REF!"},{"$error":"#REF!"},{"$error":"#REF!"},{"$error":"#REF!"},null,{"$error":"#REF!"},{"$error":"#REF!"},{"$error":"#REF!"},{"$error":"#REF!"},{"$error":"#REF!"},null,{"$error":"#REF!"},{"$error":"#REF!"},{"$error":"#REF!"},{"$error":"#REF!"},{"$error":"#REF!"},null,{"$error":"#REF!"},{"$error":"#REF!"},{"$error":"#REF!"},{"$error":"#REF!"},{"$error":"#REF!"},null,{"$error":"#REF!"},{"$error":"#REF!"},{"$error":"#REF!"},{"$error":"#REF!"},{"$error":"#REF!"},null,{"$error":"#REF!"},{"$error":"#REF!"},{"$error":"#REF!"},{"$error":"#REF!"},{"$error":"#REF!"},null,{"$error":"#REF!"},{"$error":"#REF!"},{"$error":"#REF!"},{"$error":"#REF!"},{"$error":"#REF!"},null,{"$error":"#REF!"},{"$error":"#REF!"},{"$error":"#REF!"},{"$error":"#REF!"},{"$error":"#REF!"},null,{"$error":"#REF!"},{"$error":"#REF!"},{"$error":"#REF!"},{"$error":"#REF!"},{"$error":"#REF!"},null,null,null,null,null,null,null,null,null,null,null,null,null,null,null,null,null,null,null,null,null,null,null,null,null,{"$error":"#REF!"},{"$error":"#REF!"},{"$error":"#REF!"},{"$error":"#REF!"},{"$error":"#REF!"},null,null,null,null,null,null,null,null,null,null,null,null,null,null,null,null,null,null,null,null,null,null,null,null,null,{"$error":"#REF!"},{"$error":"#REF!"},{"$error":"#REF!"},{"$error":"#REF!"},{"$error":"#REF!"},null,null,null,null,null,null,null,null,null,null,null,null,null,null,null,null,null,null,null,null,null,null,null,null,null,{"$error":"#REF!"},{"$error":"#REF!"},{"$error":"#REF!"},{"$error":"#REF!"},{"$error":"#REF!"},null,null,null,null,null,null,null,null,null,null,null,null,null,null,null,null,null,null,null,null,null,null,null,null,null,null,null,1]
[null,9,"Stoom","FB1","Verlaag de stoomdruk van het centrale stoomnet.",null,null,"i","ons","Ja",0,{"$f":"IF($C$5<3000,(#REF!*$C$5)+#REF!,(#REF!*$C$5)+#REF!)","v":{"$error":"#REF!"}},null,{"$error":"#REF!"},{"$error":"#REF!"},{"$f":"IF($C$5<3000,$AN$32*#REF!,$AN$32*#REF!)","v":{"$error":"#REF!"}},{"$f":"IF($C$5<3000,$AN$31*#REF!,$AN$31*#REF!)","v":{"$error":"#REF!"}},{"$f":"IF($C$5<3000,$AN$33*#REF!,$AN$33*#REF!)","v":{"$error":"#REF!"}},null,0,{"$error":"#REF!"},null,{"$error":"#REF!"},{"$error":"#REF!"},{"$error":"#REF!"},{"$error":"#REF!"},{"$error":"#REF!"},null,{"$error":"#REF!"},{"$error":"#REF!"},{"$error":"#REF!"},{"$error":"#REF!"},{"$error":"#REF!"},null,{"$error":"#REF!"},{"$error":"#REF!"},{"$error":"#REF!"},{"$error":"#REF!"},{"$error":"#REF!"},null,{"$error":"#REF!"},{"$error":"#REF!"},{"$error":"#REF!"},{"$error":"#REF!"},{"$error":"#REF!"},null,{"$error":"#REF!"},{"$error":"#REF!"},{"$error":"#REF!"},{"$error":"#REF!"},{"$error":"#REF!"},null,{"$error":"#REF!"},{"$error":"#REF!"},{"$error":"#REF!"},{"$error":"#REF!"},{"$error":"#REF!"},null,{"$error":"#REF!"},{"$error":"#REF!"},{"$error":"#REF!"},{"$error":"#REF!"},{"$error":"#REF!"},null,{"$error":"#REF!"},{"$error":"#REF!"},{"$error":"#REF!"},{"$error":"#REF!"},{"$error":"#REF!"},null,{"$error":"#REF!"},{"$error":"#REF!"},{"$error":"#REF!"},{"$error":"#REF!"},{"$error":"#REF!"},null,{"$error":"#REF!"},{"$error":"#REF!"},{"$error":"#REF!"},{"$error":"#REF!"},{"$error":"#REF!"},null,{"$error":"#REF!"},{"$error":"#REF!"},{"$error":"#REF!"},{"$error":"#REF!"},{"$error":"#REF!"},null,{"$error":"#REF!"},{"$error":"#REF!"},{"$error":"#REF!"},{"$error":"#REF!"},{"$error":"#REF!"},null,{"$error":"#REF!"},{"$error":"#REF!"},{"$error":"#REF!"},{"$error":"#REF!"},{"$error":"#REF!"},null,null,null,null,null,null,null,null,null,null,null,null,null,null,null,null,null,null,null,null,null,null,null,null,null,{"$error":"#REF!"},{"$error":"#REF!"},{"$error":"#REF!"},{"$error":"#REF!"},{"$error":"#REF!"},null,null,null,null,null,null,null,null,null,null,null,null,null,null,null,null,null,null,null,null,null,null,null,null,null,{"$error":"#REF!"},{"$error":"#REF!"},{"$error":"#REF!"},{"$error":"#REF!"},{"$error":"#REF!"},null,null,null,null,null,null,null,null,null,null,null,null,null,null,null,null,null,null,null,null,null,null,null,null,null,{"$error":"#REF!"},{"$error":"#REF!"},{"$error":"#REF!"},{"$error":"#REF!"},{"$error":"#REF!"},null,null,null,null,null,null,null,null,null,null,null,null,null,null,null,null,null,null,null,null,null,null,null,null,null,null,null,1]
[null,10,"Stoom","FB2","Gebruik een economiser om warmte uit rookgassen nuttig in te zetten.",null,null,"i","ons","Ja",0,{"$f":"IF($C$5<3000,(#REF!*$C$5)+#REF!,(#REF!*$C$5)+#REF!)","v":{"$error":"#REF!"}},null,{"$error":"#REF!"},{"$error":"#REF!"},{"$f":"IF($C$5<3000,$AN$32*#REF!,$AN$32*#REF!)","v":{"$error":"#REF!"}},{"$f":"IF($C$5<3000,$AN$31*#REF!,$AN$31*#REF!)","v":{"$error":"#REF!"}},{"$f":"IF($C$5<3000,$AN$33*#REF!,$AN$33*#REF!)","v":{"$error":"#REF!"}},null,0,{"$error":"#REF!"},null,{"$error":"#REF!"},{"$error":"#REF!"},{"$error":"#REF!"},{"$error":"#REF!"},{"$error":"#REF!"},null,{"$error":"#REF!"},{"$error":"#REF!"},{"$error":"#REF!"},{"$error":"#REF!"},{"$error":"#REF!"},null,{"$error":"#REF!"},{"$error":"#REF!"},{"$error":"#REF!"},{"$error":"#REF!"},{"$error":"#REF!"},null,{"$error":"#REF!"},{"$error":"#REF!"},{"$error":"#REF!"},{"$error":"#REF!"},{"$error":"#REF!"},null,{"$error":"#REF!"},{"$error":"#REF!"},{"$error":"#REF!"},{"$error":"#REF!"},{"$error":"#REF!"},null,{"$error":"#REF!"},{"$error":"#REF!"},{"$error":"#REF!"},{"$error":"#REF!"},{"$error":"#REF!"},null,{"$error":"#REF!"},{"$error":"#REF!"},{"$error":"#REF!"},{"$error":"#REF!"},{"$error":"#REF!"},null,{"$error":"#REF!"},{"$error":"#REF!"},{"$error":"#REF!"},{"$error":"#REF!"},{"$error":"#REF!"},null,{"$error":"#REF!"},{"$error":"#REF!"},{"$error":"#REF!"},{"$error":"#REF!"},{"$error":"#REF!"},null,{"$error":"#REF!"},{"$error":"#REF!"},{"$error":"#REF!"},{"$error":"#REF!"},{"$error":"#REF!"},null,{"$error":"#REF!"},{"$error":"#REF!"},{"$error":"#REF!"},{"$error":"#REF!"},{"$error":"#REF!"},null,{"$error":"#REF!"},{"$error":"#REF!"},{"$error":"#REF!"},{"$error":"#REF!"},{"$error":"#REF!"},null,{"$error":"#REF!"},{"$error":"#REF!"},{"$error":"#REF!"},{"$error":"#REF!"},{"$error":"#REF!"},null,null,null,null,null,null,null,null,null,null,null,null,null,null,null,null,null,null,null,null,null,null,null,null,null,{"$error":"#REF!"},{"$error":"#REF!"},{"$error":"#REF!"},{"$error":"#REF!"},{"$error":"#REF!"},null,null,null,null,null,null,null,null,null,null,null,null,null,null,null,null,null,null,null,null,null,null,null,null,null,{"$error":"#REF!"},{"$error":"#REF!"},{"$error":"#REF!"},{"$error":"#REF!"},{"$error":"#REF!"},null,null,null,null,null,null,null,null,null,null,null,null,null,null,null,null,null,null,null,null,null,null,null,null,null,{"$error":"#REF!"},{"$error":"#REF!"},{"$error":"#REF!"},{"$error":"#REF!"},{"$error":"#REF!"},null,null,null,null,null,null,null,null,null,null,null,null,null,null,null,null,null,null,null,null,null,null,null,null,null,null,null,1]
[null,11,"Stoom","FB3","Gebruik een rookgascondensor om warmte uit rookgassen nuttig in te zetten.",null,null,"i","ons","Ja",0,{"$f":"IF($C$5<3000,(#REF!*$C$5)+#REF!,(#REF!*$C$5)+#REF!)","v":{"$error":"#REF!"}},null,{"$error":"#REF!"},{"$error":"#REF!"},{"$f":"IF($C$5<3000,$AN$32*#REF!,$AN$32*#REF!)","v":{"$error":"#REF!"}},{"$f":"IF($C$5<3000,$AN$31*#REF!,$AN$31*#REF!)","v":{"$error":"#REF!"}},{"$f":"IF($C$5<3000,$AN$33*#REF!,$AN$33*#REF!)","v":{"$error":"#REF!"}},null,0,{"$error":"#REF!"},null,{"$error":"#REF!"},{"$error":"#REF!"},{"$error":"#REF!"},{"$error":"#REF!"},{"$error":"#REF!"},null,{"$error":"#REF!"},{"$error":"#REF!"},{"$error":"#REF!"},{"$error":"#REF!"},{"$error":"#REF!"},null,{"$error":"#REF!"},{"$error":"#REF!"},{"$error":"#REF!"},{"$error":"#REF!"},{"$error":"#REF!"},null,{"$error":"#REF!"},{"$error":"#REF!"},{"$error":"#REF!"},{"$error":"#REF!"},{"$error":"#REF!"},null,{"$error":"#REF!"},{"$error":"#REF!"},{"$error":"#REF!"},{"$error":"#REF!"},{"$error":"#REF!"},null,{"$error":"#REF!"},{"$error":"#REF!"},{"$error":"#REF!"},{"$error":"#REF!"},{"$error":"#REF!"},null,{"$error":"#REF!"},{"$error":"#REF!"},{"$error":"#REF!"},{"$error":"#REF!"},{"$error":"#REF!"},null,{"$error":"#REF!"},{"$error":"#REF!"},{"$error":"#REF!"},{"$error":"#REF!"},{"$error":"#REF!"},null,{"$error":"#REF!"},{"$error":"#REF!"},{"$error":"#REF!"},{"$error":"#REF!"},{"$error":"#REF!"},null,{"$error":"#REF!"},{"$error":"#REF!"},{"$error":"#REF!"},{"$error":"#REF!"},{"$error":"#REF!"},null,{"$error":"#REF!"},{"$error":"#REF!"},{"$error":"#REF!"},{"$error":"#REF!"},{"$error":"#REF!"},null,{"$error":"#REF!"},{"$error":"#REF!"},{"$error":"#REF!"},{"$error":"#REF!"},{"$error":"#REF!"},null,{"$error":"#REF!"},{"$error":"#REF!"},{"$error":"#REF!"},{"$error":"#REF!"},{"$error":"#REF!"},null,null,null,null,null,null,null,null,null,null,null,null,null,null,null,null,null,null,null,null,null,null,null,null,null,{"$error":"#REF!"},{"$error":"#REF!"},{"$error":"#REF!"},{"$error":"#REF!"},{"$error":"#REF!"},null,null,null,null,null,null,null,null,null,null,null,null,null,null,null,null,null,null,null,null,null,null,null,null,null,{"$error":"#REF!"},{"$error":"#REF!"},{"$error":"#REF!"},{"$error":"#REF!"},{"$error":"#REF!"},null,null,null,null,null,null,null,null,null,null,null,null,null,null,null,null,null,null,null,null,null,null,null,null,null,{"$error":"#REF!"},{"$error":"#REF!"},{"$error":"#REF!"},{"$error":"#REF!"},{"$error":"#REF!"},null,null,null,null,null,null,null,null,null,null,null,null,null,null,null,null,null,null,null,null,null,null,null,null,null,null,null,1]
[null,12,"Stoom","FB4","Vervang stoom als middel voor ruimteverwarming.",null,null,"i","ons","Ja",0,{"$f":"IF($C$5<3000,(#REF!*$C$5)+#REF!,(#REF!*$C$5)+#REF!)","v":{"$error":"#REF!"}},null,{"$error":"#REF!"},{"$error":"#REF!"},{"$f":"IF($C$5<3000,$AN$32*#REF!,$AN$32*#REF!)","v":{"$error":"#REF!"}},{"$f":"IF($C$5<3000,$AN$31*#REF!,$AN$31*#REF!)","v":{"$error":"#REF!"}},{"$f":"IF($C$5<3000,$AN$33*#REF!,$AN$33*#REF!)","v":{"$error":"#REF!"}},null,0,{"$error":"#REF!"},null,{"$error":"#REF!"},{"$error":"#REF!"},{"$error":"#REF!"},{"$error":"#REF!"},{"$error":"#REF!"},null,{"$error":"#REF!"},{"$error":"#REF!"},{"$error":"#REF!"},{"$error":"#REF!"},{"$error":"#REF!"},null,{"$error":"#REF!"},{"$error":"#REF!"},{"$error":"#REF!"},{"$error":"#REF!"},{"$error":"#REF!"},null,{"$error":"#REF!"},{"$error":"#REF!"},{"$error":"#REF!"},{"$error":"#REF!"},{"$error":"#REF!"},null,{"$error":"#REF!"},{"$error":"#REF!"},{"$error":"#REF!"},{"$error":"#REF!"},{"$error":"#REF!"},null,{"$error":"#REF!"},{"$error":"#REF!"},{"$error":"#REF!"},{"$error":"#REF!"},{"$error":"#REF!"},null,{"$error":"#REF!"},{"$error":"#REF!"},{"$error":"#REF!"},{"$error":"#REF!"},{"$error":"#REF!"},null,{"$error":"#REF!"},{"$error":"#REF!"},{"$error":"#REF!"},{"$error":"#REF!"},{"$error":"#REF!"},null,{"$error":"#REF!"},{"$error":"#REF!"},{"$error":"#REF!"},{"$error":"#REF!"},{"$error":"#REF!"},null,{"$error":"#REF!"},{"$error":"#REF!"},{"$error":"#REF!"},{"$error":"#REF!"},{"$error":"#REF!"},null,{"$error":"#REF!"},{"$error":"#REF!"},{"$error":"#REF!"},{"$error":"#REF!"},{"$error":"#REF!"},null,{"$error":"#REF!"},{"$error":"#REF!"},{"$error":"#REF!"},{"$error":"#REF!"},{"$error":"#REF!"},null,{"$error":"#REF!"},{"$error":"#REF!"},{"$error":"#REF!"},{"$error":"#REF!"},{"$error":"#REF!"},null,null,null,null,null,null,null,null,null,null,null,null,null,null,null,null,null,null,null,null,null,null,null,null,null,{"$error":"#REF!"},{"$error":"#REF!"},{"$error":"#REF!"},{"$error":"#REF!"},{"$error":"#REF!"},null,null,null,null,null,null,null,null,null,null,null,null,null,null,null,null,null,null,null,null,null,null,null,null,null,{"$error":"#REF!"},{"$error":"#REF!"},{"$error":"#REF!"},{"$error":"#REF!"},{"$error":"#REF!"},null,null,null,null,null,null,null,null,null,null,null,null,null,null,null,null,null,null,null,null,null,null,null,null,null,{"$error":"#REF!"},{"$error":"#REF!"},{"$error":"#REF!"},{"$error":"#REF!"},{"$error":"#REF!"},null,null,null,null,null,null,null,null,null,null,null,null,null,null,null,null,null,null,null,null,null,null,null,null,null,null,null,1]
[null,13,"Stoom","FB5","Isoleer ongeïsoleerde warme delen van de stoomketel.",null,null,"i","ons","Ja",0,{"$f":"IF($C$5<3000,(#REF!*$C$5)+#REF!,(#REF!*$C$5)+#REF!)","v":{"$error":"#REF!"}},null,{"$error":"#REF!"},{"$error":"#REF!"},{"$f":"IF($C$5<3000,$AN$32*#REF!,$AN$32*#REF!)","v":{"$error":"#REF!"}},{"$f":"IF($C$5<3000,$AN$31*#REF!,$AN$31*#REF!)","v":{"$error":"#REF!"}},{"$f":"IF($C$5<3000,$AN$33*#REF!,$AN$33*#REF!)","v":{"$error":"#REF!"}},null,0,{"$error":"#REF!"},null,{"$error":"#REF!"},{"$error":"#REF!"},{"$error":"#REF!"},{"$error":"#REF!"},{"$error":"#REF!"},null,{"$error":"#REF!"},{"$error":"#REF!"},{"$error":"#REF!"},{"$error":"#REF!"},{"$error":"#REF!"},null,{"$error":"#REF!"},{"$error":"#REF!"},{"$error":"#REF!"},{"$error":"#REF!"},{"$error":"#REF!"},null,{"$error":"#REF!"},{"$error":"#REF!"},{"$error":"#REF!"},{"$error":"#REF!"},{"$error":"#REF!"},null,{"$error":"#REF!"},{"$error":"#REF!"},{"$error":"#REF!"},{"$error":"#REF!"},{"$error":"#REF!"},null,{"$error":"#REF!"},{"$error":"#REF!"},{"$error":"#REF!"},{"$error":"#REF!"},{"$error":"#REF!"},null,{"$error":"#REF!"},{"$error":"#REF!"},{"$error":"#REF!"},{"$error":"#REF!"},{"$error":"#REF!"},null,{"$error":"#REF!"},{"$error":"#REF!"},{"$error":"#REF!"},{"$error":"#REF!"},{"$error":"#REF!"},null,{"$error":"#REF!"},{"$error":"#REF!"},{"$error":"#REF!"},{"$error":"#REF!"},{"$error":"#REF!"},null,{"$error":"#REF!"},{"$error":"#REF!"},{"$error":"#REF!"},{"$error":"#REF!"},{"$error":"#REF!"},null,{"$error":"#REF!"},{"$error":"#REF!"},{"$error":"#REF!"},{"$error":"#REF!"},{"$error":"#REF!"},null,{"$error":"#REF!"},{"$error":"#REF!"},{"$error":"#REF!"},{"$error":"#REF!"},{"$error":"#REF!"},null,{"$error":"#REF!"},{"$error":"#REF!"},{"$error":"#REF!"},{"$error":"#REF!"},{"$error":"#REF!"},null,null,null,null,null,null,null,null,null,null,null,null,null,null,null,null,null,null,null,null,null,null,null,null,null,{"$error":"#REF!"},{"$error":"#REF!"},{"$error":"#REF!"},{"$error":"#REF!"},{"$error":"#REF!"},null,null,null,null,null,null,null,null,null,null,null,null,null,null,null,null,null,null,null,null,null,null,null,null,null,{"$error":"#REF!"},{"$error":"#REF!"},{"$error":"#REF!"},{"$error":"#REF!"},{"$error":"#REF!"},null,null,null,null,null,null,null,null,null,null,null,null,null,null,null,null,null,null,null,null,null,null,null,null,null,{"$error":"#REF!"},{"$error":"#REF!"},{"$error":"#REF!"},{"$error":"#REF!"},{"$error":"#REF!"},null,null,null,null,null,null,null,null,null,null,null,null,null,null,null,null,null,null,null,null,null,null,null,null,null,null,null,1]
[null,14,"Stoom","FB6","Isoleer stoomleidingen en appendages.",null,null,"i","ons","Ja",0,{"$f":"IF($C$5<3000,(#REF!*$C$5)+#REF!,(#REF!*$C$5)+#REF!)","v":{"$error":"#REF!"}},null,{"$error":"#REF!"},{"$error":"#REF!"},{"$f":"IF($C$5<3000,$AN$32*#REF!,$AN$32*#REF!)","v":{"$error":"#REF!"}},{"$f":"IF($C$5<3000,$AN$31*#REF!,$AN$31*#REF!)","v":{"$error":"#REF!"}},{"$f":"IF($C$5<3000,$AN$33*#REF!,$AN$33*#REF!)","v":{"$error":"#REF!"}},null,0,{"$error":"#REF!"},null,{"$error":"#REF!"},{"$error":"#REF!"},{"$error":"#REF!"},{"$error":"#REF!"},{"$error":"#REF!"},null,{"$error":"#REF!"},{"$error":"#REF!"},{"$error":"#REF!"},{"$error":"#REF!"},{"$error":"#REF!"},null,{"$error":"#REF!"},{"$error":"#REF!"},{"$error":"#REF!"},{"$error":"#REF!"},{"$error":"#REF!"},null,{"$error":"#REF!"},{"$error":"#REF!"},{"$error":"#REF!"},{"$error":"#REF!"},{"$error":"#REF!"},null,{"$error":"#REF!"},{"$error":"#REF!"},{"$error":"#REF!"},{"$error":"#REF!"},{"$error":"#REF!"},null,{"$error":"#REF!"},{"$error":"#REF!"},{"$error":"#REF!"},{"$error":"#REF!"},{"$error":"#REF!"},null,{"$error":"#REF!"},{"$error":"#REF!"},{"$error":"#REF!"},{"$error":"#REF!"},{"$error":"#REF!"},null,{"$error":"#REF!"},{"$error":"#REF!"},{"$error":"#REF!"},{"$error":"#REF!"},{"$error":"#REF!"},null,{"$error":"#REF!"},{"$error":"#REF!"},{"$error":"#REF!"},{"$error":"#REF!"},{"$error":"#REF!"},null,{"$error":"#REF!"},{"$error":"#REF!"},{"$error":"#REF!"},{"$error":"#REF!"},{"$error":"#REF!"},null,{"$error":"#REF!"},{"$error":"#REF!"},{"$error":"#REF!"},{"$error":"#REF!"},{"$error":"#REF!"},null,{"$error":"#REF!"},{"$error":"#REF!"},{"$error":"#REF!"},{"$error":"#REF!"},{"$error":"#REF!"},null,{"$error":"#REF!"},{"$error":"#REF!"},{"$error":"#REF!"},{"$error":"#REF!"},{"$error":"#REF!"},null,null,null,null,null,null,null,null,null,null,null,null,null,null,null,null,null,null,null,null,null,null,null,null,null,{"$error":"#REF!"},{"$error":"#REF!"},{"$error":"#REF!"},{"$error":"#REF!"},{"$error":"#REF!"},null,null,null,null,null,null,null,null,null,null,null,null,null,null,null,null,null,null,null,null,null,null,null,null,null,{"$error":"#REF!"},{"$error":"#REF!"},{"$error":"#REF!"},{"$error":"#REF!"},{"$error":"#REF!"},null,null,null,null,null,null,null,null,null,null,null,null,null,null,null,null,null,null,null,null,null,null,null,null,null,{"$error":"#REF!"},{"$error":"#REF!"},{"$error":"#REF!"},{"$error":"#REF!"},{"$error":"#REF!"},null,null,null,null,null,null,null,null,null,null,null,null,null,null,null,null,null,null,null,null,null,null,null,null,null,null,null,1]
[null,15,"Stoom","FB7","Pas een reverse osmose (RO)-installatie toe om de ketelwaterkwaliteit te verbeteren.",null,null,"i","ons","Ja",0,{"$f":"IF($C$5<3000,(#REF!*$C$5)+#REF!,(#REF!*$C$5)+#REF!)","v":{"$error":"#REF!"}},null,{"$error":"#REF!"},{"$error":"#REF!"},{"$f":"IF($C$5<3000,$AN$32*#REF!,$AN$32*#REF!)","v":{"$error":"#REF!"}},{"$f":"IF($C$5<3000,$AN$31*#REF!,$AN$31*#REF!)","v":{"$error":"#REF!"}},{"$f":"IF($C$5<3000,$AN$33*#REF!,$AN$33*#REF!)","v":{"$error":"#REF!"}},null,0,{"$error":"#REF!"},null,{"$error":"#REF!"},{"$error":"#REF!"},{"$error":"#REF!"},{"$error":"#REF!"},{"$error":"#REF!"},null,{"$error":"#REF!"},{"$error":"#REF!"},{"$error":"#REF!"},{"$error":"#REF!"},{"$error":"#REF!"},null,{"$error":"#REF!"},{"$error":"#REF!"},{"$error":"#REF!"},{"$error":"#REF!"},{"$error":"#REF!"},null,{"$error":"#REF!"},{"$error":"#REF!"},{"$error":"#REF!"},{"$error":"#REF!"},{"$error":"#REF!"},null,{"$error":"#REF!"},{"$error":"#REF!"},{"$error":"#REF!"},{"$error":"#REF!"},{"$error":"#REF!"},null,{"$error":"#REF!"},{"$error":"#REF!"},{"$error":"#REF!"},{"$error":"#REF!"},{"$error":"#REF!"},null,{"$error":"#REF!"},{"$error":"#REF!"},{"$error":"#REF!"},{"$error":"#REF!"},{"$error":"#REF!"},null,{"$error":"#REF!"},{"$error":"#REF!"},{"$error":"#REF!"},{"$error":"#REF!"},{"$error":"#REF!"},null,{"$error":"#REF!"},{"$error":"#REF!"},{"$error":"#REF!"},{"$error":"#REF!"},{"$error":"#REF!"},null,{"$error":"#REF!"},{"$error":"#REF!"},{"$error":"#REF!"},{"$error":"#REF!"},{"$error":"#REF!"},null,{"$error":"#REF!"},{"$error":"#REF!"},{"$error":"#REF!"},{"$error":"#REF!"},{"$error":"#REF!"},null,{"$error":"#REF!"},{"$error":"#REF!"},{"$error":"#REF!"},{"$error":"#REF!"},{"$error":"#REF!"},null,{"$error":"#REF!"},{"$error":"#REF!"},{"$error":"#REF!"},{"$error":"#REF!"},{"$error":"#REF!"},null,null,null,null,null,null,null,null,null,null,null,null,null,null,null,null,null,null,null,null,null,null,null,null,null,{"$error":"#REF!"},{"$error":"#REF!"},{"$error":"#REF!"},{"$error":"#REF!"},{"$error":"#REF!"},null,null,null,null,null,null,null,null,null,null,null,null,null,null,null,null,null,null,null,null,null,null,null,null,null,{"$error":"#REF!"},{"$error":"#REF!"},{"$error":"#REF!"},{"$error":"#REF!"},{"$error":"#REF!"},null,null,null,null,null,null,null,null,null,null,null,null,null,null,null,null,null,null,null,null,null,null,null,null,null,{"$error":"#REF!"},{"$error":"#REF!"},{"$error":"#REF!"},{"$error":"#REF!"},{"$error":"#REF!"},null,null,null,null,null,null,null,null,null,null,null,null,null,null,null,null,null,null,null,null,null,null,null,null,null,null,null,1]
[null,16,"Stoom","FB8","Plaats een warmtewisselaar bij uitgang van heetwaterproces.",null,null,"i","ons","Ja",0,{"$f":"IF($C$5<3000,(#REF!*$C$5)+#REF!,(#REF!*$C$5)+#REF!)","v":{"$error":"#REF!"}},null,{"$error":"#REF!"},{"$error":"#REF!"},{"$f":"IF($C$5<3000,$AN$32*#REF!,$AN$32*#REF!)","v":{"$error":"#REF!"}},{"$f":"IF($C$5<3000,$AN$31*#REF!,$AN$31*#REF!)","v":{"$error":"#REF!"}},{"$f":"IF($C$5<3000,$AN$33*#REF!,$AN$33*#REF!)","v":{"$error":"#REF!"}},null,0,{"$error":"#REF!"},null,{"$error":"#REF!"},{"$error":"#REF!"},{"$error":"#REF!"},{"$error":"#REF!"},{"$error":"#REF!"},null,{"$error":"#REF!"},{"$error":"#REF!"},{"$error":"#REF!"},{"$error":"#REF!"},{"$error":"#REF!"},null,{"$error":"#REF!"},{"$error":"#REF!"},{"$error":"#REF!"},{"$error":"#REF!"},{"$error":"#REF!"},null,{"$error":"#REF!"},{"$error":"#REF!"},{"$error":"#REF!"},{"$error":"#REF!"},{"$error":"#REF!"},null,{"$error":"#REF!"},{"$error":"#REF!"},{"$error":"#REF!"},{"$error":"#REF!"},{"$error":"#REF!"},null,{"$error":"#REF!"},{"$error":"#REF!"},{"$error":"#REF!"},{"$error":"#REF!"},{"$error":"#REF!"},null,{"$error":"#REF!"},{"$error":"#REF!"},{"$error":"#REF!"},{"$error":"#REF!"},{"$error":"#REF!"},null,{"$error":"#REF!"},{"$error":"#REF!"},{"$error":"#REF!"},{"$error":"#REF!"},{"$error":"#REF!"},null,{"$error":"#REF!"},{"$error":"#REF!"},{"$error":"#REF!"},{"$error":"#REF!"},{"$error":"#REF!"},null,{"$error":"#REF!"},{"$error":"#REF!"},{"$error":"#REF!"},{"$error":"#REF!"},{"$error":"#REF!"},null,{"$error":"#REF!"},{"$error":"#REF!"},{"$error":"#REF!"},{"$error":"#REF!"},{"$error":"#REF!"},null,{"$error":"#REF!"},{"$error":"#REF!"},{"$error":"#REF!"},{"$error":"#REF!"},{"$error":"#REF!"},null,{"$error":"#REF!"},{"$error":"#REF!"},{"$error":"#REF!"},{"$error":"#REF!"},{"$error":"#REF!"},null,null,null,null,null,null,null,null,null,null,null,null,null,null,null,null,null,null,null,null,null,null,null,null,null,{"$error":"#REF!"},{"$error":"#REF!"},{"$error":"#REF!"},{"$error":"#REF!"},{"$error":"#REF!"},null,null,null,null,null,null,null,null,null,null,null,null,null,null,null,null,null,null,null,null,null,null,null,null,null,{"$error":"#REF!"},{"$error":"#REF!"},{"$error":"#REF!"},{"$error":"#REF!"},{"$error":"#REF!"},null,null,null,null,null,null,null,null,null,null,null,null,null,null,null,null,null,null,null,null,null,null,null,null,null,{"$error":"#REF!"},{"$error":"#REF!"},{"$error":"#REF!"},{"$error":"#REF!"},{"$error":"#REF!"},null,null,null,null,null,null,null,null,null,null,null,null,null,null,null,null,null,null,null,null,null,null,null,null,null,null,null,1]
[null,17,"Aandrijvingen","FC1","Pas een frequentieregeling toe op machines.",null,null,"i","ons",null,0,null,{"$f":"IF($C$5<3000,(#REF!*$C$5)+#REF!,(#REF!*$C$5)+#REF!)","v":{"$error":"#REF!"}},{"$error":"#REF!"},{"$error":"#REF!"},{"$f":"IF($C$5<3000,$AN$32*#REF!,$AN$32*#REF!)","v":{"$error":"#REF!"}},{"$f":"IF($C$5<3000,$AN$31*#REF!,$AN$31*#REF!)","v":{"$error":"#REF!"}},{"$f":"IF($C$5<3000,$AN$33*#REF!,$AN$33*#REF!)","v":{"$error":"#REF!"}},null,0,{"$error":"#REF!"},null,{"$error":"#REF!"},{"$error":"#REF!"},{"$error":"#REF!"},{"$error":"#REF!"},{"$error":"#REF!"},null,{"$error":"#REF!"},{"$error":"#REF!"},{"$error":"#REF!"},{"$error":"#REF!"},{"$error":"#REF!"},null,{"$error":"#REF!"},{"$error":"#REF!"},{"$error":"#REF!"},{"$error":"#REF!"},{"$error":"#REF!"},null,{"$error":"#REF!"},{"$error":"#REF!"},{"$error":"#REF!"},{"$error":"#REF!"},{"$error":"#REF!"},null,{"$error":"#REF!"},{"$error":"#REF!"},{"$error":"#REF!"},{"$error":"#REF!"},{"$error":"#REF!"},null,{"$error":"#REF!"},{"$error":"#REF!"},{"$error":"#REF!"},{"$error":"#REF!"},{"$error":"#REF!"},null,{"$error":"#REF!"},{"$error":"#REF!"},{"$error":"#REF!"},{"$error":"#REF!"},{"$error":"#REF!"},null,{"$error":"#REF!"},{"$error":"#REF!"},{"$error":"#REF!"},{"$error":"#REF!"},{"$error":"#REF!"},null,{"$error":"#REF!"},{"$error":"#REF!"},{"$error":"#REF!"},{"$error":"#REF!"},{"$error":"#REF!"},null,{"$error":"#REF!"},{"$error":"#REF!"},{"$error":"#REF!"},{"$error":"#REF!"},{"$error":"#REF!"},null,{"$error":"#REF!"},{"$error":"#REF!"},{"$error":"#REF!"},{"$error":"#REF!"},{"$error":"#REF!"},null,{"$error":"#REF!"},{"$error":"#REF!"},{"$error":"#REF!"},{"$error":"#REF!"},{"$error":"#REF!"},null,{"$error":"#REF!"},{"$error":"#REF!"},{"$error":"#REF!"},{"$error":"#REF!"},{"$error":"#REF!"},null,null,null,null,null,null,null,null,null,null,null,null,null,null,null,null,null,null,null,null,null,null,null,null,null,{"$error":"#REF!"},{"$error":"#REF!"},{"$error":"#REF!"},{"$error":"#REF!"},{"$error":"#REF!"},null,null,null,null,null,null,null,null,null,null,null,null,null,null,null,null,null,null,null,null,null,null,null,null,null,{"$error":"#REF!"},{"$error":"#REF!"},{"$error":"#REF!"},{"$error":"#REF!"},{"$error":"#REF!"},null,null,null,null,null,null,null,null,null,null,null,null,null,null,null,null,null,null,null,null,null,null,null,null,null,{"$error":"#REF!"},{"$error":"#REF!"},{"$error":"#REF!"},{"$error":"#REF!"},{"$error":"#REF!"},null,null,null,null,null,null,null,null,null,null,null,null,null,null,null,null,null,null,null,null,null,null,null,null,null,null,null,1]
[null,18,"Aandrijvingen","FC2","Pas een frequentieregeling op pompen toe.",null,null,"i","ons","Ja",0,{"$f":"IF($C$5<3000,(#REF!*$C$5)+#REF!,(#REF!*$C$5)+#REF!)","v":{"$error":"#REF!"}},null,{"$error":"#REF!"},{"$error":"#REF!"},{"$f":"IF($C$5<3000,$AN$32*#REF!,$AN$32*#REF!)","v":{"$error":"#REF!"}},{"$f":"IF($C$5<3000,$AN$31*#REF!,$AN$31*#REF!)","v":{"$error":"#REF!"}},{"$f":"IF($C$5<3000,$AN$33*#REF!,$AN$33*#REF!)","v":{"$error":"#REF!"}},null,0,{"$error":"#REF!"},null,{"$error":"#REF!"},{"$error":"#REF!"},{"$error":"#REF!"},{"$error":"#REF!"},{"$error":"#REF!"},null,{"$error":"#REF!"},{"$error":"#REF!"},{"$error":"#REF!"},{"$error":"#REF!"},{"$error":"#REF!"},null,{"$error":"#REF!"},{"$error":"#REF!"},{"$error":"#REF!"},{"$error":"#REF!"},{"$error":"#REF!"},null,{"$error":"#REF!"},{"$error":"#REF!"},{"$error":"#REF!"},{"$error":"#REF!"},{"$error":"#REF!"},null,{"$error":"#REF!"},{"$error":"#REF!"},{"$error":"#REF!"},{"$error":"#REF!"},{"$error":"#REF!"},null,{"$error":"#REF!"},{"$error":"#REF!"},{"$error":"#REF!"},{"$error":"#REF!"},{"$error":"#REF!"},null,{"$error":"#REF!"},{"$error":"#REF!"},{"$error":"#REF!"},{"$error":"#REF!"},{"$error":"#REF!"},null,{"$error":"#REF!"},{"$error":"#REF!"},{"$error":"#REF!"},{"$error":"#REF!"},{"$error":"#REF!"},null,{"$error":"#REF!"},{"$error":"#REF!"},{"$error":"#REF!"},{"$error":"#REF!"},{"$error":"#REF!"},null,{"$error":"#REF!"},{"$error":"#REF!"},{"$error":"#REF!"},{"$error":"#REF!"},{"$error":"#REF!"},null,{"$error":"#REF!"},{"$error":"#REF!"},{"$error":"#REF!"},{"$error":"#REF!"},{"$error":"#REF!"},null,{"$error":"#REF!"},{"$error":"#REF!"},{"$error":"#REF!"},{"$error":"#REF!"},{"$error":"#REF!"},null,{"$error":"#REF!"},{"$error":"#REF!"},{"$error":"#REF!"},{"$error":"#REF!"},{"$error":"#REF!"},null,null,null,null,null,null,null,null,null,null,null,null,null,null,null,null,null,null,null,null,null,null,null,null,null,{"$error":"#REF!"},{"$error":"#REF!"},{"$error":"#REF!"},{"$error":"#REF!"},{"$error":"#REF!"},null,null,null,null,null,null,null,null,null,null,null,null,null,null,null,null,null,null,null,null,null,null,null,null,null,{"$error":"#REF!"},{"$error":"#REF!"},{"$error":"#REF!"},{"$error":"#REF!"},{"$error":"#REF!"},null,null,null,null,null,null,null,null,null,null,null,null,null,null,null,null,null,null,null,null,null,null,null,null,null,{"$error":"#REF!"},{"$error":"#REF!"},{"$error":"#REF!"},{"$error":"#REF!"},{"$error":"#REF!"},null,null,null,null,null,null,null,null,null,null,null,null,null,null,null,null,null,null,null,null,null,null,null,null,null,null,null,1]
[null,19,"Aandrijvingen","FC3","Pas frequentieregeling toe op compressor van o.a. koel-, vries- en persluchtinstallaties.",null,null,null,null,null,null,null,null,null,null,null,null,null,null,null,null,null,null,null,null,null,null,null,null,null,null,null,null,null,null,null,null,null,0,null,0,0,0,0,0,null,0,0,0,0,0,null,0,0,0,0,0,null,0,0,0,0,0,null,0,0,0,0,0,null,0,0,0,0,0,null,0,0,0,0,0,null,0,0,0,0,0,null,0,0,0,0,0,null,0,0,0,0,0,null,null,null,null,null,null,null,null,null,null,null,null,null,null,null,null,null,null,null,null,null,null,null,null,null,0,0,0,0,0,null,null,null,null,null,null,null,null,null,null,null,null,null,null,null,null,null,null,null,null,null,null,null,null,null,0,0,0,0,0,null,null,null,null,null,null,null,null,null,null,null,null,null,null,null,null,null,null,null,null,null,null,null,null,null,0,0,0,0,0,null,null,null,null,null,null,null,null,null,null,null,null,null,null,null,null,null,null,null,null,null,null,null,null,null,null,null,0]
[null,20,"Aandrijvingen","FC4","Vervang elektromotoren met efficiëntieklasse IE2 of lager door moter met IE4 of hoger.",null,null,null,null,null,null,null,null,null,null,null,null,null,null,null,null,null,null,null,null,null,null,null,null,null,null,null,null,null,null,null,null,null,0,null,0,0,0,0,0,null,0,0,0,0,0,null,0,0,0,0,0,null,0,0,0,0,0,null,0,0,0,0,0,null,0,0,0,0,0,null,0,0,0,0,0,null,0,0,0,0,0,null,0,0,0,0,0,null,0,0,0,0,0,null,null,null,null,null,null,null,null,null,null,null,null,null,null,null,null,null,null,null,null,null,null,null,null,null,0,0,0,0,0,null,null,null,null,null,null,null,null,null,null,null,null,null,null,null,null,null,null,null,null,null,null,null,null,null,0,0,0,0,0,null,null,null,null,null,null,null,null,null,null,null,null,null,null,null,null,null,null,null,null,null,null,null,null,null,0,0,0,0,0,null,null,null,null,null,null,null,null,null,null,null,null,null,null,null,null,null,null,null,null,null,null,null,null,null,null,null,0]
[null,21,"Aandrijvingen","FC5","Vervang IE3-elektromotoren door efficiëntieklasse IE4 of hoger.",null,null,null,null,null,null,null,null,null,null,null,null,null,null,null,null,null,null,null,null,null,null,null,null,null,null,null,null,null,null,null,null,null,0,null,0,0,0,0,0,null,0,0,0,0,0,null,0,0,0,0,0,null,0,0,0,0,0,null,0,0,0,0,0,null,0,0,0,0,0,null,0,0,0,0,0,null,0,0,0,0,0,null,0,0,0,0,0,null,0,0,0,0,0,null,null,null,null,null,null,null,null,null,null,null,null,null,null,null,null,null,null,null,null,null,null,null,null,null,0,0,0,0,0,null,null,null,null,null,null,null,null,null,null,null,null,null,null,null,null,null,null,null,null,null,null,null,null,null,0,0,0,0,0,null,null,null,null,null,null,null,null,null,null,null,null,null,null,null,null,null,null,null,null,null,null,null,null,null,0,0,0,0,0,null,null,null,null,null,null,null,null,null,null,null,null,null,null,null,null,null,null,null,null,null,null,null,null,null,null,null,0]
[null,22,"Productkoeling","FD 1","Gebruik alternatief voor elektrische verwarming binnenzijde van verticaal vriesmeubel.",null,null,null,null,null,null,null,null,null,null,null,null,null,null,null,null,null,null,null,null,null,null,null,null,null,null,null,null,null,null,null,null,null,0,null,0,0,0,0,0,null,0,0,0,0,0,null,0,0,0,0,0,null,0,0,0,0,0,null,0,0,0,0,0,null,0,0,0,0,0,null,0,0,0,0,0,null,0,0,0,0,0,null,0,0,0,0,0,null,0,0,0,0,0,null,null,null,null,null,null,null,null,null,null,null,null,null,null,null,null,null,null,null,null,null,null,null,null,null,0,0,0,0,0,null,null,null,null,null,null,null,null,null,null,null,null,null,null,null,null,null,null,null,null,null,null,null,null,null,0,0,0,0,0,null,null,null,null,null,null,null,null,null,null,null,null,null,null,null,null,null,null,null,null,null,null,null,null,null,0,0,0,0,0,null,null,null,null,null,null,null,null,null,null,null,null,null,null,null,null,null,null,null,null,null,null,null,null,null,null,null,0]
[null,23,"Productkoeling","FD 2","Plaats deuren voor verticale koelmeubels.",null,null,null,null,null,null,null,null,null,null,null,null,null,null,null,null,null,null,null,null,null,null,null,null,null,null,null,null,null,null,null,null,null,0,null,0,0,0,0,0,null,0,0,0,0,0,null,0,0,0,0,0,null,0,0,0,0,0,null,0,0,0,0,0,null,0,0,0,0,0,null,0,0,0,0,0,null,0,0,0,0,0,null,0,0,0,0,0,null,0,0,0,0,0,null,null,null,null,null,null,null,null,null,null,null,null,null,null,null,null,null,null,null,null,null,null,null,null,null,0,0,0,0,0,null,null,null,null,null,null,null,null,null,null,null,null,null,null,null,null,null,null,null,null,null,null,null,null,null,0,0,0,0,0,null,null,null,null,null,null,null,null,null,null,null,null,null,null,null,null,null,null,null,null,null,null,null,null,null,0,0,0,0,0]
[null,24,"Productkoeling","FD 3","Pas nachtafdekking toe bij semi-verticale koelmeubels.",null,null,null,null,null,null,null,null,null,null,null,null,null,null,null,null,null,null,null,null,null,null,null,null,null,null,null,null,null,null,null,null,null,0,null,0,0,0,0,0,null,0,0,0,0,0,null,0,0,0,0,0,null,0,0,0,0,0,null,0,0,0,0,0,null,0,0,0,0,0,null,0,0,0,0,0,null,0,0,0,0,0,null,0,0,0,0,0,null,0,0,0,0,0,null,null,null,null,null,null,null,null,null,null,null,null,null,null,null,null,null,null,null,null,null,null,null,null,null,0,0,0,0,0,null,null,null,null,null,null,null,null,null,null,null,null,null,null,null,null,null,null,null,null,null,null,null,null,null,0,0,0,0,0,null,null,null,null,null,null,null,null,null,null,null,null,null,null,null,null,null,null,null,null,null,null,null,null,null,0,0,0,0,0,null,null,null,null,null,null,null,null,null,null,null,null,null,null,null,null,null,null,null,null,null,null,null,null,null,null,null,{"$f":"IF(AND(T68=0,T68<>\"\"),1,0)","v":0}]
[null,25,"Productkoeling","FD 4","Pas dagafdekking op horizontale vriesmeubels.",null,null,null,null,null,null,null,null,null,null,null,null,null,null,null,null,null,null,null,null,null,null,null,null,null,null,null,null,null,null,null,null,null,0,null,0,0,0,0,0,null,0,0,0,0,0,null,0,0,0,0,0,null,0,0,0,0,0,null,0,0,0,0,0,null,0,0,0,0,0,null,0,0,0,0,0,null,0,0,0,0,0,null,0,0,0,0,0,null,0,0,0,0,0,null,null,null,null,null,null,null,null,null,null,null,null,null,null,null,null,null,null,null,null,null,null,null,null,null,0,0,0,0,0,null,null,null,null,null,null,null,null,null,null,null,null,null,null,null,null,null,null,null,null,null,null,null,null,null,0,0,0,0,0,null,null,null,null,null,null,null,null,null,null,null,null,null,null,null,null,null,null,null,null,null,null,null,null,null,0,0,0,0,0,null,null,null,null,null,null,null,null,null,null,null,null,null,null,null,null,null,null,null,null,null,null,null,null,null,null,null,{"$f":"IF(AND(T69=0,T69<>\"\"),1,0)","v":0}]
[null,26,"Productkoeling","FD 5","Isoleer koel- en vriesleidingen.",null,null,null,null,null,null,null,null,null,null,null,null,null,null,null,null,null,null,null,null,null,null,null,null,null,null,null,null,null,null,null,null,null,0,null,0,0,0,0,0,null,0,0,0,0,0,null,0,0,0,0,0,null,0,0,0,0,0,null,0,0,0,0,0,null,0,0,0,0,0,null,0,0,0,0,0,null,0,0,0,0,0,null,0,0,0,0,0,null,0,0,0,0,0,null,null,null,null,null,null,null,null,null,null,null,null,null,null,null,null,null,null,null,null,null,null,null,null,null,0,0,0,0,0,null,null,null,null,null,null,null,null,null,null,null,null,null,null,null,null,null,null,null,null,null,null,null,null,null,0,0,0,0,0,null,null,null,null,null,null,null,null,null,null,null,null,null,null,null,null,null,null,null,null,null,null,null,null,null,0,0,0,0,0,null,null,null,null,null,null,null,null,null,null,null,null,null,null,null,null,null,null,null,null,null,null,null,null,null,null,null,{"$f":"IF(AND(T70=0,T70<>\"\"),1,0)","v":0}]
[null,27,"Productkoeling","FD 6","Koppel de verdamperventilator aan de vriesceldeur.",null,null,null,null,null,null,null,null,null,null,null,null,null,null,null,null,null,null,null,null,null,null,null,null,null,null,null,null,null,null,null,null,null,0,null,0,0,0,0,0,null,0,0,0,0,0,null,0,0,0,0,0,null,0,0,0,0,0,null,0,0,0,0,0,null,0,0,0,0,0,null,0,0,0,0,0,null,0,0,0,0,0,null,0,0,0,0,0,null,0,0,0,0,0,null,null,null,null,null,null,null,null,null,null,null,null,null,null,null,null,null,null,null,null,null,null,null,null,null,0,0,0,0,0,null,null,null,null,null,null,null,null,null,null,null,null,null,null,null,null,null,null,null,null,null,null,null,null,null,0,0,0,0,0,null,null,null,null,null,null,null,null,null,null,null,null,null,null,null,null,null,null,null,null,null,null,null,null,null,0,0,0,0,0]
[null,28,"Productkoeling","FD 7","Isoleer de wanden van koelcellen om warmte buiten te houden.",null,null,null,null,null,null,null,null,null,null,null,null,null,null,null,null,null,null,null,null,null,null,null,null,null,null,null,null,null,null,null,null,null,0,null,0,0,0,0,0,null,0,0,0,0,0,null,0,0,0,0,0,null,0,0,0,0,0,null,0,0,0,0,0,null,0,0,0,0,0,null,0,0,0,0,0,null,0,0,0,0,0,null,0,0,0,0,0,null,0,0,0,0,0,null,null,null,null,null,null,null,null,null,null,null,null,null,null,null,null,null,null,null,null,null,null,null,null,null,0,0,0,0,0,null,null,null,null,null,null,null,null,null,null,null,null,null,null,null,null,null,null,null,null,null,null,null,null,null,0,0,0,0,0,null,null,null,null,null,null,null,null,null,null,null,null,null,null,null,null,null,null,null,null,null,null,null,null,null,0,0,0,0,0]
[null,29,"Productkoeling","FD 8","Regel de verdamperventilatoren van koelcellen obv meerdere temperatuursensoren.",null,null,null,null,null,null,null,null,null,null,null,null,null,null,null,null,null,null,null,null,null,null,null,null,null,null,null,null,null,null,null,null,null,0,null,0,0,0,0,0,null,0,0,0,0,0,null,0,0,0,0,0,null,0,0,0,0,0,null,0,0,0,0,0,null,0,0,0,0,0,null,0,0,0,0,0,null,0,0,0,0,0,null,0,0,0,0,0,null,0,0,0,0,0,null,null,null,null,null,null,null,null,null,null,null,null,null,null,null,null,null,null,null,null,null,null,null,null,null,0,0,0,0,0,null,null,null,null,null,null,null,null,null,null,null,null,null,null,null,null,null,null,null,null,null,null,null,null,null,0,0,0,0,0,null,null,null,null,null,null,null,null,null,null,null,null,null,null,null,null,null,null,null,null,null,null,null,null,null,0,0,0,0,0]
[null,30,"Productkoeling","FD 9","Pas een frequentieregelaar toe bij gekoelde opslag van groente, fruit e.d.",null,null,null,null,null,null,null,null,null,null,null,null,null,null,null,null,null,null,null,null,null,null,null,null,null,null,null,null,null,null,null,null,null,0,null,0,0,0,0,0,null,0,0,0,0,0,null,0,0,0,0,0,null,0,0,0,0,0,null,0,0,0,0,0,null,0,0,0,0,0,null,0,0,0,0,0,null,0,0,0,0,0,null,0,0,0,0,0,null,0,0,0,0,0,null,null,null,null,null,null,null,null,null,null,null,null,null,null,null,null,null,null,null,null,null,null,null,null,null,0,0,0,0,0,null,null,null,null,null,null,null,null,null,null,null,null,null,null,null,null,null,null,null,null,null,null,null,null,null,0,0,0,0,0,null,null,null,null,null,null,null,null,null,null,null,null,null,null,null,null,null,null,null,null,null,null,null,null,null,0,0,0,0,0]
[null,31,"Productkoeling","FD10","Scheid de luchttoevoer naar de koelinstallatie van  warme lucht uit koelinstallatie.",null,null,null,null,null,null,null,null,null,null,null,null,null,null,null,null,null,null,null,null,null,null,null,null,null,null,null,null,null,null,null,null,null,0,null,0,0,0,0,0,null,0,0,0,0,0,null,0,0,0,0,0,null,0,0,0,0,0,null,0,0,0,0,0,null,0,0,0,0,0,null,0,0,0,0,0,null,0,0,0,0,0,null,0,0,0,0,0,null,0,0,0,0,0,null,null,null,null,null,null,null,null,null,null,null,null,null,null,null,null,null,null,null,null,null,null,null,null,null,0,0,0,0,0,null,null,null,null,null,null,null,null,null,null,null,null,null,null,null,null,null,null,null,null,null,null,null,null,null,0,0,0,0,0,null,null,null,null,null,null,null,null,null,null,null,null,null,null,null,null,null,null,null,null,null,null,null,null,null,0,0,0,0,0]
[null,32,"Productkoeling","FD11","Pas een condensordrukregeling op buitenluchttemperatuur toe op de koelinstallatie",null,null,null,null,null,null,null,null,null,null,null,null,null,null,null,null,null,null,null,null,null,null,null,null,null,null,null,null,null,null,null,null,null,0,null,0,0,0,0,0,null,0,0,0,0,0,null,0,0,0,0,0,null,0,0,0,0,0,null,0,0,0,0,0,null,0,0,0,0,0,null,0,0,0,0,0,null,0,0,0,0,0,null,0,0,0,0,0,null,0,0,0,0,0,null,null,null,null,null,null,null,null,null,null,null,null,null,null,null,null,null,null,null,null,null,null,null,null,null,0,0,0,0,0,null,null,null,null,null,null,null,null,null,null,null,null,null,null,null,null,null,null,null,null,null,null,null,null,null,0,0,0,0,0,null,null,null,null,null,null,null,null,null,null,null,null,null,null,null,null,null,null,null,null,null,null,null,null,null,0,0,0,0,0]
[null,33,"Productkoeling","FD12","Gebruik de restwarmte van de condensors van de koelinstallatie.",null,null,null,null,null,null,null,null,null,null,null,null,null,null,null,null,null,null,null,null,null,null,null,null,null,null,null,null,null,null,null,null,null,0,null,0,0,0,0,0,null,0,0,0,0,0,null,0,0,0,0,0,null,0,0,0,0,0,null,0,0,0,0,0,null,0,0,0,0,0,null,0,0,0,0,0,null,0,0,0,0,0,null,0,0,0,0,0,null,0,0,0,0,0,null,null,null,null,null,null,null,null,null,null,null,null,null,null,null,null,null,null,null,null,null,null,null,null,null,0,0,0,0,0,null,null,null,null,null,null,null,null,null,null,null,null,null,null,null,null,null,null,null,null,null,null,null,null,null,0,0,0,0,0,null,null,null,null,null,null,null,null,null,null,null,null,null,null,null,null,null,null,null,null,null,null,null,null,null,0,0,0,0,0]
[null,34,"Productkoeling","FD13","Pas een dagafdekking toe bij semi-verticale koelmeubels.",null,null,null,null,null,null,null,null,null,null,null,null,null,null,null,null,null,null,null,null,null,null,null,null,null,null,null,null,null,null,null,null,null,0,null,0,0,0,0,0,null,0,0,0,0,0,null,0,0,0,0,0,null,0,0,0,0,0,null,0,0,0,0,0,null,0,0,0,0,0,null,0,0,0,0,0,null,0,0,0,0,0,null,0,0,0,0,0,null,0,0,0,0,0,null,null,null,null,null,null,null,null,null,null,null,null,null,null,null,null,null,null,null,null,null,null,null,null,null,0,0,0,0,0,null,null,null,null,null,null,null,null,null,null,null,null,null,null,null,null,null,null,null,null,null,null,null,null,null,0,0,0,0,0,null,null,null,null,null,null,null,null,null,null,null,null,null,null,null,null,null,null,null,null,null,null,null,null,null,0,0,0,0,0]
[null,35,"Productkoeling","FD14","Plaats LED-armaturen in koelcellen.",null,null,null,null,null,null,null,null,null,null,null,null,null,null,null,null,null,null,null,null,null,null,null,null,null,null,null,null,null,null,null,null,null,0,null,0,0,0,0,0,null,0,0,0,0,0,null,0,0,0,0,0,null,0,0,0,0,0,null,0,0,0,0,0,null,0,0,0,0,0,null,0,0,0,0,0,null,0,0,0,0,0,null,0,0,0,0,0,null,0,0,0,0,0,null,null,null,null,null,null,null,null,null,null,null,null,null,null,null,null,null,null,null,null,null,null,null,null,null,0,0,0,0,0,null,null,null,null,null,null,null,null,null,null,null,null,null,null,null,null,null,null,null,null,null,null,null,null,null,0,0,0,0,0,null,null,null,null,null,null,null,null,null,null,null,null,null,null,null,null,null,null,null,null,null,null,null,null,null,0,0,0,0,0]
[null,36,"Productkoeling","FD15","Pas heetgasontdooiing toe op de vriesinstallatie.",null,null,null,null,null,null,null,null,null,null,null,null,null,null,null,null,null,null,null,null,null,null,null,null,null,null,null,null,null,null,null,null,null,0,null,0,0,0,0,0,null,0,0,0,0,0,null,0,0,0,0,0,null,0,0,0,0,0,null,0,0,0,0,0,null,0,0,0,0,0,null,0,0,0,0,0,null,0,0,0,0,0,null,0,0,0,0,0,null,0,0,0,0,0,null,null,null,null,null,null,null,null,null,null,null,null,null,null,null,null,null,null,null,null,null,null,null,null,null,0,0,0,0,0,null,null,null,null,null,null,null,null,null,null,null,null,null,null,null,null,null,null,null,null,null,null,null,null,null,0,0,0,0,0,null,null,null,null,null,null,null,null,null,null,null,null,null,null,null,null,null,null,null,null,null,null,null,null,null,0,0,0,0,0]
[null,37,"Productkoeling","geen","Installeer deur-/bewegingsschakeling op verlichting",null,null,null,null,null,null,null,null,null,null,null,null,null,null,null,null,null,null,null,null,null,null,null,null,null,null,null,null,null,null,null,null,null,0,null,0,0,0,0,0,null,0,0,0,0,0,null,0,0,0,0,0,null,0,0,0,0,0,null,0,0,0,0,0,null,0,0,0,0,0,null,0,0,0,0,0,null,0,0,0,0,0,null,0,0,0,0,0,null,0,0,0,0,0,null,null,null,null,null,null,null,null,null,null,null,null,null,null,null,null,null,null,null,null,null,null,null,null,null,0,0,0,0,0,null,null,null,null,null,null,null,null,null,null,null,null,null,null,null,null,null,null,null,null,null,null,null,null,null,0,0,0,0,0,null,null,null,null,null,null,null,null,null,null,null,null,null,null,null,null,null,null,null,null,null,null,null,null,null,0,0,0,0,0]
[null,38,"Productkoeling","geen","Installeer LED-lamp i.p.v. TL8-lamp in koelcel",null,null,null,null,null,null,null,null,null,null,null,null,null,null,null,null,null,null,null,null,null,null,null,null,null,null,null,null,null,null,null,null,null,0,null,0,0,0,0,0,null,0,0,0,0,0,null,0,0,0,0,0,null,0,0,0,0,0,null,0,0,0,0,0,null,0,0,0,0,0,null,0,0,0,0,0,null,0,0,0,0,0,null,0,0,0,0,0,null,0,0,0,0,0,null,null,null,null,null,null,null,null,null,null,null,null,null,null,null,null,null,null,null,null,null,null,null,null,null,0,0,0,0,0,null,null,null,null,null,null,null,null,null,null,null,null,null,null,null,null,null,null,null,null,null,null,null,null,null,0,0,0,0,0,null,null,null,null,null,null,null,null,null,null,null,null,null,null,null,null,null,null,null,null,null,null,null,null,null,0,0,0,0,0]
[null,39,"Grootkeuken","FE1","Vervang de infrarood-salamander door een met automatische pan/bord detectie.",null,null,null,null,null,null,null,null,null,null,null,null,null,null,null,null,null,null,null,null,null,null,null,null,null,null,null,null,null,null,null,null,null,0,null,0,0,0,0,0,null,0,0,0,0,0,null,0,0,0,0,0,null,0,0,0,0,0,null,0,0,0,0,0,null,0,0,0,0,0,null,0,0,0,0,0,null,0,0,0,0,0,null,0,0,0,0,0,null,0,0,0,0,0,null,null,null,null,null,null,null,null,null,null,null,null,null,null,null,null,null,null,null,null,null,null,null,null,null,0,0,0,0,0,null,null,null,null,null,null,null,null,null,null,null,null,null,null,null,null,null,null,null,null,null,null,null,null,null,0,0,0,0,0,null,null,null,null,null,null,null,null,null,null,null,null,null,null,null,null,null,null,null,null,null,null,null,null,null,0,0,0,0,0]
[null,40,"Grootkeuken","FE2","Pas hot-fill toe bij bestaande vaatwasapparatuur in grootkeukens.",null,null,null,null,null,null,null,null,null,null,null,null,null,null,null,null,null,null,null,null,null,null,null,null,null,null,null,null,null,null,null,null,null,0,null,0,0,0,0,0,null,0,0,0,0,0,null,0,0,0,0,0,null,0,0,0,0,0,null,0,0,0,0,0,null,0,0,0,0,0,null,0,0,0,0,0,null,0,0,0,0,0,null,0,0,0,0,0,null,0,0,0,0,0,null,null,null,null,null,null,null,null,null,null,null,null,null,null,null,null,null,null,null,null,null,null,null,null,null,0,0,0,0,0,null,null,null,null,null,null,null,null,null,null,null,null,null,null,null,null,null,null,null,null,null,null,null,null,null,0,0,0,0,0,null,null,null,null,null,null,null,null,null,null,null,null,null,null,null,null,null,null,null,null,null,null,null,null,null,0,0,0,0,0]
[null,41,"Grootkeuken","FE3","Pas een dubbelwandige vaatwasser toe in grootkeukens.",null,null,null,null,null,null,null,null,null,null,null,null,null,null,null,null,null,null,null,null,null,null,null,null,null,null,null,null,null,null,null,null,null,0,null,0,0,0,0,0,null,0,0,0,0,0,null,0,0,0,0,0,null,0,0,0,0,0,null,0,0,0,0,0,null,0,0,0,0,0,null,0,0,0,0,0,null,0,0,0,0,0,null,0,0,0,0,0,null,0,0,0,0,0,null,null,null,null,null,null,null,null,null,null,null,null,null,null,null,null,null,null,null,null,null,null,null,null,null,0,0,0,0,0,null,null,null,null,null,null,null,null,null,null,null,null,null,null,null,null,null,null,null,null,null,null,null,null,null,0,0,0,0,0,null,null,null,null,null,null,null,null,null,null,null,null,null,null,null,null,null,null,null,null,null,null,null,null,null,0,0,0,0,0]
[null,42,"Grootkeuken","FE4","Pas een laagdebiet afzuigkap toe bij grootkeukens.",null,null,null,null,null,null,null,null,null,null,null,null,null,null,null,null,null,null,null,null,null,null,null,null,null,null,null,null,null,null,null,null,null,0,null,0,0,0,0,0,null,0,0,0,0,0,null,0,0,0,0,0,null,0,0,0,0,0,null,0,0,0,0,0,null,0,0,0,0,0,null,0,0,0,0,0,null,0,0,0,0,0,null,0,0,0,0,0,null,0,0,0,0,0,null,null,null,null,null,null,null,null,null,null,null,null,null,null,null,null,null,null,null,null,null,null,null,null,null,0,0,0,0,0,null,null,null,null,null,null,null,null,null,null,null,null,null,null,null,null,null,null,null,null,null,null,null,null,null,0,0,0,0,0,null,null,null,null,null,null,null,null,null,null,null,null,null,null,null,null,null,null,null,null,null,null,null,null,null,0,0,0,0,0]
[null,43,"Grootkeuken","FE5","Pas een elektrisch frituurtoestel toe in plaats van een gasgestookt toestel.",null,null,null,null,null,null,null,null,null,null,null,null,null,null,null,null,null,null,null,null,null,null,null,null,null,null,null,null,null,null,null,null,null,0,null,0,0,0,0,0,null,0,0,0,0,0,null,0,0,0,0,0,null,0,0,0,0,0,null,0,0,0,0,0,null,0,0,0,0,0,null,0,0,0,0,0,null,0,0,0,0,0,null,0,0,0,0,0,null,0,0,0,0,0,null,null,null,null,null,null,null,null,null,null,null,null,null,null,null,null,null,null,null,null,null,null,null,null,null,0,0,0,0,0,null,null,null,null,null,null,null,null,null,null,null,null,null,null,null,null,null,null,null,null,null,null,null,null,null,0,0,0,0,0,null,null,null,null,null,null,null,null,null,null,null,null,null,null,null,null,null,null,null,null,null,null,null,null,null,0,0,0,0,0]
[null,44,"Grootkeuken","FE6","Pas een elektrische combisteamer toe in plaats van een gasgestookte variant.",null,null,null,null,null,null,null,null,null,null,null,null,null,null,null,null,null,null,null,null,null,null,null,null,null,null,null,null,null,null,null,null,null,0,null,0,0,0,0,0,null,0,0,0,0,0,null,0,0,0,0,0,null,0,0,0,0,0,null,0,0,0,0,0,null,0,0,0,0,0,null,0,0,0,0,0,null,0,0,0,0,0,null,0,0,0,0,0,null,0,0,0,0,0,null,null,null,null,null,null,null,null,null,null,null,null,null,null,null,null,null,null,null,null,null,null,null,null,null,0,0,0,0,0,null,null,null,null,null,null,null,null,null,null,null,null,null,null,null,null,null,null,null,null,null,null,null,null,null,0,0,0,0,0,null,null,null,null,null,null,null,null,null,null,null,null,null,null,null,null,null,null,null,null,null,null,null,null,null,0,0,0,0,0]
[null,45,"Grootkeuken","geen","Installeer debietregeling op afzuiging",null,null,null,null,null,null,null,null,null,null,null,null,null,null,null,null,null,null,null,null,null,null,null,null,null,null,null,null,null,null,null,null,null,0,null,0,0,0,0,0,null,0,0,0,0,0,null,0,0,0,0,0,null,0,0,0,0,0,null,0,0,0,0,0,null,0,0,0,0,0,null,0,0,0,0,0,null,0,0,0,0,0,null,0,0,0,0,0,null,0,0,0,0,0,null,null,null,null,null,null,null,null,null,null,null,null,null,null,null,null,null,null,null,null,null,null,null,null,null,0,0,0,0,0,null,null,null,null,null,null,null,null,null,null,null,null,null,null,null,null,null,null,null,null,null,null,null,null,null,0,0,0,0,0,null,null,null,null,null,null,null,null,null,null,null,null,null,null,null,null,null,null,null,null,null,null,null,null,null,0,0,0,0,0]
[null,46,"Ovens","FF","Deze hele categorie is niet van toepassing in de care",null,null,null,null,null,null,null,null,null,null,null,null,null,null,null,null,null,null,null,null,null,null,null,null,null,null,null,null,null,null,null,null,null,0,null,0,0,0,0,0,null,0,0,0,0,0,null,0,0,0,0,0,null,0,0,0,0,0,null,0,0,0,0,0,null,0,0,0,0,0,null,0,0,0,0,0,null,0,0,0,0,0,null,0,0,0,0,0,null,0,0,0,0,0,null,null,null,null,null,null,null,null,null,null,null,null,null,null,null,null,null,null,null,null,null,null,null,null,null,0,0,0,0,0,null,null,null,null,null,null,null,null,null,null,null,null,null,null,null,null,null,null,null,null,null,null,null,null,null,0,0,0,0,0,null,null,null,null,null,null,null,null,null,null,null,null,null,null,null,null,null,null,null,null,null,null,null,null,null,0,0,0,0,0]
[null,47,"Terreinverlichting","FG1","Plaats tijdklok samen met daglichtregeling als verlichting vaste tijden moet branden.",null,null,null,null,null,null,null,null,null,null,null,null,null,null,null,null,null,null,null,null,null,null,null,null,null,null,null,null,null,null,null,null,null,0,null,0,0,0,0,0,null,0,0,0,0,0,null,0,0,0,0,0,null,0,0,0,0,0,null,0,0,0,0,0,null,0,0,0,0,0,null,0,0,0,0,0,null,0,0,0,0,0,null,0,0,0,0,0,null,0,0,0,0,0,null,null,null,null,null,null,null,null,null,null,null,null,null,null,null,null,null,null,null,null,null,null,null,null,null,0,0,0,0,0,null,null,null,null,null,null,null,null,null,null,null,null,null,null,null,null,null,null,null,null,null,null,null,null,null,0,0,0,0,0,null,null,null,null,null,null,null,null,null,null,null,null,null,null,null,null,null,null,null,null,null,null,null,null,null,0,0,0,0,0]
[null,48,"Terreinverlichting","FG2","Plaats een bewegingssensor op plaatsen waar de lampen niet altijd aan hoeven te zijn.",null,null,null,null,null,null,null,null,null,null,null,null,null,null,null,null,null,null,null,null,null,null,null,null,null,null,null,null,null,null,null,null,null,0,null,0,0,0,0,0,null,0,0,0,0,0,null,0,0,0,0,0,null,0,0,0,0,0,null,0,0,0,0,0,null,0,0,0,0,0,null,0,0,0,0,0,null,0,0,0,0,0,null,0,0,0,0,0,null,0,0,0,0,0,null,null,null,null,null,null,null,null,null,null,null,null,null,null,null,null,null,null,null,null,null,null,null,null,null,0,0,0,0,0,null,null,null,null,null,null,null,null,null,null,null,null,null,null,null,null,null,null,null,null,null,null,null,null,null,0,0,0,0,0,null,null,null,null,null,null,null,null,null,null,null,null,null,null,null,null,null,null,null,null,null,null,null,null,null,0,0,0,0,0]
[null,49,"Terreinverlichting","FG3","Plaats extra schakelaars voor de veldverlichting per veld.",null,null,null,null,null,null,null,null,null,null,null,null,null,null,null,null,null,null,null,null,null,null,null,null,null,null,null,null,null,null,null,null,null,0,null,0,0,0,0,0,null,0,0,0,0,0,null,0,0,0,0,0,null,0,0,0,0,0,null,0,0,0,0,0,null,0,0,0,0,0,null,0,0,0,0,0,null,0,0,0,0,0,null,0,0,0,0,0,null,0,0,0,0,0,null,null,null,null,null,null,null,null,null,null,null,null,null,null,null,null,null,null,null,null,null,null,null,null,null,0,0,0,0,0,null,null,null,null,null,null,null,null,null,null,null,null,null,null,null,null,null,null,null,null,null,null,null,null,null,0,0,0,0,0,null,null,null,null,null,null,null,null,null,null,null,null,null,null,null,null,null,null,null,null,null,null,null,null,null,0,0,0,0,0]
[null,50,"Terreinverlichting","FG4","Vervang lichtmastarmaturen met spaar- of gasontladingslampen door LED-armaturen.",null,null,null,null,null,null,null,null,null,null,null,null,null,null,null,null,null,null,null,null,null,null,null,null,null,null,null,null,null,null,null,null,null,0,null,0,0,0,0,0,null,0,0,0,0,0,null,0,0,0,0,0,null,0,0,0,0,0,null,0,0,0,0,0,null,0,0,0,0,0,null,0,0,0,0,0,null,0,0,0,0,0,null,0,0,0,0,0,null,0,0,0,0,0,null,null,null,null,null,null,null,null,null,null,null,null,null,null,null,null,null,null,null,null,null,null,null,null,null,0,0,0,0,0,null,null,null,null,null,null,null,null,null,null,null,null,null,null,null,null,null,null,null,null,null,null,null,null,null,0,0,0,0,0,null,null,null,null,null,null,null,null,null,null,null,null,null,null,null,null,null,null,null,null,null,null,null,null,null,0,0,0,0,0]
[null,51,"Terreinverlichting","FG5","Vervang bij verlichting zonder mast de gasontladingsarmaturen door LED-armaturen.",null,null,"i","ons",null,0,null,{"$f":"IF($C$5<3000,(#REF!*$C$5)+#REF!,(#REF!*$C$5)+#REF!)","v":{"$error":"#REF!"}},{"$f":"($C$19*P95)+($C$18*Q95)+($C$20*R95)","v":{"$error":"#REF!"}},{"$f":"IF(N95=0,\"\",(L95+M95)/N95)","v":{"$error":"#REF!"}},{"$f":"IF($C$5<3000,$AN$32*#REF!,$AN$32*#REF!)","v":{"$error":"#REF!"}},{"$f":"IF($C$5<3000,$AN$31*#REF!,$AN$31*#REF!)","v":{"$error":"#REF!"}},{"$f":"IF($C$5<3000,$AN$33*#REF!,$AN$33*#REF!)","v":{"$error":"#REF!"}},null,0,{"$error":"#REF!"},null,{"$error":"#REF!"},{"$error":"#REF!"},{"$error":"#REF!"},{"$error":"#REF!"},{"$error":"#REF!"},null,{"$error":"#REF!"},{"$error":"#REF!"},{"$error":"#REF!"},{"$error":"#REF!"},{"$error":"#REF!"},null,{"$error":"#REF!"},{"$error":"#REF!"},{"$error":"#REF!"},{"$error":"#REF!"},{"$error":"#REF!"},null,{"$error":"#REF!"},{"$error":"#REF!"},{"$error":"#REF!"},{"$error":"#REF!"},{"$error":"#REF!"},null,{"$error":"#REF!"},{"$error":"#REF!"},{"$error":"#REF!"},{"$error":"#REF!"},{"$error":"#REF!"},null,{"$error":"#REF!"},{"$error":"#REF!"},{"$error":"#REF!"},{"$error":"#REF!"},{"$error":"#REF!"},null,{"$error":"#REF!"},{"$error":"#REF!"},{"$error":"#REF!"},{"$error":"#REF!"},{"$error":"#REF!"},null,{"$error":"#REF!"},{"$error":"#REF!"},{"$error":"#REF!"},{"$error":"#REF!"},{"$error":"#REF!"},null,{"$error":"#REF!"},{"$error":"#REF!"},{"$error":"#REF!"},{"$error":"#REF!"},{"$error":"#REF!"},null,{"$error":"#REF!"},{"$error":"#REF!"},{"$error":"#REF!"},{"$error":"#REF!"},{"$error":"#REF!"},null,{"$error":"#REF!"},{"$error":"#REF!"},{"$error":"#REF!"},{"$error":"#REF!"},{"$error":"#REF!"},null,{"$error":"#REF!"},{"$error":"#REF!"},{"$error":"#REF!"},{"$error":"#REF!"},{"$error":"#REF!"},null,{"$error":"#REF!"},{"$error":"#REF!"},{"$error":"#REF!"},{"$error":"#REF!"},{"$error":"#REF!"},null,null,null,null,null,null,null,null,null,null,null,null,null,null,null,null,null,null,null,null,null,null,null,null,null,{"$error":"#REF!"},{"$error":"#REF!"},{"$error":"#REF!"},{"$error":"#REF!"},{"$error":"#REF!"},null,null,null,null,null,null,null,null,null,null,null,null,null,null,null,null,null,null,null,null,null,null,null,null,null,{"$error":"#REF!"},{"$error":"#REF!"},{"$error":"#REF!"},{"$error":"#REF!"},{"$error":"#REF!"},null,null,null,null,null,null,null,null,null,null,null,null,null,null,null,null,null,null,null,null,null,null,null,null,null,{"$error":"#REF!"},{"$error":"#REF!"},{"$error":"#REF!"},{"$error":"#REF!"},{"$error":"#REF!"}]
[null,52,"Zwembad","FH1","Vervang in bestaande kozijnen en ramen in zwembadruimte enkelglas door HR++ glas.",null,null,"i","ons","Ja",0,{"$f":"IF($C$5<3000,(#REF!*$C$5)+#REF!,(#REF!*$C$5)+#REF!)","v":{"$error":"#REF!"}},null,{"$error":"#REF!"},{"$error":"#REF!"},{"$f":"IF($C$5<3000,$AN$32*#REF!,$AN$32*#REF!)","v":{"$error":"#REF!"}},{"$f":"IF($C$5<3000,$AN$31*#REF!,$AN$31*#REF!)","v":{"$error":"#REF!"}},{"$f":"IF($C$5<3000,$AN$33*#REF!,$AN$33*#REF!)","v":{"$error":"#REF!"}},null,0,{"$error":"#REF!"},null,{"$error":"#REF!"},{"$error":"#REF!"},{"$error":"#REF!"},{"$error":"#REF!"},{"$error":"#REF!"},null,{"$error":"#REF!"},{"$error":"#REF!"},{"$error":"#REF!"},{"$error":"#REF!"},{"$error":"#REF!"},null,{"$error":"#REF!"},{"$error":"#REF!"},{"$error":"#REF!"},{"$error":"#REF!"},{"$error":"#REF!"},null,{"$error":"#REF!"},{"$error":"#REF!"},{"$error":"#REF!"},{"$error":"#REF!"},{"$error":"#REF!"},null,{"$error":"#REF!"},{"$error":"#REF!"},{"$error":"#REF!"},{"$error":"#REF!"},{"$error":"#REF!"},null,{"$error":"#REF!"},{"$error":"#REF!"},{"$error":"#REF!"},{"$error":"#REF!"},{"$error":"#REF!"},null,{"$error":"#REF!"},{"$error":"#REF!"},{"$error":"#REF!"},{"$error":"#REF!"},{"$error":"#REF!"},null,{"$error":"#REF!"},{"$error":"#REF!"},{"$error":"#REF!"},{"$error":"#REF!"},{"$error":"#REF!"},null,{"$error":"#REF!"},{"$error":"#REF!"},{"$error":"#REF!"},{"$error":"#REF!"},{"$error":"#REF!"},null,{"$error":"#REF!"},{"$error":"#REF!"},{"$error":"#REF!"},{"$error":"#REF!"},{"$error":"#REF!"},null,{"$error":"#REF!"},{"$error":"#REF!"},{"$error":"#REF!"},{"$error":"#REF!"},{"$error":"#REF!"},null,{"$error":"#REF!"},{"$error":"#REF!"},{"$error":"#REF!"},{"$error":"#REF!"},{"$error":"#REF!"},null,{"$error":"#REF!"},{"$error":"#REF!"},{"$error":"#REF!"},{"$error":"#REF!"},{"$error":"#REF!"},null,null,null,null,null,null,null,null,null,null,null,null,null,null,null,null,null,null,null,null,null,null,null,null,null,{"$error":"#REF!"},{"$error":"#REF!"},{"$error":"#REF!"},{"$error":"#REF!"},{"$error":"#REF!"},null,null,null,null,null,null,null,null,null,null,null,null,null,null,null,null,null,null,null,null,null,null,null,null,null,{"$error":"#REF!"},{"$error":"#REF!"},{"$error":"#REF!"},{"$error":"#REF!"},{"$error":"#REF!"},null,null,null,null,null,null,null,null,null,null,null,null,null,null,null,null,null,null,null,null,null,null,null,null,null,{"$error":"#REF!"},{"$error":"#REF!"},{"$error":"#REF!"},{"$error":"#REF!"},{"$error":"#REF!"}]
[null,53,"Zwembad","FH2","Pas isolatie toe op ongeïsoleerde zwembadwaterleidingen in een zwembad.",null,null,"i","ons","Ja",0,{"$f":"IF($C$5<3000,(#REF!*$C$5)+#REF!,(#REF!*$C$5)+#REF!)","v":{"$error":"#REF!"}},null,{"$error":"#REF!"},{"$error":"#REF!"},{"$f":"IF($C$5<3000,$AN$32*#REF!,$AN$32*#REF!)","v":{"$error":"#REF!"}},{"$f":"IF($C$5<3000,$AN$31*#REF!,$AN$31*#REF!)","v":{"$error":"#REF!"}},{"$f":"IF($C$5<3000,$AN$33*#REF!,$AN$33*#REF!)","v":{"$error":"#REF!"}},null,0,{"$error":"#REF!"},null,{"$error":"#REF!"},{"$error":"#REF!"},{"$error":"#REF!"},{"$error":"#REF!"},{"$error":"#REF!"},null,{"$error":"#REF!"},{"$error":"#REF!"},{"$error":"#REF!"},{"$error":"#REF!"},{"$error":"#REF!"},null,{"$error":"#REF!"},{"$error":"#REF!"},{"$error":"#REF!"},{"$error":"#REF!"},{"$error":"#REF!"},null,{"$error":"#REF!"},{"$error":"#REF!"},{"$error":"#REF!"},{"$error":"#REF!"},{"$error":"#REF!"},null,{"$error":"#REF!"},{"$error":"#REF!"},{"$error":"#REF!"},{"$error":"#REF!"},{"$error":"#REF!"},null,{"$error":"#REF!"},{"$error":"#REF!"},{"$error":"#REF!"},{"$error":"#REF!"},{"$error":"#REF!"},null,{"$error":"#REF!"},{"$error":"#REF!"},{"$error":"#REF!"},{"$error":"#REF!"},{"$error":"#REF!"},null,{"$error":"#REF!"},{"$error":"#REF!"},{"$error":"#REF!"},{"$error":"#REF!"},{"$error":"#REF!"},null,{"$error":"#REF!"},{"$error":"#REF!"},{"$error":"#REF!"},{"$error":"#REF!"},{"$error":"#REF!"},null,{"$error":"#REF!"},{"$error":"#REF!"},{"$error":"#REF!"},{"$error":"#REF!"},{"$error":"#REF!"},null,{"$error":"#REF!"},{"$error":"#REF!"},{"$error":"#REF!"},{"$error":"#REF!"},{"$error":"#REF!"},null,{"$error":"#REF!"},{"$error":"#REF!"},{"$error":"#REF!"},{"$error":"#REF!"},{"$error":"#REF!"},null,{"$error":"#REF!"},{"$error":"#REF!"},{"$error":"#REF!"},{"$error":"#REF!"},{"$error":"#REF!"},null,null,null,null,null,null,null,null,null,null,null,null,null,null,null,null,null,null,null,null,null,null,null,null,null,{"$error":"#REF!"},{"$error":"#REF!"},{"$error":"#REF!"},{"$error":"#REF!"},{"$error":"#REF!"},null,null,null,null,null,null,null,null,null,null,null,null,null,null,null,null,null,null,null,null,null,null,null,null,null,{"$error":"#REF!"},{"$error":"#REF!"},{"$error":"#REF!"},{"$error":"#REF!"},{"$error":"#REF!"},null,null,null,null,null,null,null,null,null,null,null,null,null,null,null,null,null,null,null,null,null,null,null,null,null,{"$error":"#REF!"},{"$error":"#REF!"},{"$error":"#REF!"},{"$error":"#REF!"},{"$error":"#REF!"}]
[null,54,"Zwembad","FH3","Dek het zwembad af met zwembadafdekking buiten de openingstijden.",null,null,null,null,null,null,null,null,null,null,null,null,null,null,null,null,null,null,null,null,null,null,null,null,null,null,null,null,null,null,null,null,null,0,null,0,0,0,0,0,null,0,0,0,0,0,null,0,0,0,0,0,null,0,0,0,0,0,null,0,0,0,0,0,null,0,0,0,0,0,null,0,0,0,0,0,null,0,0,0,0,0,null,0,0,0,0,0,null,0,0,0,0,0,null,null,null,null,null,null,null,null,null,null,null,null,null,null,null,null,null,null,null,null,null,null,null,null,null,0,0,0,0,0,null,null,null,null,null,null,null,null,null,null,null,null,null,null,null,null,null,null,null,null,null,null,null,null,null,0,0,0,0,0,null,null,null,null,null,null,null,null,null,null,null,null,null,null,null,null,null,null,null,null,null,null,null,null,null,0,0,0,0,0]
[null,55,"Zwembad","FH4","Plaats een glijbaanafsluiter op de uitgang van de waterglijbaan.",null,null,null,null,null,null,null,null,null,null,null,null,null,null,null,null,null,null,null,null,null,null,null,null,null,null,null,null,null,null,null,null,null,0,null,0,0,0,0,0,null,0,0,0,0,0,null,0,0,0,0,0,null,0,0,0,0,0,null,0,0,0,0,0,null,0,0,0,0,0,null,0,0,0,0,0,null,0,0,0,0,0,null,0,0,0,0,0,null,0,0,0,0,0,null,null,null,null,null,null,null,null,null,null,null,null,null,null,null,null,null,null,null,null,null,null,null,null,null,0,0,0,0,0,null,null,null,null,null,null,null,null,null,null,null,null,null,null,null,null,null,null,null,null,null,null,null,null,null,0,0,0,0,0,null,null,null,null,null,null,null,null,null,null,null,null,null,null,null,null,null,null,null,null,null,null,null,null,null,0,0,0,0,0]
[null,56,"Zwembad","FH5","Isoleer de wanden van het zwembassin.",null,null,null,null,null,null,null,null,null,null,null,null,null,null,null,null,null,null,null,null,null,null,null,null,null,null,null,null,null,null,null,null,null,0,null,0,0,0,0,0,null,0,0,0,0,0,null,0,0,0,0,0,null,0,0,0,0,0,null,0,0,0,0,0,null,0,0,0,0,0,null,0,0,0,0,0,null,0,0,0,0,0,null,0,0,0,0,0,null,0,0,0,0,0,null,null,null,null,null,null,null,null,null,null,null,null,null,null,null,null,null,null,null,null,null,null,null,null,null,0,0,0,0,0,null,null,null,null,null,null,null,null,null,null,null,null,null,null,null,null,null,null,null,null,null,null,null,null,null,0,0,0,0,0,null,null,null,null,null,null,null,null,null,null,null,null,null,null,null,null,null,null,null,null,null,null,null,null,null,0,0,0,0,0]
[null,57,"Zwembad","FH6","Win warmte terug uit het spoelwater door gebruik te maken van een spoelwaterbuffer.",null,null,null,null,null,null,null,null,null,null,null,null,null,null,null,null,null,null,null,null,null,null,null,null,null,null,null,null,null,null,null,null,null,0,null,0,0,0,0,0,null,0,0,0,0,0,null,0,0,0,0,0,null,0,0,0,0,0,null,0,0,0,0,0,null,0,0,0,0,0,null,0,0,0,0,0,null,0,0,0,0,0,null,0,0,0,0,0,null,0,0,0,0,0,null,null,null,null,null,null,null,null,null,null,null,null,null,null,null,null,null,null,null,null,null,null,null,null,null,0,0,0,0,0,null,null,null,null,null,null,null,null,null,null,null,null,null,null,null,null,null,null,null,null,null,null,null,null,null,0,0,0,0,0,null,null,null,null,null,null,null,null,null,null,null,null,null,null,null,null,null,null,null,null,null,null,null,null,null,0,0,0,0,0]
[null,58,"Zwembad","FH7","Pas een HR-ketel toe voor zwembadwaterverwarming.",null,null,null,null,null,null,null,null,null,null,null,null,null,null,null,null,null,null,null,null,null,null,null,null,null,null,null,null,null,null,null,null,null,0,null,0,0,0,0,0,null,0,0,0,0,0,null,0,0,0,0,0,null,0,0,0,0,0,null,0,0,0,0,0,null,0,0,0,0,0,null,0,0,0,0,0,null,0,0,0,0,0,null,0,0,0,0,0,null,0,0,0,0,0,null,null,null,null,null,null,null,null,null,null,null,null,null,null,null,null,null,null,null,null,null,null,null,null,null,0,0,0,0,0,null,null,null,null,null,null,null,null,null,null,null,null,null,null,null,null,null,null,null,null,null,null,null,null,null,0,0,0,0,0,null,null,null,null,null,null,null,null,null,null,null,null,null,null,null,null,null,null,null,null,null,null,null,null,null,0,0,0,0,0]
[null,59,"Zwembad","FH8","Verbeter de isolatie van het dak van het zwembad.",null,null,null,null,null,null,null,null,null,null,null,null,null,null,null,null,null,null,null,null,null,null,null,null,null,null,null,null,null,null,null,null,null,0,null,0,0,0,0,0,null,0,0,0,0,0,null,0,0,0,0,0,null,0,0,0,0,0,null,0,0,0,0,0,null,0,0,0,0,0,null,0,0,0,0,0,null,0,0,0,0,0,null,0,0,0,0,0,null,0,0,0,0,0,null,null,null,null,null,null,null,null,null,null,null,null,null,null,null,null,null,null,null,null,null,null,null,null,null,0,0,0,0,0,null,null,null,null,null,null,null,null,null,null,null,null,null,null,null,null,null,null,null,null,null,null,null,null,null,0,0,0,0,0,null,null,null,null,null,null,null,null,null,null,null,null,null,null,null,null,null,null,null,null,null,null,null,null,null,0,0,0,0,0]
[null,60,"Zwembad","FH9","Pas een efficiënte warmtewisselaar toe op de balansventilatie van het zwembad.",null,null,null,null,null,null,null,null,null,null,null,null,null,null,null,null,null,null,null,null,null,null,null,null,null,null,null,null,null,null,null,null,null,0,null,0,0,0,0,0,null,0,0,0,0,0,null,0,0,0,0,0,null,0,0,0,0,0,null,0,0,0,0,0,null,0,0,0,0,0,null,0,0,0,0,0,null,0,0,0,0,0,null,0,0,0,0,0,null,0,0,0,0,0,null,null,null,null,null,null,null,null,null,null,null,null,null,null,null,null,null,null,null,null,null,null,null,null,null,0,0,0,0,0,null,null,null,null,null,null,null,null,null,null,null,null,null,null,null,null,null,null,null,null,null,null,null,null,null,0,0,0,0,0,null,null,null,null,null,null,null,null,null,null,null,null,null,null,null,null,null,null,null,null,null,null,null,null,null,0,0,0,0,0]
[null,61,"Serverruimte","FI1","Pas virtualisatie en consolidatie toe bij servers.",null,null,null,null,null,null,null,null,null,null,null,null,null,null,null,null,null,null,null,null,null,null,null,null,null,null,null,null,null,null,null,null,null,0,null,0,0,0,0,0,null,0,0,0,0,0,null,0,0,0,0,0,null,0,0,0,0,0,null,0,0,0,0,0,null,0,0,0,0,0,null,0,0,0,0,0,null,0,0,0,0,0,null,0,0,0,0,0,null,0,0,0,0,0,null,null,null,null,null,null,null,null,null,null,null,null,null,null,null,null,null,null,null,null,null,null,null,null,null,0,0,0,0,0,null,null,null,null,null,null,null,null,null,null,null,null,null,null,null,null,null,null,null,null,null,null,null,null,null,0,0,0,0,0,null,null,null,null,null,null,null,null,null,null,null,null,null,null,null,null,null,null,null,null,null,null,null,null,null,0,0,0,0,0]
[null,62,"Serverruimte","FI2","Stel geautomatiseerd energiebeheer in op servers.",null,null,null,null,null,null,null,null,null,null,null,null,null,null,null,null,null,null,null,null,null,null,null,null,null,null,null,null,null,null,null,null,null,0,null,0,0,0,0,0,null,0,0,0,0,0,null,0,0,0,0,0,null,0,0,0,0,0,null,0,0,0,0,0,null,0,0,0,0,0,null,0,0,0,0,0,null,0,0,0,0,0,null,0,0,0,0,0,null,0,0,0,0,0,null,null,null,null,null,null,null,null,null,null,null,null,null,null,null,null,null,null,null,null,null,null,null,null,null,0,0,0,0,0,null,null,null,null,null,null,null,null,null,null,null,null,null,null,null,null,null,null,null,null,null,null,null,null,null,0,0,0,0,0,null,null,null,null,null,null,null,null,null,null,null,null,null,null,null,null,null,null,null,null,null,null,null,null,null,0,0,0,0,0]
[null,63,"Serverruimte","FI3","Neem een laagbelaste Uninterrupted Power Supply (UPS) uit bedrijf.",null,null,null,null,null,null,null,null,null,null,null,null,null,null,null,null,null,null,null,null,null,null,null,null,null,null,null,null,null,null,null,null,null,0,null,0,0,0,0,0,null,0,0,0,0,0,null,0,0,0,0,0,null,0,0,0,0,0,null,0,0,0,0,0,null,0,0,0,0,0,null,0,0,0,0,0,null,0,0,0,0,0,null,0,0,0,0,0,null,0,0,0,0,0,null,null,null,null,null,null,null,null,null,null,null,null,null,null,null,null,null,null,null,null,null,null,null,null,null,0,0,0,0,0,null,null,null,null,null,null,null,null,null,null,null,null,null,null,null,null,null,null,null,null,null,null,null,null,null,0,0,0,0,0,null,null,null,null,null,null,null,null,null,null,null,null,null,null,null,null,null,null,null,null,null,null,null,null,null,0,0,0,0,0]
[null,64,"Serverruimte","FI4","Pas een buitenluchtklep toe voor koeling van de serverruimte.",null,null,null,null,null,null,null,null,null,null,null,null,null,null,null,null,null,null,null,null,null,null,null,null,null,null,null,null,null,null,null,null,null,0,null,{"$f":"+AN108*($L108+$M108)","v":0},{"$f":"$P108*AN108","v":0},0,0,0,null,{"$f":"+AT108*($L108+$M108)","v":0},{"$f":"$P108*AT108","v":0},0,0,0,null,{"$f":"+AZ108*($L108+$M108)","v":0},{"$f":"$P108*AZ108","v":0},0,0,0,null,{"$f":"+BF108*($L108+$M108)","v":0},{"$f":"$P108*BF108","v":0},0,0,0,null,{"$f":"+BL108*($L108+$M108)","v":0},{"$f":"$P108*BL108","v":0},0,0,0,null,{"$f":"+BR108*($L108+$M108)","v":0},{"$f":"$P108*BR108","v":0},0,0,0,null,{"$f":"+BX108*($L108+$M108)","v":0},{"$f":"$P108*BX108","v":0},0,0,0,null,{"$f":"+CD108*($L108+$M108)","v":0},{"$f":"$P108*CD108","v":0},0,0,0,null,{"$f":"+CJ108*($L108+$M108)","v":0},{"$f":"$P108*CJ108","v":0},0,0,0,null,{"$f":"+CP108*($L108+$M108)","v":0},{"$f":"$P108*CP108","v":0},0,0,0,null,null,null,null,null,null,null,null,null,null,null,null,null,null,null,null,null,null,null,null,null,null,null,null,null,{"$f":"+DT108*($L108+$M108)","v":0},{"$f":"$P108*DT108","v":0},0,0,0,null,null,null,null,null,null,null,null,null,null,null,null,null,null,null,null,null,null,null,null,null,null,null,null,null,{"$f":"+EX108*($L108+$M108)","v":0},{"$f":"$P108*EX108","v":0},0,0,0,null,null,null,null,null,null,null,null,null,null,null,null,null,null,null,null,null,null,null,null,null,null,null,null,null,{"$f":"+GB108*($L108+$M108)","v":0},{"$f":"$P108*GB108","v":0},0,0,0]
[null,65,"Serverruimte","FI5","Pas een energiezuinige koelinstallatie toe voor de koeling van serverruimten.",null,null,null,null,null,null,null,null,null,null,null,null,null,null,null,null,null,null,null,null,null,null,null,null,null,null,null,null,null,null,null,null,null,{"$f":"AH109*$N109","v":0},null,0,0,{"$f":"$Q109*AN109","v":0},{"$f":"+AN109*$R109","v":0},{"$f":"AN109*$N109","v":0},null,0,0,{"$f":"$Q109*AT109","v":0},{"$f":"+AT109*$R109","v":0},{"$f":"AT109*$N109","v":0},null,0,0,{"$f":"$Q109*AZ109","v":0},{"$f":"+AZ109*$R109","v":0},{"$f":"AZ109*$N109","v":0},null,0,0,{"$f":"$Q109*BF109","v":0},{"$f":"+BF109*$R109","v":0},{"$f":"BF109*$N109","v":0},null,0,0,{"$f":"$Q109*BL109","v":0},{"$f":"+BL109*$R109","v":0},{"$f":"BL109*$N109","v":0},null,0,0,{"$f":"$Q109*BR109","v":0},{"$f":"+BR109*$R109","v":0},{"$f":"BR109*$N109","v":0},null,0,0,{"$f":"$Q109*BX109","v":0},{"$f":"+BX109*$R109","v":0},{"$f":"BX109*$N109","v":0},null,0,0,{"$f":"$Q109*CD109","v":0},{"$f":"+CD109*$R109","v":0},{"$f":"CD109*$N109","v":0},null,0,0,{"$f":"$Q109*CJ109","v":0},{"$f":"+CJ109*$R109","v":0},{"$f":"CJ109*$N109","v":0},null,0,0,{"$f":"$Q109*CP109","v":0},{"$f":"+CP109*$R109","v":0},{"$f":"CP109*$N109","v":0},null,null,null,null,null,null,null,null,null,null,null,null,null,null,null,null,null,null,null,null,null,null,null,null,null,0,0,{"$f":"$Q109*DT109","v":0},{"$f":"+DT109*$R109","v":0},{"$f":"DT109*$N109","v":0},null,null,null,null,null,null,null,null,null,null,null,null,null,null,null,null,null,null,null,null,null,null,null,null,null,0,0,{"$f":"$Q109*EX109","v":0},{"$f":"+EX109*$R109","v":0},{"$f":"EX109*$N109","v":0},null,null,null,null,null,null,null,null,null,null,null,null,null,null,null,null,null,null,null,null,null,null,null,null,null,0,0,{"$f":"$Q109*GB109","v":0},{"$f":"+GB109*$R109","v":0},{"$f":"GB109*$N109","v":0}]
[null,66,"Serverruimte","FI6","Breng scheiding aan tussen koude aanvoerlucht en warme afvoerlucht in de datazaal.",null,null,null,null,null,null,null,null,null,null,null,null,null,null,null,null,null,null,null,null,null,null,null,null,null,null,null,null,null,null,null,null,null,0,null,0,0,0,0,0,null,0,0,0,0,0,null,0,0,0,0,0,null,0,0,0,0,0,null,0,0,0,0,0,null,0,0,0,0,0,null,0,0,0,0,0,null,0,0,0,0,0,null,0,0,0,0,0,null,0,0,0,0,0,null,null,null,null,null,null,null,null,null,null,null,null,null,null,null,null,null,null,null,null,null,null,null,null,null,0,0,0,0,0,null,null,null,null,null,null,null,null,null,null,null,null,null,null,null,null,null,null,null,null,null,null,null,null,null,0,0,0,0,0,null,null,null,null,null,null,null,null,null,null,null,null,null,null,null,null,null,null,null,null,null,null,null,null,null,0,0,0,0,0]
[null,67,"Serverruimte","geen","Installeer efficient UPS systeem (>96 %)",null,null,null,null,null,null,null,null,null,null,null,null,null,null,null,null,null,null,null,null,null,null,null,null,null,null,null,null,null,null,null,null,null,0,null,0,0,0,0,0,null,0,0,0,0,0,null,0,0,0,0,0,null,0,0,0,0,0,null,0,0,0,0,0,null,0,0,0,0,0,null,0,0,0,0,0,null,0,0,0,0,0,null,0,0,0,0,0,null,0,0,0,0,0,null,null,null,null,null,null,null,null,null,null,null,null,null,null,null,null,null,null,null,null,null,null,null,null,null,0,0,0,0,0,null,null,null,null,null,null,null,null,null,null,null,null,null,null,null,null,null,null,null,null,null,null,null,null,null,0,0,0,0,0,null,null,null,null,null,null,null,null,null,null,null,null,null,null,null,null,null,null,null,null,null,null,null,null,null,0,0,0,0,0]
[null,68,"Serverruimte","geen","Installeer toerentalregeling op ventilatie zaalkoeler",null,null,null,null,null,null,null,null,null,null,null,null,null,null,null,null,null,null,null,null,null,null,null,null,null,null,null,null,null,null,null,null,null,0,null,0,0,0,0,0,null,0,0,0,0,0,null,0,0,0,0,0,null,0,0,0,0,0,null,0,0,0,0,0,null,0,0,0,0,0,null,0,0,0,0,0,null,0,0,0,0,0,null,0,0,0,0,0,null,0,0,0,0,0,null,null,null,null,null,null,null,null,null,null,null,null,null,null,null,null,null,null,null,null,null,null,null,null,null,0,0,0,0,0,null,null,null,null,null,null,null,null,null,null,null,null,null,null,null,null,null,null,null,null,null,null,null,null,null,0,0,0,0,0,null,null,null,null,null,null,null,null,null,null,null,null,null,null,null,null,null,null,null,null,null,null,null,null,null,0,0,0,0,0]
[null,69,"Roltrap","FJ1","Pas aanbodafhankelijke regeling met 2 snelheden of onderbrekende besturing toe.",null,null,null,null,null,null,null,null,null,null,null,null,null,null,null,null,null,null,null,null,null,null,null,null,null,null,null,null,null,null,null,null,null,0,null,0,0,0,0,0,null,0,0,0,0,0,null,0,0,0,0,0,null,0,0,0,0,0,null,0,0,0,0,0,null,0,0,0,0,0,null,0,0,0,0,0,null,0,0,0,0,0,null,0,0,0,0,0,null,0,0,0,0,0,null,null,null,null,null,null,null,null,null,null,null,null,null,null,null,null,null,null,null,null,null,null,null,null,null,0,0,0,0,0,null,null,null,null,null,null,null,null,null,null,null,null,null,null,null,null,null,null,null,null,null,null,null,null,null,0,0,0,0,0,null,null,null,null,null,null,null,null,null,null,null,null,null,null,null,null,null,null,null,null,null,null,null,null,null,0,0,0,0,0]
[null,70,"Energiebeheersys.","GA1","Pas autom. energieregistratie- en bewakingssysteem (EBS) met rapportagefunctie toe.",null,null,null,null,null,null,null,null,null,null,null,null,null,null,null,null,null,null,null,null,null,null,null,null,null,null,null,null,null,null,null,null,null,0,null,0,0,0,0,0,null,0,0,0,0,0,null,0,0,0,0,0,null,0,0,0,0,0,null,0,0,0,0,0,null,0,0,0,0,0,null,0,0,0,0,0,null,0,0,0,0,0,null,0,0,0,0,0,null,0,0,0,0,0,null,null,null,null,null,null,null,null,null,null,null,null,null,null,null,null,null,null,null,null,null,null,null,null,null,0,0,0,0,0,null,null,null,null,null,null,null,null,null,null,null,null,null,null,null,null,null,null,null,null,null,null,null,null,null,0,0,0,0,0,null,null,null,null,null,null,null,null,null,null,null,null,null,null,null,null,null,null,null,null,null,null,null,null,null,0,0,0,0,0]
[null,71,"Isolatie van schil","GB1","Isoleer spouwmuren van gebouwen. Inclusief steigerkosten.",null,null,null,null,null,null,null,null,null,null,null,null,null,null,null,null,null,null,null,null,null,null,null,null,null,null,null,null,null,null,null,null,null,0,null,0,0,0,0,0,null,0,0,0,0,0,null,0,0,0,0,0,null,0,0,0,0,0,null,0,0,0,0,0,null,0,0,0,0,0,null,0,0,0,0,0,null,0,0,0,0,0,null,0,0,0,0,0,null,0,0,0,0,0,null,null,null,null,null,null,null,null,null,null,null,null,null,null,null,null,null,null,null,null,null,null,null,null,null,0,0,0,0,0,null,null,null,null,null,null,null,null,null,null,null,null,null,null,null,null,null,null,null,null,null,null,null,null,null,0,0,0,0,0,null,null,null,null,null,null,null,null,null,null,null,null,null,null,null,null,null,null,null,null,null,null,null,null,null,0,0,0,0,0]
[null,72,"Isolatie van schil","GB2","Isoleer ongeisoleerde platte daken (bovenop de dakbedekking).",null,null,null,null,null,null,null,null,null,null,null,null,null,null,null,null,null,null,null,null,null,null,null,null,null,null,null,null,null,null,null,null,null,0,null,0,0,0,0,0,null,0,0,0,0,0,null,0,0,0,0,0,null,0,0,0,0,0,null,0,0,0,0,0,null,0,0,0,0,0,null,0,0,0,0,0,null,0,0,0,0,0,null,0,0,0,0,0,null,0,0,0,0,0,null,null,null,null,null,null,null,null,null,null,null,null,null,null,null,null,null,null,null,null,null,null,null,null,null,0,0,0,0,0,null,null,null,null,null,null,null,null,null,null,null,null,null,null,null,null,null,null,null,null,null,null,null,null,null,0,0,0,0,0,null,null,null,null,null,null,null,null,null,null,null,null,null,null,null,null,null,null,null,null,null,null,null,null,null,0,0,0,0,0]
[null,73,"Isolatie van schil","GB3","Pas een automatisch sluitmechanisme toe bij overheaddeuren.",null,null,null,null,null,null,null,null,null,null,null,null,null,null,null,null,null,null,null,null,null,null,null,null,null,null,null,null,null,null,null,null,null,0,null,0,0,0,0,0,null,0,0,0,0,0,null,0,0,0,0,0,null,0,0,0,0,0,null,0,0,0,0,0,null,0,0,0,0,0,null,0,0,0,0,0,null,0,0,0,0,0,null,0,0,0,0,0,null,0,0,0,0,0,null,null,null,null,null,null,null,null,null,null,null,null,null,null,null,null,null,null,null,null,null,null,null,null,null,0,0,0,0,0,null,null,null,null,null,null,null,null,null,null,null,null,null,null,null,null,null,null,null,null,null,null,null,null,null,0,0,0,0,0,null,null,null,null,null,null,null,null,null,null,null,null,null,null,null,null,null,null,null,null,null,null,null,null,null,0,0,0,0,0]
[null,74,"Isolatie van schil","GB4","Isoleer ongesïoleerde platte daken (onder de dakbedekking).",null,null,null,null,null,null,null,null,null,null,null,null,null,null,null,null,null,null,null,null,null,null,null,null,null,null,null,null,null,null,null,null,null,0,null,0,0,0,0,0,null,0,0,0,0,0,null,0,0,0,0,0,null,0,0,0,0,0,null,0,0,0,0,0,null,0,0,0,0,0,null,0,0,0,0,0,null,0,0,0,0,0,null,0,0,0,0,0,null,0,0,0,0,0,null,null,null,null,null,null,null,null,null,null,null,null,null,null,null,null,null,null,null,null,null,null,null,null,null,0,0,0,0,0,null,null,null,null,null,null,null,null,null,null,null,null,null,null,null,null,null,null,null,null,null,null,null,null,null,0,0,0,0,0,null,null,null,null,null,null,null,null,null,null,null,null,null,null,null,null,null,null,null,null,null,null,null,null,null,0,0,0,0,0]
[null,75,"Isolatie van schil","GB5","Vervang in bestaande kozijnen het enkelglas door HR++ glas.",null,null,null,null,null,null,null,null,null,null,null,null,null,null,null,null,null,null,null,null,null,null,null,null,null,null,null,null,null,null,null,null,null,0,null,0,0,0,0,0,null,0,0,0,0,0,null,0,0,0,0,0,null,0,0,0,0,0,null,0,0,0,0,0,null,0,0,0,0,0,null,0,0,0,0,0,null,0,0,0,0,0,null,0,0,0,0,0,null,0,0,0,0,0,null,null,null,null,null,null,null,null,null,null,null,null,null,null,null,null,null,null,null,null,null,null,null,null,null,0,0,0,0,0,null,null,null,null,null,null,null,null,null,null,null,null,null,null,null,null,null,null,null,null,null,null,null,null,null,0,0,0,0,0,null,null,null,null,null,null,null,null,null,null,null,null,null,null,null,null,null,null,null,null,null,null,null,null,null,0,0,0,0,0]
[null,76,"Isolatie van schil","GB6","Vervang in bestaande kozijnen en ramen dubbelglas door HR++-glas.",null,null,null,null,null,null,null,null,null,null,null,null,null,null,null,null,null,null,null,null,null,null,null,null,null,null,null,null,null,null,null,null,null,0,null,0,0,0,0,0,null,0,0,0,0,0,null,0,0,0,0,0,null,0,0,0,0,0,null,0,0,0,0,0,null,0,0,0,0,0,null,0,0,0,0,0,null,0,0,0,0,0,null,0,0,0,0,0,null,0,0,0,0,0,null,null,null,null,null,null,null,null,null,null,null,null,null,null,null,null,null,null,null,null,null,null,null,null,null,0,0,0,0,0,null,null,null,null,null,null,null,null,null,null,null,null,null,null,null,null,null,null,null,null,null,null,null,null,null,0,0,0,0,0,null,null,null,null,null,null,null,null,null,null,null,null,null,null,null,null,null,null,null,null,null,null,null,null,null,0,0,0,0,0]
[null,77,"Isolatie van schil","GB7","Gebruik opblaasbare luchtkussens bij een vrachtwagendocking.",null,null,null,null,null,null,null,null,null,null,null,null,null,null,null,null,null,null,null,null,null,null,null,null,null,null,null,null,null,null,null,null,null,0,null,0,0,0,0,0,null,0,0,0,0,0,null,0,0,0,0,0,null,0,0,0,0,0,null,0,0,0,0,0,null,0,0,0,0,0,null,0,0,0,0,0,null,0,0,0,0,0,null,0,0,0,0,0,null,0,0,0,0,0,null,null,null,null,null,null,null,null,null,null,null,null,null,null,null,null,null,null,null,null,null,null,null,null,null,0,0,0,0,0,null,null,null,null,null,null,null,null,null,null,null,null,null,null,null,null,null,null,null,null,null,null,null,null,null,0,0,0,0,0,null,null,null,null,null,null,null,null,null,null,null,null,null,null,null,null,null,null,null,null,null,null,null,null,null,0,0,0,0,0]
[null,78,"Isolatie van schil","GB8","Plaats een loopdeur in overheaddeuren.",null,null,null,null,null,null,null,null,null,null,null,null,null,null,null,null,null,null,null,null,null,null,null,null,null,null,null,null,null,null,null,null,null,0,null,0,0,0,0,0,null,0,0,0,0,0,null,0,0,0,0,0,null,0,0,0,0,0,null,0,0,0,0,0,null,0,0,0,0,0,null,0,0,0,0,0,null,0,0,0,0,0,null,0,0,0,0,0,null,0,0,0,0,0,null,null,null,null,null,null,null,null,null,null,null,null,null,null,null,null,null,null,null,null,null,null,null,null,null,0,0,0,0,0,null,null,null,null,null,null,null,null,null,null,null,null,null,null,null,null,null,null,null,null,null,null,null,null,null,0,0,0,0,0,null,null,null,null,null,null,null,null,null,null,null,null,null,null,null,null,null,null,null,null,null,null,null,null,null,0,0,0,0,0]
[null,79,"Isolatie van schil","geen","Isoleer spouwmuren van gebouwen. Exclusief steigerkosten",null,null,null,null,null,null,null,null,null,null,null,null,null,null,null,null,null,null,null,null,null,null,null,null,null,null,null,null,null,null,null,null,null,0,null,0,0,0,0,0,null,0,0,0,0,0,null,0,0,0,0,0,null,0,0,0,0,0,null,0,0,0,0,0,null,0,0,0,0,0,null,0,0,0,0,0,null,0,0,0,0,0,null,0,0,0,0,0,null,0,0,0,0,0,null,null,null,null,null,null,null,null,null,null,null,null,null,null,null,null,null,null,null,null,null,null,null,null,null,0,0,0,0,0,null,null,null,null,null,null,null,null,null,null,null,null,null,null,null,null,null,null,null,null,null,null,null,null,null,0,0,0,0,0,null,null,null,null,null,null,null,null,null,null,null,null,null,null,null,null,null,null,null,null,null,null,null,null,null,0,0,0,0,0]
[null,80,"Isolatie van schil","geen","Isoleer de buitenzijde van de gevelmuren",null,null,null,null,null,null,null,null,null,null,null,null,null,null,null,null,null,null,null,null,null,null,null,null,null,null,null,null,null,null,null,null,null,0,null,0,0,0,0,0,null,0,0,0,0,0,null,0,0,0,0,0,null,0,0,0,0,0,null,0,0,0,0,0,null,0,0,0,0,0,null,0,0,0,0,0,null,0,0,0,0,0,null,0,0,0,0,0,null,0,0,0,0,0,null,null,null,null,null,null,null,null,null,null,null,null,null,null,null,null,null,null,null,null,null,null,null,null,null,0,0,0,0,0,null,null,null,null,null,null,null,null,null,null,null,null,null,null,null,null,null,null,null,null,null,null,null,null,null,0,0,0,0,0,null,null,null,null,null,null,null,null,null,null,null,null,null,null,null,null,null,null,null,null,null,null,null,null,null,0,0,0,0,0]
[null,81,"Isolatie van schil","geen","Isoleer geïsoleerde daken extra (o.b.v. meerkosten bij renovatie)",null,null,null,null,null,null,null,null,null,null,null,null,null,null,null,null,null,null,null,null,null,null,null,null,null,null,null,null,null,null,null,null,null,0,null,0,0,0,0,0,null,0,0,0,0,0,null,0,0,0,0,0,null,0,0,0,0,0,null,0,0,0,0,0,null,0,0,0,0,0,null,0,0,0,0,0,null,0,0,0,0,0,null,0,0,0,0,0,null,0,0,0,0,0,null,null,null,null,null,null,null,null,null,null,null,null,null,null,null,null,null,null,null,null,null,null,null,null,null,0,0,0,0,0,null,null,null,null,null,null,null,null,null,null,null,null,null,null,null,null,null,null,null,null,null,null,null,null,null,0,0,0,0,0,null,null,null,null,null,null,null,null,null,null,null,null,null,null,null,null,null,null,null,null,null,null,null,null,null,0,0,0,0,0]
[null,82,"Isolatie van schil","geen","Isoleer schuin dak aan buitenzijde",null,null,null,null,null,null,null,null,null,null,null,null,null,null,null,null,null,null,null,null,null,null,null,null,null,null,null,null,null,null,null,null,null,0,null,0,0,0,0,0,null,0,0,0,0,0,null,0,0,0,0,0,null,0,0,0,0,0,null,0,0,0,0,0,null,0,0,0,0,0,null,0,0,0,0,0,null,0,0,0,0,0,null,0,0,0,0,0,null,0,0,0,0,0,null,null,null,null,null,null,null,null,null,null,null,null,null,null,null,null,null,null,null,null,null,null,null,null,null,0,0,0,0,0,null,null,null,null,null,null,null,null,null,null,null,null,null,null,null,null,null,null,null,null,null,null,null,null,null,0,0,0,0,0,null,null,null,null,null,null,null,null,null,null,null,null,null,null,null,null,null,null,null,null,null,null,null,null,null,0,0,0,0,0]
[null,83,"Isolatie van schil","geen","Isoleer de vloer ",null,null,null,null,null,null,null,null,null,null,null,null,null,null,null,null,null,null,null,null,null,null,null,null,null,null,null,null,null,null,null,null,null,0,null,0,0,0,0,0,null,0,0,0,0,0,null,0,0,0,0,0,null,0,0,0,0,0,null,0,0,0,0,0,null,0,0,0,0,0,null,0,0,0,0,0,null,0,0,0,0,0,null,0,0,0,0,0,null,0,0,0,0,0,null,null,null,null,null,null,null,null,null,null,null,null,null,null,null,null,null,null,null,null,null,null,null,null,null,0,0,0,0,0,null,null,null,null,null,null,null,null,null,null,null,null,null,null,null,null,null,null,null,null,null,null,null,null,null,0,0,0,0,0,null,null,null,null,null,null,null,null,null,null,null,null,null,null,null,null,null,null,null,null,null,null,null,null,null,0,0,0,0,0]
[null,84,"Isolatie van schil","geen","Plaats HR++ glas i.p.v. HR in nieuwe kozijnen (niet-24-uurs)",null,null,null,null,null,null,null,null,null,null,null,null,null,null,null,null,null,null,null,null,null,null,null,null,null,null,null,null,null,null,null,null,null,0,null,0,0,0,0,0,null,0,0,0,0,0,null,0,0,0,0,0,null,0,0,0,0,0,null,0,0,0,0,0,null,0,0,0,0,0,null,0,0,0,0,0,null,0,0,0,0,0,null,0,0,0,0,0,null,0,0,0,0,0,null,null,null,null,null,null,null,null,null,null,null,null,null,null,null,null,null,null,null,null,null,null,null,null,null,0,0,0,0,0,null,null,null,null,null,null,null,null,null,null,null,null,null,null,null,null,null,null,null,null,null,null,null,null,null,0,0,0,0,0,null,null,null,null,null,null,null,null,null,null,null,null,null,null,null,null,null,null,null,null,null,null,null,null,null,0,0,0,0,0]
[null,85,"Isolatie van schil","geen","Plaats HR+++ glas i.p.v. HR in nieuwe kozijnen (24 uurs)",null,null,null,null,null,null,null,null,null,null,null,null,null,null,null,null,null,null,null,null,null,null,null,null,null,null,null,null,null,null,null,null,null,0,null,0,0,0,0,0,null,0,0,0,0,0,null,0,0,0,0,0,null,0,0,0,0,0,null,0,0,0,0,0,null,0,0,0,0,0,null,0,0,0,0,0,null,0,0,0,0,0,null,0,0,0,0,0,null,0,0,0,0,0,null,null,null,null,null,null,null,null,null,null,null,null,null,null,null,null,null,null,null,null,null,null,null,null,null,0,0,0,0,0,null,null,null,null,null,null,null,null,null,null,null,null,null,null,null,null,null,null,null,null,null,null,null,null,null,0,0,0,0,0,null,null,null,null,null,null,null,null,null,null,null,null,null,null,null,null,null,null,null,null,null,null,null,null,null,0,0,0,0,0]
[null,86,"Isolatie van schil","geen","Plaats voorzetramen",null,null,"i",{"$f":"IF(H130=\"X\",\"n.v.t.\",IF(H130=\"I\",\"ons\",IF(H130=\"V\",\"verhuurder\",IF(H130=\"H\",\"huurder\",\"\"))))","v":"ons"},"Ja",0,{"$f":"IF($C$5<3000,(#REF!*$C$5)+#REF!,(#REF!*$C$5)+#REF!)","v":{"$error":"#REF!"}},null,{"$error":"#REF!"},{"$error":"#REF!"},{"$f":"IF($C$5<3000,$AN$32*#REF!,$AN$32*#REF!)","v":{"$error":"#REF!"}},null,{"$f":"IF($C$5<3000,$AN$33*#REF!,$AN$33*#REF!)","v":{"$error":"#REF!"}},null,{"$f":"K130+V130+AB130+AH130+AN130+AT130+AZ130+BF130+BL130+BR130+BX130+CD130+CJ130+CP130+CV130+DB130+DH130+DN130+DT130+DZ130+EF130+EL130+ER130+EX130+FD130+FJ130+FP130+FV130+GB130+GH130+GN130+GT130+GZ130","v":0},{"$f":"W130+AC130+AI130+AO130+AU130+BA130+BG130+BM130+BS130+BY130+CE130+CK130+CQ130+DU130+EY130+GC130","v":{"$error":"#REF!"}},null,{"$f":"+V130*($L130+$M130)","v":{"$error":"#REF!"}},{"$f":"$P130*V130","v":{"$error":"#REF!"}},{"$f":"$Q130*V130","v":0},{"$f":"+V130*$R130","v":{"$error":"#REF!"}},{"$f":"V130*$N130","v":{"$error":"#REF!"}},null,{"$f":"+AB130*($L130+$M130)","v":{"$error":"#REF!"}},{"$f":"$P130*AB130","v":{"$error":"#REF!"}},{"$f":"$Q130*AB130","v":0},{"$f":"+AB130*$R130","v":{"$error":"#REF!"}},{"$f":"AB130*$N130","v":{"$error":"#REF!"}},null,{"$f":"+AH130*($L130+$M130)","v":{"$error":"#REF!"}},{"$f":"$P130*AH130","v":{"$error":"#REF!"}},{"$f":"$Q130*AH130","v":0},{"$f":"+AH130*$R130","v":{"$error":"#REF!"}},{"$error":"#REF!"},null,{"$error":"#REF!"},{"$error":"#REF!"},0,{"$error":"#REF!"},{"$error":"#REF!"},null,{"$error":"#REF!"},{"$error":"#REF!"},0,{"$error":"#REF!"},{"$error":"#REF!"},null,{"$error":"#REF!"},{"$error":"#REF!"},0,{"$error":"#REF!"},{"$error":"#REF!"},null,{"$error":"#REF!"},{"$error":"#REF!"},0,{"$error":"#REF!"},{"$error":"#REF!"},null,{"$error":"#REF!"},{"$error":"#REF!"},0,{"$error":"#REF!"},{"$error":"#REF!"},null,{"$error":"#REF!"},{"$error":"#REF!"},0,{"$error":"#REF!"},{"$error":"#REF!"},null,{"$error":"#REF!"},{"$error":"#REF!"},0,{"$error":"#REF!"},{"$error":"#REF!"},null,{"$error":"#REF!"},{"$error":"#REF!"},0,{"$error":"#REF!"},{"$error":"#REF!"},null,{"$error":"#REF!"},{"$error":"#REF!"},0,{"$error":"#REF!"},{"$error":"#REF!"},null,{"$error":"#REF!"},{"$error":"#REF!"},0,{"$error":"#REF!"},{"$error":"#REF!"},null,null,null,null,null,null,null,null,null,null,null,null,null,null,null,null,null,null,null,null,null,null,null,null,null,{"$error":"#REF!"},{"$error":"#REF!"},0,{"$error":"#REF!"},{"$error":"#REF!"},null,null,null,null,null,null,null,null,null,null,null,null,null,null,null,null,null,null,null,null,null,null,null,null,null,{"$error":"#REF!"},{"$error":"#REF!"},0,{"$error":"#REF!"},{"$error":"#REF!"},null,null,null,null,null,null,null,null,null,null,null,null,null,null,null,null,null,null,null,null,null,null,null,null,null,{"$error":"#REF!"},{"$error":"#REF!"},0,{"$error":"#REF!"},{"$error":"#REF!"}]
[null,87,"Ruimteverwarming","GC1","Pas een klokregeling toe en regel deze in.",null,null,"i","ons","Ja",0,{"$f":"IF($C$5<3000,(#REF!*$C$5)+#REF!,(#REF!*$C$5)+#REF!)","v":{"$error":"#REF!"}},null,{"$error":"#REF!"},{"$error":"#REF!"},{"$f":"IF($C$5<3000,$AN$32*#REF!,$AN$32*#REF!)","v":{"$error":"#REF!"}},null,{"$f":"IF($C$5<3000,$AN$33*#REF!,$AN$33*#REF!)","v":{"$error":"#REF!"}},null,0,{"$error":"#REF!"},null,{"$error":"#REF!"},{"$error":"#REF!"},0,{"$error":"#REF!"},{"$error":"#REF!"},null,{"$error":"#REF!"},{"$error":"#REF!"},0,{"$error":"#REF!"},{"$error":"#REF!"},null,{"$error":"#REF!"},{"$error":"#REF!"},0,{"$error":"#REF!"},{"$error":"#REF!"},null,{"$error":"#REF!"},{"$error":"#REF!"},0,{"$error":"#REF!"},{"$error":"#REF!"},null,{"$error":"#REF!"},{"$error":"#REF!"},0,{"$error":"#REF!"},{"$error":"#REF!"},null,{"$error":"#REF!"},{"$error":"#REF!"},0,{"$error":"#REF!"},{"$error":"#REF!"},null,{"$error":"#REF!"},{"$error":"#REF!"},0,{"$error":"#REF!"},{"$error":"#REF!"},null,{"$error":"#REF!"},{"$error":"#REF!"},0,{"$error":"#REF!"},{"$error":"#REF!"},null,{"$error":"#REF!"},{"$error":"#REF!"},0,{"$error":"#REF!"},{"$error":"#REF!"},null,{"$error":"#REF!"},{"$error":"#REF!"},0,{"$error":"#REF!"},{"$error":"#REF!"},null,{"$error":"#REF!"},{"$error":"#REF!"},0,{"$error":"#REF!"},{"$error":"#REF!"},null,{"$error":"#REF!"},{"$error":"#REF!"},0,{"$error":"#REF!"},{"$error":"#REF!"},null,{"$error":"#REF!"},{"$error":"#REF!"},0,{"$error":"#REF!"},{"$error":"#REF!"},null,null,null,null,null,null,null,null,null,null,null,null,null,null,null,null,null,null,null,null,null,null,null,null,null,{"$error":"#REF!"},{"$error":"#REF!"},0,{"$error":"#REF!"},{"$error":"#REF!"},null,null,null,null,null,null,null,null,null,null,null,null,null,null,null,null,null,null,null,null,null,null,null,null,null,{"$error":"#REF!"},{"$error":"#REF!"},0,{"$error":"#REF!"},{"$error":"#REF!"},null,null,null,null,null,null,null,null,null,null,null,null,null,null,null,null,null,null,null,null,null,null,null,null,null,{"$error":"#REF!"},{"$error":"#REF!"},0,{"$error":"#REF!"},{"$error":"#REF!"}]
[null,88,"Ruimteverwarming","GC2","Pas naast de bestaande verwarmingsketel een elektrische warmtepomp toe (hybride).",null,null,"i","ons","Ja",0,{"$f":"IF($C$5<3000,(#REF!*$C$5)+#REF!,(#REF!*$C$5)+#REF!)","v":{"$error":"#REF!"}},null,{"$error":"#REF!"},{"$error":"#REF!"},{"$f":"IF($C$5<3000,$AN$32*#REF!,$AN$32*#REF!)","v":{"$error":"#REF!"}},{"$f":"(-P132*(35.17/3.6*0.95)/3.5)","v":{"$error":"#REF!"}},{"$f":"IF($C$5<3000,$AN$33*#REF!,$AN$33*#REF!)","v":{"$error":"#REF!"}},null,0,{"$error":"#REF!"},null,{"$error":"#REF!"},{"$error":"#REF!"},{"$error":"#REF!"},{"$error":"#REF!"},{"$error":"#REF!"},null,{"$error":"#REF!"},{"$error":"#REF!"},{"$error":"#REF!"},{"$error":"#REF!"},{"$error":"#REF!"},null,{"$error":"#REF!"},{"$error":"#REF!"},{"$error":"#REF!"},{"$error":"#REF!"},{"$error":"#REF!"},null,{"$error":"#REF!"},{"$error":"#REF!"},{"$error":"#REF!"},{"$error":"#REF!"},{"$error":"#REF!"},null,{"$error":"#REF!"},{"$error":"#REF!"},{"$error":"#REF!"},{"$error":"#REF!"},{"$error":"#REF!"},null,{"$error":"#REF!"},{"$error":"#REF!"},{"$error":"#REF!"},{"$error":"#REF!"},{"$error":"#REF!"},null,{"$error":"#REF!"},{"$error":"#REF!"},{"$error":"#REF!"},{"$error":"#REF!"},{"$error":"#REF!"},null,{"$error":"#REF!"},{"$error":"#REF!"},{"$error":"#REF!"},{"$error":"#REF!"},{"$error":"#REF!"},null,{"$error":"#REF!"},{"$error":"#REF!"},{"$error":"#REF!"},{"$error":"#REF!"},{"$error":"#REF!"},null,{"$error":"#REF!"},{"$error":"#REF!"},{"$error":"#REF!"},{"$error":"#REF!"},{"$error":"#REF!"},null,{"$error":"#REF!"},{"$error":"#REF!"},{"$error":"#REF!"},{"$error":"#REF!"},{"$error":"#REF!"},null,{"$error":"#REF!"},{"$error":"#REF!"},{"$error":"#REF!"},{"$error":"#REF!"},{"$error":"#REF!"},null,{"$error":"#REF!"},{"$error":"#REF!"},{"$error":"#REF!"},{"$error":"#REF!"},{"$error":"#REF!"},null,null,null,null,null,null,null,null,null,null,null,null,null,null,null,null,null,null,null,null,null,null,null,null,null,{"$error":"#REF!"},{"$error":"#REF!"},{"$error":"#REF!"},{"$error":"#REF!"},{"$error":"#REF!"},null,null,null,null,null,null,null,null,null,null,null,null,null,null,null,null,null,null,null,null,null,null,null,null,null,{"$error":"#REF!"},{"$error":"#REF!"},{"$error":"#REF!"},{"$error":"#REF!"},{"$error":"#REF!"},null,null,null,null,null,null,null,null,null,null,null,null,null,null,null,null,null,null,null,null,null,null,null,null,null,{"$error":"#REF!"},{"$error":"#REF!"},{"$error":"#REF!"},{"$error":"#REF!"},{"$error":"#REF!"}]
[null,89,"Ruimteverwarming","GC3","Pas een weersafhankelijke regeling toe.",null,null,null,null,null,null,null,null,null,null,null,null,null,null,null,null,null,null,null,null,null,null,null,null,null,null,null,null,null,null,null,null,null,0,null,0,0,0,0,0,null,0,0,0,0,0,null,0,0,0,0,0,null,0,0,0,0,0,null,0,0,0,0,0,null,0,0,0,0,0,null,0,0,0,0,0,null,0,0,0,0,0,null,0,0,0,0,0,null,0,0,0,0,0,null,null,null,null,null,null,null,null,null,null,null,null,null,null,null,null,null,null,null,null,null,null,null,null,null,0,0,0,0,0,null,null,null,null,null,null,null,null,null,null,null,null,null,null,null,null,null,null,null,null,null,null,null,null,null,0,0,0,0,0,null,null,null,null,null,null,null,null,null,null,null,null,null,null,null,null,null,null,null,null,null,null,null,null,null,0,0,0,0,0]
[null,90,"Ruimteverwarming","GC4","Isoleer de verwarmingsleidingen en appendages in onverwarmde ruimtes",null,null,null,null,null,null,null,null,null,null,null,null,null,null,null,null,null,null,null,null,null,null,null,null,null,null,null,null,null,null,null,null,null,0,null,0,0,0,0,0,null,0,0,0,0,0,null,0,0,0,0,0,null,0,0,0,0,0,null,0,0,0,0,0,null,0,0,0,0,0,null,0,0,0,0,0,null,0,0,0,0,0,null,0,0,0,0,0,null,0,0,0,0,0,null,null,null,null,null,null,null,null,null,null,null,null,null,null,null,null,null,null,null,null,null,null,null,null,null,0,0,0,0,0,null,null,null,null,null,null,null,null,null,null,null,null,null,null,null,null,null,null,null,null,null,null,null,null,null,0,0,0,0,0,null,null,null,null,null,null,null,null,null,null,null,null,null,null,null,null,null,null,null,null,null,null,null,null,null,0,0,0,0,0]
[null,91,"Ruimteverwarming","GC5","Isoleer ventilatiekanalen in onverwarmde ruimtes.",null,null,null,null,null,null,null,null,null,null,null,null,null,null,null,null,null,null,null,null,null,null,null,null,null,null,null,null,null,null,null,null,null,0,null,0,0,0,0,0,null,0,0,0,0,0,null,0,0,0,0,0,null,0,0,0,0,0,null,0,0,0,0,0,null,0,0,0,0,0,null,0,0,0,0,0,null,0,0,0,0,0,null,0,0,0,0,0,null,0,0,0,0,0,null,null,null,null,null,null,null,null,null,null,null,null,null,null,null,null,null,null,null,null,null,null,null,null,null,0,0,0,0,0,null,null,null,null,null,null,null,null,null,null,null,null,null,null,null,null,null,null,null,null,null,null,null,null,null,0,0,0,0,0,null,null,null,null,null,null,null,null,null,null,null,null,null,null,null,null,null,null,null,null,null,null,null,null,null,0,0,0,0,0]
[null,92,"Ruimteverwarming","GC6","Pas een individuele regeling van de temperatuur per ruimte toe.",null,null,null,null,null,null,null,null,null,null,null,null,null,null,null,null,null,null,null,null,null,null,null,null,null,null,null,null,null,null,null,null,null,0,null,0,0,0,0,0,null,0,0,0,0,0,null,0,0,0,0,0,null,0,0,0,0,0,null,0,0,0,0,0,null,0,0,0,0,0,null,0,0,0,0,0,null,0,0,0,0,0,null,0,0,0,0,0,null,0,0,0,0,0,null,null,null,null,null,null,null,null,null,null,null,null,null,null,null,null,null,null,null,null,null,null,null,null,null,0,0,0,0,0,null,null,null,null,null,null,null,null,null,null,null,null,null,null,null,null,null,null,null,null,null,null,null,null,null,0,0,0,0,0,null,null,null,null,null,null,null,null,null,null,null,null,null,null,null,null,null,null,null,null,null,null,null,null,null,0,0,0,0,0]
[null,93,"Ruimteverwarming","GC7","Pas frequentiegeregelde circulatiepompen toe.",null,null,null,null,null,null,null,null,null,null,null,null,null,null,null,null,null,null,null,null,null,null,null,null,null,null,null,null,null,null,null,null,null,0,null,0,0,0,0,0,null,0,0,0,0,0,null,0,0,0,0,0,null,0,0,0,0,0,null,0,0,0,0,0,null,0,0,0,0,0,null,0,0,0,0,0,null,0,0,0,0,0,null,0,0,0,0,0,null,0,0,0,0,0,null,null,null,null,null,null,null,null,null,null,null,null,null,null,null,null,null,null,null,null,null,null,null,null,null,0,0,0,0,0,null,null,null,null,null,null,null,null,null,null,null,null,null,null,null,null,null,null,null,null,null,null,null,null,null,0,0,0,0,0,null,null,null,null,null,null,null,null,null,null,null,null,null,null,null,null,null,null,null,null,null,null,null,null,null,0,0,0,0,0]
[null,94,"Ruimteverwarming","GC8","Vervang directgestookte gasheaters in bedrijfshal door directgestookte HR-gasheaters.",null,null,null,null,null,null,null,null,null,null,null,null,null,null,null,null,null,null,null,null,null,null,null,null,null,null,null,null,null,null,null,null,null,0,null,0,0,0,0,0,null,0,0,0,0,0,null,0,0,0,0,0,null,0,0,0,0,0,null,0,0,0,0,0,null,0,0,0,0,0,null,0,0,0,0,0,null,0,0,0,0,0,null,0,0,0,0,0,null,0,0,0,0,0,null,null,null,null,null,null,null,null,null,null,null,null,null,null,null,null,null,null,null,null,null,null,null,null,null,0,0,0,0,0,null,null,null,null,null,null,null,null,null,null,null,null,null,null,null,null,null,null,null,null,null,null,null,null,null,0,0,0,0,0,null,null,null,null,null,null,null,null,null,null,null,null,null,null,null,null,null,null,null,null,null,null,null,null,null,0,0,0,0,0]
[null,95,"Ruimteverwarming","geen","Installeer een HR107 ketel i.p.v. VR-ketel",null,null,null,null,null,null,null,null,null,null,null,null,null,null,null,null,null,null,null,null,null,null,null,null,null,null,null,null,null,null,null,null,null,0,null,0,0,0,0,0,null,0,0,0,0,0,null,0,0,0,0,0,null,0,0,0,0,0,null,0,0,0,0,0,null,0,0,0,0,0,null,0,0,0,0,0,null,0,0,0,0,0,null,0,0,0,0,0,null,0,0,0,0,0,null,null,null,null,null,null,null,null,null,null,null,null,null,null,null,null,null,null,null,null,null,null,null,null,null,0,0,0,0,0,null,null,null,null,null,null,null,null,null,null,null,null,null,null,null,null,null,null,null,null,null,null,null,null,null,0,0,0,0,0,null,null,null,null,null,null,null,null,null,null,null,null,null,null,null,null,null,null,null,null,null,null,null,null,null,0,0,0,0,0]
[null,96,"Ruimteverwarming","geen","Regel de CV waterzijdig in",null,null,null,null,null,null,null,null,null,null,null,null,null,null,null,null,null,null,null,null,null,null,null,null,null,null,null,null,null,null,null,null,null,0,null,0,0,0,0,0,null,0,0,0,0,0,null,0,0,0,0,0,null,0,0,0,0,0,null,0,0,0,0,0,null,0,0,0,0,0,null,0,0,0,0,0,null,0,0,0,0,0,null,0,0,0,0,0,null,0,0,0,0,0,null,null,null,null,null,null,null,null,null,null,null,null,null,null,null,null,null,null,null,null,null,null,null,null,null,0,0,0,0,0,null,null,null,null,null,null,null,null,null,null,null,null,null,null,null,null,null,null,null,null,null,null,null,null,null,0,0,0,0,0,null,null,null,null,null,null,null,null,null,null,null,null,null,null,null,null,null,null,null,null,null,null,null,null,null,0,0,0,0,0]
[null,97,"Ruimteverwarming","geen","Pas radiatoren aan voor lagetemp. verwarming (LTV)",null,null,null,null,null,null,null,null,null,null,null,null,null,null,null,null,null,null,null,null,null,null,null,null,null,null,null,null,null,null,null,null,null,0,null,0,0,0,0,0,null,0,0,0,0,0,null,0,0,0,0,0,null,0,0,0,0,0,null,0,0,0,0,0,null,0,0,0,0,0,null,0,0,0,0,0,null,0,0,0,0,0,null,0,0,0,0,0,null,0,0,0,0,0,null,null,null,null,null,null,null,null,null,null,null,null,null,null,null,null,null,null,null,null,null,null,null,null,null,0,0,0,0,0,null,null,null,null,null,null,null,null,null,null,null,null,null,null,null,null,null,null,null,null,null,null,null,null,null,0,0,0,0,0,null,null,null,null,null,null,null,null,null,null,null,null,null,null,null,null,null,null,null,null,null,null,null,null,null,0,0,0,0,0]
[null,98,"Ruimteverwarming","geen","Installeer een Warmte- Koudeopslag (WKO)",null,null,null,null,null,null,null,null,null,null,null,null,null,null,null,null,null,null,null,null,null,null,null,null,null,null,null,null,null,null,null,null,null,0,null,0,0,0,0,0,null,0,0,0,0,0,null,0,0,0,0,0,null,0,0,0,0,0,null,0,0,0,0,0,null,0,0,0,0,0,null,0,0,0,0,0,null,0,0,0,0,0,null,0,0,0,0,0,null,0,0,0,0,0,null,null,null,null,null,null,null,null,null,null,null,null,null,null,null,null,null,null,null,null,null,null,null,null,null,0,0,0,0,0,null,null,null,null,null,null,null,null,null,null,null,null,null,null,null,null,null,null,null,null,null,null,null,null,null,0,0,0,0,0,null,null,null,null,null,null,null,null,null,null,null,null,null,null,null,null,null,null,null,null,null,null,null,null,null,0,0,0,0,0]
[null,99,"Ruimteventilatie","GD1","Pas een klokregeling toe op het ventilatiesysteem. ",null,null,null,null,null,null,null,null,null,null,null,null,null,null,null,null,null,null,null,null,null,null,null,null,null,null,null,null,null,null,null,null,null,0,null,0,0,0,0,0,null,0,0,0,0,0,null,0,0,0,0,0,null,0,0,0,0,0,null,0,0,0,0,0,null,0,0,0,0,0,null,0,0,0,0,0,null,0,0,0,0,0,null,0,0,0,0,0,null,0,0,0,0,0,null,null,null,null,null,null,null,null,null,null,null,null,null,null,null,null,null,null,null,null,null,null,null,null,null,0,0,0,0,0,null,null,null,null,null,null,null,null,null,null,null,null,null,null,null,null,null,null,null,null,null,null,null,null,null,0,0,0,0,0,null,null,null,null,null,null,null,null,null,null,null,null,null,null,null,null,null,null,null,null,null,null,null,null,null,0,0,0,0,0]
[null,100,"Ruimteventilatie","GD2","Pas warmteterugwinning toe op een balansventilatiesysteem.",null,null,null,null,null,null,null,null,null,null,null,null,null,null,null,null,null,null,null,null,null,null,null,null,null,null,null,null,null,null,null,null,null,0,null,0,0,0,0,0,null,0,0,0,0,0,null,0,0,0,0,0,null,0,0,0,0,0,null,0,0,0,0,0,null,0,0,0,0,0,null,0,0,0,0,0,null,0,0,0,0,0,null,0,0,0,0,0,null,0,0,0,0,0,null,null,null,null,null,null,null,null,null,null,null,null,null,null,null,null,null,null,null,null,null,null,null,null,null,0,0,0,0,0,null,null,null,null,null,null,null,null,null,null,null,null,null,null,null,null,null,null,null,null,null,null,null,null,null,0,0,0,0,0,null,null,null,null,null,null,null,null,null,null,null,null,null,null,null,null,null,null,null,null,null,null,null,null,null,0,0,0,0,0]
[null,101,"Ruimteventilatie","GD3","Vervang ventilatoren van klasse IE1 door ventilatoren van klasse IE4 of hoger",null,null,null,null,null,null,null,null,null,null,null,null,null,null,null,null,null,null,null,null,null,null,null,null,null,null,null,null,null,null,null,null,null,0,null,0,0,0,0,0,null,0,0,0,0,0,null,0,0,0,0,0,null,0,0,0,0,0,null,0,0,0,0,0,null,0,0,0,0,0,null,0,0,0,0,0,null,0,0,0,0,0,null,0,0,0,0,0,null,0,0,0,0,0,null,null,null,null,null,null,null,null,null,null,null,null,null,null,null,null,null,null,null,null,null,null,null,null,null,0,0,0,0,0,null,null,null,null,null,null,null,null,null,null,null,null,null,null,null,null,null,null,null,null,null,null,null,null,null,0,0,0,0,0,null,null,null,null,null,null,null,null,null,null,null,null,null,null,null,null,null,null,null,null,null,null,null,null,null,0,0,0,0,0]
[null,102,"Ruimteventilatie","GD4","Vervang indirect gedreven IE1-slakkehuisventilatoren door direct gedreven ventilatoren.",null,null,null,null,null,null,null,null,null,null,null,null,null,null,null,null,null,null,null,null,null,null,null,null,null,null,null,null,null,null,null,null,null,0,null,0,0,0,0,0,null,0,0,0,0,0,null,0,0,0,0,0,null,0,0,0,0,0,null,0,0,0,0,0,null,0,0,0,0,0,null,0,0,0,0,0,null,0,0,0,0,0,null,0,0,0,0,0,null,0,0,0,0,0,null,null,null,null,null,null,null,null,null,null,null,null,null,null,null,null,null,null,null,null,null,null,null,null,null,0,0,0,0,0,null,null,null,null,null,null,null,null,null,null,null,null,null,null,null,null,null,null,null,null,null,null,null,null,null,0,0,0,0,0,null,null,null,null,null,null,null,null,null,null,null,null,null,null,null,null,null,null,null,null,null,null,null,null,null,0,0,0,0,0]
[null,103,"Ruimteventilatie","GD5","Vervang indirect gedreven IE2-slakkenhuisventilatoren door direct gedreven ventilatoren.",null,null,null,null,null,null,null,null,null,null,null,null,null,null,null,null,null,null,null,null,null,null,null,null,null,null,null,null,null,null,null,null,null,0,null,0,0,0,0,0,null,0,0,0,0,0,null,0,0,0,0,0,null,0,0,0,0,0,null,0,0,0,0,0,null,0,0,0,0,0,null,0,0,0,0,0,null,0,0,0,0,0,null,0,0,0,0,0,null,0,0,0,0,0,null,null,null,null,null,null,null,null,null,null,null,null,null,null,null,null,null,null,null,null,null,null,null,null,null,0,0,0,0,0,null,null,null,null,null,null,null,null,null,null,null,null,null,null,null,null,null,null,null,null,null,null,null,null,null,0,0,0,0,0,null,null,null,null,null,null,null,null,null,null,null,null,null,null,null,null,null,null,null,null,null,null,null,null,null,0,0,0,0,0]
[null,104,"Ruimteventilatie","GD6","Vervang indirect gedreven IE3 slakkenhuisventilatoren door direct gedreven ventilatoren.",null,null,null,null,null,null,null,null,null,null,null,null,null,null,null,null,null,null,null,null,null,null,null,null,null,null,null,null,null,null,null,null,null,0,null,0,0,0,0,0,null,0,0,0,0,0,null,0,0,0,0,0,null,0,0,0,0,0,null,0,0,0,0,0,null,0,0,0,0,0,null,0,0,0,0,0,null,0,0,0,0,0,null,0,0,0,0,0,null,0,0,0,0,0,null,null,null,null,null,null,null,null,null,null,null,null,null,null,null,null,null,null,null,null,null,null,null,null,null,0,0,0,0,0,null,null,null,null,null,null,null,null,null,null,null,null,null,null,null,null,null,null,null,null,null,null,null,null,null,0,0,0,0,0,null,null,null,null,null,null,null,null,null,null,null,null,null,null,null,null,null,null,null,null,null,null,null,null,null,0,0,0,0,0]
[null,105,"Ruimteventilatie","GD7","Vervang ventilatoren van klasse IE2 of IE3 door ventilatoren van klasse IE4 of hoger.",null,null,null,null,null,null,null,null,null,null,null,null,null,null,null,null,null,null,null,null,null,null,null,null,null,null,null,null,null,null,null,null,null,0,null,0,0,0,0,0,null,0,0,0,0,0,null,0,0,0,0,0,null,0,0,0,0,0,null,0,0,0,0,0,null,0,0,0,0,0,null,0,0,0,0,0,null,0,0,0,0,0,null,0,0,0,0,0,null,0,0,0,0,0,null,null,null,null,null,null,null,null,null,null,null,null,null,null,null,null,null,null,null,null,null,null,null,null,null,0,0,0,0,0,null,null,null,null,null,null,null,null,null,null,null,null,null,null,null,null,null,null,null,null,null,null,null,null,null,0,0,0,0,0,null,null,null,null,null,null,null,null,null,null,null,null,null,null,null,null,null,null,null,null,null,null,null,null,null,0,0,0,0,0]
[null,106,"Ruimteventilatie","geen","Vervang IE2 motor of lager zonder frequentieregeling door IE3 met toerenregeling",null,null,null,null,null,null,null,null,null,null,null,null,null,null,null,null,null,null,null,null,null,null,null,null,null,null,null,null,null,null,null,null,null,0,null,0,0,0,0,0,null,0,0,0,0,0,null,0,0,0,0,0,null,0,0,0,0,0,null,0,0,0,0,0,null,0,0,0,0,0,null,0,0,0,0,0,null,0,0,0,0,0,null,0,0,0,0,0,null,0,0,0,0,0,null,null,null,null,null,null,null,null,null,null,null,null,null,null,null,null,null,null,null,null,null,null,null,null,null,0,0,0,0,0,null,null,null,null,null,null,null,null,null,null,null,null,null,null,null,null,null,null,null,null,null,null,null,null,null,0,0,0,0,0,null,null,null,null,null,null,null,null,null,null,null,null,null,null,null,null,null,null,null,null,null,null,null,null,null,0,0,0,0,0]
[null,107,"Ruimteventilatie","geen","Installeer een cascaderegeling",null,null,null,null,null,null,null,null,null,null,null,null,null,null,null,null,null,null,null,null,null,null,null,null,null,null,null,null,null,null,null,null,null,0,null,0,0,0,0,0,null,0,0,0,0,0,null,0,0,0,0,0,null,0,0,0,0,0,null,0,0,0,0,0,null,0,0,0,0,0,null,0,0,0,0,0,null,0,0,0,0,0,null,0,0,0,0,0,null,0,0,0,0,0,null,null,null,null,null,null,null,null,null,null,null,null,null,null,null,null,null,null,null,null,null,null,null,null,null,0,0,0,0,0,null,null,null,null,null,null,null,null,null,null,null,null,null,null,null,null,null,null,null,null,null,null,null,null,null,0,0,0,0,0,null,null,null,null,null,null,null,null,null,null,null,null,null,null,null,null,null,null,null,null,null,null,null,null,null,0,0,0,0,0]
[null,108,"Ruimteventilatie","geen","Kruisstroomwisselaar (bij aanschaffen nieuwe LBK)",null,null,null,null,null,null,null,null,null,null,null,null,null,null,null,null,null,null,null,null,null,null,null,null,null,null,null,null,null,null,null,null,null,0,null,0,0,0,0,0,null,0,0,0,0,0,null,0,0,0,0,0,null,0,0,0,0,0,null,0,0,0,0,0,null,0,0,0,0,0,null,0,0,0,0,0,null,0,0,0,0,0,null,0,0,0,0,0,null,0,0,0,0,0,null,null,null,null,null,null,null,null,null,null,null,null,null,null,null,null,null,null,null,null,null,null,null,null,null,0,0,0,0,0,null,null,null,null,null,null,null,null,null,null,null,null,null,null,null,null,null,null,null,null,null,null,null,null,null,0,0,0,0,0,null,null,null,null,null,null,null,null,null,null,null,null,null,null,null,null,null,null,null,null,null,null,null,null,null,0,0,0,0,0]
[null,109,"Ruimteventilatie","geen","Warmtewiel (bij aanschaffen nieuwe LBK)",null,null,null,null,null,null,null,null,null,null,null,null,null,null,null,null,null,null,null,null,null,null,null,null,null,null,null,null,null,null,null,null,null,0,null,0,0,0,0,0,null,0,0,0,0,0,null,0,0,0,0,0,null,0,0,0,0,0,null,0,0,0,0,0,null,0,0,0,0,0,null,0,0,0,0,0,null,0,0,0,0,0,null,0,0,0,0,0,null,0,0,0,0,0,null,null,null,null,null,null,null,null,null,null,null,null,null,null,null,null,null,null,null,null,null,null,null,null,null,0,0,0,0,0,null,null,null,null,null,null,null,null,null,null,null,null,null,null,null,null,null,null,null,null,null,null,null,null,null,0,0,0,0,0,null,null,null,null,null,null,null,null,null,null,null,null,null,null,null,null,null,null,null,null,null,null,null,null,null,0,0,0,0,0]
[null,110,"Warm tapwater","GE1","Isoleer warmwaterleidingen en appendages. ",null,null,null,null,null,null,null,null,null,null,null,null,null,null,null,null,null,null,null,null,null,null,null,null,null,null,null,null,null,null,null,null,null,0,null,0,0,0,0,0,null,0,0,0,0,0,null,0,0,0,0,0,null,0,0,0,0,0,null,0,0,0,0,0,null,0,0,0,0,0,null,0,0,0,0,0,null,0,0,0,0,0,null,0,0,0,0,0,null,0,0,0,0,0,null,null,null,null,null,null,null,null,null,null,null,null,null,null,null,null,null,null,null,null,null,null,null,null,null,0,0,0,0,0,null,null,null,null,null,null,null,null,null,null,null,null,null,null,null,null,null,null,null,null,null,null,null,null,null,0,0,0,0,0,null,null,null,null,null,null,null,null,null,null,null,null,null,null,null,null,null,null,null,null,null,null,null,null,null,0,0,0,0,0]
[null,111,"Warm tapwater","GE2","Gebruik waterbesparende douchekoppen.",null,null,null,null,null,null,null,null,null,null,null,null,null,null,null,null,null,null,null,null,null,null,null,null,null,null,null,null,null,null,null,null,null,0,null,0,0,0,0,0,null,0,0,0,0,0,null,0,0,0,0,0,null,0,0,0,0,0,null,0,0,0,0,0,null,0,0,0,0,0,null,0,0,0,0,0,null,0,0,0,0,0,null,0,0,0,0,0,null,0,0,0,0,0,null,null,null,null,null,null,null,null,null,null,null,null,null,null,null,null,null,null,null,null,null,null,null,null,null,0,0,0,0,0,null,null,null,null,null,null,null,null,null,null,null,null,null,null,null,null,null,null,null,null,null,null,null,null,null,0,0,0,0,0,null,null,null,null,null,null,null,null,null,null,null,null,null,null,null,null,null,null,null,null,null,null,null,null,null,0,0,0,0,0]
[null,112,"Warm tapwater","GE3","Vervang bij een indirect verwarmd voorraadvat de bestaande ketel door een HR-ketel.",null,null,null,null,null,null,null,null,null,null,null,null,null,null,null,null,null,null,null,null,null,null,null,null,null,null,null,null,null,null,null,null,null,0,null,0,0,0,0,0,null,0,0,0,0,0,null,0,0,0,0,0,null,0,0,0,0,0,null,0,0,0,0,0,null,0,0,0,0,0,null,0,0,0,0,0,null,0,0,0,0,0,null,0,0,0,0,0,null,0,0,0,0,0,null,null,null,null,null,null,null,null,null,null,null,null,null,null,null,null,null,null,null,null,null,null,null,null,null,0,0,0,0,0,null,null,null,null,null,null,null,null,null,null,null,null,null,null,null,null,null,null,null,null,null,null,null,null,null,0,0,0,0,0,null,null,null,null,null,null,null,null,null,null,null,null,null,null,null,null,null,null,null,null,null,null,null,null,null,0,0,0,0,0]
[null,113,"Warm tapwater","geen","Installeer warmteterugwinning op douchewater",null,null,null,null,null,null,null,null,null,null,null,null,null,null,null,null,null,null,null,null,null,null,null,null,null,null,null,null,null,null,null,null,null,0,null,0,0,0,0,0,null,0,0,0,0,0,null,0,0,0,0,0,null,0,0,0,0,0,null,0,0,0,0,0,null,0,0,0,0,0,null,0,0,0,0,0,null,0,0,0,0,0,null,0,0,0,0,0,null,0,0,0,0,0,null,null,null,null,null,null,null,null,null,null,null,null,null,null,null,null,null,null,null,null,null,null,null,null,null,0,0,0,0,0,null,null,null,null,null,null,null,null,null,null,null,null,null,null,null,null,null,null,null,null,null,null,null,null,null,0,0,0,0,0,null,null,null,null,null,null,null,null,null,null,null,null,null,null,null,null,null,null,null,null,null,null,null,null,null,0,0,0,0,0]
[null,114,"Warm tapwater","geen","Installeer een warmtepompboiler voor tapwater",null,null,null,null,null,null,null,null,null,null,null,null,null,null,null,null,null,null,null,null,null,null,null,null,null,null,null,null,null,null,null,null,null,0,null,0,0,0,0,0,null,0,0,0,0,0,null,0,0,0,0,0,null,0,0,0,0,0,null,0,0,0,0,0,null,0,0,0,0,0,null,0,0,0,0,0,null,0,0,0,0,0,null,0,0,0,0,0,null,0,0,0,0,0,null,null,null,null,null,null,null,null,null,null,null,null,null,null,null,null,null,null,null,null,null,null,null,null,null,0,0,0,0,0,null,null,null,null,null,null,null,null,null,null,null,null,null,null,null,null,null,null,null,null,null,null,null,null,null,0,0,0,0,0,null,null,null,null,null,null,null,null,null,null,null,null,null,null,null,null,null,null,null,null,null,null,null,null,null,0,0,0,0,0]
[null,115,"Warm tapwater","geen","Installeer een zonneboiler",null,null,null,null,null,null,null,null,null,null,null,null,null,null,null,null,null,null,null,null,null,null,null,null,null,null,null,null,null,null,null,null,null,0,null,0,0,0,0,0,null,0,0,0,0,0,null,0,0,0,0,0,null,0,0,0,0,0,null,0,0,0,0,0,null,0,0,0,0,0,null,0,0,0,0,0,null,0,0,0,0,0,null,0,0,0,0,0,null,0,0,0,0,0,null,null,null,null,null,null,null,null,null,null,null,null,null,null,null,null,null,null,null,null,null,null,null,null,null,0,0,0,0,0,null,null,null,null,null,null,null,null,null,null,null,null,null,null,null,null,null,null,null,null,null,null,null,null,null,0,0,0,0,0,null,null,null,null,null,null,null,null,null,null,null,null,null,null,null,null,null,null,null,null,null,null,null,null,null,0,0,0,0,0]
[null,116,"Warm tapwater","geen","Warm tapwater loskoppelen van ruimteverwarming",null,null,null,null,null,null,null,null,null,null,null,null,null,null,null,null,null,null,null,null,null,null,null,null,null,null,null,null,null,null,null,null,null,0,null,0,0,0,0,0,null,0,0,0,0,0,null,0,0,0,0,0,null,0,0,0,0,0,null,0,0,0,0,0,null,0,0,0,0,0,null,0,0,0,0,0,null,0,0,0,0,0,null,0,0,0,0,0,null,0,0,0,0,0,null,null,null,null,null,null,null,null,null,null,null,null,null,null,null,null,null,null,null,null,null,null,null,null,null,0,0,0,0,0,null,null,null,null,null,null,null,null,null,null,null,null,null,null,null,null,null,null,null,null,null,null,null,null,null,0,0,0,0,0,null,null,null,null,null,null,null,null,null,null,null,null,null,null,null,null,null,null,null,null,null,null,null,null,null,0,0,0,0,0]
[null,117,"Binnenverlichting","GF 1","Pas een regeling toe op de verlichting, zodat buiten gebruikstijden niet onnodig brandt.",null,null,null,null,null,null,null,null,null,null,null,null,null,null,null,null,null,null,null,null,null,null,null,null,null,null,null,null,null,null,null,null,null,0,null,0,0,0,0,0,null,0,0,0,0,0,null,0,0,0,0,0,null,0,0,0,0,0,null,0,0,0,0,0,null,0,0,0,0,0,null,0,0,0,0,0,null,0,0,0,0,0,null,0,0,0,0,0,null,0,0,0,0,0,null,null,null,null,null,null,null,null,null,null,null,null,null,null,null,null,null,null,null,null,null,null,null,null,null,0,0,0,0,0,null,null,null,null,null,null,null,null,null,null,null,null,null,null,null,null,null,null,null,null,null,null,null,null,null,0,0,0,0,0,null,null,null,null,null,null,null,null,null,null,null,null,null,null,null,null,null,null,null,null,null,null,null,null,null,0,0,0,0,0]
[null,118,"Binnenverlichting","GF 2","Vervang TL8-buizen door LED-buizen.",null,null,null,null,null,null,null,null,null,null,null,null,null,null,null,null,null,null,null,null,null,null,null,null,null,null,null,null,null,null,null,null,null,0,null,0,0,0,0,0,null,0,0,0,0,0,null,0,0,0,0,0,null,0,0,0,0,0,null,0,0,0,0,0,null,0,0,0,0,0,null,0,0,0,0,0,null,0,0,0,0,0,null,0,0,0,0,0,null,0,0,0,0,0,null,null,null,null,null,null,null,null,null,null,null,null,null,null,null,null,null,null,null,null,null,null,null,null,null,0,0,0,0,0,null,null,null,null,null,null,null,null,null,null,null,null,null,null,null,null,null,null,null,null,null,null,null,null,null,0,0,0,0,0,null,null,null,null,null,null,null,null,null,null,null,null,null,null,null,null,null,null,null,null,null,null,null,null,null,0,0,0,0,0]
[null,119,"Binnenverlichting","GF 3","Vervang T5-fluorescentiebuizen door LED-buizen.",null,null,null,null,null,null,null,null,null,null,null,null,null,null,null,null,null,null,null,null,null,null,null,null,null,null,null,null,null,null,null,null,null,0,null,0,0,0,0,0,null,0,0,0,0,0,null,0,0,0,0,0,null,0,0,0,0,0,null,0,0,0,0,0,null,0,0,0,0,0,null,0,0,0,0,0,null,0,0,0,0,0,null,0,0,0,0,0,null,0,0,0,0,0,null,null,null,null,null,null,null,null,null,null,null,null,null,null,null,null,null,null,null,null,null,null,null,null,null,0,0,0,0,0,null,null,null,null,null,null,null,null,null,null,null,null,null,null,null,null,null,null,null,null,null,null,null,null,null,0,0,0,0,0,null,null,null,null,null,null,null,null,null,null,null,null,null,null,null,null,null,null,null,null,null,null,null,null,null,0,0,0,0,0]
[null,120,"Binnenverlichting","GF 4","Vervang gloei-, halogeen- en spaarlampen door LED-lampen.",null,null,null,null,null,null,null,null,null,null,null,null,null,null,null,null,null,null,null,null,null,null,null,null,null,null,null,null,null,null,null,null,null,0,null,0,0,0,0,0,null,0,0,0,0,0,null,0,0,0,0,0,null,0,0,0,0,0,null,0,0,0,0,0,null,0,0,0,0,0,null,0,0,0,0,0,null,0,0,0,0,0,null,0,0,0,0,0,null,0,0,0,0,0,null,null,null,null,null,null,null,null,null,null,null,null,null,null,null,null,null,null,null,null,null,null,null,null,null,0,0,0,0,0,null,null,null,null,null,null,null,null,null,null,null,null,null,null,null,null,null,null,null,null,null,null,null,null,null,0,0,0,0,0,null,null,null,null,null,null,null,null,null,null,null,null,null,null,null,null,null,null,null,null,null,null,null,null,null,0,0,0,0,0]
[null,121,"Binnenverlichting","GF 5","Vervang gasontladingslampen door LED-lampen.",null,null,"i","ons","Ja",0,{"$f":"IF($C$5<3000,(#REF!*$C$5)+#REF!,(#REF!*$C$5)+#REF!)","v":{"$error":"#REF!"}},null,{"$f":"($C$19*P165)+($C$18*Q165)+($C$20*R165)","v":{"$error":"#REF!"}},{"$f":"IF(N165=0,\"\",(L165+M165)/N165)","v":{"$error":"#REF!"}},{"$f":"IF($C$5<3000,$AN$32*#REF!,$AN$32*#REF!)","v":{"$error":"#REF!"}},{"$f":"IF($C$5<3000,$AN$31*#REF!,$AN$31*#REF!)","v":{"$error":"#REF!"}},{"$f":"IF($C$5<3000,$AN$33*#REF!,$AN$33*#REF!)","v":{"$error":"#REF!"}},null,0,{"$error":"#REF!"},null,{"$error":"#REF!"},{"$error":"#REF!"},{"$error":"#REF!"},{"$error":"#REF!"},{"$error":"#REF!"},null,{"$error":"#REF!"},{"$error":"#REF!"},{"$error":"#REF!"},{"$error":"#REF!"},{"$error":"#REF!"},null,{"$error":"#REF!"},{"$error":"#REF!"},{"$error":"#REF!"},{"$error":"#REF!"},{"$error":"#REF!"},null,{"$error":"#REF!"},{"$error":"#REF!"},{"$error":"#REF!"},{"$error":"#REF!"},{"$error":"#REF!"},null,{"$error":"#REF!"},{"$error":"#REF!"},{"$error":"#REF!"},{"$error":"#REF!"},{"$error":"#REF!"},null,{"$error":"#REF!"},{"$error":"#REF!"},{"$error":"#REF!"},{"$error":"#REF!"},{"$error":"#REF!"},null,{"$error":"#REF!"},{"$error":"#REF!"},{"$error":"#REF!"},{"$error":"#REF!"},{"$error":"#REF!"},null,{"$error":"#REF!"},{"$error":"#REF!"},{"$error":"#REF!"},{"$error":"#REF!"},{"$error":"#REF!"},null,{"$error":"#REF!"},{"$error":"#REF!"},{"$error":"#REF!"},{"$error":"#REF!"},{"$error":"#REF!"},null,{"$error":"#REF!"},{"$error":"#REF!"},{"$error":"#REF!"},{"$error":"#REF!"},{"$error":"#REF!"},null,{"$error":"#REF!"},{"$error":"#REF!"},{"$error":"#REF!"},{"$error":"#REF!"},{"$error":"#REF!"},null,{"$error":"#REF!"},{"$error":"#REF!"},{"$error":"#REF!"},{"$error":"#REF!"},{"$error":"#REF!"},null,{"$error":"#REF!"},{"$error":"#REF!"},{"$error":"#REF!"},{"$error":"#REF!"},{"$error":"#REF!"},null,null,null,null,null,null,null,null,null,null,null,null,null,null,null,null,null,null,null,null,null,null,null,null,null,{"$error":"#REF!"},{"$error":"#REF!"},{"$error":"#REF!"},{"$error":"#REF!"},{"$error":"#REF!"},null,null,null,null,null,null,null,null,null,null,null,null,null,null,null,null,null,null,null,null,null,null,null,null,null,{"$error":"#REF!"},{"$error":"#REF!"},{"$error":"#REF!"},{"$error":"#REF!"},{"$error":"#REF!"},null,null,null,null,null,null,null,null,null,null,null,null,null,null,null,null,null,null,null,null,null,null,null,null,null,{"$error":"#REF!"},{"$error":"#REF!"},{"$error":"#REF!"},{"$error":"#REF!"},{"$error":"#REF!"}]
[null,122,"Binnenverlichting","GF 6","Vervang montagebalken en lichtlijnen met TL8-buizen door LED-armaturen.",null,null,"i","ons","Ja",0,{"$f":"IF($C$5<3000,(#REF!*$C$5)+#REF!,(#REF!*$C$5)+#REF!)","v":{"$error":"#REF!"}},null,{"$error":"#REF!"},{"$error":"#REF!"},null,{"$f":"IF($C$5<3000,$AN$31*#REF!,$AN$31*#REF!)","v":{"$error":"#REF!"}},{"$f":"IF($C$5<3000,$AN$33*#REF!,$AN$33*#REF!)","v":{"$error":"#REF!"}},null,0,{"$error":"#REF!"},null,{"$error":"#REF!"},0,{"$error":"#REF!"},{"$error":"#REF!"},{"$error":"#REF!"},null,{"$error":"#REF!"},0,{"$error":"#REF!"},{"$error":"#REF!"},{"$error":"#REF!"},null,{"$error":"#REF!"},0,{"$error":"#REF!"},{"$error":"#REF!"},{"$error":"#REF!"},null,{"$error":"#REF!"},0,{"$error":"#REF!"},{"$error":"#REF!"},{"$error":"#REF!"},null,{"$error":"#REF!"},0,{"$error":"#REF!"},{"$error":"#REF!"},{"$error":"#REF!"},null,{"$error":"#REF!"},0,{"$error":"#REF!"},{"$error":"#REF!"},{"$error":"#REF!"},null,{"$error":"#REF!"},0,{"$error":"#REF!"},{"$error":"#REF!"},{"$error":"#REF!"},null,{"$error":"#REF!"},0,{"$error":"#REF!"},{"$error":"#REF!"},{"$error":"#REF!"},null,{"$error":"#REF!"},0,{"$error":"#REF!"},{"$error":"#REF!"},{"$error":"#REF!"},null,{"$error":"#REF!"},0,{"$error":"#REF!"},{"$error":"#REF!"},{"$error":"#REF!"},null,{"$error":"#REF!"},0,{"$error":"#REF!"},{"$error":"#REF!"},{"$error":"#REF!"},null,{"$error":"#REF!"},0,{"$error":"#REF!"},{"$error":"#REF!"},{"$error":"#REF!"},null,{"$error":"#REF!"},0,{"$error":"#REF!"},{"$error":"#REF!"},{"$error":"#REF!"},null,null,null,null,null,null,null,null,null,null,null,null,null,null,null,null,null,null,null,null,null,null,null,null,null,{"$error":"#REF!"},0,{"$error":"#REF!"},{"$error":"#REF!"},{"$error":"#REF!"},null,null,null,null,null,null,null,null,null,null,null,null,null,null,null,null,null,null,null,null,null,null,null,null,null,{"$error":"#REF!"},0,{"$error":"#REF!"},{"$error":"#REF!"},{"$error":"#REF!"},null,null,null,null,null,null,null,null,null,null,null,null,null,null,null,null,null,null,null,null,null,null,null,null,null,{"$error":"#REF!"},0,{"$error":"#REF!"},{"$error":"#REF!"},{"$error":"#REF!"}]
[null,123,"Binnenverlichting","GF 7","Vervang plafondspots met spaarlampen door LED-spots.",null,null,"i","ons","Ja",0,{"$f":"IF($C$5<3000,(#REF!*$C$5)+#REF!,(#REF!*$C$5)+#REF!)","v":{"$error":"#REF!"}},null,{"$error":"#REF!"},{"$error":"#REF!"},{"$f":"IF($C$5<3000,$AN$32*#REF!,$AN$32*#REF!)","v":{"$error":"#REF!"}},{"$f":"IF($C$5<3000,$AN$31*#REF!,$AN$31*#REF!)","v":{"$error":"#REF!"}},{"$f":"IF($C$5<3000,$AN$33*#REF!,$AN$33*#REF!)","v":{"$error":"#REF!"}},null,0,{"$error":"#REF!"},null,{"$error":"#REF!"},{"$error":"#REF!"},{"$error":"#REF!"},{"$error":"#REF!"},{"$error":"#REF!"},null,{"$error":"#REF!"},{"$error":"#REF!"},{"$error":"#REF!"},{"$error":"#REF!"},{"$error":"#REF!"},null,{"$error":"#REF!"},{"$error":"#REF!"},{"$error":"#REF!"},{"$error":"#REF!"},{"$error":"#REF!"},null,{"$error":"#REF!"},{"$error":"#REF!"},{"$error":"#REF!"},{"$error":"#REF!"},{"$error":"#REF!"},null,{"$error":"#REF!"},{"$error":"#REF!"},{"$error":"#REF!"},{"$error":"#REF!"},{"$error":"#REF!"},null,{"$error":"#REF!"},{"$error":"#REF!"},{"$error":"#REF!"},{"$error":"#REF!"},{"$error":"#REF!"},null,{"$error":"#REF!"},{"$error":"#REF!"},{"$error":"#REF!"},{"$error":"#REF!"},{"$error":"#REF!"},null,{"$error":"#REF!"},{"$error":"#REF!"},{"$error":"#REF!"},{"$error":"#REF!"},{"$error":"#REF!"},null,{"$error":"#REF!"},{"$error":"#REF!"},{"$error":"#REF!"},{"$error":"#REF!"},{"$error":"#REF!"},null,{"$error":"#REF!"},{"$error":"#REF!"},{"$error":"#REF!"},{"$error":"#REF!"},{"$error":"#REF!"},null,{"$error":"#REF!"},{"$error":"#REF!"},{"$error":"#REF!"},{"$error":"#REF!"},{"$error":"#REF!"},null,{"$error":"#REF!"},{"$error":"#REF!"},{"$error":"#REF!"},{"$error":"#REF!"},{"$error":"#REF!"},null,{"$error":"#REF!"},{"$error":"#REF!"},{"$error":"#REF!"},{"$error":"#REF!"},{"$error":"#REF!"},null,null,null,null,null,null,null,null,null,null,null,null,null,null,null,null,null,null,null,null,null,null,null,null,null,{"$error":"#REF!"},{"$error":"#REF!"},{"$error":"#REF!"},{"$error":"#REF!"},{"$error":"#REF!"},null,null,null,null,null,null,null,null,null,null,null,null,null,null,null,null,null,null,null,null,null,null,null,null,null,{"$error":"#REF!"},{"$error":"#REF!"},{"$error":"#REF!"},{"$error":"#REF!"},{"$error":"#REF!"},null,null,null,null,null,null,null,null,null,null,null,null,null,null,null,null,null,null,null,null,null,null,null,null,null,{"$error":"#REF!"},{"$error":"#REF!"},{"$error":"#REF!"},{"$error":"#REF!"},{"$error":"#REF!"}]
[null,124,"Binnenverlichting","GF 8","Vervang wandarmaturen met spaarlampen door LED-wandarmaturen.",null,null,null,null,null,null,null,null,null,null,null,null,null,null,null,null,null,null,null,null,null,null,null,null,null,null,null,null,null,null,null,null,null,0,null,0,0,0,0,0,null,0,0,0,0,0,null,0,0,0,0,0,null,0,0,0,0,0,null,0,0,0,0,0,null,0,0,0,0,0,null,0,0,0,0,0,null,0,0,0,0,0,null,0,0,0,0,0,null,0,0,0,0,0,null,null,null,null,null,null,null,null,null,null,null,null,null,null,null,null,null,null,null,null,null,null,null,null,null,0,0,0,0,0,null,null,null,null,null,null,null,null,null,null,null,null,null,null,null,null,null,null,null,null,null,null,null,null,null,0,0,0,0,0,null,null,null,null,null,null,null,null,null,null,null,null,null,null,null,null,null,null,null,null,null,null,null,null,null,0,0,0,0,0]
[null,125,"Binnenverlichting","GF 9","Vervang wandarmaturen met halogeenlampen door LED-wandarmaturen.",null,null,null,null,null,null,null,null,null,null,null,null,null,null,null,null,null,null,null,null,null,null,null,null,null,null,null,null,null,null,null,null,null,0,null,0,0,0,0,0,null,0,0,0,0,0,null,0,0,0,0,0,null,0,0,0,0,0,null,0,0,0,0,0,null,0,0,0,0,0,null,0,0,0,0,0,null,0,0,0,0,0,null,0,0,0,0,0,null,0,0,0,0,0,null,null,null,null,null,null,null,null,null,null,null,null,null,null,null,null,null,null,null,null,null,null,null,null,null,0,0,0,0,0,null,null,null,null,null,null,null,null,null,null,null,null,null,null,null,null,null,null,null,null,null,null,null,null,null,0,0,0,0,0,null,null,null,null,null,null,null,null,null,null,null,null,null,null,null,null,null,null,null,null,null,null,null,null,null,0,0,0,0,0]
[null,126,"Binnenverlichting","GF10","Vervang spots met halogeenlampen door LED-spots.",null,null,null,null,null,null,null,null,null,null,null,null,null,null,null,null,null,null,null,null,null,null,null,null,null,null,null,null,null,null,null,null,null,0,null,0,0,0,0,0,null,0,0,0,0,0,null,0,0,0,0,0,null,0,0,0,0,0,null,0,0,0,0,0,null,0,0,0,0,0,null,0,0,0,0,0,null,0,0,0,0,0,null,0,0,0,0,0,null,0,0,0,0,0,null,null,null,null,null,null,null,null,null,null,null,null,null,null,null,null,null,null,null,null,null,null,null,null,null,0,0,0,0,0,null,null,null,null,null,null,null,null,null,null,null,null,null,null,null,null,null,null,null,null,null,null,null,null,null,0,0,0,0,0,null,null,null,null,null,null,null,null,null,null,null,null,null,null,null,null,null,null,null,null,null,null,null,null,null,0,0,0,0,0]
[null,127,"Binnenverlichting","GF11","Vervang railspots met halogeenlampen door LED-railspots.",null,null,null,null,null,null,null,null,null,null,null,null,null,null,null,null,null,null,null,null,null,null,null,null,null,null,null,null,null,null,null,null,null,0,null,0,0,0,0,0,null,0,0,0,0,0,null,0,0,0,0,0,null,0,0,0,0,0,null,0,0,0,0,0,null,0,0,0,0,0,null,0,0,0,0,0,null,0,0,0,0,0,null,0,0,0,0,0,null,0,0,0,0,0,null,null,null,null,null,null,null,null,null,null,null,null,null,null,null,null,null,null,null,null,null,null,null,null,null,0,0,0,0,0,null,null,null,null,null,null,null,null,null,null,null,null,null,null,null,null,null,null,null,null,null,null,null,null,null,0,0,0,0,0,null,null,null,null,null,null,null,null,null,null,null,null,null,null,null,null,null,null,null,null,null,null,null,null,null,0,0,0,0,0]
[null,128,"Binnenverlichting","GF12","Vervang railspots met gasontladingslampen door LED-railspots.",null,null,null,null,null,null,null,null,null,null,null,null,null,null,null,null,null,null,null,null,null,null,null,null,null,null,null,null,null,null,null,null,null,0,null,{"$f":"+AN172*($L172+$M172)","v":0},{"$f":"$P172*AN172","v":0},0,0,0,null,{"$f":"+AT172*($L172+$M172)","v":0},{"$f":"$P172*AT172","v":0},0,0,0,null,{"$f":"+AZ172*($L172+$M172)","v":0},{"$f":"$P172*AZ172","v":0},0,0,0,null,{"$f":"+BF172*($L172+$M172)","v":0},{"$f":"$P172*BF172","v":0},0,0,0,null,{"$f":"+BL172*($L172+$M172)","v":0},{"$f":"$P172*BL172","v":0},0,0,0,null,{"$f":"+BR172*($L172+$M172)","v":0},{"$f":"$P172*BR172","v":0},0,0,0,null,{"$f":"+BX172*($L172+$M172)","v":0},{"$f":"$P172*BX172","v":0},0,0,0,null,{"$f":"+CD172*($L172+$M172)","v":0},{"$f":"$P172*CD172","v":0},0,0,0,null,{"$f":"+CJ172*($L172+$M172)","v":0},{"$f":"$P172*CJ172","v":0},0,0,0,null,{"$f":"+CP172*($L172+$M172)","v":0},{"$f":"$P172*CP172","v":0},0,0,0,null,null,null,null,null,null,null,null,null,null,null,null,null,null,null,null,null,null,null,null,null,null,null,null,null,{"$f":"+DT172*($L172+$M172)","v":0},{"$f":"$P172*DT172","v":0},0,0,0,null,null,null,null,null,null,null,null,null,null,null,null,null,null,null,null,null,null,null,null,null,null,null,null,null,{"$f":"+EX172*($L172+$M172)","v":0},{"$f":"$P172*EX172","v":0},0,0,0,null,null,null,null,null,null,null,null,null,null,null,null,null,null,null,null,null,null,null,null,null,null,null,null,null,{"$f":"+GB172*($L172+$M172)","v":0},{"$f":"$P172*GB172","v":0},0,0,0]
[null,129,"Binnenverlichting","GF13","Vervang pendel- en opbouwarmaturen met gasontladingslampen door LED-armaturen.",null,null,null,null,null,null,null,null,null,null,null,null,null,null,null,null,null,null,null,null,null,null,null,null,null,null,null,null,null,null,null,null,null,{"$f":"AH173*$N173","v":0},null,0,0,{"$f":"$Q173*AN173","v":0},{"$f":"+AN173*$R173","v":0},{"$f":"AN173*$N173","v":0},null,0,0,{"$f":"$Q173*AT173","v":0},{"$f":"+AT173*$R173","v":0},{"$f":"AT173*$N173","v":0},null,0,0,{"$f":"$Q173*AZ173","v":0},{"$f":"+AZ173*$R173","v":0},{"$f":"AZ173*$N173","v":0},null,0,0,{"$f":"$Q173*BF173","v":0},{"$f":"+BF173*$R173","v":0},{"$f":"BF173*$N173","v":0},null,0,0,{"$f":"$Q173*BL173","v":0},{"$f":"+BL173*$R173","v":0},{"$f":"BL173*$N173","v":0},null,0,0,{"$f":"$Q173*BR173","v":0},{"$f":"+BR173*$R173","v":0},{"$f":"BR173*$N173","v":0},null,0,0,{"$f":"$Q173*BX173","v":0},{"$f":"+BX173*$R173","v":0},{"$f":"BX173*$N173","v":0},null,0,0,{"$f":"$Q173*CD173","v":0},{"$f":"+CD173*$R173","v":0},{"$f":"CD173*$N173","v":0},null,0,0,{"$f":"$Q173*CJ173","v":0},{"$f":"+CJ173*$R173","v":0},{"$f":"CJ173*$N173","v":0},null,0,0,{"$f":"$Q173*CP173","v":0},{"$f":"+CP173*$R173","v":0},{"$f":"CP173*$N173","v":0},null,null,null,null,null,null,null,null,null,null,null,null,null,null,null,null,null,null,null,null,null,null,null,null,null,0,0,{"$f":"$Q173*DT173","v":0},{"$f":"+DT173*$R173","v":0},{"$f":"DT173*$N173","v":0},null,null,null,null,null,null,null,null,null,null,null,null,null,null,null,null,null,null,null,null,null,null,null,null,null,0,0,{"$f":"$Q173*EX173","v":0},{"$f":"+EX173*$R173","v":0},{"$f":"EX173*$N173","v":0},null,null,null,null,null,null,null,null,null,null,null,null,null,null,null,null,null,null,null,null,null,null,null,null,null,0,0,{"$f":"$Q173*GB173","v":0},{"$f":"+GB173*$R173","v":0},{"$f":"GB173*$N173","v":0}]
[null,130,"Binnenverlichting","GF14","Vervang ingebouwde plafondarmaturen met TL8-buizen door LED-armaturen.",null,null,null,null,null,null,null,null,null,null,null,null,null,null,null,null,null,null,null,null,null,null,null,null,null,null,null,null,null,null,null,null,null,0,null,0,0,0,0,0,null,0,0,0,0,0,null,0,0,0,0,0,null,0,0,0,0,0,null,0,0,0,0,0,null,0,0,0,0,0,null,0,0,0,0,0,null,0,0,0,0,0,null,0,0,0,0,0,null,0,0,0,0,0,null,null,null,null,null,null,null,null,null,null,null,null,null,null,null,null,null,null,null,null,null,null,null,null,null,0,0,0,0,0,null,null,null,null,null,null,null,null,null,null,null,null,null,null,null,null,null,null,null,null,null,null,null,null,null,0,0,0,0,0,null,null,null,null,null,null,null,null,null,null,null,null,null,null,null,null,null,null,null,null,null,null,null,null,null,0,0,0,0,0]
[null,131,"Binnenverlichting","GF15","Vervang vluchtwegsignaleringsarmaturen met TL- of spaarlampen door LED-armaturen.",null,null,null,null,null,null,null,null,null,null,null,null,null,null,null,null,null,null,null,null,null,null,null,null,null,null,null,null,null,null,null,null,null,0,null,0,0,0,0,0,null,0,0,0,0,0,null,0,0,0,0,0,null,0,0,0,0,0,null,0,0,0,0,0,null,0,0,0,0,0,null,0,0,0,0,0,null,0,0,0,0,0,null,0,0,0,0,0,null,0,0,0,0,0,null,null,null,null,null,null,null,null,null,null,null,null,null,null,null,null,null,null,null,null,null,null,null,null,null,0,0,0,0,0,null,null,null,null,null,null,null,null,null,null,null,null,null,null,null,null,null,null,null,null,null,null,null,null,null,0,0,0,0,0,null,null,null,null,null,null,null,null,null,null,null,null,null,null,null,null,null,null,null,null,null,null,null,null,null,0,0,0,0,0]
[null,132,"Buitenverlichting","GG1","Vervang armaturen met TL8-buizen door LED-armaturen.",null,null,null,null,null,null,null,null,null,null,null,null,null,null,null,null,null,null,null,null,null,null,null,null,null,null,null,null,null,null,null,null,null,0,null,0,0,0,0,0,null,0,0,0,0,0,null,0,0,0,0,0,null,0,0,0,0,0,null,0,0,0,0,0,null,0,0,0,0,0,null,0,0,0,0,0,null,0,0,0,0,0,null,0,0,0,0,0,null,0,0,0,0,0,null,null,null,null,null,null,null,null,null,null,null,null,null,null,null,null,null,null,null,null,null,null,null,null,null,0,0,0,0,0,null,null,null,null,null,null,null,null,null,null,null,null,null,null,null,null,null,null,null,null,null,null,null,null,null,0,0,0,0,0,null,null,null,null,null,null,null,null,null,null,null,null,null,null,null,null,null,null,null,null,null,null,null,null,null,0,0,0,0,0]
[null,133,"Buitenverlichting","GG2","Vervang wandarmaturen met halogeenlampen door LED-armaturen.",null,null,null,null,null,null,null,null,null,null,null,null,null,null,null,null,null,null,null,null,null,null,null,null,null,null,null,null,null,null,null,null,null,0,null,0,0,0,0,0,null,0,0,0,0,0,null,0,0,0,0,0,null,0,0,0,0,0,null,0,0,0,0,0,null,0,0,0,0,0,null,0,0,0,0,0,null,0,0,0,0,0,null,0,0,0,0,0,null,0,0,0,0,0,null,null,null,null,null,null,null,null,null,null,null,null,null,null,null,null,null,null,null,null,null,null,null,null,null,0,0,0,0,0,null,null,null,null,null,null,null,null,null,null,null,null,null,null,null,null,null,null,null,null,null,null,null,null,null,0,0,0,0,0,null,null,null,null,null,null,null,null,null,null,null,null,null,null,null,null,null,null,null,null,null,null,null,null,null,0,0,0,0,0]
[null,134,"Buitenverlichting","GG3","Vervang wandarmaturen met spaarlampen door LED-armaturen.",null,null,null,null,null,null,null,null,null,null,null,null,null,null,null,null,null,null,null,null,null,null,null,null,null,null,null,null,null,null,null,null,null,0,null,0,0,0,0,0,null,0,0,0,0,0,null,0,0,0,0,0,null,0,0,0,0,0,null,0,0,0,0,0,null,0,0,0,0,0,null,0,0,0,0,0,null,0,0,0,0,0,null,0,0,0,0,0,null,0,0,0,0,0,null,null,null,null,null,null,null,null,null,null,null,null,null,null,null,null,null,null,null,null,null,null,null,null,null,0,0,0,0,0,null,null,null,null,null,null,null,null,null,null,null,null,null,null,null,null,null,null,null,null,null,null,null,null,null,0,0,0,0,0,null,null,null,null,null,null,null,null,null,null,null,null,null,null,null,null,null,null,null,null,null,null,null,null,null,0,0,0,0,0]
[null,135,"Buitenverlichting","GG4","Vervang armaturen met gasontladingslampen door LED-armaturen.",null,null,null,null,null,null,null,null,null,null,null,null,null,null,null,null,null,null,null,null,null,null,null,null,null,null,null,null,null,null,null,null,null,0,null,0,0,0,0,0,null,0,0,0,0,0,null,0,0,0,0,0,null,0,0,0,0,0,null,0,0,0,0,0,null,0,0,0,0,0,null,0,0,0,0,0,null,0,0,0,0,0,null,0,0,0,0,0,null,0,0,0,0,0,null,null,null,null,null,null,null,null,null,null,null,null,null,null,null,null,null,null,null,null,null,null,null,null,null,0,0,0,0,0,null,null,null,null,null,null,null,null,null,null,null,null,null,null,null,null,null,null,null,null,null,null,null,null,null,0,0,0,0,0,null,null,null,null,null,null,null,null,null,null,null,null,null,null,null,null,null,null,null,null,null,null,null,null,null,0,0,0,0,0]
[null,136,"Zonnepanelen","GH1","Plaats zonnepanelen op het dak (ook FK1)",null,null,null,null,null,null,null,null,null,null,null,null,null,null,null,null,null,null,null,null,null,null,null,null,null,null,null,null,null,null,null,null,null,0,null,0,0,0,0,0,null,0,0,0,0,0,null,0,0,0,0,0,null,0,0,0,0,0,null,0,0,0,0,0,null,0,0,0,0,0,null,0,0,0,0,0,null,0,0,0,0,0,null,0,0,0,0,0,null,0,0,0,0,0,null,null,null,null,null,null,null,null,null,null,null,null,null,null,null,null,null,null,null,null,null,null,null,null,null,0,0,0,0,0,null,null,null,null,null,null,null,null,null,null,null,null,null,null,null,null,null,null,null,null,null,null,null,null,null,0,0,0,0,0,null,null,null,null,null,null,null,null,null,null,null,null,null,null,null,null,null,null,null,null,null,null,null,null,null,0,0,0,0,0]
[null,137,"Zonnepanelen","geen","Plaats zonnepanelen op de zuidgevel ( 25% oppervlak)",null,null,null,null,null,null,null,null,null,null,null,null,null,null,null,null,null,null,null,null,null,null,null,null,null,null,null,null,null,null,null,null,null,0,null,0,0,0,0,0,null,0,0,0,0,0,null,0,0,0,0,0,null,0,0,0,0,0,null,0,0,0,0,0,null,0,0,0,0,0,null,0,0,0,0,0,null,0,0,0,0,0,null,0,0,0,0,0,null,0,0,0,0,0,null,null,null,null,null,null,null,null,null,null,null,null,null,null,null,null,null,null,null,null,null,null,null,null,null,0,0,0,0,0,null,null,null,null,null,null,null,null,null,null,null,null,null,null,null,null,null,null,null,null,null,null,null,null,null,0,0,0,0,0,null,null,null,null,null,null,null,null,null,null,null,null,null,null,null,null,null,null,null,null,null,null,null,null,null,0,0,0,0,0]
[null,138,"Natlakspuitcabine","PA","Deze hele categorie is niet van toepassing in de care",null,null,null,null,null,null,null,null,null,null,null,null,null,null,null,null,null,null,null,null,null,null,null,null,null,null,null,null,null,null,null,null,null,0,null,0,0,0,0,0,null,0,0,0,0,0,null,0,0,0,0,0,null,0,0,0,0,0,null,0,0,0,0,0,null,0,0,0,0,0,null,0,0,0,0,0,null,0,0,0,0,0,null,0,0,0,0,0,null,0,0,0,0,0,null,null,null,null,null,null,null,null,null,null,null,null,null,null,null,null,null,null,null,null,null,null,null,null,null,0,0,0,0,0,null,null,null,null,null,null,null,null,null,null,null,null,null,null,null,null,null,null,null,null,null,null,null,null,null,0,0,0,0,0,null,null,null,null,null,null,null,null,null,null,null,null,null,null,null,null,null,null,null,null,null,null,null,null,null,0,0,0,0,0]
[null,139,"Drogen","PB","Deze hele categorie is niet van toepassing in de care",null,null,null,null,null,null,null,null,null,null,null,null,null,null,null,null,null,null,null,null,null,null,null,null,null,null,null,null,null,null,null,null,null,0,null,0,0,0,0,0,null,0,0,0,0,0,null,0,0,0,0,0,null,0,0,0,0,0,null,0,0,0,0,0,null,0,0,0,0,0,null,0,0,0,0,0,null,0,0,0,0,0,null,0,0,0,0,0,null,0,0,0,0,0,null,null,null,null,null,null,null,null,null,null,null,null,null,null,null,null,null,null,null,null,null,null,null,null,null,0,0,0,0,0,null,null,null,null,null,null,null,null,null,null,null,null,null,null,null,null,null,null,null,null,null,null,null,null,null,0,0,0,0,0,null,null,null,null,null,null,null,null,null,null,null,null,null,null,null,null,null,null,null,null,null,null,null,null,null,0,0,0,0,0]
[null,140,"Procesbaden","PC","Deze hele categorie is niet van toepassing in de care",null,null,null,null,null,null,null,null,null,null,null,null,null,null,null,null,null,null,null,null,null,null,null,null,null,null,null,null,null,null,null,null,null,0,null,0,0,0,0,0,null,0,0,0,0,0,null,0,0,0,0,0,null,0,0,0,0,0,null,0,0,0,0,0,null,0,0,0,0,0,null,0,0,0,0,0,null,0,0,0,0,0,null,0,0,0,0,0,null,0,0,0,0,0,null,null,null,null,null,null,null,null,null,null,null,null,null,null,null,null,null,null,null,null,null,null,null,null,null,0,0,0,0,0,null,null,null,null,null,null,null,null,null,null,null,null,null,null,null,null,null,null,null,null,null,null,null,null,null,0,0,0,0,0,null,null,null,null,null,null,null,null,null,null,null,null,null,null,null,null,null,null,null,null,null,null,null,null,null,0,0,0,0,0]
[null,141,"Procesapparatuur","PD1","Optimaliseer de procesparameters van procesapparatuur.",null,null,null,null,null,null,null,null,null,null,null,null,null,null,null,null,null,null,null,null,null,null,null,null,null,null,null,null,null,null,null,null,null,0,null,0,0,0,0,0,null,0,0,0,0,0,null,0,0,0,0,0,null,0,0,0,0,0,null,0,0,0,0,0,null,0,0,0,0,0,null,0,0,0,0,0,null,0,0,0,0,0,null,0,0,0,0,0,null,0,0,0,0,0,null,null,null,null,null,null,null,null,null,null,null,null,null,null,null,null,null,null,null,null,null,null,null,null,null,0,0,0,0,0,null,null,null,null,null,null,null,null,null,null,null,null,null,null,null,null,null,null,null,null,null,null,null,null,null,0,0,0,0,0,null,null,null,null,null,null,null,null,null,null,null,null,null,null,null,null,null,null,null,null,null,null,null,null,null,0,0,0,0,0]
[null,142,"Procesapparatuur","PD2","Zuig warme lucht af bij grote warmteproducerende apparaten.",null,null,null,null,null,null,null,null,null,null,null,null,null,null,null,null,null,null,null,null,null,null,null,null,null,null,null,null,null,null,null,null,null,0,null,0,0,0,0,0,null,0,0,0,0,0,null,0,0,0,0,0,null,0,0,0,0,0,null,0,0,0,0,0,null,0,0,0,0,0,null,0,0,0,0,0,null,0,0,0,0,0,null,0,0,0,0,0,null,0,0,0,0,0,null,null,null,null,null,null,null,null,null,null,null,null,null,null,null,null,null,null,null,null,null,null,null,null,null,0,0,0,0,0,null,null,null,null,null,null,null,null,null,null,null,null,null,null,null,null,null,null,null,null,null,null,null,null,null,0,0,0,0,0,null,null,null,null,null,null,null,null,null,null,null,null,null,null,null,null,null,null,null,null,null,null,null,null,null,0,0,0,0,0]
[null,143,"Procesapparatuur","PD3","Regel het luchtafzuigdebiet bij droog- en moffelovens op basis van de bezettingsgraad.",null,null,null,null,null,null,null,null,null,null,null,null,null,null,null,null,null,null,null,null,null,null,null,null,null,null,null,null,null,null,null,null,null,0,null,0,0,0,0,0,null,0,0,0,0,0,null,0,0,0,0,0,null,0,0,0,0,0,null,0,0,0,0,0,null,0,0,0,0,0,null,0,0,0,0,0,null,0,0,0,0,0,null,0,0,0,0,0,null,0,0,0,0,0,null,null,null,null,null,null,null,null,null,null,null,null,null,null,null,null,null,null,null,null,null,null,null,null,null,0,0,0,0,0,null,null,null,null,null,null,null,null,null,null,null,null,null,null,null,null,null,null,null,null,null,null,null,null,null,0,0,0,0,0,null,null,null,null,null,null,null,null,null,null,null,null,null,null,null,null,null,null,null,null,null,null,null,null,null,0,0,0,0,0]
[null,144,"Procesapparatuur","PD4","Pas een hoogfrequente HR-lader toe voor het opladen van tractiebatterijen.",null,null,null,null,null,null,null,null,null,null,null,null,null,null,null,null,null,null,null,null,null,null,null,null,null,null,null,null,null,null,null,null,null,0,null,0,0,0,0,0,null,0,0,0,0,0,null,0,0,0,0,0,null,0,0,0,0,0,null,0,0,0,0,0,null,0,0,0,0,0,null,0,0,0,0,0,null,0,0,0,0,0,null,0,0,0,0,0,null,0,0,0,0,0,null,null,null,null,null,null,null,null,null,null,null,null,null,null,null,null,null,null,null,null,null,null,null,null,null,0,0,0,0,0,null,null,null,null,null,null,null,null,null,null,null,null,null,null,null,null,null,null,null,null,null,null,null,null,null,0,0,0,0,0,null,null,null,null,null,null,null,null,null,null,null,null,null,null,null,null,null,null,null,null,null,null,null,null,null,0,0,0,0,0]
[null,145,"Procesapparatuur","PD5","Plaats filter op afvoerlucht van snipperafzuiger en blaas deze lucht terug de ruimte in.",null,null,null,null,null,null,null,null,null,null,null,null,null,null,null,null,null,null,null,null,null,null,null,null,null,null,null,null,null,null,null,null,null,0,null,0,0,0,0,0,null,0,0,0,0,0,null,0,0,0,0,0,null,0,0,0,0,0,null,0,0,0,0,0,null,0,0,0,0,0,null,0,0,0,0,0,null,0,0,0,0,0,null,0,0,0,0,0,null,0,0,0,0,0,null,null,null,null,null,null,null,null,null,null,null,null,null,null,null,null,null,null,null,null,null,null,null,null,null,0,0,0,0,0,null,null,null,null,null,null,null,null,null,null,null,null,null,null,null,null,null,null,null,null,null,null,null,null,null,0,0,0,0,0,null,null,null,null,null,null,null,null,null,null,null,null,null,null,null,null,null,null,null,null,null,null,null,null,null,0,0,0,0,0]
[null,146,"Procesapparatuur","PD6","Pas een frequentieregelaar toe op de ventilator van de centrale stofafzuiging.",null,null,null,null,null,null,null,null,null,null,null,null,null,null,null,null,null,null,null,null,null,null,null,null,null,null,null,null,null,null,null,null,null,0,null,0,0,0,0,0,null,0,0,0,0,0,null,0,0,0,0,0,null,0,0,0,0,0,null,0,0,0,0,0,null,0,0,0,0,0,null,0,0,0,0,0,null,0,0,0,0,0,null,0,0,0,0,0,null,0,0,0,0,0,null,null,null,null,null,null,null,null,null,null,null,null,null,null,null,null,null,null,null,null,null,null,null,null,null,0,0,0,0,0,null,null,null,null,null,null,null,null,null,null,null,null,null,null,null,null,null,null,null,null,null,null,null,null,null,0,0,0,0,0,null,null,null,null,null,null,null,null,null,null,null,null,null,null,null,null,null,null,null,null,null,null,null,null,null,0,0,0,0,0]
[null,147,"Procesapparatuur","PD7","Plaats een stopknop om het onnodig aanstaan van stofzuigersysteem te voorkomen.",null,null,null,null,null,null,null,null,null,null,null,null,null,null,null,null,null,null,null,null,null,null,null,null,null,null,null,null,null,null,null,null,null,0,null,0,0,0,0,0,null,0,0,0,0,0,null,0,0,0,0,0,null,0,0,0,0,0,null,0,0,0,0,0,null,0,0,0,0,0,null,0,0,0,0,0,null,0,0,0,0,0,null,0,0,0,0,0,null,0,0,0,0,0,null,null,null,null,null,null,null,null,null,null,null,null,null,null,null,null,null,null,null,null,null,null,null,null,null,0,0,0,0,0,null,null,null,null,null,null,null,null,null,null,null,null,null,null,null,null,null,null,null,null,null,null,null,null,null,0,0,0,0,0,null,null,null,null,null,null,null,null,null,null,null,null,null,null,null,null,null,null,null,null,null,null,null,null,null,0,0,0,0,0]
[null,148,"Procesapparatuur","PD8","Plaats freq.regelaar om opgenomen vermogen van centrale vacuümsysteem te beperken.",null,null,null,null,null,null,null,null,null,null,null,null,null,null,null,null,null,null,null,null,null,null,null,null,null,null,null,null,null,null,null,null,null,0,null,0,0,0,0,0,null,0,0,0,0,0,null,0,0,0,0,0,null,0,0,0,0,0,null,0,0,0,0,0,null,0,0,0,0,0,null,0,0,0,0,0,null,0,0,0,0,0,null,0,0,0,0,0,null,0,0,0,0,0,null,null,null,null,null,null,null,null,null,null,null,null,null,null,null,null,null,null,null,null,null,null,null,null,null,0,0,0,0,0,null,null,null,null,null,null,null,null,null,null,null,null,null,null,null,null,null,null,null,null,null,null,null,null,null,0,0,0,0,0,null,null,null,null,null,null,null,null,null,null,null,null,null,null,null,null,null,null,null,null,null,null,null,null,null,0,0,0,0,0]
[null,149,"Procesapparatuur","PD9","Vervang aanwezige verlichting op of nabij procesapparatuur door LED-verlichting.",null,null,null,null,null,null,null,null,null,null,null,null,null,null,null,null,null,null,null,null,null,null,null,null,null,null,null,null,null,null,null,null,null,0,null,0,0,0,0,0,null,0,0,0,0,0,null,0,0,0,0,0,null,0,0,0,0,0,null,0,0,0,0,0,null,0,0,0,0,0,null,0,0,0,0,0,null,0,0,0,0,0,null,0,0,0,0,0,null,0,0,0,0,0,null,null,null,null,null,null,null,null,null,null,null,null,null,null,null,null,null,null,null,null,null,null,null,null,null,0,0,0,0,0,null,null,null,null,null,null,null,null,null,null,null,null,null,null,null,null,null,null,null,null,null,null,null,null,null,0,0,0,0,0,null,null,null,null,null,null,null,null,null,null,null,null,null,null,null,null,null,null,null,null,null,null,null,null,null,0,0,0,0,0]
[null,150,"Proceswarmte","PE1","Plaats aanvullende platen in platenwarmtewisselaar om warmteoverdracht te vergroten.",null,null,null,null,null,null,null,null,null,null,null,null,null,null,null,null,null,null,null,null,null,null,null,null,null,null,null,null,null,null,null,null,null,0,null,0,0,0,0,0,null,0,0,0,0,0,null,0,0,0,0,0,null,0,0,0,0,0,null,0,0,0,0,0,null,0,0,0,0,0,null,0,0,0,0,0,null,0,0,0,0,0,null,0,0,0,0,0,null,0,0,0,0,0,null,null,null,null,null,null,null,null,null,null,null,null,null,null,null,null,null,null,null,null,null,null,null,null,null,0,0,0,0,0,null,null,null,null,null,null,null,null,null,null,null,null,null,null,null,null,null,null,null,null,null,null,null,null,null,0,0,0,0,0,null,null,null,null,null,null,null,null,null,null,null,null,null,null,null,null,null,null,null,null,null,null,null,null,null,0,0,0,0,0]
[null,151,"Proceswarmte","PE2","Isoleer warme productleidingen en appendages.",null,null,null,null,null,null,null,null,null,null,null,null,null,null,null,null,null,null,null,null,null,null,null,null,null,null,null,null,null,null,null,null,null,0,null,0,0,0,0,0,null,0,0,0,0,0,null,0,0,0,0,0,null,0,0,0,0,0,null,0,0,0,0,0,null,0,0,0,0,0,null,0,0,0,0,0,null,0,0,0,0,0,null,0,0,0,0,0,null,0,0,0,0,0,null,null,null,null,null,null,null,null,null,null,null,null,null,null,null,null,null,null,null,null,null,null,null,null,null,0,0,0,0,0,null,null,null,null,null,null,null,null,null,null,null,null,null,null,null,null,null,null,null,null,null,null,null,null,null,0,0,0,0,0,null,null,null,null,null,null,null,null,null,null,null,null,null,null,null,null,null,null,null,null,null,null,null,null,null,0,0,0,0,0]
[null,152,"Proceswarmte","PE3","Isoleer de wanden van hoge temperatuur procesvaten om warmteverlies te beperken.",null,null,null,null,null,null,null,null,null,null,null,null,null,null,null,null,null,null,null,null,null,null,null,null,null,null,null,null,null,null,null,null,null,0,null,0,0,0,0,0,null,0,0,0,0,0,null,0,0,0,0,0,null,0,0,0,0,0,null,0,0,0,0,0,null,0,0,0,0,0,null,0,0,0,0,0,null,0,0,0,0,0,null,0,0,0,0,0,null,0,0,0,0,0,null,null,null,null,null,null,null,null,null,null,null,null,null,null,null,null,null,null,null,null,null,null,null,null,null,0,0,0,0,0,null,null,null,null,null,null,null,null,null,null,null,null,null,null,null,null,null,null,null,null,null,null,null,null,null,0,0,0,0,0,null,null,null,null,null,null,null,null,null,null,null,null,null,null,null,null,null,null,null,null,null,null,null,null,null,0,0,0,0,0]
[null,153,"Proceswarmte","PE4","Isoleer de wanden van verwarmde opslagtanks.",null,null,null,null,null,null,null,null,null,null,null,null,null,null,null,null,null,null,null,null,null,null,null,null,null,null,null,null,null,null,null,null,null,0,null,0,0,0,0,0,null,0,0,0,0,0,null,0,0,0,0,0,null,0,0,0,0,0,null,0,0,0,0,0,null,0,0,0,0,0,null,0,0,0,0,0,null,0,0,0,0,0,null,0,0,0,0,0,null,0,0,0,0,0,null,null,null,null,null,null,null,null,null,null,null,null,null,null,null,null,null,null,null,null,null,null,null,null,null,0,0,0,0,0,null,null,null,null,null,null,null,null,null,null,null,null,null,null,null,null,null,null,null,null,null,null,null,null,null,0,0,0,0,0,null,null,null,null,null,null,null,null,null,null,null,null,null,null,null,null,null,null,null,null,null,null,null,null,null,0,0,0,0,0]
[null,154,"Proceswarmte","PE5","Pas een elektrische verwarmingsmantel toe voor IBC containers.",null,null,null,null,null,null,null,null,null,null,null,null,null,null,null,null,null,null,null,null,null,null,null,null,null,null,null,null,null,null,null,null,null,0,null,0,0,0,0,0,null,0,0,0,0,0,null,0,0,0,0,0,null,0,0,0,0,0,null,0,0,0,0,0,null,0,0,0,0,0,null,0,0,0,0,0,null,0,0,0,0,0,null,0,0,0,0,0,null,0,0,0,0,0,null,null,null,null,null,null,null,null,null,null,null,null,null,null,null,null,null,null,null,null,null,null,null,null,null,0,0,0,0,0,null,null,null,null,null,null,null,null,null,null,null,null,null,null,null,null,null,null,null,null,null,null,null,null,null,0,0,0,0,0,null,null,null,null,null,null,null,null,null,null,null,null,null,null,null,null,null,null,null,null,null,null,null,null,null,0,0,0,0,0]
[null,155,"Proceswarmte","PE6","Gebruik warm/koud water v. sterilisatiecyc. voor verwarmen/koelen van sterils.water.",null,null,null,null,null,null,null,null,null,null,null,null,null,null,null,null,null,null,null,null,null,null,null,null,null,null,null,null,null,null,null,null,null,0,null,0,0,0,0,0,null,0,0,0,0,0,null,0,0,0,0,0,null,0,0,0,0,0,null,0,0,0,0,0,null,0,0,0,0,0,null,0,0,0,0,0,null,0,0,0,0,0,null,0,0,0,0,0,null,0,0,0,0,0,null,null,null,null,null,null,null,null,null,null,null,null,null,null,null,null,null,null,null,null,null,null,null,null,null,0,0,0,0,0,null,null,null,null,null,null,null,null,null,null,null,null,null,null,null,null,null,null,null,null,null,null,null,null,null,0,0,0,0,0,null,null,null,null,null,null,null,null,null,null,null,null,null,null,null,null,null,null,null,null,null,null,null,null,null,0,0,0,0,0]
[null,156,"Proceswarmte","PE7","Gebruik restwarmte uit blancheerproces door het plaatsen van warmtewisselaar.",null,null,"i",{"$f":"IF(H200=\"X\",\"n.v.t.\",IF(H200=\"I\",\"ons\",IF(H200=\"V\",\"verhuurder\",IF(H200=\"H\",\"huurder\",\"\"))))","v":"ons"},null,0,null,{"$f":"IF($C$5<3000,(#REF!*$C$5)+#REF!,(#REF!*$C$5)+#REF!)","v":{"$error":"#REF!"}},{"$f":"($C$19*P200)+($C$18*Q200)+($C$20*R200)","v":{"$error":"#REF!"}},{"$f":"IF(N200=0,\"\",(L200+M200)/N200)","v":{"$error":"#REF!"}},{"$f":"IF($C$5<3000,$AN$32*#REF!,$AN$32*#REF!)","v":{"$error":"#REF!"}},{"$f":"IF($C$5<3000,$AN$31*#REF!,$AN$31*#REF!)","v":{"$error":"#REF!"}},{"$f":"IF($C$5<3000,$AN$33*#REF!,$AN$33*#REF!)","v":{"$error":"#REF!"}},null,{"$f":"K200+V200+AB200+AH200+AN200+AT200+AZ200+BF200+BL200+BR200+BX200+CD200+CJ200+CP200+CV200+DB200+DH200+DN200+DT200+DZ200+EF200+EL200+ER200+EX200+FD200+FJ200+FP200+FV200+GB200+GH200+GN200+GT200+GZ200","v":0},{"$f":"W200+AC200+AI200+AO200+AU200+BA200+BG200+BM200+BS200+BY200+CE200+CK200+CQ200+DU200+EY200+GC200","v":{"$error":"#REF!"}},null,{"$f":"+V200*($L200+$M200)","v":{"$error":"#REF!"}},{"$f":"$P200*V200","v":{"$error":"#REF!"}},{"$f":"$Q200*V200","v":{"$error":"#REF!"}},{"$f":"+V200*$R200","v":{"$error":"#REF!"}},{"$f":"V200*$N200","v":{"$error":"#REF!"}},null,{"$f":"+AB200*($L200+$M200)","v":{"$error":"#REF!"}},{"$f":"$P200*AB200","v":{"$error":"#REF!"}},{"$f":"$Q200*AB200","v":{"$error":"#REF!"}},{"$f":"+AB200*$R200","v":{"$error":"#REF!"}},{"$f":"AB200*$N200","v":{"$error":"#REF!"}},null,{"$f":"+AH200*($L200+$M200)","v":{"$error":"#REF!"}},{"$f":"$P200*AH200","v":{"$error":"#REF!"}},{"$f":"$Q200*AH200","v":{"$error":"#REF!"}},{"$f":"+AH200*$R200","v":{"$error":"#REF!"}},{"$error":"#REF!"},null,{"$error":"#REF!"},{"$error":"#REF!"},{"$error":"#REF!"},{"$error":"#REF!"},{"$error":"#REF!"},null,{"$error":"#REF!"},{"$error":"#REF!"},{"$error":"#REF!"},{"$error":"#REF!"},{"$error":"#REF!"},null,{"$error":"#REF!"},{"$error":"#REF!"},{"$error":"#REF!"},{"$error":"#REF!"},{"$error":"#REF!"},null,{"$error":"#REF!"},{"$error":"#REF!"},{"$error":"#REF!"},{"$error":"#REF!"},{"$error":"#REF!"},null,{"$error":"#REF!"},{"$error":"#REF!"},{"$error":"#REF!"},{"$error":"#REF!"},{"$error":"#REF!"},null,{"$error":"#REF!"},{"$error":"#REF!"},{"$error":"#REF!"},{"$error":"#REF!"},{"$error":"#REF!"},null,{"$error":"#REF!"},{"$error":"#REF!"},{"$error":"#REF!"},{"$error":"#REF!"},{"$error":"#REF!"},null,{"$error":"#REF!"},{"$error":"#REF!"},{"$error":"#REF!"},{"$error":"#REF!"},{"$error":"#REF!"},null,{"$error":"#REF!"},{"$error":"#REF!"},{"$error":"#REF!"},{"$error":"#REF!"},{"$error":"#REF!"},null,{"$error":"#REF!"},{"$error":"#REF!"},{"$error":"#REF!"},{"$error":"#REF!"},{"$error":"#REF!"},null,null,null,null,null,null,null,null,null,null,null,null,null,null,null,null,null,null,null,null,null,null,null,null,null,{"$error":"#REF!"},{"$error":"#REF!"},{"$error":"#REF!"},{"$error":"#REF!"},{"$error":"#REF!"},null,null,null,null,null,null,null,null,null,null,null,null,null,null,null,null,null,null,null,null,null,null,null,null,null,{"$error":"#REF!"},{"$error":"#REF!"},{"$error":"#REF!"},{"$error":"#REF!"},{"$error":"#REF!"},null,null,null,null,null,null,null,null,null,null,null,null,null,null,null,null,null,null,null,null,null,null,null,null,null,{"$error":"#REF!"},{"$error":"#REF!"},{"$error":"#REF!"},{"$error":"#REF!"},{"$error":"#REF!"}]
[null,157,"Proceswarmte","PE8","Gebruik warmte van folieblazen voor verwarming van dichtbijgelegen ruimte.",null,null,"i","ons",null,0,null,{"$f":"IF($C$5<3000,(#REF!*$C$5)+#REF!,(#REF!*$C$5)+#REF!)","v":{"$error":"#REF!"}},{"$error":"#REF!"},{"$error":"#REF!"},{"$f":"IF($C$5<3000,$AN$32*#REF!,$AN$32*#REF!)","v":{"$error":"#REF!"}},{"$f":"IF($C$5<3000,$AN$31*#REF!,$AN$31*#REF!)","v":{"$error":"#REF!"}},{"$f":"IF($C$5<3000,$AN$33*#REF!,$AN$33*#REF!)","v":{"$error":"#REF!"}},null,0,{"$error":"#REF!"},null,{"$error":"#REF!"},{"$error":"#REF!"},{"$error":"#REF!"},{"$error":"#REF!"},{"$error":"#REF!"},null,{"$error":"#REF!"},{"$error":"#REF!"},{"$error":"#REF!"},{"$error":"#REF!"},{"$error":"#REF!"},null,{"$error":"#REF!"},{"$error":"#REF!"},{"$error":"#REF!"},{"$error":"#REF!"},{"$error":"#REF!"},null,{"$error":"#REF!"},{"$error":"#REF!"},{"$error":"#REF!"},{"$error":"#REF!"},{"$error":"#REF!"},null,{"$error":"#REF!"},{"$error":"#REF!"},{"$error":"#REF!"},{"$error":"#REF!"},{"$error":"#REF!"},null,{"$error":"#REF!"},{"$error":"#REF!"},{"$error":"#REF!"},{"$error":"#REF!"},{"$error":"#REF!"},null,{"$error":"#REF!"},{"$error":"#REF!"},{"$error":"#REF!"},{"$error":"#REF!"},{"$error":"#REF!"},null,{"$error":"#REF!"},{"$error":"#REF!"},{"$error":"#REF!"},{"$error":"#REF!"},{"$error":"#REF!"},null,{"$error":"#REF!"},{"$error":"#REF!"},{"$error":"#REF!"},{"$error":"#REF!"},{"$error":"#REF!"},null,{"$error":"#REF!"},{"$error":"#REF!"},{"$error":"#REF!"},{"$error":"#REF!"},{"$error":"#REF!"},null,{"$error":"#REF!"},{"$error":"#REF!"},{"$error":"#REF!"},{"$error":"#REF!"},{"$error":"#REF!"},null,{"$error":"#REF!"},{"$error":"#REF!"},{"$error":"#REF!"},{"$error":"#REF!"},{"$error":"#REF!"},null,{"$error":"#REF!"},{"$error":"#REF!"},{"$error":"#REF!"},{"$error":"#REF!"},{"$error":"#REF!"},null,null,null,null,null,null,null,null,null,null,null,null,null,null,null,null,null,null,null,null,null,null,null,null,null,{"$error":"#REF!"},{"$error":"#REF!"},{"$error":"#REF!"},{"$error":"#REF!"},{"$error":"#REF!"},null,null,null,null,null,null,null,null,null,null,null,null,null,null,null,null,null,null,null,null,null,null,null,null,null,{"$error":"#REF!"},{"$error":"#REF!"},{"$error":"#REF!"},{"$error":"#REF!"},{"$error":"#REF!"},null,null,null,null,null,null,null,null,null,null,null,null,null,null,null,null,null,null,null,null,null,null,null,null,null,{"$error":"#REF!"},{"$error":"#REF!"},{"$error":"#REF!"},{"$error":"#REF!"},{"$error":"#REF!"}]
[null,158,"Proceskoeling","PF","Deze hele categorie is niet van toepassing in de care",null,null,"x","n.v.t.",null,0,null,null,0,"",null,null,null,null,0,0,null,0,0,0,0,0,null,0,0,0,0,0,null,0,0,0,0,0,null,0,0,0,0,0,null,0,0,0,0,0,null,0,0,0,0,0,null,0,0,0,0,0,null,0,0,0,0,0,null,0,0,0,0,0,null,0,0,0,0,0,null,0,0,0,0,0,null,0,0,0,0,0,null,0,0,0,0,0,null,null,null,null,null,null,null,null,null,null,null,null,null,null,null,null,null,null,null,null,null,null,null,null,null,0,0,0,0,0,null,null,null,null,null,null,null,null,null,null,null,null,null,null,null,null,null,null,null,null,null,null,null,null,null,0,0,0,0,0,null,null,null,null,null,null,null,null,null,null,null,null,null,null,null,null,null,null,null,null,null,null,null,null,null,0,0,0,0,0]
[null,159,"Veehouderijen","PG","Deze hele categorie is niet van toepassing in de care",null,null,"x","n.v.t.",null,0,null,null,0,"",null,null,null,null,0,0,null,0,0,0,0,0,null,0,0,0,0,0,null,0,0,0,0,0,null,0,0,0,0,0,null,0,0,0,0,0,null,0,0,0,0,0,null,0,0,0,0,0,null,0,0,0,0,0,null,0,0,0,0,0,null,0,0,0,0,0,null,0,0,0,0,0,null,0,0,0,0,0,null,0,0,0,0,0,null,null,null,null,null,null,null,null,null,null,null,null,null,null,null,null,null,null,null,null,null,null,null,null,null,0,0,0,0,0,null,null,null,null,null,null,null,null,null,null,null,null,null,null,null,null,null,null,null,null,null,null,null,null,null,0,0,0,0,0,null,null,null,null,null,null,null,null,null,null,null,null,null,null,null,null,null,null,null,null,null,null,null,null,null,0,0,0,0,0]
[null,160,"Datacentrum","PH1","Stel een hogere koeltemperatuur in voor de koeling van servers.",null,null,"i","ons",null,0,null,{"$f":"IF($C$5<3000,(#REF!*$C$5)+#REF!,(#REF!*$C$5)+#REF!)","v":{"$error":"#REF!"}},{"$error":"#REF!"},{"$error":"#REF!"},{"$f":"IF($C$5<3000,$AN$32*#REF!,$AN$32*#REF!)","v":{"$error":"#REF!"}},{"$f":"IF($C$5<3000,$AN$31*#REF!,$AN$31*#REF!)","v":{"$error":"#REF!"}},{"$f":"IF($C$5<3000,$AN$33*#REF!,$AN$33*#REF!)","v":{"$error":"#REF!"}},null,0,{"$error":"#REF!"},null,{"$error":"#REF!"},{"$error":"#REF!"},{"$error":"#REF!"},{"$error":"#REF!"},{"$error":"#REF!"},null,{"$error":"#REF!"},{"$error":"#REF!"},{"$error":"#REF!"},{"$error":"#REF!"},{"$error":"#REF!"},null,{"$error":"#REF!"},{"$error":"#REF!"},{"$error":"#REF!"},{"$error":"#REF!"},{"$error":"#REF!"},null,{"$error":"#REF!"},{"$error":"#REF!"},{"$error":"#REF!"},{"$error":"#REF!"},{"$error":"#REF!"},null,{"$error":"#REF!"},{"$error":"#REF!"},{"$error":"#REF!"},{"$error":"#REF!"},{"$error":"#REF!"},null,{"$error":"#REF!"},{"$error":"#REF!"},{"$error":"#REF!"},{"$error":"#REF!"},{"$error":"#REF!"},null,{"$error":"#REF!"},{"$error":"#REF!"},{"$error":"#REF!"},{"$error":"#REF!"},{"$error":"#REF!"},null,{"$error":"#REF!"},{"$error":"#REF!"},{"$error":"#REF!"},{"$error":"#REF!"},{"$error":"#REF!"},null,{"$error":"#REF!"},{"$error":"#REF!"},{"$error":"#REF!"},{"$error":"#REF!"},{"$error":"#REF!"},null,{"$error":"#REF!"},{"$error":"#REF!"},{"$error":"#REF!"},{"$error":"#REF!"},{"$error":"#REF!"},null,{"$error":"#REF!"},{"$error":"#REF!"},{"$error":"#REF!"},{"$error":"#REF!"},{"$error":"#REF!"},null,{"$error":"#REF!"},{"$error":"#REF!"},{"$error":"#REF!"},{"$error":"#REF!"},{"$error":"#REF!"},null,{"$error":"#REF!"},{"$error":"#REF!"},{"$error":"#REF!"},{"$error":"#REF!"},{"$error":"#REF!"},null,null,null,null,null,null,null,null,null,null,null,null,null,null,null,null,null,null,null,null,null,null,null,null,null,{"$error":"#REF!"},{"$error":"#REF!"},{"$error":"#REF!"},{"$error":"#REF!"},{"$error":"#REF!"},null,null,null,null,null,null,null,null,null,null,null,null,null,null,null,null,null,null,null,null,null,null,null,null,null,{"$error":"#REF!"},{"$error":"#REF!"},{"$error":"#REF!"},{"$error":"#REF!"},{"$error":"#REF!"},null,null,null,null,null,null,null,null,null,null,null,null,null,null,null,null,null,null,null,null,null,null,null,null,null,{"$error":"#REF!"},{"$error":"#REF!"},{"$error":"#REF!"},{"$error":"#REF!"},{"$error":"#REF!"}]
[null,161,"Datacentrum","PH2","Pas een frequentieregelaar toe om het vermogen van de zaalkoelers te beperken.",null,null,"i","ons",null,0,null,{"$f":"IF($C$5<3000,(#REF!*$C$5)+#REF!,(#REF!*$C$5)+#REF!)","v":{"$error":"#REF!"}},{"$error":"#REF!"},{"$error":"#REF!"},{"$f":"IF($C$5<3000,$AN$32*#REF!,$AN$32*#REF!)","v":{"$error":"#REF!"}},{"$f":"IF($C$5<3000,$AN$31*#REF!,$AN$31*#REF!)","v":{"$error":"#REF!"}},{"$f":"IF($C$5<3000,$AN$33*#REF!,$AN$33*#REF!)","v":{"$error":"#REF!"}},null,0,{"$error":"#REF!"},null,{"$error":"#REF!"},{"$error":"#REF!"},{"$error":"#REF!"},{"$error":"#REF!"},{"$error":"#REF!"},null,{"$error":"#REF!"},{"$error":"#REF!"},{"$error":"#REF!"},{"$error":"#REF!"},{"$error":"#REF!"},null,{"$error":"#REF!"},{"$error":"#REF!"},{"$error":"#REF!"},{"$error":"#REF!"},{"$error":"#REF!"},null,{"$error":"#REF!"},{"$error":"#REF!"},{"$error":"#REF!"},{"$error":"#REF!"},{"$error":"#REF!"},null,{"$error":"#REF!"},{"$error":"#REF!"},{"$error":"#REF!"},{"$error":"#REF!"},{"$error":"#REF!"},null,{"$error":"#REF!"},{"$error":"#REF!"},{"$error":"#REF!"},{"$error":"#REF!"},{"$error":"#REF!"},null,{"$error":"#REF!"},{"$error":"#REF!"},{"$error":"#REF!"},{"$error":"#REF!"},{"$error":"#REF!"},null,{"$error":"#REF!"},{"$error":"#REF!"},{"$error":"#REF!"},{"$error":"#REF!"},{"$error":"#REF!"},null,{"$error":"#REF!"},{"$error":"#REF!"},{"$error":"#REF!"},{"$error":"#REF!"},{"$error":"#REF!"},null,{"$error":"#REF!"},{"$error":"#REF!"},{"$error":"#REF!"},{"$error":"#REF!"},{"$error":"#REF!"},null,{"$error":"#REF!"},{"$error":"#REF!"},{"$error":"#REF!"},{"$error":"#REF!"},{"$error":"#REF!"},null,{"$error":"#REF!"},{"$error":"#REF!"},{"$error":"#REF!"},{"$error":"#REF!"},{"$error":"#REF!"},null,{"$error":"#REF!"},{"$error":"#REF!"},{"$error":"#REF!"},{"$error":"#REF!"},{"$error":"#REF!"},null,null,null,null,null,null,null,null,null,null,null,null,null,null,null,null,null,null,null,null,null,null,null,null,null,{"$error":"#REF!"},{"$error":"#REF!"},{"$error":"#REF!"},{"$error":"#REF!"},{"$error":"#REF!"},null,null,null,null,null,null,null,null,null,null,null,null,null,null,null,null,null,null,null,null,null,null,null,null,null,{"$error":"#REF!"},{"$error":"#REF!"},{"$error":"#REF!"},{"$error":"#REF!"},{"$error":"#REF!"},null,null,null,null,null,null,null,null,null,null,null,null,null,null,null,null,null,null,null,null,null,null,null,null,null,{"$error":"#REF!"},{"$error":"#REF!"},{"$error":"#REF!"},{"$error":"#REF!"},{"$error":"#REF!"}]
[null,162,"Datacentrum","PH3","Pas vrije koeling in datacenter toe.",null,null,"i","ons",null,0,null,{"$f":"IF($C$5<3000,(#REF!*$C$5)+#REF!,(#REF!*$C$5)+#REF!)","v":{"$error":"#REF!"}},{"$error":"#REF!"},{"$error":"#REF!"},{"$f":"IF($C$5<3000,$AN$32*#REF!,$AN$32*#REF!)","v":{"$error":"#REF!"}},{"$f":"IF($C$5<3000,$AN$31*#REF!,$AN$31*#REF!)","v":{"$error":"#REF!"}},{"$f":"IF($C$5<3000,$AN$33*#REF!,$AN$33*#REF!)","v":{"$error":"#REF!"}},null,0,{"$error":"#REF!"},null,{"$error":"#REF!"},{"$error":"#REF!"},{"$error":"#REF!"},{"$error":"#REF!"},{"$error":"#REF!"},null,{"$error":"#REF!"},{"$error":"#REF!"},{"$error":"#REF!"},{"$error":"#REF!"},{"$error":"#REF!"},null,{"$error":"#REF!"},{"$error":"#REF!"},{"$error":"#REF!"},{"$error":"#REF!"},{"$error":"#REF!"},null,{"$error":"#REF!"},{"$error":"#REF!"},{"$error":"#REF!"},{"$error":"#REF!"},{"$error":"#REF!"},null,{"$error":"#REF!"},{"$error":"#REF!"},{"$error":"#REF!"},{"$error":"#REF!"},{"$error":"#REF!"},null,{"$error":"#REF!"},{"$error":"#REF!"},{"$error":"#REF!"},{"$error":"#REF!"},{"$error":"#REF!"},null,{"$error":"#REF!"},{"$error":"#REF!"},{"$error":"#REF!"},{"$error":"#REF!"},{"$error":"#REF!"},null,{"$error":"#REF!"},{"$error":"#REF!"},{"$error":"#REF!"},{"$error":"#REF!"},{"$error":"#REF!"},null,{"$error":"#REF!"},{"$error":"#REF!"},{"$error":"#REF!"},{"$error":"#REF!"},{"$error":"#REF!"},null,{"$error":"#REF!"},{"$error":"#REF!"},{"$error":"#REF!"},{"$error":"#REF!"},{"$error":"#REF!"},null,{"$error":"#REF!"},{"$error":"#REF!"},{"$error":"#REF!"},{"$error":"#REF!"},{"$error":"#REF!"},null,{"$error":"#REF!"},{"$error":"#REF!"},{"$error":"#REF!"},{"$error":"#REF!"},{"$error":"#REF!"},null,{"$error":"#REF!"},{"$error":"#REF!"},{"$error":"#REF!"},{"$error":"#REF!"},{"$error":"#REF!"},null,null,null,null,null,null,null,null,null,null,null,null,null,null,null,null,null,null,null,null,null,null,null,null,null,{"$error":"#REF!"},{"$error":"#REF!"},{"$error":"#REF!"},{"$error":"#REF!"},{"$error":"#REF!"},null,null,null,null,null,null,null,null,null,null,null,null,null,null,null,null,null,null,null,null,null,null,null,null,null,{"$error":"#REF!"},{"$error":"#REF!"},{"$error":"#REF!"},{"$error":"#REF!"},{"$error":"#REF!"},null,null,null,null,null,null,null,null,null,null,null,null,null,null,null,null,null,null,null,null,null,null,null,null,null,{"$error":"#REF!"},{"$error":"#REF!"},{"$error":"#REF!"},{"$error":"#REF!"},{"$error":"#REF!"}]
[null,163,"Apparatuur","geen","Schaf A++ of betere koelkasten aan",null,null,"i","ons",null,0,null,{"$f":"IF($C$5<3000,(#REF!*$C$5)+#REF!,(#REF!*$C$5)+#REF!)","v":{"$error":"#REF!"}},{"$error":"#REF!"},{"$error":"#REF!"},null,{"$f":"IF($C$5<3000,$AN$31*#REF!,$AN$31*#REF!)","v":{"$error":"#REF!"}},{"$f":"IF($C$5<3000,$AN$33*#REF!,$AN$33*#REF!)","v":{"$error":"#REF!"}},null,0,{"$error":"#REF!"},null,{"$error":"#REF!"},0,{"$error":"#REF!"},{"$error":"#REF!"},{"$error":"#REF!"},null,{"$error":"#REF!"},0,{"$error":"#REF!"},{"$error":"#REF!"},{"$error":"#REF!"},null,{"$error":"#REF!"},0,{"$error":"#REF!"},{"$error":"#REF!"},{"$error":"#REF!"},null,{"$error":"#REF!"},0,{"$error":"#REF!"},{"$error":"#REF!"},{"$error":"#REF!"},null,{"$error":"#REF!"},0,{"$error":"#REF!"},{"$error":"#REF!"},{"$error":"#REF!"},null,{"$error":"#REF!"},0,{"$error":"#REF!"},{"$error":"#REF!"},{"$error":"#REF!"},null,{"$error":"#REF!"},0,{"$error":"#REF!"},{"$error":"#REF!"},{"$error":"#REF!"},null,{"$error":"#REF!"},0,{"$error":"#REF!"},{"$error":"#REF!"},{"$error":"#REF!"},null,{"$error":"#REF!"},0,{"$error":"#REF!"},{"$error":"#REF!"},{"$error":"#REF!"},null,{"$error":"#REF!"},0,{"$error":"#REF!"},{"$error":"#REF!"},{"$error":"#REF!"},null,{"$error":"#REF!"},0,{"$error":"#REF!"},{"$error":"#REF!"},{"$error":"#REF!"},null,{"$error":"#REF!"},0,{"$error":"#REF!"},{"$error":"#REF!"},{"$error":"#REF!"},null,{"$error":"#REF!"},0,{"$error":"#REF!"},{"$error":"#REF!"},{"$error":"#REF!"},null,null,null,null,null,null,null,null,null,null,null,null,null,null,null,null,null,null,null,null,null,null,null,null,null,{"$error":"#REF!"},0,{"$error":"#REF!"},{"$error":"#REF!"},{"$error":"#REF!"},null,null,null,null,null,null,null,null,null,null,null,null,null,null,null,null,null,null,null,null,null,null,null,null,null,{"$error":"#REF!"},0,{"$error":"#REF!"},{"$error":"#REF!"},{"$error":"#REF!"},null,null,null,null,null,null,null,null,null,null,null,null,null,null,null,null,null,null,null,null,null,null,null,null,null,{"$error":"#REF!"},0,{"$error":"#REF!"},{"$error":"#REF!"},{"$error":"#REF!"}]
[null,164,"Apparatuur","geen","Schaf A++ of betere vaatwasmachines aan",null,null,"i","ons",null,0,null,{"$f":"IF($C$5<3000,(#REF!*$C$5)+#REF!,(#REF!*$C$5)+#REF!)","v":{"$error":"#REF!"}},{"$error":"#REF!"},{"$error":"#REF!"},null,{"$f":"IF($C$5<3000,$AN$31*#REF!,$AN$31*#REF!)","v":{"$error":"#REF!"}},{"$f":"IF($C$5<3000,$AN$33*#REF!,$AN$33*#REF!)","v":{"$error":"#REF!"}},null,0,{"$error":"#REF!"},null,{"$error":"#REF!"},0,{"$error":"#REF!"},{"$error":"#REF!"},{"$error":"#REF!"},null,{"$error":"#REF!"},0,{"$error":"#REF!"},{"$error":"#REF!"},{"$error":"#REF!"},null,{"$error":"#REF!"},0,{"$error":"#REF!"},{"$error":"#REF!"},{"$error":"#REF!"},null,{"$error":"#REF!"},0,{"$error":"#REF!"},{"$error":"#REF!"},{"$error":"#REF!"},null,{"$error":"#REF!"},0,{"$error":"#REF!"},{"$error":"#REF!"},{"$error":"#REF!"},null,{"$error":"#REF!"},0,{"$error":"#REF!"},{"$error":"#REF!"},{"$error":"#REF!"},null,{"$error":"#REF!"},0,{"$error":"#REF!"},{"$error":"#REF!"},{"$error":"#REF!"},null,{"$error":"#REF!"},0,{"$error":"#REF!"},{"$error":"#REF!"},{"$error":"#REF!"},null,{"$error":"#REF!"},0,{"$error":"#REF!"},{"$error":"#REF!"},{"$error":"#REF!"},null,{"$error":"#REF!"},0,{"$error":"#REF!"},{"$error":"#REF!"},{"$error":"#REF!"},null,{"$error":"#REF!"},0,{"$error":"#REF!"},{"$error":"#REF!"},{"$error":"#REF!"},null,{"$error":"#REF!"},0,{"$error":"#REF!"},{"$error":"#REF!"},{"$error":"#REF!"},null,{"$error":"#REF!"},0,{"$error":"#REF!"},{"$error":"#REF!"},{"$error":"#REF!"},null,null,null,null,null,null,null,null,null,null,null,null,null,null,null,null,null,null,null,null,null,null,null,null,null,{"$error":"#REF!"},0,{"$error":"#REF!"},{"$error":"#REF!"},{"$error":"#REF!"},null,null,null,null,null,null,null,null,null,null,null,null,null,null,null,null,null,null,null,null,null,null,null,null,null,{"$error":"#REF!"},0,{"$error":"#REF!"},{"$error":"#REF!"},{"$error":"#REF!"},null,null,null,null,null,null,null,null,null,null,null,null,null,null,null,null,null,null,null,null,null,null,null,null,null,{"$error":"#REF!"},0,{"$error":"#REF!"},{"$error":"#REF!"},{"$error":"#REF!"}]
[null,165,"Apparatuur","geen","Schaf A++ of betere tv's aan",null,null,"i","ons",null,0,null,{"$f":"IF($C$5<3000,(#REF!*$C$5)+#REF!,(#REF!*$C$5)+#REF!)","v":{"$error":"#REF!"}},{"$error":"#REF!"},{"$error":"#REF!"},null,{"$f":"IF($C$5<3000,$AN$31*#REF!,$AN$31*#REF!)","v":{"$error":"#REF!"}},{"$f":"IF($C$5<3000,$AN$33*#REF!,$AN$33*#REF!)","v":{"$error":"#REF!"}},null,0,{"$error":"#REF!"},null,{"$error":"#REF!"},0,{"$error":"#REF!"},{"$error":"#REF!"},{"$error":"#REF!"},null,{"$error":"#REF!"},0,{"$error":"#REF!"},{"$error":"#REF!"},{"$error":"#REF!"},null,{"$error":"#REF!"},0,{"$error":"#REF!"},{"$error":"#REF!"},{"$error":"#REF!"},null,{"$error":"#REF!"},0,{"$error":"#REF!"},{"$error":"#REF!"},{"$error":"#REF!"},null,{"$error":"#REF!"},0,{"$error":"#REF!"},{"$error":"#REF!"},{"$error":"#REF!"},null,{"$error":"#REF!"},0,{"$error":"#REF!"},{"$error":"#REF!"},{"$error":"#REF!"},null,{"$error":"#REF!"},0,{"$error":"#REF!"},{"$error":"#REF!"},{"$error":"#REF!"},null,{"$error":"#REF!"},0,{"$error":"#REF!"},{"$error":"#REF!"},{"$error":"#REF!"},null,{"$error":"#REF!"},0,{"$error":"#REF!"},{"$error":"#REF!"},{"$error":"#REF!"},null,{"$error":"#REF!"},0,{"$error":"#REF!"},{"$error":"#REF!"},{"$error":"#REF!"},null,{"$error":"#REF!"},0,{"$error":"#REF!"},{"$error":"#REF!"},{"$error":"#REF!"},null,{"$error":"#REF!"},0,{"$error":"#REF!"},{"$error":"#REF!"},{"$error":"#REF!"},null,{"$error":"#REF!"},0,{"$error":"#REF!"},{"$error":"#REF!"},{"$error":"#REF!"},null,null,null,null,null,null,null,null,null,null,null,null,null,null,null,null,null,null,null,null,null,null,null,null,null,{"$error":"#REF!"},0,{"$error":"#REF!"},{"$error":"#REF!"},{"$error":"#REF!"},null,null,null,null,null,null,null,null,null,null,null,null,null,null,null,null,null,null,null,null,null,null,null,null,null,{"$error":"#REF!"},0,{"$error":"#REF!"},{"$error":"#REF!"},{"$error":"#REF!"},null,null,null,null,null,null,null,null,null,null,null,null,null,null,null,null,null,null,null,null,null,null,null,null,null,{"$error":"#REF!"},0,{"$error":"#REF!"},{"$error":"#REF!"},{"$error":"#REF!"}]
[null,166,"Apparatuur","geen","Schaf A++ of betere wasmachines/drogers aan",null,null,"i","ons",null,0,null,{"$f":"IF($C$5<3000,(#REF!*$C$5)+#REF!,(#REF!*$C$5)+#REF!)","v":{"$error":"#REF!"}},{"$error":"#REF!"},{"$error":"#REF!"},null,{"$f":"IF($C$5<3000,$AN$31*#REF!,$AN$31*#REF!)","v":{"$error":"#REF!"}},{"$f":"IF($C$5<3000,$AN$33*#REF!,$AN$33*#REF!)","v":{"$error":"#REF!"}},null,0,{"$error":"#REF!"},null,{"$error":"#REF!"},0,{"$error":"#REF!"},{"$error":"#REF!"},{"$error":"#REF!"},null,{"$error":"#REF!"},0,{"$error":"#REF!"},{"$error":"#REF!"},{"$error":"#REF!"},null,{"$error":"#REF!"},0,{"$error":"#REF!"},{"$error":"#REF!"},{"$error":"#REF!"},null,{"$error":"#REF!"},0,{"$error":"#REF!"},{"$error":"#REF!"},{"$error":"#REF!"},null,{"$error":"#REF!"},0,{"$error":"#REF!"},{"$error":"#REF!"},{"$error":"#REF!"},null,{"$error":"#REF!"},0,{"$error":"#REF!"},{"$error":"#REF!"},{"$error":"#REF!"},null,{"$error":"#REF!"},0,{"$error":"#REF!"},{"$error":"#REF!"},{"$error":"#REF!"},null,{"$error":"#REF!"},0,{"$error":"#REF!"},{"$error":"#REF!"},{"$error":"#REF!"},null,{"$error":"#REF!"},0,{"$error":"#REF!"},{"$error":"#REF!"},{"$error":"#REF!"},null,{"$error":"#REF!"},0,{"$error":"#REF!"},{"$error":"#REF!"},{"$error":"#REF!"},null,{"$error":"#REF!"},0,{"$error":"#REF!"},{"$error":"#REF!"},{"$error":"#REF!"},null,{"$error":"#REF!"},0,{"$error":"#REF!"},{"$error":"#REF!"},{"$error":"#REF!"},null,{"$error":"#REF!"},0,{"$error":"#REF!"},{"$error":"#REF!"},{"$error":"#REF!"},null,null,null,null,null,null,null,null,null,null,null,null,null,null,null,null,null,null,null,null,null,null,null,null,null,{"$error":"#REF!"},0,{"$error":"#REF!"},{"$error":"#REF!"},{"$error":"#REF!"},null,null,null,null,null,null,null,null,null,null,null,null,null,null,null,null,null,null,null,null,null,null,null,null,null,{"$error":"#REF!"},0,{"$error":"#REF!"},{"$error":"#REF!"},{"$error":"#REF!"},null,null,null,null,null,null,null,null,null,null,null,null,null,null,null,null,null,null,null,null,null,null,null,null,null,{"$error":"#REF!"},0,{"$error":"#REF!"},{"$error":"#REF!"},{"$error":"#REF!"}]
[null,167,"Ruimtekoeling","geen","Plaats zonwerende folie",null,null,"i","ons","Ja",0,{"$f":"IF($C$5<3000,(#REF!*$C$5)+#REF!,(#REF!*$C$5)+#REF!)","v":{"$error":"#REF!"}},null,{"$error":"#REF!"},{"$error":"#REF!"},null,{"$f":"IF($C$5<3000,$AN$31*#REF!,$AN$31*#REF!)","v":{"$error":"#REF!"}},{"$f":"IF($C$5<3000,$AN$33*#REF!,$AN$33*#REF!)","v":{"$error":"#REF!"}},null,0,{"$error":"#REF!"},null,{"$error":"#REF!"},0,{"$error":"#REF!"},{"$error":"#REF!"},{"$error":"#REF!"},null,{"$error":"#REF!"},0,{"$error":"#REF!"},{"$error":"#REF!"},{"$error":"#REF!"},null,{"$error":"#REF!"},0,{"$error":"#REF!"},{"$error":"#REF!"},{"$error":"#REF!"},null,{"$error":"#REF!"},0,{"$error":"#REF!"},{"$error":"#REF!"},{"$error":"#REF!"},null,{"$error":"#REF!"},0,{"$error":"#REF!"},{"$error":"#REF!"},{"$error":"#REF!"},null,{"$error":"#REF!"},0,{"$error":"#REF!"},{"$error":"#REF!"},{"$error":"#REF!"},null,{"$error":"#REF!"},0,{"$error":"#REF!"},{"$error":"#REF!"},{"$error":"#REF!"},null,{"$error":"#REF!"},0,{"$error":"#REF!"},{"$error":"#REF!"},{"$error":"#REF!"},null,{"$error":"#REF!"},0,{"$error":"#REF!"},{"$error":"#REF!"},{"$error":"#REF!"},null,{"$error":"#REF!"},0,{"$error":"#REF!"},{"$error":"#REF!"},{"$error":"#REF!"},null,{"$error":"#REF!"},0,{"$error":"#REF!"},{"$error":"#REF!"},{"$error":"#REF!"},null,{"$error":"#REF!"},0,{"$error":"#REF!"},{"$error":"#REF!"},{"$error":"#REF!"},null,{"$error":"#REF!"},0,{"$error":"#REF!"},{"$error":"#REF!"},{"$error":"#REF!"},null,null,null,null,null,null,null,null,null,null,null,null,null,null,null,null,null,null,null,null,null,null,null,null,null,{"$error":"#REF!"},0,{"$error":"#REF!"},{"$error":"#REF!"},{"$error":"#REF!"},null,null,null,null,null,null,null,null,null,null,null,null,null,null,null,null,null,null,null,null,null,null,null,null,null,{"$error":"#REF!"},0,{"$error":"#REF!"},{"$error":"#REF!"},{"$error":"#REF!"},null,null,null,null,null,null,null,null,null,null,null,null,null,null,null,null,null,null,null,null,null,null,null,null,null,{"$error":"#REF!"},0,{"$error":"#REF!"},{"$error":"#REF!"},{"$error":"#REF!"}]
[null,168,"Ruimtekoeling","geen","Plaats zonwering buiten",null,null,"i","ons","Ja",0,{"$f":"IF($C$5<3000,(#REF!*$C$5)+#REF!,(#REF!*$C$5)+#REF!)","v":{"$error":"#REF!"}},null,{"$error":"#REF!"},{"$error":"#REF!"},null,{"$f":"IF($C$5<3000,$AN$31*#REF!,$AN$31*#REF!)","v":{"$error":"#REF!"}},{"$f":"IF($C$5<3000,$AN$33*#REF!,$AN$33*#REF!)","v":{"$error":"#REF!"}},null,0,{"$error":"#REF!"},null,{"$error":"#REF!"},0,{"$error":"#REF!"},{"$error":"#REF!"},{"$error":"#REF!"},null,{"$error":"#REF!"},0,{"$error":"#REF!"},{"$error":"#REF!"},{"$error":"#REF!"},null,{"$error":"#REF!"},0,{"$error":"#REF!"},{"$error":"#REF!"},{"$error":"#REF!"},null,{"$error":"#REF!"},0,{"$error":"#REF!"},{"$error":"#REF!"},{"$error":"#REF!"},null,{"$error":"#REF!"},0,{"$error":"#REF!"},{"$error":"#REF!"},{"$error":"#REF!"},null,{"$error":"#REF!"},0,{"$error":"#REF!"},{"$error":"#REF!"},{"$error":"#REF!"},null,{"$error":"#REF!"},0,{"$error":"#REF!"},{"$error":"#REF!"},{"$error":"#REF!"},null,{"$error":"#REF!"},0,{"$error":"#REF!"},{"$error":"#REF!"},{"$error":"#REF!"},null,{"$error":"#REF!"},0,{"$error":"#REF!"},{"$error":"#REF!"},{"$error":"#REF!"},null,{"$error":"#REF!"},0,{"$error":"#REF!"},{"$error":"#REF!"},{"$error":"#REF!"},null,{"$error":"#REF!"},0,{"$error":"#REF!"},{"$error":"#REF!"},{"$error":"#REF!"},null,{"$error":"#REF!"},0,{"$error":"#REF!"},{"$error":"#REF!"},{"$error":"#REF!"},null,{"$error":"#REF!"},0,{"$error":"#REF!"},{"$error":"#REF!"},{"$error":"#REF!"},null,null,null,null,null,null,null,null,null,null,null,null,null,null,null,null,null,null,null,null,null,null,null,null,null,{"$error":"#REF!"},0,{"$error":"#REF!"},{"$error":"#REF!"},{"$error":"#REF!"},null,null,null,null,null,null,null,null,null,null,null,null,null,null,null,null,null,null,null,null,null,null,null,null,null,{"$error":"#REF!"},0,{"$error":"#REF!"},{"$error":"#REF!"},{"$error":"#REF!"},null,null,null,null,null,null,null,null,null,null,null,null,null,null,null,null,null,null,null,null,null,null,null,null,null,{"$error":"#REF!"},0,{"$error":"#REF!"},{"$error":"#REF!"},{"$error":"#REF!"}]
[null,169,"Ruimtekoeling","geen","Pas zomernachtventilatie toe",null,null,"i","ons","Ja",0,{"$f":"IF($C$5<3000,(#REF!*$C$5)+#REF!,(#REF!*$C$5)+#REF!)","v":{"$error":"#REF!"}},null,{"$error":"#REF!"},{"$error":"#REF!"},{"$f":"IF($C$5<3000,$AN$32*#REF!,$AN$32*#REF!)","v":{"$error":"#REF!"}},{"$f":"IF($C$5<3000,$AN$31*#REF!,$AN$31*#REF!)","v":{"$error":"#REF!"}},{"$f":"IF($C$5<3000,$AN$33*#REF!,$AN$33*#REF!)","v":{"$error":"#REF!"}},null,0,{"$error":"#REF!"},null,{"$error":"#REF!"},{"$error":"#REF!"},{"$error":"#REF!"},{"$error":"#REF!"},{"$error":"#REF!"},null,{"$error":"#REF!"},{"$error":"#REF!"},{"$error":"#REF!"},{"$error":"#REF!"},{"$error":"#REF!"},null,{"$error":"#REF!"},{"$error":"#REF!"},{"$error":"#REF!"},{"$error":"#REF!"},{"$error":"#REF!"},null,{"$error":"#REF!"},{"$error":"#REF!"},{"$error":"#REF!"},{"$error":"#REF!"},{"$error":"#REF!"},null,{"$error":"#REF!"},{"$error":"#REF!"},{"$error":"#REF!"},{"$error":"#REF!"},{"$error":"#REF!"},null,{"$error":"#REF!"},{"$error":"#REF!"},{"$error":"#REF!"},{"$error":"#REF!"},{"$error":"#REF!"},null,{"$error":"#REF!"},{"$error":"#REF!"},{"$error":"#REF!"},{"$error":"#REF!"},{"$error":"#REF!"},null,{"$error":"#REF!"},{"$error":"#REF!"},{"$error":"#REF!"},{"$error":"#REF!"},{"$error":"#REF!"},null,{"$error":"#REF!"},{"$error":"#REF!"},{"$error":"#REF!"},{"$error":"#REF!"},{"$error":"#REF!"},null,{"$error":"#REF!"},{"$error":"#REF!"},{"$error":"#REF!"},{"$error":"#REF!"},{"$error":"#REF!"},null,{"$error":"#REF!"},{"$error":"#REF!"},{"$error":"#REF!"},{"$error":"#REF!"},{"$error":"#REF!"},null,{"$error":"#REF!"},{"$error":"#REF!"},{"$error":"#REF!"},{"$error":"#REF!"},{"$error":"#REF!"},null,{"$error":"#REF!"},{"$error":"#REF!"},{"$error":"#REF!"},{"$error":"#REF!"},{"$error":"#REF!"},null,null,null,null,null,null,null,null,null,null,null,null,null,null,null,null,null,null,null,null,null,null,null,null,null,{"$error":"#REF!"},{"$error":"#REF!"},{"$error":"#REF!"},{"$error":"#REF!"},{"$error":"#REF!"},null,null,null,null,null,null,null,null,null,null,null,null,null,null,null,null,null,null,null,null,null,null,null,null,null,{"$error":"#REF!"},{"$error":"#REF!"},{"$error":"#REF!"},{"$error":"#REF!"},{"$error":"#REF!"},null,null,null,null,null,null,null,null,null,null,null,null,null,null,null,null,null,null,null,null,null,null,null,null,null,{"$error":"#REF!"},{"$error":"#REF!"},{"$error":"#REF!"},{"$error":"#REF!"},{"$error":"#REF!"}]
[null,170,"Liften","geen","Installeer stand-by schakeling op verlichting en ventilatie",null,null,"i","ons","Ja",0,{"$f":"IF($C$5<3000,(#REF!*$C$5)+#REF!,(#REF!*$C$5)+#REF!)","v":{"$error":"#REF!"}},null,{"$error":"#REF!"},{"$error":"#REF!"},null,{"$f":"IF($C$5<3000,$AN$31*#REF!,$AN$31*#REF!)","v":{"$error":"#REF!"}},{"$f":"IF($C$5<3000,$AN$33*#REF!,$AN$33*#REF!)","v":{"$error":"#REF!"}},null,0,{"$error":"#REF!"},null,{"$error":"#REF!"},0,{"$error":"#REF!"},{"$error":"#REF!"},{"$error":"#REF!"},null,{"$error":"#REF!"},0,{"$error":"#REF!"},{"$error":"#REF!"},{"$error":"#REF!"},null,{"$error":"#REF!"},0,{"$error":"#REF!"},{"$error":"#REF!"},{"$error":"#REF!"},null,{"$error":"#REF!"},0,{"$error":"#REF!"},{"$error":"#REF!"},{"$error":"#REF!"},null,{"$error":"#REF!"},0,{"$error":"#REF!"},{"$error":"#REF!"},{"$error":"#REF!"},null,{"$error":"#REF!"},0,{"$error":"#REF!"},{"$error":"#REF!"},{"$error":"#REF!"},null,{"$error":"#REF!"},0,{"$error":"#REF!"},{"$error":"#REF!"},{"$error":"#REF!"},null,{"$error":"#REF!"},0,{"$error":"#REF!"},{"$error":"#REF!"},{"$error":"#REF!"},null,{"$error":"#REF!"},0,{"$error":"#REF!"},{"$error":"#REF!"},{"$error":"#REF!"},null,{"$error":"#REF!"},0,{"$error":"#REF!"},{"$error":"#REF!"},{"$error":"#REF!"},null,{"$error":"#REF!"},0,{"$error":"#REF!"},{"$error":"#REF!"},{"$error":"#REF!"},null,{"$error":"#REF!"},0,{"$error":"#REF!"},{"$error":"#REF!"},{"$error":"#REF!"},null,{"$error":"#REF!"},0,{"$error":"#REF!"},{"$error":"#REF!"},{"$error":"#REF!"},null,null,null,null,null,null,null,null,null,null,null,null,null,null,null,null,null,null,null,null,null,null,null,null,null,{"$error":"#REF!"},0,{"$error":"#REF!"},{"$error":"#REF!"},{"$error":"#REF!"},null,null,null,null,null,null,null,null,null,null,null,null,null,null,null,null,null,null,null,null,null,null,null,null,null,{"$error":"#REF!"},0,{"$error":"#REF!"},{"$error":"#REF!"},{"$error":"#REF!"},null,null,null,null,null,null,null,null,null,null,null,null,null,null,null,null,null,null,null,null,null,null,null,null,null,{"$error":"#REF!"},0,{"$error":"#REF!"},{"$error":"#REF!"},{"$error":"#REF!"}]
[null,171,"Liften","geen","Installeer LED in liftcabine",null,null,"i","ons",null,0,null,{"$f":"IF($C$5<3000,(#REF!*$C$5)+#REF!,(#REF!*$C$5)+#REF!)","v":{"$error":"#REF!"}},{"$error":"#REF!"},{"$error":"#REF!"},null,{"$f":"IF($C$5<3000,$AN$31*#REF!,$AN$31*#REF!)","v":{"$error":"#REF!"}},{"$f":"IF($C$5<3000,$AN$33*#REF!,$AN$33*#REF!)","v":{"$error":"#REF!"}},null,0,{"$error":"#REF!"},null,{"$error":"#REF!"},0,{"$error":"#REF!"},{"$error":"#REF!"},{"$error":"#REF!"},null,{"$error":"#REF!"},0,{"$error":"#REF!"},{"$error":"#REF!"},{"$error":"#REF!"},null,{"$error":"#REF!"},0,{"$error":"#REF!"},{"$error":"#REF!"},{"$error":"#REF!"},null,{"$error":"#REF!"},0,{"$error":"#REF!"},{"$error":"#REF!"},{"$error":"#REF!"},null,{"$error":"#REF!"},0,{"$error":"#REF!"},{"$error":"#REF!"},{"$error":"#REF!"},null,{"$error":"#REF!"},0,{"$error":"#REF!"},{"$error":"#REF!"},{"$error":"#REF!"},null,{"$error":"#REF!"},0,{"$error":"#REF!"},{"$error":"#REF!"},{"$error":"#REF!"},null,{"$error":"#REF!"},0,{"$error":"#REF!"},{"$error":"#REF!"},{"$error":"#REF!"},null,{"$error":"#REF!"},0,{"$error":"#REF!"},{"$error":"#REF!"},{"$error":"#REF!"},null,{"$error":"#REF!"},0,{"$error":"#REF!"},{"$error":"#REF!"},{"$error":"#REF!"},null,{"$error":"#REF!"},0,{"$error":"#REF!"},{"$error":"#REF!"},{"$error":"#REF!"},null,{"$error":"#REF!"},0,{"$error":"#REF!"},{"$error":"#REF!"},{"$error":"#REF!"},null,{"$error":"#REF!"},0,{"$error":"#REF!"},{"$error":"#REF!"},{"$error":"#REF!"},null,null,null,null,null,null,null,null,null,null,null,null,null,null,null,null,null,null,null,null,null,null,null,null,null,{"$error":"#REF!"},0,{"$error":"#REF!"},{"$error":"#REF!"},{"$error":"#REF!"},null,null,null,null,null,null,null,null,null,null,null,null,null,null,null,null,null,null,null,null,null,null,null,null,null,{"$error":"#REF!"},0,{"$error":"#REF!"},{"$error":"#REF!"},{"$error":"#REF!"},null,null,null,null,null,null,null,null,null,null,null,null,null,null,null,null,null,null,null,null,null,null,null,null,null,{"$error":"#REF!"},0,{"$error":"#REF!"},{"$error":"#REF!"},{"$error":"#REF!"}]
[null,null,null,null,null,null,null,null,null,null,null,null,null,null,null,null,null,null,null,null,null,null,null,null,null,null,null,null,null,null,null,null,null,null,null,null,null,null,null,null,null,null,null,null,null,null,null,null,null,null,null,null,null,null,null,null,null,null,null,null,null,null,null,null,null,null,null,null,null,null,null,null,null,null,null,null,null,null,null,null,null,null,null,null,null,null,null,null,null,null,null,null,null,null,null,null,null,null,null,null,null,null,null,null,null,null,null,null,null,null,null,null,null,null,null,null,null,null,null,null,null,null,null,null,null,null,null,null,null,null,null,null,null,null,null,null,null,null,null,null,null,null,null,null,null,null,null,null,null,null,null,null,null,null,null,null,null,null,null,null,null,null,null,null,null,null,null,null,null,null,null,null,null,null,null,null,null,null,null,null,null,null,null,null,null,null,null,null,null,null,null,null,null,null,null,null,null,null,null,null,null,null,null,null,null,null,null,null,null,null,null,null,null,null,null,null,{"$f":"IF(AND(T216=0,T216<>\"\"),1,0)","v":0}]
["x"]
[]
[null,null,null,null,null,null,null,null,null,null,null,null,null,null,null,null,null,null,null,null,2018,2019,null,null,null,null,null,2020,null,null,null,null,null,2021,null,null,null,null,null,2022,null,null,null,null,null,2023,null,null,null,null,null,2024,null,null,null,null,null,2025,null,null,null,null,null,2026,null,null,null,null,null,2027,null,null,null,null,null,2028,null,null,null,null,null,2029,null,null,null,null,null,2030,null,null,null,null,null,2031,null,null,null,null,null,2032,null,null,null,null,null,2033,null,null,null,null,null,2034,null,null,null,null,null,2035,null,null,null,null,null,2036,null,null,null,null,null,2037,null,null,null,null,null,2038,null,null,null,null,null,2039,null,null,null,null,null,2040,null,null,null,null,null,2041,null,null,null,null,null,2042,null,null,null,null,null,2043,null,null,null,null,null,2044,null,null,null,null,null,2045,null,null,null,null,null,2046,null,null,null,null,null,2047,null,null,null,null,null,2048,null,null,null,null,null,2049,null,null,null,null,null,2050]
[]
[null,null,null,null,null,null,null,null,null,null,null,null,null,"Bruto vloeroppervlakte - BVO (m2)",null,null,null,null,null,null,{"$f":"IF($C$12<U219,0,IF(U219<$C$11,0,$C$4))","v":0},{"$f":"IF($C$12<V219,0,IF(V219<$C$11,0,$C$4))","v":0},null,null,null,null,null,{"$f":"IF($C$12<AB219,0,IF(AB219<$C$11,0,$C$4))","v":0},null,null,null,null,null,{"$f":"IF($C$12<AH219,0,IF(AH219<$C$11,0,$C$4))","v":0},null,null,null,null,null,{"$f":"IF($C$12<AN219,0,IF(AN219<$C$11,0,$C$4))","v":0},null,null,null,null,null,{"$f":"IF($C$12<AT219,0,IF(AT219<$C$11,0,$C$4))","v":0},null,null,null,null,null,{"$f":"IF($C$12<AZ219,0,IF(AZ219<$C$11,0,$C$4))","v":0},null,null,null,null,null,{"$f":"IF($C$12<BF219,0,IF(BF219<$C$11,0,$C$4))","v":0},null,null,null,null,null,{"$f":"IF($C$12<BL219,0,IF(BL219<$C$11,0,$C$4))","v":0},null,null,null,null,null,{"$f":"IF($C$12<BR219,0,IF(BR219<$C$11,0,$C$4))","v":0},null,null,null,null,null,{"$f":"IF($C$12<BX219,0,IF(BX219<$C$11,0,$C$4))","v":0},null,null,null,null,null,{"$f":"IF($C$12<CD219,0,IF(CD219<$C$11,0,$C$4))","v":0},null,null,null,null,null,{"$f":"IF($C$12<CJ219,0,IF(CJ219<$C$11,0,$C$4))","v":0},null,null,null,null,null,{"$f":"IF($C$12<CP219,0,IF(CP219<$C$11,0,$C$4))","v":0},null,null,null,null,null,{"$f":"IF($C$12<CV219,0,IF(CV219<$C$11,0,$C$4))","v":0},null,null,null,null,null,{"$f":"IF($C$12<DB219,0,IF(DB219<$C$11,0,$C$4))","v":0},null,null,null,null,null,{"$f":"IF($C$12<DH219,0,IF(DH219<$C$11,0,$C$4))","v":0},null,null,null,null,null,{"$f":"IF($C$12<DN219,0,IF(DN219<$C$11,0,$C$4))","v":0},null,null,null,null,null,{"$f":"IF($C$12<DT219,0,IF(DT219<$C$11,0,$C$4))","v":0},null,null,null,null,null,{"$f":"IF($C$12<DZ219,0,IF(DZ219<$C$11,0,$C$4))","v":0},null,null,null,null,null,{"$f":"IF($C$12<EF219,0,IF(EF219<$C$11,0,$C$4))","v":0},null,null,null,null,null,{"$f":"IF($C$12<EL219,0,IF(EL219<$C$11,0,$C$4))","v":0},null,null,null,null,null,{"$f":"IF($C$12<ER219,0,IF(ER219<$C$11,0,$C$4))","v":0},null,null,null,null,null,{"$f":"IF($C$12<EX219,0,IF(EX219<$C$11,0,$C$4))","v":0},null,null,null,null,null,{"$f":"IF($C$12<FD219,0,IF(FD219<$C$11,0,$C$4))","v":0},null,null,null,null,null,{"$f":"IF($C$12<FJ219,0,IF(FJ219<$C$11,0,$C$4))","v":0},null,null,null,null,null,{"$f":"IF($C$12<FP219,0,IF(FP219<$C$11,0,$C$4))","v":0},null,null,null,null,null,{"$f":"IF($C$12<FV219,0,IF(FV219<$C$11,0,$C$4))","v":0},null,null,null,null,null,{"$f":"IF($C$12<GB219,0,IF(GB219<$C$11,0,$C$4))","v":0},null,null,null,null,null,{"$f":"IF($C$12<GH219,0,IF(GH219<$C$11,0,$C$4))","v":0},null,null,null,null,null,{"$f":"IF($C$12<GN219,0,IF(GN219<$C$11,0,$C$4))","v":0},null,null,null,null,null,{"$f":"IF($C$12<GT219,0,IF(GT219<$C$11,0,$C$4))","v":0},null,null,null,null,null,{"$f":"IF($C$12<GZ219,0,IF(GZ219<$C$11,0,$C$4))","v":0}]
[null,null,null,null,null,null,null,null,null,null,null,null,null,"Gebruiksoppervlakte - GO (m2)",null,null,null,null,null,null,{"$f":"IF($C$12<U219,0,IF(U219<$C$11,0,$C$5))","v":0},{"$f":"IF($C$12<V219,0,IF(V219<$C$11,0,$C$5))","v":0},null,null,null,null,null,{"$f":"IF($C$12<AB219,0,IF(AB219<$C$11,0,$C$5))","v":0},null,null,null,null,null,{"$f":"IF($C$12<AH219,0,IF(AH219<$C$11,0,$C$5))","v":0},null,null,null,null,null,{"$f":"IF($C$12<AN219,0,IF(AN219<$C$11,0,$C$5))","v":0},null,null,null,null,null,{"$f":"IF($C$12<AT219,0,IF(AT219<$C$11,0,$C$5))","v":0},null,null,null,null,null,{"$f":"IF($C$12<AZ219,0,IF(AZ219<$C$11,0,$C$5))","v":0},null,null,null,null,null,{"$f":"IF($C$12<BF219,0,IF(BF219<$C$11,0,$C$5))","v":0},null,null,null,null,null,{"$f":"IF($C$12<BL219,0,IF(BL219<$C$11,0,$C$5))","v":0},null,null,null,null,null,{"$f":"IF($C$12<BR219,0,IF(BR219<$C$11,0,$C$5))","v":0},null,null,null,null,null,{"$f":"IF($C$12<BX219,0,IF(BX219<$C$11,0,$C$5))","v":0},null,null,null,null,null,{"$f":"IF($C$12<CD219,0,IF(CD219<$C$11,0,$C$5))","v":0},null,null,null,null,null,{"$f":"IF($C$12<CJ219,0,IF(CJ219<$C$11,0,$C$5))","v":0},null,null,null,null,null,{"$f":"IF($C$12<CP219,0,IF(CP219<$C$11,0,$C$5))","v":0},null,null,null,null,null,{"$f":"IF($C$12<CV219,0,IF(CV219<$C$11,0,$C$5))","v":0},null,null,null,null,null,{"$f":"IF($C$12<DB219,0,IF(DB219<$C$11,0,$C$5))","v":0},null,null,null,null,null,{"$f":"IF($C$12<DH219,0,IF(DH219<$C$11,0,$C$5))","v":0},null,null,null,null,null,{"$f":"IF($C$12<DN219,0,IF(DN219<$C$11,0,$C$5))","v":0},null,null,null,null,null,{"$f":"IF($C$12<DT219,0,IF(DT219<$C$11,0,$C$5))","v":0},null,null,null,null,null,{"$f":"IF($C$12<DZ219,0,IF(DZ219<$C$11,0,$C$5))","v":0},null,null,null,null,null,{"$f":"IF($C$12<EF219,0,IF(EF219<$C$11,0,$C$5))","v":0},null,null,null,null,null,{"$f":"IF($C$12<EL219,0,IF(EL219<$C$11,0,$C$5))","v":0},null,null,null,null,null,{"$f":"IF($C$12<ER219,0,IF(ER219<$C$11,0,$C$5))","v":0},null,null,null,null,null,{"$f":"IF($C$12<EX219,0,IF(EX219<$C$11,0,$C$5))","v":0},null,null,null,null,null,{"$f":"IF($C$12<FD219,0,IF(FD219<$C$11,0,$C$5))","v":0},null,null,null,null,null,{"$f":"IF($C$12<FJ219,0,IF(FJ219<$C$11,0,$C$5))","v":0},null,null,null,null,null,{"$f":"IF($C$12<FP219,0,IF(FP219<$C$11,0,$C$5))","v":0},null,null,null,null,null,{"$f":"IF($C$12<FV219,0,IF(FV219<$C$11,0,$C$5))","v":0},null,null,null,null,null,{"$f":"IF($C$12<GB219,0,IF(GB219<$C$11,0,$C$5))","v":0},null,null,null,null,null,{"$f":"IF($C$12<GH219,0,IF(GH219<$C$11,0,$C$5))","v":0},null,null,null,null,null,{"$f":"IF($C$12<GN219,0,IF(GN219<$C$11,0,$C$5))","v":0},null,null,null,null,null,{"$f":"IF($C$12<GT219,0,IF(GT219<$C$11,0,$C$5))","v":0},null,null,null,null,null,{"$f":"IF($C$12<GZ219,0,IF(GZ219<$C$11,0,$C$5))","v":0}]
[null,null,null,null,null,null,null,null,null,null,null,null,null,"Investeringen per jaar (€/jaar)",null,null,null,null,null,null,null,null,null,null,null,null,null,null,null,null,null,null,null,null,null,null,null,null,null,null,null,null,null,null,null,{"$f":"SUM(AU44:AU216)","v":{"$error":"#REF!"}},null,null,null,null,null,{"$f":"SUM(BA44:BA216)","v":{"$error":"#REF!"}},null,null,null,null,null,{"$f":"SUM(BG44:BG216)","v":{"$error":"#REF!"}},null,null,null,null,null,{"$f":"SUM(BM44:BM216)","v":{"$error":"#REF!"}},null,null,null,null,null,{"$f":"SUM(BS44:BS216)","v":{"$error":"#REF!"}},null,null,null,null,null,{"$f":"SUM(BY44:BY216)","v":{"$error":"#REF!"}},null,null,null,null,null,{"$f":"SUM(CE44:CE216)","v":{"$error":"#REF!"}},null,null,null,null,null,{"$f":"SUM(CK44:CK216)","v":{"$error":"#REF!"}},null,null,null,null,null,{"$f":"SUM(CQ44:CQ216)","v":{"$error":"#REF!"}},null,null,null,null,null,{"$f":"SUM(CW44:CW216)","v":0},null,null,null,null,null,{"$f":"SUM(DC44:DC216)","v":0},null,null,null,null,null,{"$f":"SUM(DI44:DI216)","v":0},null,null,null,null,null,{"$f":"SUM(DO44:DO216)","v":{"$error":"#REF!"}},null,null,null,null,null,{"$f":"SUM(DU44:DU216)","v":{"$error":"#REF!"}},null,null,null,null,null,{"$f":"SUM(EA44:EA216)","v":0},null,null,null,null,null,{"$f":"SUM(EG44:EG216)","v":0},null,null,null,null,null,{"$f":"SUM(EM44:EM216)","v":0},null,null,null,null,null,{"$f":"SUM(ES44:ES216)","v":{"$error":"#REF!"}},null,null,null,null,null,{"$f":"SUM(EY44:EY216)","v":{"$error":"#REF!"}},null,null,null,null,null,{"$f":"SUM(FE44:FE216)","v":0},null,null,null,null,null,{"$f":"SUM(FK44:FK216)","v":0},null,null,null,null,null,{"$f":"SUM(FQ44:FQ216)","v":0},null,null,null,null,null,{"$f":"SUM(FW44:FW216)","v":{"$error":"#REF!"}},null,null,null,null,null,{"$f":"SUM(GC44:GC216)","v":{"$error":"#REF!"}},null,null,null,null,null,{"$f":"SUM(GI44:GI216)","v":0},null,null,null,null,null,{"$f":"SUM(GO44:GO216)","v":0},null,null,null,null,null,{"$f":"SUM(GU44:GU216)","v":0},null,null,null,null,null,{"$f":"SUM(HA44:HA216)","v":{"$error":"#REF!"}}]
[null,null,null,null,null,null,null,null,null,null,null,null,null,"Cumulatieve investering (€)",null,null,null,null,null,null,null,null,null,null,null,null,null,null,null,null,null,null,null,null,null,null,null,null,null,0,null,null,null,null,null,{"$f":"AN224+AT223","v":{"$error":"#REF!"}},null,null,null,null,null,{"$f":"AT224+AZ223","v":{"$error":"#REF!"}},null,null,null,null,null,{"$f":"AZ224+BF223","v":{"$error":"#REF!"}},null,null,null,null,null,{"$f":"BF224+BL223","v":{"$error":"#REF!"}},null,null,null,null,null,{"$f":"BL224+BR223","v":{"$error":"#REF!"}},null,null,null,null,null,{"$f":"BR224+BX223","v":{"$error":"#REF!"}},null,null,null,null,null,{"$f":"BX224+CD223","v":{"$error":"#REF!"}},null,null,null,null,null,{"$f":"CD224+CJ223","v":{"$error":"#REF!"}},null,null,null,null,null,{"$f":"CJ224+CP223","v":{"$error":"#REF!"}},null,null,null,null,null,{"$f":"CP224+CV223","v":{"$error":"#REF!"}},null,null,null,null,null,{"$f":"CV224+DB223","v":{"$error":"#REF!"}},null,null,null,null,null,{"$f":"DB224+DH223","v":{"$error":"#REF!"}},null,null,null,null,null,{"$f":"DH224+DN223","v":{"$error":"#REF!"}},null,null,null,null,null,{"$f":"DN224+DT223","v":{"$error":"#REF!"}},null,null,null,null,null,{"$f":"DT224+DZ223","v":{"$error":"#REF!"}},null,null,null,null,null,{"$f":"DZ224+EF223","v":{"$error":"#REF!"}},null,null,null,null,null,{"$f":"EF224+EL223","v":{"$error":"#REF!"}},null,null,null,null,null,{"$f":"EL224+ER223","v":{"$error":"#REF!"}},null,null,null,null,null,{"$f":"ER224+EX223","v":{"$error":"#REF!"}},null,null,null,null,null,{"$f":"EX224+FD223","v":{"$error":"#REF!"}},null,null,null,null,null,{"$f":"FD224+FJ223","v":{"$error":"#REF!"}},null,null,null,null,null,{"$f":"FJ224+FP223","v":{"$error":"#REF!"}},null,null,null,null,null,{"$f":"FP224+FV223","v":{"$error":"#REF!"}},null,null,null,null,null,{"$f":"FV224+GB223","v":{"$error":"#REF!"}},null,null,null,null,null,{"$f":"GB224+GH223","v":{"$error":"#REF!"}},null,null,null,null,null,{"$f":"GH224+GN223","v":{"$error":"#REF!"}},null,null,null,null,null,{"$f":"GN224+GT223","v":{"$error":"#REF!"}},null,null,null,null,null,{"$f":"GT224+GZ223","v":{"$error":"#REF!"}}]
[null,null,"[ruimte voor eigen opmerkingen]",null,null,null,null,null,null,null,null,null,null,"Besparingen per jaar (€/jaar)",null,null,null,null,null,null,null,null,null,null,null,null,null,null,null,null,null,null,null,null,null,null,null,null,null,null,null,null,null,null,null,{"$f":"SUM(AY44:AY216)","v":{"$error":"#REF!"}},null,null,null,null,null,{"$f":"SUM(BE44:BE216)","v":{"$error":"#REF!"}},null,null,null,null,null,{"$f":"SUM(BK44:BK216)","v":{"$error":"#REF!"}},null,null,null,null,null,{"$f":"SUM(BQ44:BQ216)","v":{"$error":"#REF!"}},null,null,null,null,null,{"$f":"SUM(BW44:BW216)","v":{"$error":"#REF!"}},null,null,null,null,null,{"$f":"SUM(CC44:CC216)","v":{"$error":"#REF!"}},null,null,null,null,null,{"$f":"SUM(CI44:CI216)","v":{"$error":"#REF!"}},null,null,null,null,null,{"$f":"SUM(CO44:CO216)","v":{"$error":"#REF!"}},null,null,null,null,null,{"$f":"SUM(CU44:CU216)","v":{"$error":"#REF!"}},null,null,null,null,null,{"$f":"SUM(DA44:DA216)","v":0},null,null,null,null,null,{"$f":"SUM(DG44:DG216)","v":0},null,null,null,null,null,{"$f":"SUM(DM44:DM216)","v":0},null,null,null,null,null,{"$f":"SUM(DS44:DS216)","v":0},null,null,null,null,null,{"$f":"SUM(DY44:DY216)","v":{"$error":"#REF!"}},null,null,null,null,null,{"$f":"SUM(EE44:EE216)","v":0},null,null,null,null,null,{"$f":"SUM(EK44:EK216)","v":0},null,null,null,null,null,{"$f":"SUM(EQ44:EQ216)","v":0},null,null,null,null,null,{"$f":"SUM(EW44:EW216)","v":0},null,null,null,null,null,{"$f":"SUM(FC44:FC216)","v":{"$error":"#REF!"}},null,null,null,null,null,{"$f":"SUM(FI44:FI216)","v":0},null,null,null,null,null,{"$f":"SUM(FO44:FO216)","v":0},null,null,null,null,null,{"$f":"SUM(FU44:FU216)","v":0},null,null,null,null,null,{"$f":"SUM(GA44:GA216)","v":0},null,null,null,null,null,{"$f":"SUM(GG44:GG216)","v":{"$error":"#REF!"}},null,null,null,null,null,{"$f":"SUM(GM44:GM216)","v":0},null,null,null,null,null,{"$f":"SUM(GS44:GS216)","v":0},null,null,null,null,null,{"$f":"SUM(GY44:GY216)","v":0},null,null,null,null,null,{"$f":"SUM(HE44:HE216)","v":0}]
[null,null,null,null,null,null,null,null,null,null,null,null,null,"Cumulatieve besparing (€)",null,null,null,null,null,null,null,null,null,null,null,null,null,null,null,null,null,null,null,null,null,null,null,null,null,0,null,null,null,null,null,{"$f":"AN226+AT251","v":0},null,null,null,null,null,{"$f":"AT226+AZ251","v":0},null,null,null,null,null,{"$f":"AZ226+BF251","v":0},null,null,null,null,null,{"$f":"BF226+BL251","v":0},null,null,null,null,null,{"$f":"BL226+BR251","v":0},null,null,null,null,null,{"$f":"BR226+BX251","v":0},null,null,null,null,null,{"$f":"BX226+CD251","v":0},null,null,null,null,null,{"$f":"CD226+CJ251","v":0},null,null,null,null,null,{"$f":"CJ226+CP251","v":0},null,null,null,null,null,{"$f":"CP226+CV251","v":0},null,null,null,null,null,{"$f":"CV226+DB251","v":0},null,null,null,null,null,{"$f":"DB226+DH251","v":0},null,null,null,null,null,{"$f":"DH226+DN251","v":0},null,null,null,null,null,{"$f":"DN226+DT251","v":0},null,null,null,null,null,{"$f":"DT226+DZ251","v":0},null,null,null,null,null,{"$f":"DZ226+EF251","v":0},null,null,null,null,null,{"$f":"EF226+EL251","v":0},null,null,null,null,null,{"$f":"EL226+ER251","v":0},null,null,null,null,null,{"$f":"ER226+EX251","v":0},null,null,null,null,null,{"$f":"EX226+FD251","v":0},null,null,null,null,null,{"$f":"FD226+FJ251","v":0},null,null,null,null,null,{"$f":"FJ226+FP251","v":0},null,null,null,null,null,{"$f":"FP226+FV251","v":0},null,null,null,null,null,{"$f":"FV226+GB251","v":0},null,null,null,null,null,{"$f":"GB226+GH251","v":0},null,null,null,null,null,{"$f":"GH226+GN251","v":0},null,null,null,null,null,{"$f":"GN226+GT251","v":0},null,null,null,null,null,{"$f":"GT226+GZ251","v":0}]
[]
[null,null,null,null,null,null,null,null,null,null,null,null,null,"Elektriciteitreductie (kWh/jaar)",null,null,null,null,null,null,null,null,null,null,null,null,null,null,null,null,null,null,null,null,null,null,null,null,null,null,null,null,null,null,null,{"$f":"SUM(AW44:AW216)","v":{"$error":"#REF!"}},null,null,null,null,null,{"$f":"SUM(BC44:BC216)","v":{"$error":"#REF!"}},null,null,null,null,null,{"$f":"SUM(BI44:BI216)","v":{"$error":"#REF!"}},null,null,null,null,null,{"$f":"SUM(BO44:BO216)","v":{"$error":"#REF!"}},null,null,null,null,null,{"$f":"SUM(BU44:BU216)","v":{"$error":"#REF!"}},null,null,null,null,null,{"$f":"SUM(CA44:CA216)","v":{"$error":"#REF!"}},null,null,null,null,null,{"$f":"SUM(CG44:CG216)","v":{"$error":"#REF!"}},null,null,null,null,null,{"$f":"SUM(CM44:CM216)","v":{"$error":"#REF!"}},null,null,null,null,null,{"$f":"SUM(CS44:CS216)","v":{"$error":"#REF!"}},null,null,null,null,null,{"$f":"SUM(CY44:CY216)","v":0},null,null,null,null,null,{"$f":"SUM(DE44:DE216)","v":0},null,null,null,null,null,{"$f":"SUM(DK44:DK216)","v":0},null,null,null,null,null,{"$f":"SUM(DQ44:DQ216)","v":0},null,null,null,null,null,{"$f":"SUM(DW44:DW216)","v":{"$error":"#REF!"}},null,null,null,null,null,{"$f":"SUM(EC44:EC216)","v":0},null,null,null,null,null,{"$f":"SUM(EI44:EI216)","v":0},null,null,null,null,null,{"$f":"SUM(EO44:EO216)","v":0},null,null,null,null,null,{"$f":"SUM(EU44:EU216)","v":0},null,null,null,null,null,{"$f":"SUM(FA44:FA216)","v":{"$error":"#REF!"}},null,null,null,null,null,{"$f":"SUM(FG44:FG216)","v":0},null,null,null,null,null,{"$f":"SUM(FM44:FM216)","v":0},null,null,null,null,null,{"$f":"SUM(FS44:FS216)","v":0},null,null,null,null,null,{"$f":"SUM(FY44:FY216)","v":0},null,null,null,null,null,{"$f":"SUM(GE44:GE216)","v":{"$error":"#REF!"}},null,null,null,null,null,{"$f":"SUM(GK44:GK216)","v":0},null,null,null,null,null,{"$f":"SUM(GQ44:GQ216)","v":0},null,null,null,null,null,{"$f":"SUM(GW44:GW216)","v":0},null,null,null,null,null,{"$f":"SUM(HC44:HC216)","v":0}]
[null,null,null,null,null,null,null,null,null,null,null,null,null,"Elektriciteit inkoop (kWh/jaar)",null,null,null,null,null,null,{"$f":"U$31","v":0},{"$f":"V$31","v":0},null,null,null,null,null,{"$f":"AB$31","v":0},null,null,null,null,null,{"$f":"AH$31","v":0},null,null,null,null,null,{"$f":"AN$31","v":0},null,null,null,null,null,{"$f":"IF(AT222=0,0,IF(AT31>0,AT31,AN229-AT228))","v":0},0,0,0,0,0,0,0,0,0,0,0,0,0,0,0,0,0,0,0,0,0,0,0,0,0,0,0,0,0,0,0,0,0,0,0,0,0,0,0,0,0,0,0,0,0,0,0,0,0,0,0,0,0,0,0,0,0,0,0,0,0,0,0,{"$f":"IF(DF222=0,0,IF(DF31>0,DF31,CZ229-DF228))","v":0},0,0,0,0,0,0,0,0,0,0,0,0,0,0,0,0,0,0,0,0,0,0,0,0,0,0,0,0,0,0,0,0,0,0,0,0,0,0,0,0,0,0,0,0,0,0,0,0,0,0,0,0,0,0,0,0,0,0,0,0,0,0,0,{"$f":"IF(FR222=0,0,IF(FR31>0,FR31,FL229-FR228))","v":0},0,0,0,0,0,0,0,0,0,0,0,0,0,0,0,0,0,0,0,0,0,0,0,0,0,0,0,0,0,0,0,0,0,0]
[null,null,null,null,null,null,null,null,null,null,null,null,null,"Elektriciteit inkoop per m2 GO (kWh/m2 jaar)",null,null,null,null,null,null,{"$f":"IF(U222=0,0,U229/U222)","v":0},{"$f":"(IF(V222=0,0,V229/V222))","v":0},null,null,null,null,null,{"$f":"(IF(AB222=0,0,AB229/AB222))","v":0},null,null,null,null,null,{"$f":"(IF(AH222=0,0,AH229/AH222))","v":0},null,null,null,null,null,{"$f":"(IF(AN222=0,0,AN229/AN222))","v":0},null,null,null,null,null,{"$f":"(IF(AT222=0,0,AT229/AT222))","v":0},null,null,null,null,null,{"$f":"(IF(AZ222=0,0,AZ229/AZ222))","v":0},null,null,null,null,null,{"$f":"(IF(BF222=0,0,BF229/BF222))","v":0},null,null,null,null,null,{"$f":"(IF(BL222=0,0,BL229/BL222))","v":0},null,null,null,null,null,{"$f":"(IF(BR222=0,0,BR229/BR222))","v":0},null,null,null,null,null,{"$f":"(IF(BX222=0,0,BX229/BX222))","v":0},null,null,null,null,null,{"$f":"(IF(CD222=0,0,CD229/CD222))","v":0},null,null,null,null,null,{"$f":"(IF(CJ222=0,0,CJ229/CJ222))","v":0},null,null,null,null,null,{"$f":"(IF(CP222=0,0,CP229/CP222))","v":0},null,null,null,null,null,{"$f":"(IF(CV222=0,0,CV229/CV222))","v":0},null,null,null,null,null,{"$f":"(IF(DB222=0,0,DB229/DB222))","v":0},null,null,null,null,null,{"$f":"(IF(DH222=0,0,DH229/DH222))","v":0},null,null,null,null,null,{"$f":"(IF(DN222=0,0,DN229/DN222))","v":0},null,null,null,null,null,{"$f":"(IF(DT222=0,0,DT229/DT222))","v":0},null,null,null,null,null,{"$f":"(IF(DZ222=0,0,DZ229/DZ222))","v":0},null,null,null,null,null,{"$f":"(IF(EF222=0,0,EF229/EF222))","v":0},null,null,null,null,null,{"$f":"(IF(EL222=0,0,EL229/EL222))","v":0},null,null,null,null,null,{"$f":"(IF(ER222=0,0,ER229/ER222))","v":0},null,null,null,null,null,{"$f":"(IF(EX222=0,0,EX229/EX222))","v":0},null,null,null,null,null,{"$f":"(IF(FD222=0,0,FD229/FD222))","v":0},null,null,null,null,null,{"$f":"(IF(FJ222=0,0,FJ229/FJ222))","v":0},null,null,null,null,null,{"$f":"(IF(FP222=0,0,FP229/FP222))","v":0},null,null,null,null,null,{"$f":"(IF(FV222=0,0,FV229/FV222))","v":0},null,null,null,null,null,{"$f":"(IF(GB222=0,0,GB229/GB222))","v":0},null,null,null,null,null,{"$f":"(IF(GH222=0,0,GH229/GH222))","v":0},null,null,null,null,null,{"$f":"(IF(GN222=0,0,GN229/GN222))","v":0},null,null,null,null,null,{"$f":"(IF(GT222=0,0,GT229/GT222))","v":0},null,null,null,null,null,{"$f":"(IF(GZ222=0,0,GZ229/GZ222))","v":0}]
[null,null,null,null,null,null,null,null,null,null,null,null,null,"Aardgasreductie (m3/jaar)",null,null,null,null,null,null,null,null,null,null,null,null,null,null,null,null,null,null,null,null,null,null,null,null,null,{"$f":"SUM(AP44:AP216)","v":{"$error":"#REF!"}},null,null,null,null,null,{"$f":"SUM(AV44:AV216)","v":{"$error":"#REF!"}},null,null,null,null,null,{"$f":"SUM(BB44:BB216)","v":{"$error":"#REF!"}},null,null,null,null,null,{"$f":"SUM(BH44:BH216)","v":{"$error":"#REF!"}},null,null,null,null,null,{"$f":"SUM(BN44:BN216)","v":{"$error":"#REF!"}},null,null,null,null,null,{"$f":"SUM(BT44:BT216)","v":{"$error":"#REF!"}},null,null,null,null,null,{"$f":"SUM(BZ44:BZ216)","v":{"$error":"#REF!"}},null,null,null,null,null,{"$f":"SUM(CF44:CF216)","v":{"$error":"#REF!"}},null,null,null,null,null,{"$f":"SUM(CL44:CL216)","v":{"$error":"#REF!"}},null,null,null,null,null,{"$f":"SUM(CR44:CR216)","v":{"$error":"#REF!"}},null,null,null,null,null,{"$f":"SUM(CX44:CX216)","v":0},null,null,null,null,null,{"$f":"SUM(DD44:DD216)","v":0},null,null,null,null,null,{"$f":"SUM(DJ44:DJ216)","v":0},null,null,null,null,null,{"$f":"SUM(DP44:DP216)","v":0},null,null,null,null,null,{"$f":"SUM(DV44:DV216)","v":{"$error":"#REF!"}},null,null,null,null,null,{"$f":"SUM(EB44:EB216)","v":0},null,null,null,null,null,{"$f":"SUM(EH44:EH216)","v":0},null,null,null,null,null,{"$f":"SUM(EN44:EN216)","v":0},null,null,null,null,null,{"$f":"SUM(ET44:ET216)","v":0},null,null,null,null,null,{"$f":"SUM(EZ44:EZ216)","v":{"$error":"#REF!"}},null,null,null,null,null,{"$f":"SUM(FF44:FF216)","v":0},null,null,null,null,null,{"$f":"SUM(FL44:FL216)","v":0},null,null,null,null,null,{"$f":"SUM(FR44:FR216)","v":0},null,null,null,null,null,{"$f":"SUM(FX44:FX216)","v":0},null,null,null,null,null,{"$f":"SUM(GD44:GD216)","v":{"$error":"#REF!"}},null,null,null,null,null,{"$f":"SUM(GJ44:GJ216)","v":0},null,null,null,null,null,{"$f":"SUM(GP44:GP216)","v":0},null,null,null,null,null,{"$f":"SUM(GV44:GV216)","v":0},null,null,null,null,null,{"$f":"SUM(HB44:HB216)","v":0}]
[null,null,null,null,null,null,null,null,null,null,null,null,null,"Aardgas inkoop (m3/jaar)",null,null,null,null,null,null,{"$f":"U$32","v":0},{"$f":"V$32","v":0},null,null,null,null,null,{"$f":"AB$32","v":0},null,null,null,null,null,{"$f":"AH$32","v":0},null,null,null,null,null,{"$f":"AN$32","v":0},null,null,null,null,null,{"$f":"IF(AT222=0,0,IF(AT32>0,AT32,AN232-AT231))","v":0},0,0,0,0,0,0,0,0,0,0,0,0,0,0,0,0,0,0,0,0,0,0,0,0,0,0,0,0,0,0,0,0,0,0,0,0,0,0,0,0,0,0,0,0,0,0,0,0,0,0,0,0,0,0,0,0,0,0,0,0,0,0,0,{"$f":"IF(DF222=0,0,IF(DF32>0,DF32,CZ232-DF231))","v":0},0,0,0,0,0,0,0,0,0,0,0,0,0,0,0,0,0,0,0,0,0,0,0,0,0,0,0,0,0,0,0,0,0,0,0,0,0,0,0,0,0,0,0,0,0,0,0,0,0,0,0,0,0,0,0,0,0,0,0,0,0,0,0,{"$f":"IF(FR222=0,0,IF(FR32>0,FR32,FL232-FR231))","v":0},0,0,0,0,0,0,0,0,0,0,0,0,0,0,0,0,0,0,0,0,0,0,0,0,0,0,0,0,0,0,0,0,0,0]
[null,null,null,null,null,null,null,null,null,null,null,null,null,"Aardgas inkoop per m2 GO (m3/m2 jaar)",null,null,null,null,null,null,{"$f":"(IF(U222=0,0,U232/U222))","v":0},{"$f":"(IF(V222=0,0,V232/V222))","v":0},null,null,null,null,null,{"$f":"(IF(AB222=0,0,AB232/AB222))","v":0},null,null,null,null,null,{"$f":"(IF(AH222=0,0,AH232/AH222))","v":0},null,null,null,null,null,{"$f":"(IF(AN222=0,0,AN232/AN222))","v":0},null,null,null,null,null,{"$f":"(IF(AT222=0,0,AT232/AT222))","v":0},null,null,null,null,null,{"$f":"(IF(AZ222=0,0,AZ232/AZ222))","v":0},null,null,null,null,null,{"$f":"(IF(BF222=0,0,BF232/BF222))","v":0},null,null,null,null,null,{"$f":"(IF(BL222=0,0,BL232/BL222))","v":0},null,null,null,null,null,{"$f":"(IF(BR222=0,0,BR232/BR222))","v":0},null,null,null,null,null,{"$f":"(IF(BX222=0,0,BX232/BX222))","v":0},null,null,null,null,null,{"$f":"(IF(CD222=0,0,CD232/CD222))","v":0},null,null,null,null,null,{"$f":"(IF(CJ222=0,0,CJ232/CJ222))","v":0},null,null,null,null,null,{"$f":"(IF(CP222=0,0,CP232/CP222))","v":0},null,null,null,null,null,{"$f":"(IF(CV222=0,0,CV232/CV222))","v":0},null,null,null,null,null,{"$f":"(IF(DB222=0,0,DB232/DB222))","v":0},null,null,null,null,null,{"$f":"(IF(DH222=0,0,DH232/DH222))","v":0},null,null,null,null,null,{"$f":"(IF(DN222=0,0,DN232/DN222))","v":0},null,null,null,null,null,{"$f":"(IF(DT222=0,0,DT232/DT222))","v":0},null,null,null,null,null,{"$f":"(IF(DZ222=0,0,DZ232/DZ222))","v":0},null,null,null,null,null,{"$f":"(IF(EF222=0,0,EF232/EF222))","v":0},null,null,null,null,null,{"$f":"(IF(EL222=0,0,EL232/EL222))","v":0},null,null,null,null,null,{"$f":"(IF(ER222=0,0,ER232/ER222))","v":0},null,null,null,null,null,{"$f":"(IF(EX222=0,0,EX232/EX222))","v":0},null,null,null,null,null,{"$f":"(IF(FD222=0,0,FD232/FD222))","v":0},null,null,null,null,null,{"$f":"(IF(FJ222=0,0,FJ232/FJ222))","v":0},null,null,null,null,null,{"$f":"(IF(FP222=0,0,FP232/FP222))","v":0},null,null,null,null,null,{"$f":"(IF(FV222=0,0,FV232/FV222))","v":0},null,null,null,null,null,{"$f":"(IF(GB222=0,0,GB232/GB222))","v":0},null,null,null,null,null,{"$f":"(IF(GH222=0,0,GH232/GH222))","v":0},null,null,null,null,null,{"$f":"(IF(GN222=0,0,GN232/GN222))","v":0},null,null,null,null,null,{"$f":"(IF(GT222=0,0,GT232/GT222))","v":0},null,null,null,null,null,{"$f":"(IF(GZ222=0,0,GZ232/GZ222))","v":0}]
[null,null,"[merk en type, bouwjaar, vermogen, HR/VR]",null,null,null,null,null,null,null,null,null,null,"Warmtereductie (m3/jaar)",null,null,null,null,null,null,null,null,null,null,null,null,null,null,null,null,null,null,null,null,null,null,null,null,null,{"$f":"SUM(AR44:AR216)","v":{"$error":"#REF!"}},null,null,null,null,null,{"$f":"SUM(AX45:AX216)","v":{"$error":"#REF!"}},{"$error":"#REF!"},0,{"$error":"#REF!"},{"$error":"#REF!"},{"$error":"#REF!"},{"$error":"#REF!"},{"$error":"#REF!"},0,{"$error":"#REF!"},{"$error":"#REF!"},{"$error":"#REF!"},{"$error":"#REF!"},{"$error":"#REF!"},0,{"$error":"#REF!"},{"$error":"#REF!"},{"$error":"#REF!"},{"$error":"#REF!"},{"$error":"#REF!"},0,{"$error":"#REF!"},{"$error":"#REF!"},{"$error":"#REF!"},{"$error":"#REF!"},{"$error":"#REF!"},0,{"$error":"#REF!"},{"$error":"#REF!"},{"$error":"#REF!"},{"$error":"#REF!"},{"$error":"#REF!"},0,{"$error":"#REF!"},{"$error":"#REF!"},{"$error":"#REF!"},{"$error":"#REF!"},{"$error":"#REF!"},0,{"$error":"#REF!"},{"$error":"#REF!"},{"$error":"#REF!"},{"$error":"#REF!"},{"$error":"#REF!"},0,{"$error":"#REF!"},{"$error":"#REF!"},{"$error":"#REF!"},{"$error":"#REF!"},{"$error":"#REF!"},0,0,0,0,0,0,0,0,0,0,0,0,0,0,{"$f":"SUM(DJ45:DJ216)","v":0},0,0,0,0,0,0,0,0,0,0,{"$error":"#REF!"},{"$error":"#REF!"},{"$error":"#REF!"},{"$error":"#REF!"},{"$error":"#REF!"},0,0,0,0,0,0,0,0,0,0,0,0,0,0,0,0,0,0,0,0,0,0,0,0,0,{"$error":"#REF!"},{"$error":"#REF!"},{"$error":"#REF!"},{"$error":"#REF!"},{"$error":"#REF!"},0,0,0,0,0,0,0,0,0,0,0,0,0,0,0,0,0,0,{"$f":"SUM(FV45:FV216)","v":0},0,0,0,0,0,0,{"$error":"#REF!"},{"$error":"#REF!"},{"$error":"#REF!"},{"$error":"#REF!"},{"$error":"#REF!"},0,0,0,0,0,0,0,0,0,0,0,0,0,0,0,0,0,0,0,0,0,0,0]
[null,null,null,null,null,null,null,null,null,null,null,null,null,"Warmte inkoop (GJ/jaar)",null,null,null,null,null,null,{"$f":"U$33","v":0},{"$f":"V$33","v":0},null,null,null,null,null,{"$f":"AB$33","v":0},null,null,null,null,null,{"$f":"AH$33","v":0},null,null,null,null,null,{"$f":"AN$33","v":0},null,null,null,null,null,{"$f":"IF(AT222=0,0,IF(AT33>0,AT33,IF(AN235=0,0,IF(AN235<AT242,0,AN235-AT234+AX44))))","v":0},0,0,0,0,0,0,0,0,0,0,0,0,0,0,0,0,0,0,0,0,0,0,0,0,0,0,0,0,0,0,0,0,0,0,0,0,0,0,0,0,0,0,0,0,0,0,0,0,0,0,0,0,0,0,0,0,0,0,0,0,0,0,0,{"$f":"IF(DF222=0,0,IF(DF33>0,DF33,IF(CZ235=0,0,IF(CZ235<DF242,0,CZ235-DF234+DJ44))))","v":0},0,0,0,0,0,0,0,0,0,0,0,0,0,0,0,0,0,0,0,0,0,0,0,0,0,0,0,0,0,0,0,0,0,0,0,0,0,0,0,0,0,0,0,0,0,0,0,0,0,0,0,0,0,0,0,0,0,0,0,0,0,0,0,{"$f":"IF(FR222=0,0,IF(FR33>0,FR33,IF(FL235=0,0,IF(FL235<FR242,0,FL235-FR234+FV44))))","v":0},0,0,0,0,0,0,0,0,0,0,0,0,0,0,0,0,0,0,0,0,0,0,0,0,0,0,0,0,0,0,0,0,0,0]
[null,null,null,null,null,null,null,null,null,null,null,null,null,"Warmte inkoop per m2 GO (GG/m2 jaar)",null,null,null,null,null,null,{"$f":"(IF(U222=0,0,U235/U222))","v":0},{"$f":"(IF(V222=0,0,V235/V222))","v":0},null,null,null,null,null,{"$f":"(IF(AB222=0,0,AB235/AB222))","v":0},null,null,null,null,null,{"$f":"(IF(AH222=0,0,AH235/AH222))","v":0},null,null,null,null,null,{"$f":"(IF(AN222=0,0,AN235/AN222))","v":0},null,null,null,null,null,{"$f":"(IF(AT222=0,0,AT235/AT222))","v":0},null,null,null,null,null,{"$f":"(IF(AZ222=0,0,AZ235/AZ222))","v":0},null,null,null,null,null,{"$f":"(IF(BF222=0,0,BF235/BF222))","v":0},null,null,null,null,null,{"$f":"(IF(BL222=0,0,BL235/BL222))","v":0},null,null,null,null,null,{"$f":"(IF(BR222=0,0,BR235/BR222))","v":0},null,null,null,null,null,{"$f":"(IF(BX222=0,0,BX235/BX222))","v":0},null,null,null,null,null,{"$f":"(IF(CD222=0,0,CD235/CD222))","v":0},null,null,null,null,null,{"$f":"(IF(CJ222=0,0,CJ235/CJ222))","v":0},null,null,null,null,null,{"$f":"(IF(CP222=0,0,CP235/CP222))","v":0},null,null,null,null,null,{"$f":"(IF(CV222=0,0,CV235/CV222))","v":0},null,null,null,null,null,{"$f":"(IF(DB222=0,0,DB235/DB222))","v":0},null,null,null,null,null,{"$f":"(IF(DH222=0,0,DH235/DH222))","v":0},null,null,null,null,null,{"$f":"(IF(DN222=0,0,DN235/DN222))","v":0},null,null,null,null,null,{"$f":"(IF(DT222=0,0,DT235/DT222))","v":0},null,null,null,null,null,{"$f":"(IF(DZ222=0,0,DZ235/DZ222))","v":0},null,null,null,null,null,{"$f":"(IF(EF222=0,0,EF235/EF222))","v":0},null,null,null,null,null,{"$f":"(IF(EL222=0,0,EL235/EL222))","v":0},null,null,null,null,null,{"$f":"(IF(ER222=0,0,ER235/ER222))","v":0},null,null,null,null,null,{"$f":"(IF(EX222=0,0,EX235/EX222))","v":0},null,null,null,null,null,{"$f":"(IF(FD222=0,0,FD235/FD222))","v":0},null,null,null,null,null,{"$f":"(IF(FJ222=0,0,FJ235/FJ222))","v":0},null,null,null,null,null,{"$f":"(IF(FP222=0,0,FP235/FP222))","v":0},null,null,null,null,null,{"$f":"(IF(FV222=0,0,FV235/FV222))","v":0},null,null,null,null,null,{"$f":"(IF(GB222=0,0,GB235/GB222))","v":0},null,null,null,null,null,{"$f":"(IF(GH222=0,0,GH235/GH222))","v":0},null,null,null,null,null,{"$f":"(IF(GN222=0,0,GN235/GN222))","v":0},null,null,null,null,null,{"$f":"(IF(GT222=0,0,GT235/GT222))","v":0},null,null,null,null,null,{"$f":"(IF(GZ222=0,0,GZ235/GZ222))","v":0}]
[null,null,null,null,null,null,null,null,null,null,null,null,null,"Totale energie inkoop (kWh/jaar)",null,null,null,null,null,null,{"$f":"U34","v":0},{"$f":"V34","v":0},null,null,null,null,null,{"$f":"AB34","v":0},null,null,null,null,null,{"$f":"AH34","v":0},null,null,null,null,null,{"$f":"AN34","v":0},null,null,null,null,null,{"$f":"AT229+(AT232*9.786)+(AT235*278)+(AT242*278)","v":0},0,0,0,0,0,0,0,0,0,0,0,0,0,0,0,0,0,{"$f":"BL229+(BL232*9.786)+(BL235*278)+(BL242*278)","v":0},{"$f":"BM229+(BM232*9.786)+(BM235*278)+(BM242*278)","v":0},0,0,0,0,0,0,0,0,0,0,0,0,0,0,0,0,0,0,0,0,0,0,0,0,0,0,0,0,0,0,0,0,0,0,0,0,0,0,0,0,0,0,0,0,0,0,0,0,0,0,0,0,0,0,0,0,0,0,0,0,0,0,0,{"$f":"DY229+(DY232*9.786)+(DY235*278)+(DY242*278)","v":0},0,0,0,0,0,0,0,0,0,0,0,0,0,0,0,0,0,0,0,0,0,0,0,0,0,0,0,0,0,0,0,0,0,0,0,0,0,0,0,0,0,0,0,0,0,0,0,0,0,0,0,0,0,0,0,0,0,0,0,0,0,0,0,{"$f":"GK229+(GK232*9.786)+(GK235*278)+(GK242*278)","v":0},0,0,0,0,0,0,0,0,0,0,0,0,0,0,0,{"$f":"HA229+(HA232*9.786)+(HA235*278)","v":0},{"$f":"HB229+(HB232*9.786)+(HB235*278)","v":0},{"$f":"HC229+(HC232*9.786)+(HC235*278)","v":0},{"$f":"HD229+(HD232*9.786)+(HD235*278)","v":0},{"$f":"HE229+(HE232*9.786)+(HE235*278)","v":0}]
[null,null,null,null,null,null,null,null,null,null,null,null,null,"Totale energie inkoop per m2 GO (kWh/m2 jaar)",null,null,null,null,null,null,{"$f":"IF(U222=0,0,U237/U222)","v":0},{"$f":"IF(V222=0,0,V237/V222)","v":0},null,null,null,null,null,{"$f":"IF(AB222=0,0,AB237/AB222)","v":0},null,null,null,null,null,{"$f":"IF(AH222=0,0,AH237/AH222)","v":0},null,null,null,null,null,{"$f":"IF(AN222=0,0,AN237/AN222)","v":0},null,null,null,null,null,{"$f":"IF(AT222=0,0,AT237/AT222)","v":0},null,null,null,null,null,{"$f":"IF(AZ222=0,0,AZ237/AZ222)","v":0},null,null,null,null,null,{"$f":"IF(BF222=0,0,BF237/BF222)","v":0},null,null,null,null,null,{"$f":"IF(BL222=0,0,BL237/BL222)","v":0},null,null,null,null,null,{"$f":"IF(BR222=0,0,BR237/BR222)","v":0},null,null,null,null,null,{"$f":"IF(BX222=0,0,BX237/BX222)","v":0},null,null,null,null,null,{"$f":"IF(CD222=0,0,CD237/CD222)","v":0},null,null,null,null,null,{"$f":"IF(CJ222=0,0,CJ237/CJ222)","v":0},null,null,null,null,null,{"$f":"IF(CP222=0,0,CP237/CP222)","v":0},null,null,null,null,null,{"$f":"IF(CV222=0,0,CV237/CV222)","v":0},null,null,null,null,null,{"$f":"IF(DB222=0,0,DB237/DB222)","v":0},null,null,null,null,null,{"$f":"IF(DH222=0,0,DH237/DH222)","v":0},null,null,null,null,null,{"$f":"IF(DN222=0,0,DN237/DN222)","v":0},null,null,null,null,null,{"$f":"IF(DT222=0,0,DT237/DT222)","v":0},null,null,null,null,null,{"$f":"IF(DZ222=0,0,DZ237/DZ222)","v":0},null,null,null,null,null,{"$f":"IF(EF222=0,0,EF237/EF222)","v":0},null,null,null,null,null,{"$f":"IF(EL222=0,0,EL237/EL222)","v":0},null,null,null,null,null,{"$f":"IF(ER222=0,0,ER237/ER222)","v":0},null,null,null,null,null,{"$f":"IF(EX222=0,0,EX237/EX222)","v":0},null,null,null,null,null,{"$f":"IF(FD222=0,0,FD237/FD222)","v":0},null,null,null,null,null,{"$f":"IF(FJ222=0,0,FJ237/FJ222)","v":0},null,null,null,null,null,{"$f":"IF(FP222=0,0,FP237/FP222)","v":0},null,null,null,null,null,{"$f":"IF(FV222=0,0,FV237/FV222)","v":0},null,null,null,null,null,{"$f":"IF(GB222=0,0,GB237/GB222)","v":0},null,null,null,null,null,{"$f":"IF(GH222=0,0,GH237/GH222)","v":0},null,null,null,null,null,{"$f":"IF(GN222=0,0,GN237/GN222)","v":0},null,null,null,null,null,{"$f":"IF(GT222=0,0,GT237/GT222)","v":0},null,null,null,null,null,{"$f":"IF(GZ222=0,0,GZ237/GZ222)","v":0}]
[]
[null,null,"[merk en type, bouwjaar, vermogen, HR/VR]",null,null,null,null,null,null,null,null,null,null,"Opwek met PV (kWh/jaar)",null,null,null,null,null,null,{"$f":"U$37","v":0},{"$f":"V$37","v":0},null,null,null,null,null,{"$f":"AB$37","v":0},null,null,null,null,null,{"$f":"AH$37","v":0},null,null,null,null,null,{"$f":"AN$37","v":0},null,null,null,null,null,{"$f":"IF(AT222=0,0,AN240+SUMIF($S44:$S216,\"ja\",AW44:AW216))","v":0},null,null,null,null,null,{"$f":"IF(AZ222=0,0,AT240+SUMIF($S44:$S216,\"ja\",BC44:BC216))","v":0},null,null,null,null,null,{"$f":"IF(BF222=0,0,AZ240+SUMIF($S44:$S216,\"ja\",BI44:BI216))","v":0},null,null,null,null,null,{"$f":"IF(BL222=0,0,BF240+SUMIF($S44:$S216,\"ja\",BO44:BO216))","v":0},null,null,null,null,null,{"$f":"IF(BR222=0,0,BL240+SUMIF($S44:$S216,\"ja\",BU44:BU216))","v":0},null,null,null,null,null,{"$f":"IF(BX222=0,0,BR240+SUMIF($S44:$S216,\"ja\",CA44:CA216))","v":0},null,null,null,null,null,{"$f":"IF(CD222=0,0,BX240+SUMIF($S44:$S216,\"ja\",CG44:CG216))","v":0},null,null,null,null,null,{"$f":"IF(CJ222=0,0,CD240+SUMIF($S44:$S216,\"ja\",CM44:CM216))","v":0},null,null,null,null,null,{"$f":"IF(CP222=0,0,CJ240+SUMIF($S44:$S216,\"ja\",CS44:CS216))","v":0},null,null,null,null,null,{"$f":"IF(CV222=0,0,CP240+SUMIF($S44:$S216,\"ja\",CY44:CY216))","v":0},null,null,null,null,null,{"$f":"IF(DB222=0,0,CV240+SUMIF($S44:$S216,\"ja\",DE44:DE216))","v":0},null,null,null,null,null,{"$f":"IF(DH222=0,0,DB240+SUMIF($S44:$S216,\"ja\",DK44:DK216))","v":0},null,null,null,null,null,{"$f":"IF(DN222=0,0,DH240+SUMIF($S44:$S216,\"ja\",DQ44:DQ216))","v":0},null,null,null,null,null,{"$f":"IF(DT222=0,0,DN240+SUMIF($S44:$S216,\"ja\",DW44:DW216))","v":0},null,null,null,null,null,{"$f":"IF(DZ222=0,0,DT240+SUMIF($S44:$S216,\"ja\",EC44:EC216))","v":0},null,null,null,null,null,{"$f":"IF(EF222=0,0,DZ240+SUMIF($S44:$S216,\"ja\",EI44:EI216))","v":0},null,null,null,null,null,{"$f":"IF(EL222=0,0,EF240+SUMIF($S44:$S216,\"ja\",EO44:EO216))","v":0},null,null,null,null,null,{"$f":"IF(ER222=0,0,EL240+SUMIF($S44:$S216,\"ja\",EU44:EU216))","v":0},null,null,null,null,null,{"$f":"IF(EX222=0,0,ER240+SUMIF($S44:$S216,\"ja\",FA44:FA216))","v":0},null,null,null,null,null,{"$f":"IF(FD222=0,0,EX240+SUMIF($S44:$S216,\"ja\",FG44:FG216))","v":0},null,null,null,null,null,{"$f":"IF(FJ222=0,0,FD240+SUMIF($S44:$S216,\"ja\",FM44:FM216))","v":0},null,null,null,null,null,{"$f":"IF(FP222=0,0,FJ240+SUMIF($S44:$S216,\"ja\",FS44:FS216))","v":0},null,null,null,null,null,{"$f":"IF(FV222=0,0,FP240+SUMIF($S44:$S216,\"ja\",FY44:FY216))","v":0},null,null,null,null,null,{"$f":"IF(GB222=0,0,FV240+SUMIF($S44:$S216,\"ja\",GE44:GE216))","v":0},null,null,null,null,null,{"$f":"IF(GH222=0,0,GB240+SUMIF($S44:$S216,\"ja\",GK44:GK216))","v":0},null,null,null,null,null,{"$f":"IF(GN222=0,0,GH240+SUMIF($S44:$S216,\"ja\",GQ44:GQ216))","v":0},null,null,null,null,null,{"$f":"IF(GT222=0,0,GN240+SUMIF($S44:$S216,\"ja\",GW44:GW216))","v":0},null,null,null,null,null,{"$f":"IF(GZ222=0,0,GT240+SUMIF($S44:$S216,\"ja\",HC44:HC216))","v":0}]
[null,null,null,null,null,null,null,null,null,null,null,null,null,"Opwek met PV per m2 GO (kWh/m2 jaar)",null,null,null,null,null,null,{"$f":"IF(U222=0,0,U240/U222)","v":0},{"$f":"IF(V222=0,0,V240/V222)","v":0},null,null,null,null,null,{"$f":"IF(AB222=0,0,AB240/AB222)","v":0},null,null,null,null,null,{"$f":"IF(AH222=0,0,AH240/AH222)","v":0},null,null,null,null,null,{"$f":"(IF(AN222=0,0,AN240/AN222))","v":0},null,null,null,null,null,{"$f":"(IF(AT222=0,0,AT240/AT222))","v":0},null,null,null,null,null,{"$f":"(IF(AZ222=0,0,AZ240/AZ222))","v":0},null,null,null,null,null,{"$f":"(IF(BF222=0,0,BF240/BF222))","v":0},null,null,null,null,null,{"$f":"(IF(BL222=0,0,BL240/BL222))","v":0},null,null,null,null,null,{"$f":"(IF(BR222=0,0,BR240/BR222))","v":0},null,null,null,null,null,{"$f":"(IF(BX222=0,0,BX240/BX222))","v":0},null,null,null,null,null,{"$f":"(IF(CD222=0,0,CD240/CD222))","v":0},null,null,null,null,null,{"$f":"(IF(CJ222=0,0,CJ240/CJ222))","v":0},null,null,null,null,null,{"$f":"(IF(CP222=0,0,CP240/CP222))","v":0},null,null,null,null,null,{"$f":"(IF(CV222=0,0,CV240/CV222))","v":0},null,null,null,null,null,{"$f":"(IF(DB222=0,0,DB240/DB222))","v":0},null,null,null,null,null,{"$f":"(IF(DH222=0,0,DH240/DH222))","v":0},null,null,null,null,null,{"$f":"(IF(DN222=0,0,DN240/DN222))","v":0},null,null,null,null,null,{"$f":"(IF(DT222=0,0,DT240/DT222))","v":0},null,null,null,null,null,{"$f":"(IF(DZ222=0,0,DZ240/DZ222))","v":0},null,null,null,null,null,{"$f":"(IF(EF222=0,0,EF240/EF222))","v":0},null,null,null,null,null,{"$f":"(IF(EL222=0,0,EL240/EL222))","v":0},null,null,null,null,null,{"$f":"(IF(ER222=0,0,ER240/ER222))","v":0},null,null,null,null,null,{"$f":"(IF(EX222=0,0,EX240/EX222))","v":0},null,null,null,null,null,{"$f":"(IF(FD222=0,0,FD240/FD222))","v":0},null,null,null,null,null,{"$f":"(IF(FJ222=0,0,FJ240/FJ222))","v":0},null,null,null,null,null,{"$f":"(IF(FP222=0,0,FP240/FP222))","v":0},null,null,null,null,null,{"$f":"(IF(FV222=0,0,FV240/FV222))","v":0},null,null,null,null,null,{"$f":"(IF(GB222=0,0,GB240/GB222))","v":0},null,null,null,null,null,{"$f":"(IF(GH222=0,0,GH240/GH222))","v":0},null,null,null,null,null,{"$f":"(IF(GN222=0,0,GN240/GN222))","v":0},null,null,null,null,null,{"$f":"(IF(GT222=0,0,GT240/GT222))","v":0},null,null,null,null,null,{"$f":"(IF(GZ222=0,0,GZ240/GZ222))","v":0}]
[null,null,null,null,null,null,null,null,null,null,null,null,null,"Duurzame inkoop warmte (GJ/jaar)",null,null,null,null,null,null,null,null,null,null,null,null,null,null,null,null,null,null,null,null,null,null,null,null,null,null,null,null,null,null,null,{"$f":"IF(AT222=0,0,IF(AT44>0,-AX44,IF(AN242>0,AN242,0)))","v":0},0,0,0,0,0,0,0,0,0,0,0,0,0,0,0,0,0,0,0,0,0,0,0,0,0,0,0,0,0,0,0,0,0,0,0,0,0,0,0,0,0,0,0,0,0,0,0,0,0,0,0,0,0,0,0,0,0,0,0,0,0,0,0,{"$f":"IF(DF222=0,0,IF(DF44>0,-DJ44,IF(CZ242>0,CZ242,0)))","v":0},0,0,0,0,0,0,0,0,0,0,0,0,0,0,0,0,0,0,0,0,0,0,0,0,0,0,0,0,0,0,0,0,0,0,0,0,0,0,0,0,0,0,0,0,0,0,0,0,0,0,0,0,0,0,0,0,0,0,0,0,0,0,0,{"$f":"IF(FR222=0,0,IF(FR44>0,-FV44,IF(FL242>0,FL242,0)))","v":0},0,0,0,0,0,0,0,0,0,0,0,0,0,0,0,0,0,0,0,0,0,0,0,0,0,0,0,0,0,0,0,0,0,0,0,0,0,0,0]
[null,null,null,null,null,null,null,null,null,null,null,null,null,"Duurzame inkoop warmte per m2 GO (GJ/m2 jaar)",null,null,null,null,null,null,null,null,null,null,null,null,null,null,null,null,null,null,null,null,null,null,null,null,null,null,null,null,null,null,null,{"$f":"IF(AT222=0,0,AT242/AT222)","v":0},{"$f":"IF(AU222=0,0,AU242/AU222)","v":0},0,0,0,0,0,0,0,0,0,0,0,0,0,0,0,0,0,0,0,0,0,0,0,0,0,0,0,0,0,0,0,0,0,0,0,0,0,0,0,0,0,0,0,0,0,0,0,0,0,0,0,0,0,0,0,0,0,0,0,0,0,0,0,{"$f":"IF(DG222=0,0,DG242/DG222)","v":0},0,0,0,0,0,0,0,0,0,0,0,0,0,0,0,0,0,0,0,0,0,0,0,0,0,0,0,0,0,0,0,0,0,0,0,0,0,0,0,0,0,0,0,0,0,0,0,0,0,0,0,0,0,0,0,0,0,0,0,0,0,0,0,{"$f":"IF(FS222=0,0,FS242/FS222)","v":0},0,0,0,0,0,0,0,0,0,0,0,0,0,0,0,0,0,0,0,0,0,0,0,0,0,0,0,0,0,0,0,0,0,{"$f":"Duurzamewarmte_2023/HA222","v":{"$error":"#DIV/0!"}},{"$f":"Duurzamewarmte_2023/HB222","v":{"$error":"#DIV/0!"}},{"$f":"Duurzamewarmte_2023/HC222","v":{"$error":"#DIV/0!"}},{"$f":"Duurzamewarmte_2023/HD222","v":{"$error":"#DIV/0!"}},{"$f":"Duurzamewarmte_2023/HE222","v":{"$error":"#DIV/0!"}}]
[null,null,null,null,null,null,null,null,null,null,null,null,null,"Totaalverbruik zonder aftrek PV (kWh/jaar)",null,null,null,null,null,null,{"$f":"U38","v":0},{"$f":"V38","v":0},null,null,null,null,null,{"$f":"AB38","v":0},null,null,null,null,null,{"$f":"AH38","v":0},null,null,null,null,null,{"$f":"AN38","v":0},null,null,null,null,null,{"$f":"AT229+(AT232*9.786)+(AT235*278)+(AT242*278)+AT240","v":0},{"$f":"AU229+(AU232*9.786)+(AU235*278)+(AU242*278)+AU240","v":0},0,0,0,0,0,0,0,0,0,0,0,0,0,0,0,0,0,0,0,0,0,0,0,0,0,0,0,0,0,0,0,0,0,0,0,0,0,0,0,0,0,0,0,0,0,0,0,0,0,0,0,0,0,0,0,0,0,0,0,0,0,0,0,{"$f":"DG229+(DG232*9.786)+(DG235*278)+(DG242*278)+DG240","v":0},0,0,0,0,0,0,0,0,0,0,0,0,0,0,0,0,0,0,0,0,0,0,0,0,0,0,0,0,0,0,0,0,0,0,0,0,0,0,0,0,0,0,0,0,0,0,0,0,0,0,0,0,0,0,0,0,0,0,0,0,0,0,0,{"$f":"FS229+(FS232*9.786)+(FS235*278)+(FS242*278)+FS240","v":0},0,0,0,0,0,0,0,0,0,0,0,0,0,0,0,0,0,0,0,0,0,0,0,0,0,0,0,0,0,0,0,0,0]
[null,null,"[merk en type (A,B,C,D), type warmteterugwinsysteem, bouwjaar, vermogen, HR/VR]",null,null,null,null,null,null,null,null,null,null,"Tot.verb. zonder aftrek PV per m2 GO (kWh/m2 jaar)",null,null,null,null,null,null,{"$f":"IF(U222=0,0,U244/U222)","v":0},{"$f":"IF(V222=0,0,V244/V222)","v":0},null,null,null,null,null,{"$f":"IF(AB222=0,0,AB244/AB222)","v":0},null,null,null,null,null,{"$f":"IF(AH222=0,0,AH244/AH222)","v":0},null,null,null,null,null,{"$f":"IF(AN222=0,0,AN244/AN222)","v":0},null,null,null,null,null,{"$f":"IF(AT222=0,0,AT244/AT222)","v":0},null,null,null,null,null,{"$f":"IF(AZ222=0,0,AZ244/AZ222)","v":0},null,null,null,null,null,{"$f":"IF(BF222=0,0,BF244/BF222)","v":0},null,null,null,null,null,{"$f":"IF(BL222=0,0,BL244/BL222)","v":0},null,null,null,null,null,{"$f":"IF(BR222=0,0,BR244/BR222)","v":0},null,null,null,null,null,{"$f":"IF(BX222=0,0,BX244/BX222)","v":0},null,null,null,null,null,{"$f":"IF(CD222=0,0,CD244/CD222)","v":0},null,null,null,null,null,{"$f":"IF(CJ222=0,0,CJ244/CJ222)","v":0},null,null,null,null,null,{"$f":"IF(CP222=0,0,CP244/CP222)","v":0},null,null,null,null,null,{"$f":"IF(CV222=0,0,CV244/CV222)","v":0},null,null,null,null,null,{"$f":"IF(DB222=0,0,DB244/DB222)","v":0},null,null,null,null,null,{"$f":"IF(DH222=0,0,DH244/DH222)","v":0},null,null,null,null,null,{"$f":"IF(DN222=0,0,DN244/DN222)","v":0},null,null,null,null,null,{"$f":"IF(DT222=0,0,DT244/DT222)","v":0},null,null,null,null,null,{"$f":"IF(DZ222=0,0,DZ244/DZ222)","v":0},null,null,null,null,null,{"$f":"IF(EF222=0,0,EF244/EF222)","v":0},null,null,null,null,null,{"$f":"IF(EL222=0,0,EL244/EL222)","v":0},null,null,null,null,null,{"$f":"IF(ER222=0,0,ER244/ER222)","v":0},null,null,null,null,null,{"$f":"IF(EX222=0,0,EX244/EX222)","v":0},null,null,null,null,null,{"$f":"IF(FD222=0,0,FD244/FD222)","v":0},null,null,null,null,null,{"$f":"IF(FJ222=0,0,FJ244/FJ222)","v":0},null,null,null,null,null,{"$f":"IF(FP222=0,0,FP244/FP222)","v":0},null,null,null,null,null,{"$f":"IF(FV222=0,0,FV244/FV222)","v":0},null,null,null,null,null,{"$f":"IF(GB222=0,0,GB244/GB222)","v":0},null,null,null,null,null,{"$f":"IF(GH222=0,0,GH244/GH222)","v":0},null,null,null,null,null,{"$f":"IF(GN222=0,0,GN244/GN222)","v":0},null,null,null,null,null,{"$f":"IF(GT222=0,0,GT244/GT222)","v":0},null,null,null,null,null,{"$f":"IF(GZ222=0,0,GZ244/GZ222)","v":0}]
[]
[null,null,null,null,null,null,null,null,null,null,null,null,null,"Energiekosten elektriciteit per jaar (€/jaar)",null,null,null,null,null,null,{"$f":"U229*$C18","v":0},{"$f":"V229*$C18","v":0},null,null,null,null,null,{"$f":"AB229*$C18","v":0},null,null,null,null,null,{"$f":"AH229*$C18","v":0},null,null,null,null,null,{"$f":"AN229*$C18","v":0},null,null,null,null,null,{"$f":"AT229*$C18","v":0},null,null,null,null,null,{"$f":"AZ229*$C18","v":0},null,null,null,null,null,{"$f":"BF229*$C18","v":0},null,null,null,null,null,{"$f":"BL229*$C18","v":0},null,null,null,null,null,{"$f":"BR229*$C18","v":0},null,null,null,null,null,{"$f":"BX229*$C18","v":0},null,null,null,null,null,{"$f":"CD229*$C18","v":0},null,null,null,null,null,{"$f":"CJ229*$C18","v":0},null,null,null,null,null,{"$f":"CP229*$C18","v":0},null,null,null,null,null,{"$f":"CV229*$C18","v":0},null,null,null,null,null,{"$f":"DB229*$C18","v":0},null,null,null,null,null,{"$f":"DH229*$C18","v":0},null,null,null,null,null,{"$f":"DN229*$C18","v":0},null,null,null,null,null,{"$f":"DT229*$C18","v":0},null,null,null,null,null,{"$f":"DZ229*$C18","v":0},null,null,null,null,null,{"$f":"EF229*$C18","v":0},null,null,null,null,null,{"$f":"EL229*$C18","v":0},null,null,null,null,null,{"$f":"ER229*$C18","v":0},null,null,null,null,null,{"$f":"EX229*$C18","v":0},null,null,null,null,null,{"$f":"FD229*$C18","v":0},null,null,null,null,null,{"$f":"FJ229*$C18","v":0},null,null,null,null,null,{"$f":"FP229*$C18","v":0},null,null,null,null,null,{"$f":"FV229*$C18","v":0},null,null,null,null,null,{"$f":"GB229*$C18","v":0},null,null,null,null,null,{"$f":"GH229*$C18","v":0},null,null,null,null,null,{"$f":"GN229*$C18","v":0},null,null,null,null,null,{"$f":"GT229*$C18","v":0},null,null,null,null,null,{"$f":"GZ229*$C18","v":0}]
[null,null,null,null,null,null,null,null,null,null,null,null,null,"Energiekosten aardgas per jaar (€/jaar)",null,null,null,null,null,null,{"$f":"U232*$C19","v":0},{"$f":"V232*$C19","v":0},null,null,null,null,null,{"$f":"AB232*$C19","v":0},null,null,null,null,null,{"$f":"AH232*$C19","v":0},null,null,null,null,null,{"$f":"AN232*$C19","v":0},null,null,null,null,null,{"$f":"AT232*$C19","v":0},null,null,null,null,null,{"$f":"AZ232*$C19","v":0},null,null,null,null,null,{"$f":"BF232*$C19","v":0},null,null,null,null,null,{"$f":"BL232*$C19","v":0},null,null,null,null,null,{"$f":"BR232*$C19","v":0},null,null,null,null,null,{"$f":"BX232*$C19","v":0},null,null,null,null,null,{"$f":"CD232*$C19","v":0},null,null,null,null,null,{"$f":"CJ232*$C19","v":0},null,null,null,null,null,{"$f":"CP232*$C19","v":0},null,null,null,null,null,{"$f":"CV232*$C19","v":0},null,null,null,null,null,{"$f":"DB232*$C19","v":0},null,null,null,null,null,{"$f":"DH232*$C19","v":0},null,null,null,null,null,{"$f":"DN232*$C19","v":0},null,null,null,null,null,{"$f":"DT232*$C19","v":0},null,null,null,null,null,{"$f":"DZ232*$C19","v":0},null,null,null,null,null,{"$f":"EF232*$C19","v":0},null,null,null,null,null,{"$f":"EL232*$C19","v":0},null,null,null,null,null,{"$f":"ER232*$C19","v":0},null,null,null,null,null,{"$f":"EX232*$C19","v":0},null,null,null,null,null,{"$f":"FD232*$C19","v":0},null,null,null,null,null,{"$f":"FJ232*$C19","v":0},null,null,null,null,null,{"$f":"FP232*$C19","v":0},null,null,null,null,null,{"$f":"FV232*$C19","v":0},null,null,null,null,null,{"$f":"GB232*$C19","v":0},null,null,null,null,null,{"$f":"GH232*$C19","v":0},null,null,null,null,null,{"$f":"GN232*$C19","v":0},null,null,null,null,null,{"$f":"GT232*$C19","v":0},null,null,null,null,null,{"$f":"GZ232*$C19","v":0}]
[null,null,null,null,null,null,null,null,null,null,null,null,null,"Energiekosten warmte per jaar (€/jaar)",null,null,null,null,null,null,{"$f":"U235*$C20","v":0},{"$f":"V235*$C20","v":0},null,null,null,null,null,{"$f":"AB235*$C20","v":0},null,null,null,null,null,{"$f":"AH235*$C20","v":0},null,null,null,null,null,{"$f":"AN235*$C20","v":0},null,null,null,null,null,{"$f":"(AT235+AT242)*$C20","v":0},0,0,0,0,0,0,0,0,0,0,0,0,0,0,0,0,0,0,0,0,0,0,0,0,0,0,0,0,0,0,0,0,0,0,0,0,0,0,0,0,0,0,0,0,0,0,0,0,0,0,0,0,0,0,0,0,0,0,0,0,0,0,0,{"$f":"(DF235+DF242)*$C20","v":0},0,0,0,0,0,0,0,0,0,0,0,0,0,0,0,0,0,0,0,0,0,0,0,0,0,0,0,0,0,0,0,0,0,0,0,0,0,0,0,0,0,0,0,0,0,0,0,0,0,0,0,0,0,0,0,0,0,0,0,0,0,0,0,{"$f":"(FR235+FR242)*$C20","v":0},0,0,0,0,0,0,0,0,0,0,0,0,0,0,0,0,0,0,0,0,0,0,0,0,0,0,0,0,0,0,0,0,0,0,0,0,0,0,0]
[null,null,null,null,null,null,null,null,null,null,null,null,null,"Energiekosten totaal per jaar (€/jaar)",null,null,null,null,null,null,{"$f":"SUM(U247:U249)","v":0},{"$f":"SUM(V247:V249)","v":0},null,null,null,null,null,{"$f":"SUM(AB247:AB249)","v":0},null,null,null,null,null,{"$f":"SUM(AH247:AH249)","v":0},null,null,null,null,null,{"$f":"SUM(AN247:AN249)","v":0},null,null,null,null,null,{"$f":"SUM(AT247:AT249)","v":0},null,null,null,null,null,{"$f":"SUM(AZ247:AZ249)","v":0},null,null,null,null,null,{"$f":"SUM(BF247:BF249)","v":0},null,null,null,null,null,{"$f":"SUM(BL247:BL249)","v":0},null,null,null,null,null,{"$f":"SUM(BR247:BR249)","v":0},null,null,null,null,null,{"$f":"SUM(BX247:BX249)","v":0},null,null,null,null,null,{"$f":"SUM(CD247:CD249)","v":0},null,null,null,null,null,{"$f":"SUM(CJ247:CJ249)","v":0},null,null,null,null,null,{"$f":"SUM(CP247:CP249)","v":0},null,null,null,null,null,{"$f":"SUM(CV247:CV249)","v":0},null,null,null,null,null,{"$f":"SUM(DB247:DB249)","v":0},null,null,null,null,null,{"$f":"SUM(DH247:DH249)","v":0},null,null,null,null,null,{"$f":"SUM(DN247:DN249)","v":0},null,null,null,null,null,{"$f":"SUM(DT247:DT249)","v":0},null,null,null,null,null,{"$f":"SUM(DZ247:DZ249)","v":0},null,null,null,null,null,{"$f":"SUM(EF247:EF249)","v":0},null,null,null,null,null,{"$f":"SUM(EL247:EL249)","v":0},null,null,null,null,null,{"$f":"SUM(ER247:ER249)","v":0},null,null,null,null,null,{"$f":"SUM(EX247:EX249)","v":0},null,null,null,null,null,{"$f":"SUM(FD247:FD249)","v":0},null,null,null,null,null,{"$f":"SUM(FJ247:FJ249)","v":0},null,null,null,null,null,{"$f":"SUM(FP247:FP249)","v":0},null,null,null,null,null,{"$f":"SUM(FV247:FV249)","v":0},null,null,null,null,null,{"$f":"SUM(GB247:GB249)","v":0},null,null,null,null,null,{"$f":"SUM(GH247:GH249)","v":0},null,null,null,null,null,{"$f":"SUM(GN247:GN249)","v":0},null,null,null,null,null,{"$f":"SUM(GT247:GT249)","v":0},null,null,null,null,null,{"$f":"SUM(GZ247:GZ249)","v":0}]
[null,null,"[merk en type, bouwjaar, vermogen, HR/VR]",null,null,null,null,null,null,null,null,null,null,"Bespaard t.o.v. het referentiejaar (€/jaar)",null,null,null,null,null,null,null,null,null,null,null,null,null,null,null,null,null,null,null,null,null,null,null,null,null,{"$f":"IF(AN222=0,0,$AN$250-AN250)","v":0},null,null,null,null,null,{"$f":"IF(AT222=0,0,$AN$250-AT250)","v":0},null,null,null,null,null,{"$f":"IF(AZ222=0,0,$AN$250-AZ250)","v":0},null,null,null,null,null,{"$f":"IF(BF222=0,0,$AN$250-BF250)","v":0},null,null,null,null,null,{"$f":"IF(BL222=0,0,$AN$250-BL250)","v":0},null,null,null,null,null,{"$f":"IF(BR222=0,0,$AN$250-BR250)","v":0},null,null,null,null,null,{"$f":"IF(BX222=0,0,$AN$250-BX250)","v":0},null,null,null,null,null,{"$f":"IF(CD222=0,0,$AN$250-CD250)","v":0},null,null,null,null,null,{"$f":"IF(CJ222=0,0,$AN$250-CJ250)","v":0},null,null,null,null,null,{"$f":"IF(CP222=0,0,$AN$250-CP250)","v":0},null,null,null,null,null,{"$f":"IF(CV222=0,0,$AN$250-CV250)","v":0},null,null,null,null,null,{"$f":"IF(DB222=0,0,$AN$250-DB250)","v":0},null,null,null,null,null,{"$f":"IF(DH222=0,0,$AN$250-DH250)","v":0},null,null,null,null,null,{"$f":"IF(DN222=0,0,$AN$250-DN250)","v":0},null,null,null,null,null,{"$f":"IF(DT222=0,0,$AN$250-DT250)","v":0},null,null,null,null,null,{"$f":"IF(DZ222=0,0,$AN$250-DZ250)","v":0},null,null,null,null,null,{"$f":"IF(EF222=0,0,$AN$250-EF250)","v":0},null,null,null,null,null,{"$f":"IF(EL222=0,0,$AN$250-EL250)","v":0},null,null,null,null,null,{"$f":"IF(ER222=0,0,$AN$250-ER250)","v":0},null,null,null,null,null,{"$f":"IF(EX222=0,0,$AN$250-EX250)","v":0},null,null,null,null,null,{"$f":"IF(FD222=0,0,$AN$250-FD250)","v":0},null,null,null,null,null,{"$f":"IF(FJ222=0,0,$AN$250-FJ250)","v":0},null,null,null,null,null,{"$f":"IF(FP222=0,0,$AN$250-FP250)","v":0},null,null,null,null,null,{"$f":"IF(FV222=0,0,$AN$250-FV250)","v":0},null,null,null,null,null,{"$f":"IF(GB222=0,0,$AN$250-GB250)","v":0},null,null,null,null,null,{"$f":"IF(GH222=0,0,$AN$250-GH250)","v":0},null,null,null,null,null,{"$f":"IF(GN222=0,0,$AN$250-GN250)","v":0},null,null,null,null,null,{"$f":"IF(GT222=0,0,$AN$250-GT250)","v":0},null,null,null,null,null,{"$f":"IF(GZ222=0,0,$AN$250-GZ250)","v":0}]
[]
[null,null,null,null,null,null,null,null,null,null,null,null,null,"CO2 footprint (ton/jaar) ",null,null,null,null,null,null,{"$f":"(U229*CO2factorElektriciteit+U232*CO2factorAardgas+(U235-U242)*CO2factorWarmte)/1000","v":0},{"$f":"(V229*CO2factorElektriciteit+V232*CO2factorAardgas+(V235-V242)*CO2factorWarmte)/1000","v":0},null,null,null,null,null,{"$f":"(AB229*CO2factorElektriciteit+AB232*CO2factorAardgas+(AB235-AB242)*CO2factorWarmte)/1000","v":0},null,null,null,null,null,{"$f":"(AH229*CO2factorElektriciteit+AH232*CO2factorAardgas+(AH235-AH242)*CO2factorWarmte)/1000","v":0},null,null,null,null,null,{"$f":"(AN229*CO2factorElektriciteit+AN232*CO2factorAardgas+(AN235-AN242)*CO2factorWarmte)/1000","v":0},null,null,null,null,null,{"$f":"(AT229*CO2factorElektriciteit+AT232*CO2factorAardgas+(AT235-AT242)*CO2factorWarmte)/1000","v":0},null,null,null,null,null,{"$f":"(AZ229*CO2factorElektriciteit+AZ232*CO2factorAardgas+(AZ235-AZ242)*CO2factorWarmte)/1000","v":0},null,null,null,null,null,{"$f":"(BF229*CO2factorElektriciteit+BF232*CO2factorAardgas+(BF235-BF242)*CO2factorWarmte)/1000","v":0},null,null,null,null,null,{"$f":"(BL229*CO2factorElektriciteit+BL232*CO2factorAardgas+(BL235-BL242)*CO2factorWarmte)/1000","v":0},null,null,null,null,null,{"$f":"(BR229*CO2factorElektriciteit+BR232*CO2factorAardgas+(BR235-BR242)*CO2factorWarmte)/1000","v":0},null,null,null,null,null,{"$f":"(BX229*CO2factorElektriciteit+BX232*CO2factorAardgas+(BX235-BX242)*CO2factorWarmte)/1000","v":0},null,null,null,null,null,{"$f":"(CD229*CO2factorElektriciteit+CD232*CO2factorAardgas+(CD235-CD242)*CO2factorWarmte)/1000","v":0},null,null,null,null,null,{"$f":"(CJ229*CO2factorElektriciteit+CJ232*CO2factorAardgas+(CJ235-CJ242)*CO2factorWarmte)/1000","v":0},null,null,null,null,null,{"$f":"(CP229*CO2factorElektriciteit+CP232*CO2factorAardgas+(CP235-CP242)*CO2factorWarmte)/1000","v":0},null,null,null,null,null,{"$f":"(CV229*CO2factorElektriciteit+CV232*CO2factorAardgas+(CV235-CV242)*CO2factorWarmte)/1000","v":0},null,null,null,null,null,{"$f":"(DB229*CO2factorElektriciteit+DB232*CO2factorAardgas+(DB235-DB242)*CO2factorWarmte)/1000","v":0},null,null,null,null,null,{"$f":"(DH229*CO2factorElektriciteit+DH232*CO2factorAardgas+(DH235-DH242)*CO2factorWarmte)/1000","v":0},null,null,null,null,null,{"$f":"(DN229*CO2factorElektriciteit+DN232*CO2factorAardgas+(DN235-DN242)*CO2factorWarmte)/1000","v":0},null,null,null,null,null,{"$f":"(DT229*CO2factorElektriciteit+DT232*CO2factorAardgas+(DT235-DT242)*CO2factorWarmte)/1000","v":0},null,null,null,null,null,{"$f":"(DZ229*CO2factorElektriciteit+DZ232*CO2factorAardgas+(DZ235-DZ242)*CO2factorWarmte)/1000","v":0},null,null,null,null,null,{"$f":"(EF229*CO2factorElektriciteit+EF232*CO2factorAardgas+(EF235-EF242)*CO2factorWarmte)/1000","v":0},null,null,null,null,null,{"$f":"(EL229*CO2factorElektriciteit+EL232*CO2factorAardgas+(EL235-EL242)*CO2factorWarmte)/1000","v":0},null,null,null,null,null,{"$f":"(ER229*CO2factorElektriciteit+ER232*CO2factorAardgas+(ER235-ER242)*CO2factorWarmte)/1000","v":0},null,null,null,null,null,{"$f":"(EX229*CO2factorElektriciteit+EX232*CO2factorAardgas+(EX235-EX242)*CO2factorWarmte)/1000","v":0},null,null,null,null,null,{"$f":"(FD229*CO2factorElektriciteit+FD232*CO2factorAardgas+(FD235-FD242)*CO2factorWarmte)/1000","v":0},null,null,null,null,null,{"$f":"(FJ229*CO2factorElektriciteit+FJ232*CO2factorAardgas+(FJ235-FJ242)*CO2factorWarmte)/1000","v":0},null,null,null,null,null,{"$f":"(FP229*CO2factorElektriciteit+FP232*CO2factorAardgas+(FP235-FP242)*CO2factorWarmte)/1000","v":0},null,null,null,null,null,{"$f":"(FV229*CO2factorElektriciteit+FV232*CO2factorAardgas+(FV235-FV242)*CO2factorWarmte)/1000","v":0},null,null,null,null,null,{"$f":"(GB229*CO2factorElektriciteit+GB232*CO2factorAardgas+(GB235-GB242)*CO2factorWarmte)/1000","v":0},null,null,null,null,null,{"$f":"(GH229*CO2factorElektriciteit+GH232*CO2factorAardgas+(GH235-GH242)*CO2factorWarmte)/1000","v":0},null,null,null,null,null,{"$f":"(GN229*CO2factorElektriciteit+GN232*CO2factorAardgas+(GN235-GN242)*CO2factorWarmte)/1000","v":0},null,null,null,null,null,{"$f":"(GT229*CO2factorElektriciteit+GT232*CO2factorAardgas+(GT235-GT242)*CO2factorWarmte)/1000","v":0},null,null,null,null,null,{"$f":"(GZ229*CO2factorElektriciteit+GZ232*CO2factorAardgas+(GZ235-GZ242)*CO2factorWarmte)/1000","v":0}]
[null,null,null,null,null,null,null,null,null,null,null,null,null,"CO2 uitstoot per m2 GO (kg/m2 jaar)",null,null,null,null,null,null,{"$f":"IF(U222=0,0,(U253*1000)/U222)","v":0},{"$f":"IF(V222=0,0,(V253*1000)/V222)","v":0},null,null,null,null,null,{"$f":"IF(AB222=0,0,(AB253*1000)/AB222)","v":0},null,null,null,null,null,{"$f":"IF(AH222=0,0,(AH253*1000)/AH222)","v":0},null,null,null,null,null,{"$f":"IF(AN222=0,0,(AN253*1000)/AN222)","v":0},null,null,null,null,null,{"$f":"IF(AT222=0,0,(AT253*1000)/AT222)","v":0},null,null,null,null,null,{"$f":"IF(AZ222=0,0,(AZ253*1000)/AZ222)","v":0},null,null,null,null,null,{"$f":"IF(BF222=0,0,(BF253*1000)/BF222)","v":0},null,null,null,null,null,{"$f":"IF(BL222=0,0,(BL253*1000)/BL222)","v":0},null,null,null,null,null,{"$f":"IF(BR222=0,0,(BR253*1000)/BR222)","v":0},null,null,null,null,null,{"$f":"IF(BX222=0,0,(BX253*1000)/BX222)","v":0},null,null,null,null,null,{"$f":"IF(CD222=0,0,(CD253*1000)/CD222)","v":0},null,null,null,null,null,{"$f":"IF(CJ222=0,0,(CJ253*1000)/CJ222)","v":0},null,null,null,null,null,{"$f":"IF(CP222=0,0,(CP253*1000)/CP222)","v":0},null,null,null,null,null,{"$f":"IF(CV222=0,0,(CV253*1000)/CV222)","v":0},null,null,null,null,null,{"$f":"IF(DB222=0,0,(DB253*1000)/DB222)","v":0},null,null,null,null,null,{"$f":"IF(DH222=0,0,(DH253*1000)/DH222)","v":0},null,null,null,null,null,{"$f":"IF(DN222=0,0,(DN253*1000)/DN222)","v":0},null,null,null,null,null,{"$f":"IF(DT222=0,0,(DT253*1000)/DT222)","v":0},null,null,null,null,null,{"$f":"IF(DZ222=0,0,(DZ253*1000)/DZ222)","v":0},null,null,null,null,null,{"$f":"IF(EF222=0,0,(EF253*1000)/EF222)","v":0},null,null,null,null,null,{"$f":"IF(EL222=0,0,(EL253*1000)/EL222)","v":0},null,null,null,null,null,{"$f":"IF(ER222=0,0,(ER253*1000)/ER222)","v":0},null,null,null,null,null,{"$f":"IF(EX222=0,0,(EX253*1000)/EX222)","v":0},null,null,null,null,null,{"$f":"IF(FD222=0,0,(FD253*1000)/FD222)","v":0},null,null,null,null,null,{"$f":"IF(FJ222=0,0,(FJ253*1000)/FJ222)","v":0},null,null,null,null,null,{"$f":"IF(FP222=0,0,(FP253*1000)/FP222)","v":0},null,null,null,null,null,{"$f":"IF(FV222=0,0,(FV253*1000)/FV222)","v":0},null,null,null,null,null,{"$f":"IF(GB222=0,0,(GB253*1000)/GB222)","v":0},null,null,null,null,null,{"$f":"IF(GH222=0,0,(GH253*1000)/GH222)","v":0},null,null,null,null,null,{"$f":"IF(GN222=0,0,(GN253*1000)/GN222)","v":0},null,null,null,null,null,{"$f":"IF(GT222=0,0,(GT253*1000)/GT222)","v":0},null,null,null,null,null,{"$f":"IF(GZ222=0,0,(GZ253*1000)/GZ222)","v":0}]
[null,null,null,null,null,null,null,null,null,null,null,null,null,"Reductie CO2 footprint t.o.v. 2018 (%)",null,null,null,null,null,null,{"$f":"IF(U222=0,0,IF(CO2_2018=0,0,(U253/$U$253)-1))","v":0},0,0,0,0,0,0,0,0,0,0,0,0,0,0,0,0,0,0,0,0,0,0,0,0,0,0,0,0,0,0,0,{"$f":"IF(BA222=0,0,IF(CO2_2018=0,0,(BA253/$U$253)-1))","v":0},0,0,0,0,0,0,0,0,0,0,0,0,0,0,0,0,0,0,0,0,0,0,0,0,0,0,0,0,0,0,0,{"$f":"IF(CG222=0,0,IF(CO2_2018=0,0,(CG253/$U$253)-1))","v":0},0,0,0,0,0,0,0,0,0,0,0,0,0,0,0,0,0,0,0,0,0,0,0,0,0,0,0,0,0,0,0,{"$f":"IF(DM222=0,0,IF(CO2_2018=0,0,(DM253/$U$253)-1))","v":0},0,0,0,0,0,0,0,0,0,0,0,0,0,0,0,0,0,0,0,0,0,0,0,0,0,0,0,0,0,0,0,{"$f":"IF(ES222=0,0,IF(CO2_2018=0,0,(ES253/$U$253)-1))","v":0},0,0,0,0,0,0,0,0,0,0,0,0,0,0,0,0,0,0,0,0,0,0,0,0,0,0,0,0,0,0,0,{"$f":"IF(FY222=0,0,IF(CO2_2018=0,0,(FY253/$U$253)-1))","v":0},0,0,0,0,0,0,0,0,0,0,0,0,0,0,0,0,0,0,0,0,0,0,0,0,0,0,0]
[null,null,"[Inregeling, EBS, slimme (tussen)meters, gebouwvorm- en delen, motivatie voor clustering etc.]",null,null,null,null,null,null,null,null,null,null,"Parisproof-norm (kWh/m2 jaar)",null,null,null,null,null,null,80,80,null,null,null,null,null,80,null,null,null,null,null,80,null,null,null,null,null,80,null,null,null,null,null,80,null,null,null,null,null,80,null,null,null,null,null,80,null,null,null,null,null,80,null,null,null,null,null,80,null,null,null,null,null,80,null,null,null,null,null,80,null,null,null,null,null,80,null,null,null,null,null,80,null,null,null,null,null,80,null,null,null,null,null,80,null,null,null,null,null,80,null,null,null,null,null,80,null,null,null,null,null,80,null,null,null,null,null,80,null,null,null,null,null,80,null,null,null,null,null,80,null,null,null,null,null,80,null,null,null,null,null,80,null,null,null,null,null,80,null,null,null,null,null,80,null,null,null,null,null,80,null,null,null,null,null,80,null,null,null,null,null,80,null,null,null,null,null,80,null,null,null,null,null,80,null,null,null,null,null,80,null,null,null,null,null,80]
[null,null,null,null,null,null,null,null,null,null,null,null,null,null,null,null,null,null,null,null,null,null,{"$f":"IF($C$9>2000,0,80)","v":80},{"$f":"IF($C$9>2000,0,80)","v":80},{"$f":"IF($C$9>2000,0,80)","v":80},{"$f":"IF($C$9>2000,0,80)","v":80},{"$f":"IF($C$9>2000,0,80)","v":80}]